Workbook

Sheet Regional Projects Scored
A1: Highway
B2: CAMPO | C2: FAMPO | D2: Lumber Rvr | E2: Mid-Carlna
A3: Bladen | B3: Columbus | C3: Cumberland | D3: Harnett | E3: Robeson | AH3: Scoring Data
A4: SPOT ID | B4: =+AX4 -> First County | C4: First MPO/RPO | D4: Project Category | E4: TIP | F4: Route | G4: From / Cross Street | H4: To | I4: Description | J4: Specific Improvement Type | K4: Cost to NCDOT | L4: Statewide Quantiative Score (Out of 100) | M4: Regional Impact Quantiative Score (Out of 70) | N4: Division Needs Quantiative Score (Out of 50) | O4: Points Assigned | P4: Total Division Regional Score | R4: Existing Congestion | S4: Safety Score | T4: Cost Effectiveness | U4: Freight Volume | V4: Corridor Continuity | W4: Serves Activity Center | Y4: Congestion | Z4: [Travel Time] Benefit/Cost | AA4: Safety | AB4: Multimodal + [Freight & Military] | AC4: Economic Competitiveness | AD4: Accessibility / Connectivity | AE4: Lane Width | AF4: [Paved] Shoulder Width | AH4: Volume to Capacity | AI4: Cost Effectiveness | AJ4: Freight Volume | AL4: First MPO/RPO | AM4: First MPO/RPO % | AN4: Second MPO/RPO | AO4: Second MPO/RPO % | AP4: Third MPO/RPO | AQ4: Third MPO/RPO % | AR4: First Division | AS4: First Division % | AT4: Second Division | AU4: Second Division % | AV4: Third Division | AW4: Third Division % | AX4: First County | AY4: First County % | AZ4: Second County | BA4: Second County % | BB4: Third County | BC4: Third County % | BD4: Fourth County | BE4: Fourth County % | BF4: Highest Division | BG4: Funding Region | BH4: All Divisions | BI4: All MPOs/RPOs | BJ4: All Counties | BK4: Existing Length (Miles) | BL4: Project Length (Miles) | BM4: Existing Facility Type | BN4: Project Facility Type | BO4: Existing Lanes Per Direction | BP4: Project Lanes Per Direction | BQ4: Existing Median Type | BR4: Project Median Type | BS4: Existing Speed Limit | BT4: Project Speed Limit | BU4: Truck % | BV4: Auto % | BW4: Existing Volume | BX4: Existing Capacity | BY4: Existing Volume / Capacity Ratio | BZ4: Auto Volume | CA4: Truck Volume | CB4: Travel Time Savings Over 30 Years Autos (Hrs) | CC4: Travel Time Savings Over 30 Years Trucks (Hrs) | CD4: Travel Time Savings Over 30 Years Total (Hrs) | CE4: Travel Time Savings Over 30 Years Total ($) | CF4: Crash Density Points Segment | CG4: Crash Severity Points Segment | CH4: Critical Crash Rate Points Segment | CI4: Crash Frequency Points Intersection | CJ4: Severity Index Points Intersection | CK4: Long Term Employment | CL4: Percent Change In Value Added | CM4: Non-Interstate STRAHNet Route | CN4: Direct Connection to Transportation Terminal | CO4: Existing Lane Width | CP4: DOT Design Standard Lane Width | CQ4: Existing Roadway Has Curb & Gutter | CR4: Existing Paved Shoulder Width | CS4: DOT Design Paved Shoulder Width | CT4: Existing Cross Section | CU4: Project Cross Section | CV4: Existing Access Control | CW4: Project Access Control | CX4: County Tier | CY4: Upgrade Roadway Eligible | CZ4: Census Average Commute Time | DA4: Construction Cost | DB4: Right-Of-Way Cost | DC4: Utilities Cost | DD4: Actual Project Cost | DE4: Other Funds | DF4: Cost to NCDOT | DG4: Cost Used in Benefit/Cost Analysis | DH4: Other Funds Source
A5: H090458-B | B5: Cumberland | C5: Fayetteville Area MPO | D5: Regional Impact | E5: U-4403 | F5: US-401 Ramsey Street | G5: Martin Luther King, Jr. Freeway | H5: US 401 Bypass | I5: Widen to Multi-Lanes | J5: 1 - Widen Existing Roadway | K5: 14232000 | L5: N/A | M5: 33.05652898 | N5: 26.38149592 | O5: 100 | P5: =SUM(R5:W5) -> 100 | R5: =IF(AH5<0.5,0,IF(AH5<0.75,5,IF(AH5<0.9,10,IF(AH5<1,15,20)))) -> 20 | S5: =IF(AA5<30,0,IF(AA5<51,8.33,IF(AA5<66,16.67,25))) -> 25 | T5: =IF(AI5>1500,0,IF(AI5>1000,6.67,IF(AI5>500,13.33,20))) -> 20 | U5: =IF(AJ5<500,0,IF(AJ5<1000,7.5,15)) -> 15 | V5: 10 | W5: 10 | Y5: 75.20576355 | Z5: 14.55938673 | AA5: 84.28465861 | AB5: 7.429233737 | AC5: N/A | AD5: 21.8677555 | AE5: N/A | AF5: N/A | AH5: =+BW5/BX5 -> 1.034751838 | AI5: =K5/BW5/BL5 -> 173.4596681 | AJ5: =+CA5 -> 1485.846747 | AL5: Fayetteville Area MPO | AM5: 100 | AR5: 06 | AS5: 100 | AX5: Cumberland | AY5: 100 | BF5: 6 | BG5: C | BH5: 06, , | BI5: Fayetteville Area MPO, , | BJ5: Cumberland, , , | BK5: 2.50133555 | BL5: 2.50133555 | BM5: Arterial | BN5: Arterial | BO5: 2 | BP5: 3 | BQ5: Divided | BR5: Divided | BS5: 45 | BT5: 45 | BU5: 4.529795014 | BV5: 95.47020499 | BW5: 32801.63325 | BX5: 31700 | BY5: 1.034751838 | BZ5: 31315.7865 | CA5: 1485.846747 | CB5: 8825325.346 | CC5: 418737.0788 | CD5: 9244062.425 | CE5: 207209192 | CF5: 93.15630096 | CG5: 73.21045487 | CH5: 86.51250794 | CM5: No | CN5: No | CO5: 11 | CP5: 12 | CQ5: Yes | CR5: 0 | CS5: 4 | CT5: 4 Lane with Median - Partial Control | CU5: 6F - 6 Lane Divided (17'-6"' Raised Median) with Curb & Gutter, Wide Outside Lanes, and Sidewalks | CV5: None | CW5: Partial | CX5: 2 | CY5: No | CZ5: 16 | DA5: 17611000 | DB5: 9221000 | DC5: 1107000 | DD5: 27939000 | DF5: 27939000 | DG5: 27939000
A6: H090460-A | B6: Cumberland | C6: Fayetteville Area MPO | D6: Statewide Mobility | E6: U-4405A | F6: US-401 Raeford Road | G6: West of Hampton Oaks Drive | H6: US 401 Bypass (Skibo Road) | I6: Construct Raised Median and Access Management Improvements. | J6: 11 - Access Management | K6: 5901000 | L6: 35.15571859 | M6: 28.03945293 | N6: 22.25511319 | O6: 100 | P6: 95 | R6: 15 | S6: 25 | T6: 20 | U6: 15 | V6: 10 | W6: 10 | Y6: 68.25036968 | Z6: 0 | AA6: 86.05039258 | AB6: 30.37784212 | AC6: 0 | AD6: 23.71821253 | AE6: N/A | AF6: N/A | AH6: 0.920324036 | AI6: 75.72607777 | AJ6: 1473.948244 | AL6: Fayetteville Area MPO | AM6: 100 | AR6: 06 | AS6: 100 | AX6: Cumberland | AY6: 100 | BF6: 6 | BG6: C | BH6: 06, , | BI6: Fayetteville Area MPO, , | BJ6: Cumberland, , , | BK6: 2.39202004 | BL6: 2.39202004 | BM6: Arterial | BN6: Arterial | BO6: 2 | BP6: 3 | BQ6: Divided | BR6: Divided | BS6: 53 | BT6: 45 | BU6: 4.524461494 | BV6: 95.47553851 | BW6: 32577.31879 | BX6: 35397.6616 | BY6: 0.920324036 | BZ6: 31103.37055 | CA6: 1473.948244 | CB6: 0 | CC6: 0 | CD6: 0 | CE6: 0 | CF6: 92.48222495 | CG6: 73.21254554 | CH6: 92.48222495 | CK6: 0 | CL6: 0 | CM6: Yes | CN6: No | CO6: 12 | CP6: 12 | CQ6: No | CR6: 3 | CS6: 4 | CT6: 4 Lane with Median - Partial Control | CU6: 6F - 6 Lane Divided (17'-6"' Raised Median) with Curb & Gutter, Wide Outside Lanes, and Sidewalks | CV6: None | CW6: Full | CX6: 2 | CY6: No | CZ6: 24 | DA6: 187712000 | DB6: 2016000 | DC6: 242000 | DD6: 189970000 | DF6: 189970000 | DG6: 189970000
A7: H090460-B | B7: Cumberland | C7: Fayetteville Area MPO | D7: Regional Impact | E7: U-4405B | F7: US-401 Raeford Road | G7: US 401 Bypass (Skibo Road) | H7: East of Fairview Drive | I7: Construct Raised Median and Access Management Improvements | J7: 11 - Access Management | K7: 27939000 | L7: N/A | M7: 28.87746957 | N7: 22.78249343 | O7: 100 | P7: 90 | R7: 10 | S7: 25 | T7: 20 | U7: 15 | V7: 10 | W7: 10 | Y7: 66.25075046 | Z7: 2.451476144 | AA7: 90.42048107 | AB7: 16.5695097 | AC7: N/A | AD7: 26.59864813 | AE7: N/A | AF7: N/A | AH7: 0.8381926931 | AI7: 214.5838255 | AJ7: 3313.901939 | AL7: Fayetteville Area MPO | AM7: 100 | AR7: 06 | AS7: 100 | AX7: Cumberland | AY7: 100 | BF7: 6 | BG7: C | BH7: 06, , | BI7: Fayetteville Area MPO, , | BJ7: Cumberland, , , | BK7: 3.26334546 | BL7: 3.26334546 | BM7: Arterial | BN7: Arterial | BO7: 3 | BP7: 3 | BQ7: TWLTL | BR7: Divided | BS7: 45 | BT7: 45 | BU7: 8.305940772 | BV7: 91.69405923 | BW7: 39897.97219 | BX7: 47600 | BY7: 0.8381926931 | BZ7: 36584.07025 | CA7: 3313.901939 | CB7: 2759153.732 | CC7: 249932.9583 | CD7: 3009086.69 | CE7: 68491792 | CF7: 99.81068243 | CG7: 71.66720722 | CH7: 99.81068243 | CM7: No | CN7: No | CO7: 11 | CP7: 12 | CQ7: Yes | CR7: 0 | CS7: 4 | CT7: 6 Lane with TWLTL (Seven Lane) | CU7: 6F - 6 Lane Divided (17'-6"' Raised Median) with Curb & Gutter, Wide Outside Lanes, and Sidewalks | CV7: None | CW7: Partial | CX7: 2 | CY7: No | CZ7: 23 | DA7: 9804000 | DB7: 2016000 | DC7: 242000 | DD7: 12062000 | DF7: 12062000 | DG7: 12062000
A8: H090458-C | B8: Cumberland | C8: Fayetteville Area MPO | D8: Regional Impact | E8: U-4403 | F8: US-401 Ramsey Street | G8: US 401 Bypass | H8: I-295 | I8: Widen to Multi-Lanes | J8: 1 - Widen Existing Roadway | K8: 32153000 | L8: N/A | M8: 36.00342429 | N8: 28.2496995 | O8: 100 | P8: 85 | R8: 20 | S8: 25 | T8: 20 | U8: 0 | V8: 10 | W8: 10 | Y8: 84.19367801 | Z8: 13.91836342 | AA8: 86.2729121 | AB8: 0 | AC8: N/A | AD8: 28.48122721 | AE8: N/A | AF8: N/A | AH8: 1.158415695 | AI8: 251.1470243 | AJ8: 0 | AL8: Fayetteville Area MPO | AM8: 100 | AR8: 06 | AS8: 100 | AX8: Cumberland | AY8: 100 | BF8: 6 | BG8: C | BH8: 06, , | BI8: Fayetteville Area MPO, , | BJ8: Cumberland, , , | BK8: 3.48633423 | BL8: 3.48633423 | BM8: Arterial | BN8: Arterial | BO8: 2 | BP8: 3 | BQ8: TWLTL | BR8: Divided | BS8: 45 | BT8: 45 | BU8: 0 | BV8: 100 | BW8: 36721.84082 | BX8: 31700.05464 | BY8: 1.158415695 | BZ8: 36721.84082 | CA8: 0 | CB8: 20341688.13 | CC8: 0 | CD8: 20341688.13 | CE8: 447517139 | CF8: 97.21155105 | CG8: 83.44567168 | CH8: 78.18739803 | CM8: No | CN8: No | CO8: 12 | CP8: 12 | CQ8: Yes | CR8: 0 | CS8: 4 | CT8: 4 Lane with TWLTL (Five Lane) | CU8: 6F - 6 Lane Divided (17'-6"' Raised Median) with Curb & Gutter, Wide Outside Lanes, and Sidewalks | CV8: None | CW8: Partial | CX8: 2 | CY8: No | CZ8: 22 | DA8: 10700000 | DB8: 8960000 | DC8: 1950000 | DD8: 21610000 | DF8: 21610000 | DG8: 21610000
A9: H129619-BB | B9: Cumberland | C9: Fayetteville Area MPO | D9: Statewide Mobility | E9: U-2519BB | F9: I-295 Fayetteville Outer Loop | G9: South of SR 1104 (Strickland Bridge Road) | H9: South of US 401 | I9: Construct Freeway on New Location. | J9: 5 - Construct Roadway on New Location | K9: 36700000 | L9: 39.38612487 | M9: 32.73279559 | N9: 20.91913389 | O9: 100 | P9: 85 | R9: 5 | S9: 25 | T9: 20 | U9: 15 | V9: 10 | W9: 10 | Y9: 54.97747808 | Z9: 10.81340328 | AA9: 77.60957622 | AB9: 9.439514181 | AC9: 100 | AD9: 85.24117629 | AE9: N/A | AF9: N/A | AH9: 0.7281883606 | AI9: 108.0320788 | AJ9: 1887.902836 | AL9: Fayetteville Area MPO | AM9: 100 | AR9: 06 | AS9: 100 | AX9: Cumberland | AY9: 100 | BF9: 6 | BG9: C | BH9: 06, , | BI9: Fayetteville Area MPO, , | BJ9: Cumberland, , , | BK9: 15.8 | BL9: 12.04 | BM9: Arterial | BN9: Freeway | BO9: 2 | BP9: 2 | BQ9: Divided | BR9: Divided | BS9: 47 | BT9: 70 | BU9: 6.691027189 | BV9: 93.30897281 | BW9: 28215.44111 | BX9: 38747.44865 | BY9: 0.7281883606 | BZ9: 26327.53827 | CA9: 1887.902836 | CB9: 101596737.8 | CC9: 7285328.675 | CD9: 108882066.5 | CE9: 2462211927 | CF9: 80.75256629 | CG9: 73.02832119 | CH9: 79.07112637 | CK9: 1987 | CL9: 0.002513554604 | CM9: No | CN9: No | CO9: 12 | CP9: 12 | CQ9: No | CR9: 3 | CS9: 4 | CT9: New Roadway | CU9: 4A - 4 Lane Divided (46' Depressed Median) with Paved Shoulders | CV9: None | CW9: Partial | CX9: 2 | CY9: No | CZ9: 17 | DA9: 5846000 | DB9: 3955000 | DC9: 475000 | DD9: 10276000 | DF9: 10276000 | DG9: 10276000
A10: H129619-BA | B10: Cumberland | C10: Fayetteville Area MPO | D10: Statewide Mobility | E10: U-2519BA | F10: I-295 Fayetteville Outer Loop | G10: South of SR 1003 (Camden Road) | H10: South of SR 1104 (Strickland Bridge Road) | I10: Construct Freeway on New Location. | J10: 5 - Construct Roadway on New Location | K10: 57400000 | L10: 39.38612487 | M10: 32.73279559 | N10: 20.91913389 | O10: 100 | P10: 85 | R10: 5 | S10: 25 | T10: 20 | U10: 15 | V10: 10 | W10: 10 | Y10: 54.97747808 | Z10: 10.81340328 | AA10: 77.60957622 | AB10: 9.439514181 | AC10: 100 | AD10: 85.24117629 | AE10: N/A | AF10: N/A | AH10: 0.7281883606 | AI10: 168.9657036 | AJ10: 1887.902836 | AL10: Fayetteville Area MPO | AM10: 100 | AR10: 06 | AS10: 100 | AX10: Cumberland | AY10: 100 | BF10: 6 | BG10: C | BH10: 06, , | BI10: Fayetteville Area MPO, , | BJ10: Cumberland, , , | BK10: 15.8 | BL10: 12.04 | BM10: Arterial | BN10: Freeway | BO10: 2 | BP10: 2 | BQ10: Divided | BR10: Divided | BS10: 47 | BT10: 70 | BU10: 6.691027189 | BV10: 93.30897281 | BW10: 28215.44111 | BX10: 38747.44865 | BY10: 0.7281883606 | BZ10: 26327.53827 | CA10: 1887.902836 | CB10: 101596737.8 | CC10: 7285328.675 | CD10: 108882066.5 | CE10: 2462211927 | CF10: 80.75256629 | CG10: 73.02832119 | CH10: 79.07112637 | CK10: 1987 | CL10: 0.002513554604 | CM10: No | CN10: No | CO10: 12 | CP10: 12 | CQ10: No | CR10: 3 | CS10: 4 | CT10: New Roadway | CU10: 4A - 4 Lane Divided (46' Depressed Median) with Paved Shoulders | CV10: None | CW10: Partial | CX10: 2 | CY10: No | CZ10: 21 | DA10: 11018000 | DB10: 4389000 | DC10: 527000 | DD10: 15934000 | DF10: 15934000 | DG10: 15934000
A11: H129619-AB | B11: Cumberland | C11: Fayetteville Area MPO | D11: Statewide Mobility | E11: U-2519AB | F11: I-295 Fayetteville Outer Loop | G11: South of SR 1118 (Parkton Road) | H11: South of SR 1003 (Camden Road) | I11: Construct Freeway on New Location. | J11: 5 - Construct Roadway on New Location | K11: 94800000 | L11: 39.38612487 | M11: 32.53279559 | N11: 20.91913389 | O11: 100 | P11: 85 | R11: 5 | S11: 25 | T11: 20 | U11: 15 | V11: 10 | W11: 10 | Y11: 54.97747808 | Z11: 10.81340328 | AA11: 77.60957622 | AB11: 9.439514181 | AC11: 100 | AD11: 83.24117629 | AE11: N/A | AF11: N/A | AH11: 0.7281883606 | AI11: 279.0583398 | AJ11: 1887.902836 | AL11: Fayetteville Area MPO | AM11: 100 | AR11: 06 | AS11: 100 | AX11: Cumberland | AY11: 72.64 | AZ11: Robeson | BA11: 27.36 | BF11: 6 | BG11: C | BH11: 06, , | BI11: Fayetteville Area MPO, , | BJ11: Cumberland, Robeson, , | BK11: 15.8 | BL11: 12.04 | BM11: Arterial | BN11: Freeway | BO11: 2 | BP11: 2 | BQ11: Divided | BR11: Divided | BS11: 47 | BT11: 70 | BU11: 6.691027189 | BV11: 93.30897281 | BW11: 28215.44111 | BX11: 38747.44865 | BY11: 0.7281883606 | BZ11: 26327.53827 | CA11: 1887.902836 | CB11: 101596737.8 | CC11: 7285328.675 | CD11: 108882066.5 | CE11: 2462211927 | CF11: 80.75256629 | CG11: 73.02832119 | CH11: 79.07112637 | CK11: 1987 | CL11: 0.002513554604 | CM11: No | CN11: No | CO11: 12 | CP11: 12 | CQ11: No | CR11: 3 | CS11: 4 | CT11: New Roadway | CU11: 4A - 4 Lane Divided (46' Depressed Median) with Paved Shoulders | CV11: None | CW11: Partial | CX11: 2 | CY11: No | CZ11: 21 | DA11: 11786000 | DB11: 3316000 | DC11: 398000 | DD11: 15500000 | DF11: 15500000 | DG11: 15500000
A12: H129618-AA | B12: Robeson | C12: Fayetteville Area MPO | D12: Statewide Mobility | E12: U-2519AA | F12: I-295 Fayetteville Outer Loop | G12: I-95 in Robeson County | H12: South of SR 1118 (Parkton Road) in Cumberland County | I12: Construct Freeway on New Location. | J12: 5 - Construct Roadway on New Location | K12: 38800000 | L12: 39.38612487 | M12: 32.33279559 | N12: 20.91913389 | O12: 100 | P12: 85 | R12: 5 | S12: 25 | T12: 20 | U12: 15 | V12: 10 | W12: 10 | Y12: 54.97747808 | Z12: 10.81340328 | AA12: 77.60957622 | AB12: 9.439514181 | AC12: 100 | AD12: 81.24117629 | AE12: N/A | AF12: N/A | AH12: 0.7281883606 | AI12: 114.2137509 | AJ12: 1887.902836 | AL12: Fayetteville Area MPO | AM12: 100 | AR12: 06 | AS12: 100 | AX12: Robeson | AY12: 100 | BF12: 6 | BG12: C | BH12: 06, , | BI12: Fayetteville Area MPO, , | BJ12: Robeson, , , | BK12: 15.8 | BL12: 12.04 | BM12: Arterial | BN12: Freeway | BO12: 2 | BP12: 2 | BQ12: Divided | BR12: Divided | BS12: 47 | BT12: 70 | BU12: 6.691027189 | BV12: 93.30897281 | BW12: 28215.44111 | BX12: 38747.44865 | BY12: 0.7281883606 | BZ12: 26327.53827 | CA12: 1887.902836 | CB12: 101596737.8 | CC12: 7285328.675 | CD12: 108882066.5 | CE12: 2462211927 | CF12: 80.75256629 | CG12: 73.02832119 | CH12: 79.07112637 | CK12: 1987 | CL12: 0.002513554604 | CM12: No | CN12: No | CO12: 12 | CP12: 12 | CQ12: No | CR12: 3 | CS12: 4 | CT12: New Roadway | CU12: 4A - 4 Lane Divided (46' Depressed Median) with Paved Shoulders | CV12: None | CW12: Partial | CX12: 2 | CY12: No | CZ12: 24 | DA12: 27949000 | DB12: 7614000 | DC12: 914000 | DD12: 36477000 | DF12: 36477000 | DG12: 36477000
A13: H141557 | B13: Harnett | C13: Mid-Carolina RPO | D13: Statewide Mobility | E13: I-5133 | F13: I-95 | G13: SR 1709 (Hodges Chapel Road) | I13: Exit 77 Improve configuration and lengthen spans for future widening. | J13: 8 - Improve Interchange | K13: 7290000 | L13: 37.60580748 | M13: 28.27855861 | N13: 20.60627118 | O13: 100 | P13: 85 | R13: 5 | S13: 25 | T13: 20 | U13: 15 | V13: 10 | W13: 10 | Y13: 68.40735684 | Z13: 1.27399904 | AA13: 66.7 | AB13: 49.77780279 | AC13: 0.7584015909 | AD13: 41.88219644 | AE13: N/A | AF13: N/A | AH13: 0.7213006495 | AI13: 58.01987972 | AJ13: 9955.560559 | AL13: Mid-Carolina RPO | AM13: 100 | AR13: 06 | AS13: 100 | AX13: Harnett | AY13: 100 | BF13: 6 | BG13: C | BH13: 06, , | BI13: Mid-Carolina RPO, , | BJ13: Harnett, , , | BK13: 2 | BL13: 2 | BM13: Freeway | BN13: Freeway | BO13: 2 | BP13: 2 | BQ13: Divided | BR13: Divided | BS13: 65 | BT13: 65 | BU13: 15.84692527 | BV13: 84.15307473 | BW13: 62823.29467 | BX13: 87097.23845 | BY13: 0.7213006495 | BZ13: 52867.73411 | CA13: 9955.560559 | CB13: 333246.1759 | CC13: 62753.82407 | CD13: 396000 | CE13: 9287453 | CI13: 66.7 | CJ13: 66.7 | CK13: 6.51517635 | CL13: 8.652855468e-06 | CM13: No | CN13: No | CO13: 12 | CP13: 12 | CQ13: No | CR13: 10 | CS13: 10 | CT13: 2 Lane Undivided | CV13: Full | CW13: Full | CX13: 2 | CY13: No | CZ13: 22.3 | DA13: 13500000 | DB13: 2160000 | DC13: 0 | DD13: 15660000 | DF13: 15660000 | DG13: 15660000
A14: H141544 | B14: Robeson | C14: Lumber River RPO | D14: Statewide Mobility | E14: I-5133 | F14: I-95 | G14: SR 1528 (Carthage Road) | I14: Exit 19 Improve interchange and lengthen span for future widening. | J14: 8 - Improve Interchange | K14: 7290000 | L14: 34.08824921 | M14: 28.01692604 | N14: 19.07397625 | O14: 100 | P14: 85 | R14: 5 | S14: 25 | T14: 20 | U14: 15 | V14: 10 | W14: 10 | Y14: 61.9429017 | Z14: 0.07697956104 | AA14: 66.7 | AB14: 44.03838111 | AC14: 0.04608607732 | AD14: 58.41955729 | AE14: N/A | AF14: N/A | AH14: 0.6429179797 | AI14: 62.39348891 | AJ14: 8807.676222 | AL14: Lumber River RPO | AM14: 100 | AR14: 06 | AS14: 100 | AX14: Robeson | AY14: 100 | BF14: 6 | BG14: C | BH14: 06, , | BI14: Lumber River RPO, , | BJ14: Robeson, , , | BK14: 2 | BL14: 2 | BM14: Freeway | BN14: Freeway | BO14: 2 | BP14: 2 | BQ14: Divided | BR14: Divided | BS14: 65 | BT14: 65 | BU14: 15.07658844 | BV14: 84.92341156 | BW14: 58419.55729 | BX14: 90866.26776 | BY14: 0.6429179797 | BZ14: 49611.88107 | CA14: 8807.676222 | CB14: 20381.61877 | CC14: 3618.381226 | CD14: 24000 | CE14: 561181 | CI14: 66.7 | CJ14: 66.7 | CK14: 0.3948528241 | CL14: 5.268687223e-07 | CM14: No | CN14: No | CO14: 12 | CP14: 12 | CQ14: No | CR14: 11 | CS14: 10 | CT14: 2 Lane Undivided | CV14: Full | CW14: Full | CX14: 2 | CY14: No | CZ14: 22.3 | DA14: 6750000 | DB14: 540000 | DC14: 0 | DD14: 7290000 | DF14: 7290000 | DG14: 7290000
A15: H141624 | B15: Harnett | C15: Mid-Carolina RPO | D15: Statewide Mobility | E15: i-5133 | F15: I-95 | G15: US 421 | I15: Exit 73 - Replace Existing Structures and improve interchange configuration. | J15: 8 - Improve Interchange | K15: 15660000 | L15: 36.86678452 | M15: 27.12188963 | N15: 19.56509162 | O15: 100 | P15: 85 | R15: 5 | S15: 25 | T15: 20 | U15: 15 | V15: 10 | W15: 10 | Y15: 64.50045812 | Z15: 0 | AA15: 66.65 | AB15: 54.25823543 | AC15: 0 | AD15: 43.31775103 | AE15: N/A | AF15: N/A | AH15: 0.6418301251 | AI15: 120.504871 | AJ15: 10851.64709 | AL15: Mid-Carolina RPO | AM15: 100 | AR15: 06 | AS15: 100 | AX15: Harnett | AY15: 100 | BF15: 6 | BG15: C | BH15: 06, , | BI15: Mid-Carolina RPO, , | BJ15: Harnett, , , | BK15: 2 | BL15: 2 | BM15: Freeway | BN15: Freeway | BO15: 2 | BP15: 2 | BQ15: Divided | BR15: Divided | BS15: 65 | BT15: 65 | BU15: 16.70084715 | BV15: 83.29915285 | BW15: 64976.62655 | BX15: 101236.4861 | BY15: 0.6418301251 | BZ15: 54124.97946 | CA15: 10851.64709 | CB15: 0 | CC15: 0 | CD15: 0 | CE15: 0 | CI15: 100 | CJ15: 33.3 | CK15: 0 | CL15: 0 | CM15: No | CN15: No | CO15: 12 | CP15: 12 | CQ15: No | CR15: 10 | CS15: 10 | CT15: 4 Lane with Median - Full Control | CV15: Full | CW15: Full | CX15: 2 | CY15: No | CZ15: 25.2 | DA15: 6750000 | DB15: 540000 | DC15: 0 | DD15: 7290000 | DF15: 7290000 | DG15: 7290000
A16: H141687 | B16: Cumberland | C16: Mid-Carolina RPO | D16: Statewide Mobility | E16: I-5133 | F16: I-95 | G16: NC 82 | I16: Exit 65 - Replace Structurally Deficient Structure and extend span length, reconfigure interchange. | J16: 8 - Improve Interchange | K16: 7290000 | L16: 30.52823093 | M16: 23.88418048 | N16: 17.05977667 | O16: 100 | P16: 85 | R16: 5 | S16: 25 | T16: 20 | U16: 15 | V16: 10 | W16: 10 | Y16: 51.92299938 | Z16: 0.02588395062 | AA16: 66.7 | AB16: 41.36008995 | AC16: 0.01547942164 | AD16: 42.26959648 | AE16: N/A | AF16: N/A | AH16: 0.5466873583 | AI16: 76.24821988 | AJ16: 8272.01799 | AL16: Mid-Carolina RPO | AM16: 100 | AR16: 06 | AS16: 100 | AX16: Cumberland | AY16: 100 | BF16: 6 | BG16: C | BH16: 06, , | BI16: Mid-Carolina RPO, , | BJ16: Cumberland, , , | BK16: 2 | BL16: 2 | BM16: Freeway | BN16: Freeway | BO16: 2 | BP16: 2 | BQ16: Divided | BR16: Divided | BS16: 65 | BT16: 65 | BU16: 17.30388605 | BV16: 82.69611395 | BW16: 47804.39472 | BX16: 87443.75372 | BY16: 0.5466873583 | BZ16: 39532.37673 | CA16: 8272.01799 | CB16: 6615.689116 | CC16: 1384.310884 | CD16: 8000 | CE16: 188694 | CI16: 66.7 | CJ16: 66.7 | CK16: 0.1316115162 | CL16: 1.779769166e-07 | CM16: No | CN16: No | CO16: 12 | CP16: 12 | CQ16: No | CR16: 10 | CS16: 10 | CT16: 2 Lane Undivided | CV16: Full | CW16: Partial | CX16: 3 | CY16: No | CZ16: 31 | DA16: 50388000 | DB16: 6940000 | DC16: 833000 | DD16: 58161000 | DF16: 58161000 | DG16: 58161000
A17: H141626 | B17: Harnett | C17: Mid-Carolina RPO | D17: Statewide Mobility | E17: I-5133 | F17: I-95 | G17: SR 1793 (Pope Rd) | I17: Exit 72 - Improve interchange configuration and increase span length for future widening. | J17: 8 - Improve Interchange | K17: 15660000 | L17: 31.63877024 | M17: 23.85192053 | N17: 17.2585776 | O17: 100 | P17: 85 | R17: 5 | S17: 25 | T17: 20 | U17: 15 | V17: 10 | W17: 10 | Y17: 52.942888 | Z17: 0 | AA17: 66.7 | AB17: 45.42951917 | AC17: 0 | AD17: 39.46198526 | AE17: N/A | AF17: N/A | AH17: 0.5337616141 | AI17: 149.7332972 | AJ17: 9085.903834 | AL17: Mid-Carolina RPO | AM17: 100 | AR17: 06 | AS17: 100 | AX17: Harnett | AY17: 100 | BF17: 6 | BG17: C | BH17: 06, , | BI17: Mid-Carolina RPO, , | BJ17: Harnett, , , | BK17: 2 | BL17: 2 | BM17: Freeway | BN17: Freeway | BO17: 2 | BP17: 2 | BQ17: Divided | BR17: Divided | BS17: 65 | BT17: 65 | BU17: 17.37499794 | BV17: 82.62500206 | BW17: 52292.9779 | BX17: 97970.66053 | BY17: 0.5337616141 | BZ17: 43207.07406 | CA17: 9085.903834 | CB17: 0 | CC17: 0 | CD17: 0 | CE17: 0 | CI17: 66.7 | CJ17: 66.7 | CK17: 0 | CL17: 0 | CM17: No | CN17: No | CO17: 12 | CP17: 12 | CQ17: No | CR17: 10 | CS17: 10 | CT17: 4 Lane with Median - Full Control | CV17: Full | CW17: Partial | CX17: 2 | CY17: No | CZ17: 25 | DA17: 18696000 | DB17: 1598000 | DC17: 192000 | DD17: 20486000 | DF17: 20486000 | DG17: 20486000
A18: H090123-C | B18: Harnett | C18: Capital Area MPO | D18: Regional Impact | E18: R-2540 | F18: NC-55 | G18: Angier Town Limit | H18: Church Street | I18: Install median with turn lanes, curb & gutter, and sidewalks | J18: 1 - Widen Existing Roadway | K18: 12399000 | L18: N/A | M18: 29.0041013 | N18: 22.18496896 | O18: 100 | P18: 82.5 | R18: 20 | S18: 25 | T18: 20 | U18: 7.5 | V18: 10 | W18: 0 | Y18: 68.80599357 | Z18: 5.720273409 | AA18: 72.79715567 | AB18: 3.753166459 | AC18: N/A | AD18: 30.92818988 | AE18: N/A | AF18: N/A | AH18: 1.037484661 | AI18: 490.1088359 | AJ18: 750.6332919 | AL18: Capital Area MPO | AM18: 100 | AR18: 06 | AS18: 100 | AX18: Harnett | AY18: 100 | BF18: 6 | BG18: C | BH18: 06, , | BI18: Capital Area MPO, , | BJ18: Harnett, , , | BK18: 1.54331521 | BL18: 1.54331521 | BM18: Arterial | BN18: Two Lane Highway | BO18: 1 | BP18: 1 | BQ18: Undivided | BR18: Divided | BS18: 35 | BT18: 45 | BU18: 4.57918649 | BV18: 95.42081351 | BW18: 16392.28482 | BX18: 15800.0262 | BY18: 1.037484661 | BZ18: 15641.65153 | CA18: 750.6332919 | CB18: 3018649.363 | CC18: 144863.137 | CD18: 3163512.5 | CE18: 70925670 | CF18: 80.32107193 | CG18: 78.25708095 | CH18: 59.83515546 | CM18: No | CN18: No | CO18: 12 | CP18: 12 | CQ18: No | CR18: 1 | CS18: 4 | CT18: 2 Lane Undivided | CU18: 2J - 2 Lane Divided (23' Raised Median) with Curb & Gutter, Bike Lanes, and Sidewalks | CV18: None | CW18: Partial | CX18: 2 | CY18: No | CZ18: 24 | DA18: 18240000 | DB18: 6526000 | DC18: 783000 | DD18: 25549000 | DF18: 25549000 | DG18: 25549000
A19: H140927 | B19: Cumberland | C19: Fayetteville Area MPO | D19: Regional Impact | F19: Fayetteville Computerized Traffic Signal System | I19: Fayetteville Computerized Traffic Signal System | J19: 13 - Citywide Signal System | K19: 4350000 | L19: N/A | M19: 47.85966516 | N19: 38.16704892 | O19: 100 | P19: 80 | R19: 10 | S19: 25 | T19: 20 | U19: 15 | V19: 0 | W19: 10 | Y19: 56.40416264 | Z19: 100 | AA19: 68.86216395 | AB19: 44.4338571 | AC19: N/A | AD19: 18.72408104 | AE19: N/A | AF19: N/A | AH19: 0.752828567 | AI19: 2.517341251 | AJ19: 1358.48575 | AL19: Fayetteville Area MPO | AM19: 100 | AR19: 06 | AS19: 100 | AX19: Cumberland | AY19: 100 | BF19: 6 | BG19: C | BH19: 06, , | BI19: Fayetteville Area MPO, , | BJ19: Cumberland, , , | BK19: 61.52553422 | BL19: 61.52553422 | BM19: Arterial | BN19: Arterial | BO19: 2 | BP19: 2 | BQ19: Divided | BR19: Divided | BS19: 45.56371646 | BT19: 45.56371646 | BU19: 4.836857759 | BV19: 95.16314224 | BW19: 28086.12156 | BX19: 37307.45988 | BY19: 0.752828567 | BZ19: 26727.63581 | CA19: 1358.48575 | CB19: 23459035.6 | CC19: 1192352.582 | CD19: 24651388.19 | CE19: 553264413 | CF19: 70.56233679 | CG19: 67.83170544 | CH19: 68.21311035 | CM19: Yes | CN19: Yes | CO19: 12 | CP19: 12 | CQ19: Yes | CR19: 1 | CS19: 4 | CT19: 4 Lane with Median - Partial Control | CV19: None | CW19: Partial | CX19: 2 | CY19: No | CZ19: 25 | DA19: 18240000 | DB19: 6343000 | DC19: 761000 | DD19: 25344000 | DF19: 25344000 | DG19: 25344000
A20: H141493 | B20: Columbus | C20: Cape Fear RPO | D20: Statewide Mobility | E20: R-4462 | F20: US-74 | G20: NC 87 | I20: Covert Existing at grade intersection to interchange. | J20: 7 - Upgrade At-grade Intersection to Interchange or Grade Separation | K20: 7130000 | L20: 23.86261634 | M20: 26.55945836 | N20: 14.91456669 | O20: 100 | P20: 80 | R20: 0 | S20: 25 | T20: 20 | U20: 15 | V20: 10 | W20: 10 | Y20: 25.07875548 | Z20: 7.81907798 | AA20: 83.35 | AB20: 25.98638143 | AC20: 4.609900194 | AD20: 100 | AE20: N/A | AF20: N/A | AH20: 0.2078809307 | AI20: 113.1216368 | AJ20: 4157.871633 | AL20: Cape Fear RPO | AM20: 100 | AR20: 06 | AS20: 100 | AX20: Columbus | AY20: 100 | BF20: 6 | BG20: C | BH20: 06, , | BI20: Cape Fear RPO, , | BJ20: Columbus, , , | BK20: 2 | BL20: 2 | BM20: Multi-Lane Highway | BN20: Multi-Lane Highway | BO20: 2 | BP20: 2 | BQ20: Divided | BR20: Divided | BS20: 55 | BT20: 55 | BU20: 13.193415 | BV20: 86.806585 | BW20: 31514.74909 | BX20: 151600 | BY20: 0.2078809307 | BZ20: 27356.87746 | CA20: 4157.871633 | CB20: 2085094.172 | CC20: 316905.8282 | CD20: 2402000 | CE20: 55750026 | CI20: 66.7 | CJ20: 100 | CK20: 39.51831903 | CL20: 5.267968484e-05 | CM20: Yes | CN20: No | CO20: 12 | CP20: 12 | CQ20: No | CR20: 2 | CS20: 4 | CT20: 4 Lane with Median - Partial Control | CV20: None | CW20: Partial | CX20: 2 | CY20: Yes | CZ20: 26 | DA20: 117420000 | DB20: 67397000 | DC20: 8088000 | DD20: 192905000 | DF20: 192905000 | DG20: 192905000
A21: H129200-C | B21: Robeson | C21: Lumber River RPO | D21: Statewide Mobility | F21: I-95 | G21: US 301 (Exit 22) | H21: Robeson/Cumberland County Line | I21: Widen Roadway to 8 Lanes. | J21: 1 - Widen Existing Roadway | K21: 164338000 | L21: 29.9057467 | M21: 24.48671346 | N21: 17.1466321 | O21: 100 | P21: 80 | R21: 5 | S21: 25 | T21: 20 | U21: 15 | V21: 10 | W21: 5 | Y21: 51.28686145 | Z21: 0.5812936691 | AA21: 67.73001076 | AB21: 34.0231028 | AC21: 7.67678533 | AD21: 47.46673609 | AE21: N/A | AF21: N/A | AH21: 0.5783361169 | AI21: 291.1341268 | AJ21: 6804.62056 | AL21: Lumber River RPO | AM21: 83.75 | AN21: Fayetteville Area MPO | AO21: 16.25 | AR21: 06 | AS21: 100 | AX21: Robeson | AY21: 100 | BF21: 6 | BG21: C | BH21: 06, , | BI21: Lumber River RPO, Fayetteville Area MPO, | BJ21: Robeson, , , | BK21: 13.61272365 | BL21: 13.61272365 | BM21: Freeway | BN21: Freeway | BO21: 2 | BP21: 4 | BQ21: Divided | BR21: Divided | BS21: 65 | BT21: 65 | BU21: 16.40982918 | BV21: 83.59017082 | BW21: 41466.73609 | BX21: 71700.06313 | BY21: 0.5783361169 | BZ21: 34662.11553 | CA21: 6804.62056 | CB21: 3397289.759 | CC21: 666931.8184 | CD21: 4064221.577 | CE21: 95528639 | CF21: 66.83529094 | CG21: 66.25425199 | CH21: 70.12081038 | CK21: 65 | CL21: 8.85357066e-05 | CM21: No | CN21: No | CO21: 12 | CP21: 12 | CQ21: No | CR21: 10 | CS21: 10 | CT21: 4 Lane with Median - Full Control | CU21: 8B - 8 Lane Divided (27' Median with Jersey Barrier with Paved Shoulders | CV21: Full | CW21: Partial | CX21: 1 | CY21: Yes | CZ21: 21 | DA21: 120840000 | DB21: 6696000 | DC21: 804000 | DD21: 128340000 | DF21: 128340000 | DG21: 128340000
A22: H090123-D | B22: Harnett | C22: Capital Area MPO | D22: Regional Impact | E22: R-2540 | F22: NC-55 | G22: Rawls Church Road | H22: Angier Town Limit | I22: Widen to Multi-Lanes | J22: 1 - Widen Existing Roadway | K22: 9706000 | L22: N/A | M22: 34.64668804 | N22: 24.2310401 | O22: 100 | P22: 75.83 | R22: 20 | S22: 25 | T22: 13.33 | U22: 7.5 | V22: 10 | W22: 0 | Y22: 69.39539743 | Z22: 10.74305471 | AA22: 82.03349674 | AB22: 3.781111303 | AC22: N/A | AD22: 64.08725333 | AE22: N/A | AF22: N/A | AH22: 1.046371824 | AI22: 626.818652 | AJ22: 756.2222605 | AL22: Capital Area MPO | AM22: 100 | AR22: 06 | AS22: 100 | AX22: Harnett | AY22: 100 | BF22: 6 | BG22: C | BH22: 06, , | BI22: Capital Area MPO, , | BJ22: Harnett, , , | BK22: 0.93659981 | BL22: 0.93659981 | BM22: Arterial | BN22: Multi-Lane Highway | BO22: 1 | BP22: 2 | BQ22: Undivided | BR22: Divided | BS22: 35 | BT22: 45 | BU22: 4.574094647 | BV22: 95.42590535 | BW22: 16532.72 | BX22: 15800.04318 | BY22: 1.046371824 | BZ22: 15776.49774 | CA22: 756.2222605 | CB22: 4438227.036 | CC22: 212739.6167 | CD22: 4650966.653 | CE22: 104272089 | CF22: 99.78659927 | CG22: 64.27905765 | CH22: 82.05944581 | CM22: No | CN22: No | CO22: 12 | CP22: 12 | CQ22: No | CR22: 2 | CS22: 4 | CT22: 2 Lane Undivided | CU22: 4C - 4 Lane Divided (23' Raised Median) with Curb & Gutter, Wide Outside Lanes, and Sidewalks | CV22: None | CW22: Partial | CX22: 1 | CY22: No | CZ22: 27 | DA22: 31008000 | DB22: 1945000 | DC22: 233000 | DD22: 33186000 | DF22: 33186000 | DG22: 33186000
A23: H141634 | B23: Harnett | C23: Mid-Carolina RPO | D23: Statewide Mobility | E23: I-5133 | F23: I-95 | G23: SR 1811 (Bud Hawkins Road) | I23: Exit 70 - Improve configuration and lengthen spans for future widening. | J23: 8 - Improve Interchange | K23: 7290000 | L23: 40.66612692 | M23: 29.09803294 | N23: 19.63679474 | O23: 100 | P23: 73.33 | R23: 10 | S23: 8.33 | T23: 20 | U23: 15 | V23: 10 | W23: 10 | Y23: 81.39567989 | Z23: 0.1132938272 | AA23: 33.35 | AB23: 64.35878507 | AC23: 0.06677788674 | AD23: 53.85789513 | AE23: N/A | AF23: N/A | AH23: 0.8640157135 | AI23: 49.33219322 | AJ23: 12871.75701 | AL23: Mid-Carolina RPO | AM23: 100 | AR23: 06 | AS23: 100 | AX23: Harnett | AY23: 100 | BF23: 6 | BG23: C | BH23: 06, , | BI23: Mid-Carolina RPO, , | BJ23: Harnett, , , | BK23: 2 | BL23: 2 | BM23: Freeway | BN23: Freeway | BO23: 2 | BP23: 2 | BQ23: Divided | BR23: Divided | BS23: 65 | BT23: 65 | BU23: 17.42090546 | BV23: 82.57909454 | BW23: 73886.84269 | BX23: 85515.62378 | BY23: 0.8640157135 | BZ23: 61015.08568 | CA23: 12871.75701 | CB23: 28902.68309 | CC23: 6097.316912 | CD23: 35000 | CE23: 825912 | CI23: 66.7 | CJ23: 0 | CK23: 0.575849399 | CL23: 7.597083357e-07 | CM23: No | CN23: No | CO23: 12 | CP23: 12 | CQ23: No | CR23: 10 | CS23: 10 | CT23: 2 Lane Undivided | CV23: Full | CW23: Partial | CX23: 1 | CY23: No | CZ23: 22 | DA23: 14250000 | DB23: 1695000 | DC23: 203000 | DD23: 16148000 | DF23: 16148000 | DG23: 16148000
A24: H129200-G | B24: Harnett | C24: Mid-Carolina RPO | D24: Statewide Mobility | F24: I-95 | G24: SR 1002 (Long Branch Road) | H24: I-40 | I24: Widen Roadway to 8 Lanes. | J24: 1 - Widen Existing Roadway | K24: 143388000 | L24: 34.11810204 | M24: 24.98269532 | N24: 18.67214524 | O24: 100 | P24: 71.67 | R24: 5 | S24: 16.67 | T24: 20 | U24: 15 | V24: 10 | W24: 5 | Y24: 60.00304978 | Z24: 1.288162712 | AA24: 64.13902745 | AB24: 39.15400303 | AC24: 14.86034938 | AD24: 32.45989456 | AE24: N/A | AF24: N/A | AH24: 0.675451884 | AI24: 240.5499988 | AJ24: 7830.800605 | AL24: Mid-Carolina RPO | AM24: 58.31 | AN24: Upper Coastal Plain RPO | AO24: 41.69 | AR24: 06 | AS24: 58.31 | AT24: 04 | AU24: 41.69 | AX24: Harnett | AY24: 58.31 | AZ24: Johnston | BA24: 41.69 | BF24: 6 | BG24: C | BH24: 06, 04, | BI24: Mid-Carolina RPO, Upper Coastal Plain RPO, | BJ24: Harnett, Johnston, , | BK24: 12.24247101 | BL24: 12.24247101 | BM24: Freeway | BN24: Freeway | BO24: 2 | BP24: 4 | BQ24: Divided | BR24: Divided | BS24: 65 | BT24: 65 | BU24: 16.0830274 | BV24: 83.9169726 | BW24: 48689.84184 | BX24: 72084.84126 | BY24: 0.675451884 | BZ24: 40859.04123 | CA24: 7830.800605 | CB24: 6602846.287 | CC24: 1265462.212 | CD24: 7868308.499 | CE24: 184707075 | CF24: 66.35741903 | CG24: 63.62722836 | CH24: 62.45167859 | CK24: 126 | CL24: 0.0001712069876 | CM24: No | CN24: No | CO24: 12 | CP24: 12 | CQ24: No | CR24: 10 | CS24: 10 | CT24: 4 Lane with Median - Full Control | CU24: 8B - 8 Lane Divided (27' Median with Jersey Barrier with Paved Shoulders | CV24: Full | CW24: Partial | CX24: 1 | CY24: Yes | CZ24: 24 | DA24: 54492000 | DB24: 7097000 | DC24: 852000 | DD24: 62441000 | DF24: 62441000 | DG24: 62441000
A25: H129200-F | B25: Cumberland | C25: Mid-Carolina RPO | D25: Statewide Mobility | F25: I-95 | G25: I-95 Business/US 301 (Exit 56) | H25: SR 1002 (Long Branch Road) | I25: Widen Roadway to 8 Lanes. | J25: 1 - Widen Existing Roadway | K25: 189970000 | L25: 32.87660548 | M25: 24.08379554 | N25: 17.26899036 | O25: 100 | P25: 71.67 | R25: 5 | S25: 16.67 | T25: 20 | U25: 15 | V25: 10 | W25: 5 | Y25: 57.33310259 | Z25: 1.155966474 | AA25: 55.71176551 | AB25: 39.9576942 | AC25: 17.67169374 | AD25: 38.9035172 | AE25: N/A | AF25: N/A | AH25: 0.6465165379 | AI25: 244.7913845 | AJ25: 7991.538839 | AL25: Mid-Carolina RPO | AM25: 77.15 | AN25: Fayetteville Area MPO | AO25: 22.85 | AR25: 06 | AS25: 100 | AX25: Cumberland | AY25: 86.47 | AZ25: Harnett | BA25: 13.53 | BF25: 6 | BG25: C | BH25: 06, , | BI25: Mid-Carolina RPO, Fayetteville Area MPO, | BJ25: Cumberland, Harnett, , | BK25: 16.74132104 | BL25: 16.74132104 | BM25: Freeway | BN25: Freeway | BO25: 2 | BP25: 4 | BQ25: Divided | BR25: Divided | BS25: 65 | BT25: 65 | BU25: 17.23976117 | BV25: 82.76023883 | BW25: 46355.2758 | BX25: 71700.06192 | BY25: 0.6465165379 | BZ25: 38363.73696 | CA25: 7991.538839 | CB25: 7707115.641 | CC25: 1605467.008 | CD25: 9312582.649 | CE25: 219598951 | CF25: 53.81950535 | CG25: 61.23483395 | CH25: 52.09767243 | CK25: 150 | CL25: 0.0002034338747 | CM25: No | CN25: No | CO25: 12 | CP25: 12 | CQ25: No | CR25: 10 | CS25: 10 | CT25: 4 Lane with Median - Full Control | CU25: 8B - 8 Lane Divided (27' Median with Jersey Barrier with Paved Shoulders | CV25: Full | CW25: Full | CX25: 1 | CY25: No | CZ25: 23 | DA25: 163319000 | DB25: 910000 | DC25: 109000 | DD25: 164338000 | DF25: 164338000 | DG25: 164338000
A26: H129200-D | B26: Cumberland | C26: Fayetteville Area MPO | D26: Statewide Mobility | F26: I-95 | G26: Robeson/Cumberland County Line | H26: NC 53 | I26: Widen Roadway to 8 Lanes. | J26: 1 - Widen Existing Roadway | K26: 127570000 | L26: 27.80469615 | M26: 21.96934465 | N26: 16.26471681 | P26: 71.67 | R26: 5 | S26: 16.67 | T26: 20 | U26: 15 | V26: 10 | W26: 5 | Y26: 48.68228688 | Z26: 0.4180252646 | AA26: 64.4465438 | AB26: 30.95449334 | AC26: 4.390494606 | AD26: 32.49612229 | AE26: N/A | AF26: N/A | AH26: 0.5464102251 | AI26: 312.2530193 | AJ26: 6190.898668 | AL26: Fayetteville Area MPO | AM26: 100 | AR26: 06 | AS26: 100 | AX26: Cumberland | AY26: 100 | AZ26: Robeson | BF26: 6 | BG26: C | BH26: 06, , | BI26: Fayetteville Area MPO, , | BJ26: Cumberland, Robeson, , | BK26: 10.27941336 | BL26: 10.27941336 | BM26: Freeway | BN26: Freeway | BO26: 2 | BP26: 4 | BQ26: Divided | BR26: Divided | BS26: 70 | BT26: 70 | BU26: 15.57686718 | BV26: 84.42313282 | BW26: 39744.18344 | BX26: 72736.8955 | BY26: 0.5464102251 | BZ26: 33553.28477 | CA26: 6190.898668 | CB26: 1921630.752 | CC26: 354559.0647 | CD26: 2276189.817 | CE26: 53327483 | CF26: 64.92486392 | CG26: 64.20880675 | CH26: 64.22529664 | CK26: 37.44731357 | CL26: 5.036257855e-05 | CM26: No | CN26: No | CO26: 12 | CP26: 12 | CQ26: No | CR26: 10 | CS26: 10 | CT26: 4 Lane with Median - Full Control | CU26: 8A - 8 Lane Divided (46' Depressed Median) with Paved Shoulders | CV26: Full | CW26: Full | CX26: 1 | CY26: No | CZ26: 17 | DA26: 147504000 | DB26: 5610000 | DC26: 673000 | DD26: 153787000 | DF26: 153787000 | DG26: 153787000
A27: H090123-E | B27: Wake | C27: Capital Area MPO | D27: Regional Impact | E27: R-2540 | F27: NC-55 | G27: Jicarilla Road | H27: Rawls Church Road | I27: Widen to Multi-Lanes | J27: 1 - Widen Existing Roadway | K27: 27513000 | L27: N/A | M27: 31.20815092 | N27: 21.74322492 | P27: 70.83 | R27: 15 | S27: 25 | T27: 13.33 | U27: 7.5 | V27: 10 | W27: 0 | Y27: 62.27040164 | Z27: 5.796481627 | AA27: 81.29848263 | AB27: 3.358577113 | AC27: N/A | AD27: 60.61581839 | AE27: N/A | AF27: N/A | AH27: 0.938937689 | AI27: 574.6677649 | AJ27: 671.7154225 | AL27: Capital Area MPO | AM27: 100 | AR27: 05 | AS27: 65.97 | AT27: 06 | AU27: 34.03 | AX27: Wake | AY27: 65.97 | AZ27: Harnett | BA27: 34.03 | BF27: 5 | BG27: C | BH27: 05, 06, | BI27: Capital Area MPO, , | BJ27: Wake, Harnett, , | BK27: 3.22718077 | BL27: 3.22718077 | BM27: Arterial | BN27: Multi-Lane Highway | BO27: 1 | BP27: 2 | BQ27: Undivided | BR27: Divided | BS27: 49 | BT27: 45 | BU27: 4.527802775 | BV27: 95.47219722 | BW27: 14835.35074 | BX27: 15800.14405 | BY27: 0.938937689 | BZ27: 14163.63532 | CA27: 671.7154225 | CB27: 6792610.616 | CC27: 322141.9648 | CD27: 7114752.581 | CE27: 159478599 | CF27: 99.81431634 | CG27: 71.37318884 | CH27: 72.73233469 | CM27: No | CN27: No | CO27: 12 | CP27: 12 | CQ27: No | CR27: 2 | CS27: 4 | CT27: 2 Lane Undivided | CU27: 4C - 4 Lane Divided (23' Raised Median) with Curb & Gutter, Wide Outside Lanes, and Sidewalks | CV27: None | CW27: None | CX27: 2 | CY27: No | CZ27: 21 | DA27: 11172000 | DB27: 5822000 | DC27: 699000 | DD27: 17693000 | DF27: 17693000 | DG27: 17693000
A28: H090759 | B28: Harnett | C28: Mid-Carolina RPO | D28: Regional Impact | F28: US-421 Cumberland Street | G28: I-95 | H28: (Dunn-Erwin Road), | I28: Widen to Multi-Lanes to include Turning Lane from I-95 Eastern on and off Ramps to Dunn-Erwin Road. | J28: 11 - Access Management | K28: 17693000 | L28: N/A | M28: 23.88393025 | N28: 19.62818578 | P28: 70 | R28: 5 | S28: 25 | T28: 20 | U28: 15 | V28: 0 | W28: 5 | Y28: 50.11826897 | Z28: 1.850546713 | AA28: 92.34422648 | AB28: 6.345345349 | AC28: N/A | AD28: 16.57303681 | AE28: N/A | AF28: N/A | AH28: 0.6895741146 | AI28: 453.6241634 | AJ28: 1269.06907 | AL28: Mid-Carolina RPO | AM28: 100 | AR28: 06 | AS28: 100 | AX28: Harnett | AY28: 100 | BF28: 6 | BG28: C | BH28: 06, , | BI28: Mid-Carolina RPO, , | BJ28: Harnett, , , | BK28: 1.78428398 | BL28: 1.78428398 | BM28: Arterial | BN28: Arterial | BO28: 2 | BP28: 2 | BQ28: Undivided | BR28: TWLTL | BS28: 33 | BT28: 35 | BU28: 5.805557602 | BV28: 94.1944424 | BW28: 21859.55522 | BX28: 31700.0809 | BY28: 0.6895741146 | BZ28: 20590.48615 | CA28: 1269.06907 | CB28: 1368736.784 | CC28: 84360.39364 | CD28: 1453097.177 | CE28: 32741723 | CF28: 93.27238885 | CG28: 83.95614516 | CH28: 99.83185146 | CM28: No | CN28: No | CO28: 12 | CP28: 12 | CQ28: Yes | CR28: 0 | CS28: 4 | CT28: 4 Lane Undivided | CU28: 5A - 4 Lane with Two Way Left Turn Lane, Curb & Gutter, and Sidewalks | CV28: None | CW28: Partial | CX28: 2 | CY28: Yes | CZ28: 26 | DA28: 119130000 | DB28: 29896000 | DC28: 3588000 | DD28: 152614000 | DF28: 152614000 | DG28: 152614000
A29: H090936-B | B29: Robeson | C29: Lumber River RPO | D29: Statewide Mobility | F29: I-74 , US-74 | G29: SR 2220 (Broadridge Road) | I29: Upgrade At-grade Intersection to Interchange. | J29: 7 - Upgrade At-grade Intersection to Interchange or Grade Separation | K29: 5750000 | L29: 12.97193271 | M29: 14.66160961 | N29: 9.440126087 | P29: 70 | R29: 0 | S29: 25 | T29: 20 | U29: 15 | V29: 10 | W29: 0 | Y29: 9.61669948 | Z29: 4.258930957 | AA29: 66.65 | AB29: 9.71365924 | AC29: 2.015117289 | AD29: 45.27702 | AE29: N/A | AF29: N/A | AH29: 0.09966272466 | AI29: 316.2002301 | AJ29: 1444.418225 | AL29: Lumber River RPO | AM29: 100 | AR29: 06 | AS29: 100 | AX29: Robeson | AY29: 100 | BF29: 6 | BG29: C | BH29: 06, , | BI29: Lumber River RPO, , | BJ29: Robeson, , , | BK29: 2 | BL29: 2 | BM29: Multi-Lane Highway | BN29: Freeway | BO29: 2 | BP29: 1 | BQ29: Divided | BR29: Divided | BS29: 54.9999998 | BT29: 55 | BU29: 15.8861 | BV29: 84.1139 | BW29: 9092.34 | BX29: 91231.1 | BY29: 0.09966272466 | BZ29: 7647.921775 | CA29: 1444.418225 | CB29: 878149.116 | CC29: 165850.884 | CD29: 1044000 | CE29: 24488853 | CI29: 33.3 | CJ29: 100 | CK29: 17.17555959 | CL29: 2.31267862e-05 | CM29: Yes | CN29: No | CO29: 11.99999995 | CP29: 12 | CQ29: No | CR29: 3.999999982 | CS29: 4 | CT29: 2 Lane Undivided | CV29: Limited | CW29: Partial | CX29: 2 | CY29: Yes | CZ29: 25 | DA29: 169860000 | DB29: 31184000 | DC29: 3742000 | DD29: 204786000 | DF29: 204786000 | DG29: 204786000
A30: H090172-B | B30: Harnett | C30: Mid-Carolina RPO | D30: Regional Impact | E30: R-2609 | F30: US-401 New Route - Lillington Bypass | G30: US 401 south of Lillington | H30: US 401 north of Lillington | I30: Construct Freeway on New Location | J30: 5 - Construct Roadway on New Location | K30: 91066000 | L30: N/A | M30: 24.2203274 | N30: 16.40212958 | P30: 68.33 | R30: 5 | S30: 25 | T30: 13.33 | U30: 15 | V30: 10 | W30: 0 | Y30: 46.82741309 | Z30: 1.299641524 | AA30: 67.76718653 | AB30: 5.165618743 | AC30: N/A | AD30: 54.11845096 | AE30: N/A | AF30: N/A | AH30: 0.6801607575 | AI30: 838.9975055 | AJ30: 1033.123749 | AL30: Mid-Carolina RPO | AM30: 86.98 | AN30: Capital Area MPO | AO30: 13.02 | AR30: 06 | AS30: 100 | AX30: Harnett | AY30: 100 | BF30: 6 | BG30: C | BH30: 06, , | BI30: Mid-Carolina RPO, Capital Area MPO, | BJ30: Harnett, , , | BK30: 5.6 | BL30: 7.21473141 | BM30: Two Lane Highway | BN30: Freeway | BO30: 1 | BP30: 2 | BQ30: Undivided | BR30: Divided | BS30: 44 | BT30: 70 | BU30: 6.867156126 | BV30: 93.13284387 | BW30: 15044.41911 | BX30: 22118.91666 | BY30: 0.6801607575 | BZ30: 14011.29536 | CA30: 1033.123749 | CB30: 4870836.589 | CC30: 359151.4435 | CD30: 5229988.032 | CE30: 118353155 | CF30: 76.45342158 | CG30: 57.59666732 | CH30: 69.27180287 | CM30: No | CN30: No | CO30: 12 | CP30: 12 | CQ30: No | CR30: 1 | CS30: 4 | CT30: New Roadway | CU30: 4A - 4 Lane Divided (46' Depressed Median) with Paved Shoulders | CV30: None | CW30: Full | CX30: 2 | CY30: No | CZ30: 16.2 | DA30: 6750000 | DB30: 540000 | DC30: 0 | DD30: 7290000 | DF30: 7290000 | DG30: 7290000
A31: H141631 | B31: Harnett | C31: Mid-Carolina RPO | D31: Statewide Mobility | E31: I-5133 | F31: I-95 | G31: SR 1001 (Long Branch Road) | I31: Exit 71 Improve configuration and lengthen spans to for future widening. | J31: 8 - Improve Interchange | K31: 7290000 | L31: 31.11895647 | M31: 23.19310318 | N31: 16.46295027 | P31: 68.33 | R31: 5 | S31: 8.33 | T31: 20 | U31: 15 | V31: 10 | W31: 10 | Y31: 55.58072884 | Z31: 1.734022497 | AA31: 50 | AB31: 44.1051725 | AC31: 1.034965662 | AD31: 38.64415342 | AE31: N/A | AF31: N/A | AH31: 0.5859039464 | AI31: 71.37789476 | AJ31: 8821.034499 | AL31: Mid-Carolina RPO | AM31: 100 | AR31: 06 | AS31: 100 | AX31: Harnett | AY31: 100 | BF31: 6 | BG31: C | BH31: 06, , | BI31: Mid-Carolina RPO, , | BJ31: Harnett, , , | BK31: 2 | BL31: 2 | BM31: Freeway | BN31: Freeway | BO31: 2 | BP31: 2 | BQ31: Divided | BR31: Divided | BS31: 65 | BT31: 65 | BU31: 17.27371391 | BV31: 82.72628609 | BW31: 51066.23013 | BX31: 87158.02384 | BY31: 0.5859039464 | BZ31: 42245.19563 | CA31: 8821.034499 | CB31: 443412.8934 | CC31: 92587.10658 | CD31: 536000 | CE31: 12641024 | CI31: 66.7 | CJ31: 33.3 | CK31: 8.818083443 | CL31: 1.188122979e-05 | CM31: No | CN31: No | CO31: 12 | CP31: 12 | CQ31: No | CR31: 10 | CS31: 10 | CT31: 2 Lane Undivided | CV31: Full | CW31: None | CX31: 2 | CY31: No | CZ31: 33 | DA31: 46512000 | DB31: 1243000 | DC31: 149000 | DD31: 47904000 | DF31: 47904000 | DG31: 47904000
A32: H129200-B | B32: Robeson | C32: Lumber River RPO | D32: Statewide Mobility | F32: I-95 | G32: I-74 | H32: US 301 (Exit 22) | I32: Widen Roadway to 8 Lanes. | J32: 1 - Widen Existing Roadway | K32: 153787000 | L32: 29.09395683 | M32: 22.67118669 | N32: 15.55591433 | P32: 68.33 | R32: 5 | S32: 8.33 | T32: 20 | U32: 15 | V32: 10 | W32: 10 | Y32: 53.72138818 | Z32: 0.6795971051 | AA32: 46.75717272 | AB32: 36.29509867 | AC32: 8.389242379 | AD32: 43.95223101 | AE32: N/A | AF32: N/A | AH32: 0.6023415963 | AI32: 290.6453157 | AJ32: 7259.019734 | AL32: Lumber River RPO | AM32: 100 | AR32: 06 | AS32: 100 | AX32: Robeson | AY32: 100 | BF32: 6 | BG32: C | BH32: 06, , | BI32: Lumber River RPO, , | BJ32: Robeson, , , | BK32: 12.03858303 | BL32: 12.03858303 | BM32: Freeway | BN32: Freeway | BO32: 2 | BP32: 4 | BQ32: Divided | BR32: Divided | BS32: 65 | BT32: 65 | BU32: 16.51570254 | BV32: 83.48429746 | BW32: 43952.23101 | BX32: 72968.94533 | BY32: 0.6023415963 | BZ32: 36693.21128 | CA32: 7259.019734 | CB32: 3710567.873 | CC32: 734061.819 | CD32: 4444629.692 | CE32: 104513200 | CF32: 37.60722919 | CG32: 54.02147578 | CH32: 48.65684175 | CK32: 71 | CL32: 9.678484759e-05 | CM32: No | CN32: No | CO32: 12 | CP32: 12 | CQ32: No | CR32: 11 | CS32: 10 | CT32: 4 Lane with Median - Full Control | CU32: 8B - 8 Lane Divided (27' Median with Jersey Barrier with Paved Shoulders | CV32: Full | CW32: Partial | CX32: 2 | CY32: No | CZ32: 30 | DA32: 34314000 | DB32: 5205000 | DC32: 625000 | DD32: 40144000 | DF32: 40144000 | DG32: 40144000
A33: H141565 | B33: Harnett | C33: Mid-Carolina RPO | D33: Statewide Mobility | E33: I-5133 | F33: I-95 | G33: SR 1808 (jonesboro Road) | I33: Exit 75 Improve interchange configuration and lengthen spans for future widening | J33: 8 - Improve Interchange | K33: 7290000 | L33: 28.62546759 | M33: 20.97102186 | N33: 14.66447432 | P33: 68.33 | R33: 5 | S33: 8.33 | T33: 20 | U33: 15 | V33: 10 | W33: 10 | Y33: 56.63449931 | Z33: 0.01287229081 | AA33: 33.35 | AB33: 41.47742794 | AC33: 0.007705261037 | AD33: 34.74178954 | AE33: N/A | AF33: N/A | AH33: 0.5964904265 | AI33: 69.94458351 | AJ33: 8295.485587 | AL33: Mid-Carolina RPO | AM33: 100 | AR33: 06 | AS33: 100 | AX33: Harnett | AY33: 100 | BF33: 6 | BG33: C | BH33: 06, , | BI33: Mid-Carolina RPO, , | BJ33: Harnett, , , | BK33: 2 | BL33: 2 | BM33: Freeway | BN33: Freeway | BO33: 2 | BP33: 2 | BQ33: Divided | BR33: Divided | BS33: 65 | BT33: 65 | BU33: 15.91836171 | BV33: 84.08163829 | BW33: 52112.68431 | BX33: 87365.49993 | BY33: 0.5964904265 | BZ33: 43817.19872 | CA33: 8295.485587 | CB33: 3363.265531 | CC33: 636.7344685 | CD33: 4000 | CE33: 93839 | CI33: 66.7 | CJ33: 0 | CK33: 0.06580754575 | CL33: 8.829767499e-08 | CM33: No | CN33: No | CO33: 12 | CP33: 12 | CQ33: No | CR33: 10 | CS33: 10 | CT33: 4 Lane with Median - Full Control | CV33: Full | CW33: Partial | CX33: 2 | CY33: No | CZ33: 24 | DA33: 25194000 | DB33: 5870000 | DC33: 704000 | DD33: 31768000 | DF33: 31768000 | DG33: 31768000
A34: H141552 | B34: Robeson | C34: Lumber River RPO | D34: Statewide Mobility | E34: I-5133 | F34: I-95 | G34: US-301 | I34: Exit 25 Improve interchange Configuration and lengthen spans for future widening. | J34: 8 - Improve Interchange | K34: 7290000 | L34: 25.2155308 | M34: 20.05708152 | N34: 13.11671201 | P34: 68.33 | R34: 5 | S34: 8.33 | T34: 20 | U34: 15 | V34: 10 | W34: 10 | Y34: 48.90856005 | Z34: 0 | AA34: 33.35 | AB34: 36.03981391 | AC34: 0 | AD34: 44.94941513 | AE34: N/A | AF34: N/A | AH34: 0.5154798999 | AI34: 81.09115523 | AJ34: 7207.962782 | AL34: Lumber River RPO | AM34: 100 | AR34: 06 | AS34: 100 | AX34: Robeson | AY34: 100 | BF34: 6 | BG34: C | BH34: 06, , | BI34: Lumber River RPO, , | BJ34: Robeson, , , | BK34: 2 | BL34: 2 | BM34: Freeway | BN34: Freeway | BO34: 2 | BP34: 2 | BQ34: Divided | BR34: Divided | BS34: 65 | BT34: 65 | BU34: 16.03572096 | BV34: 83.96427904 | BW34: 44949.41513 | BX34: 87199.16168 | BY34: 0.5154798999 | BZ34: 37741.45235 | CA34: 7207.962782 | CB34: 0 | CC34: 0 | CD34: 0 | CE34: 0 | CI34: 66.7 | CJ34: 0 | CK34: 0 | CL34: 0 | CM34: No | CN34: No | CO34: 12 | CP34: 12 | CQ34: No | CR34: 10 | CS34: 10 | CT34: 2 Lane Undivided | CV34: Full | CW34: Partial | CX34: 2 | CY34: No | CZ34: 24 | DA34: 10032000 | DB34: 1231000 | DC34: 148000 | DD34: 11411000 | DF34: 11411000 | DG34: 11411000
A35: H090309-B | B35: Columbus | C35: Cape Fear RPO | D35: Regional Impact | E35: R-5020 | F35: US-701 Madison Street/Powell Boulevard | G35: SR 1437 (Virgil Street) | H35: US 74/76 | I35: Widen to Multi-Lanes | J35: 1 - Widen Existing Roadway | K35: 8640000 | L35: N/A | M35: 21.64574854 | N35: 17.64461752 | P35: 67.5 | R35: 5 | S35: 25 | T35: 20 | U35: 7.5 | V35: 10 | W35: 0 | Y35: 42.73988873 | Z35: 0 | AA35: 90.96639768 | AB35: 3.982908489 | AC35: N/A | AD35: 18.64136589 | AE35: N/A | AF35: N/A | AH35: 0.5880557063 | AI35: 464.515106 | AJ35: 796.5816978 | AL35: Cape Fear RPO | AM35: 100 | AR35: 06 | AS35: 100 | AX35: Columbus | AY35: 100 | BF35: 6 | BG35: C | BH35: 06, , | BI35: Cape Fear RPO, , | BJ35: Columbus, , , | BK35: 0.99778316 | BL35: 0.99778316 | BM35: Arterial | BN35: Arterial | BO35: 2 | BP35: 2 | BQ35: Undivided | BR35: Divided | BS35: 45 | BT35: 45 | BU35: 4.273193834 | BV35: 95.72680617 | BW35: 18641.36589 | BX35: 31700 | BY35: 0.5880557063 | BZ35: 17844.78419 | CA35: 796.5816978 | CB35: 0 | CC35: 0 | CD35: 0 | CE35: 0 | CF35: 83.18329439 | CG35: 89.94319343 | CH35: 99.79999788 | CM35: No | CN35: No | CO35: 11 | CP35: 12 | CQ35: Yes | CR35: 0 | CS35: 4 | CT35: 4 Lane Undivided | CU35: 4C - 4 Lane Divided (23' Raised Median) with Curb & Gutter, Wide Outside Lanes, and Sidewalks | CV35: None | CW35: Full | CX35: 2 | CY35: No | CZ35: 23 | DA35: 126685000 | DB35: 790000 | DC35: 95000 | DD35: 127570000 | DF35: 127570000 | DG35: 127570000
A36: H129200-A | B36: Robeson | C36: Lumber River RPO | D36: Statewide Mobility | F36: I-95 | G36: South Carolina State Line | H36: I-74 | I36: Widen Roadway to 6 Lanes. | J36: 1 - Widen Existing Roadway | K36: 107028000 | L36: 25.11194952 | M36: 19.9056903 | N36: 13.5371134 | P36: 66.67 | R36: 0 | S36: 16.67 | T36: 20 | U36: 15 | V36: 10 | W36: 5 | Y36: 40.62932699 | Z36: 1.04249602 | AA36: 52.027488 | AB36: 32.58214552 | AC36: 8.912247168 | AD36: 42.84985747 | AE36: N/A | AF36: N/A | AH36: 0.4581564001 | AI36: 250.6763015 | AJ36: 6516.429104 | AL36: Lumber River RPO | AM36: 100 | AR36: 06 | AS36: 100 | AX36: Robeson | AY36: 100 | BF36: 6 | BG36: C | BH36: 06, , | BI36: Lumber River RPO, , | BJ36: Robeson, , , | BK36: 12.99722514 | BL36: 12.99722514 | BM36: Freeway | BN36: Freeway | BO36: 2 | BP36: 3 | BQ36: Divided | BR36: Divided | BS36: 65 | BT36: 70 | BU36: 19.83700876 | BV36: 80.16299124 | BW36: 32849.85747 | BX36: 71700.09513 | BY36: 0.4581564001 | BZ36: 26333.42837 | CA36: 6516.429104 | CB36: 3755097.569 | CC36: 929230.5866 | CD36: 4684328.156 | CE36: 111576264 | CF36: 48.61802645 | CG36: 57.58287639 | CH36: 49.89717098 | CK36: 75 | CL36: 0.0001032449434 | CM36: No | CN36: No | CO36: 12 | CP36: 12 | CQ36: No | CR36: 10 | CS36: 10 | CT36: 4 Lane with Median - Full Control | CU36: 6A - 6 Lane Divided (46' Depressed Median) with Paved Shoulders | CV36: Full | CW36: Full | CX36: 2 | CY36: No | CZ36: 17 | DA36: 42800000 | DB36: 4600000 | DC36: 503000 | DD36: 47903000 | DF36: 47903000 | DG36: 47903000
A37: H090464 | B37: Cumberland | C37: Fayetteville Area MPO | D37: Statewide Mobility | E37: U-4414 | F37: SR-1007 All American Freeway | G37: SR 1151 (Owen Drive) | H37: North of SR 1437 (Santa Fe Drive) | I37: Add Additional Lanes. | J37: 1 - Widen Existing Roadway | K37: 47903000 | L37: 26.98366009 | M37: 22.74127305 | N37: 16.88019639 | P37: =SUM(R37:W37) -> 64.17 | R37: =IF(AH37<0.5,0,IF(AH37<0.75,5,IF(AH37<0.9,10,IF(AH37<1,15,20)))) -> 5 | S37: =IF(AA37<30,0,IF(AA37<51,8.33,IF(AA37<66,16.67,25))) -> 16.67 | T37: =IF(AI37>1500,0,IF(AI37>1000,6.67,IF(AI37>500,13.33,20))) -> 20 | U37: =IF(AJ37<500,0,IF(AJ37<1000,7.5,15)) -> 7.5 | V37: 10 | W37: 5 | Y37: 55.73569667 | Z37: 1.005182327 | AA37: 55.32020596 | AB37: 20.14864942 | AC37: 3.996459162 | AD37: 30.24032703 | AE37: N/A | AF37: N/A | AH37: =+BW37/BX37 -> 0.6265250075 | AI37: =K37/BW37/BL37 -> 250.3601306 | AJ37: =+CA37 -> 897.1048457 | AL37: Fayetteville Area MPO | AM37: 100 | AR37: 06 | AS37: 100 | AX37: Cumberland | AY37: 100 | BF37: 6 | BG37: C | BH37: 06, , | BI37: Fayetteville Area MPO, , | BJ37: Cumberland, , , | BK37: 4.21812845 | BL37: 4.21812845 | BM37: Freeway | BN37: Freeway | BO37: 2 | BP37: 3 | BQ37: Divided | BR37: Divided | BS37: 55 | BT37: 55 | BU37: 1.977722981 | BV37: 98.02227702 | BW37: 45360.49054 | BX37: 72400.12768 | BY37: 0.6265250075 | BZ37: 44463.38569 | CA37: 897.1048457 | CB37: 2127865.779 | CC37: 42932.37394 | CD37: 2170798.153 | CE37: 48151249 | CF37: 60.41925123 | CG37: 60.86732382 | CH37: 44.69064055 | CK37: 35 | CL37: 4.492918324e-05 | CM37: Yes | CN37: No | CO37: 12 | CP37: 12 | CQ37: No | CR37: 10 | CS37: 10 | CT37: 4 Lane with Median - Full Control | CU37: 6B - 6 Lane Divided (27' Median with Jersey Barrier with Paved Shoulders | CV37: Full | CW37: Full | CX37: 2 | CY37: No | CZ37: 23 | DA37: 61241000 | DB37: 348000 | DC37: 42000 | DD37: 61631000 | DF37: 61631000 | DG37: 61631000
A38: H090458-D | B38: Cumberland | C38: Fayetteville Area MPO | D38: Regional Impact | E38: U-4403 | F38: US-401 Ramsey Street | G38: I-295 | H38: Slocumb Road | I38: Widen to Multi-Lanes | J38: 1 - Widen Existing Roadway | K38: 12840000 | L38: N/A | M38: 17.11953192 | N38: 13.36984414 | P38: 64.17 | R38: 5 | S38: 16.67 | T38: 20 | U38: 7.5 | V38: 10 | W38: 5 | Y38: 36.88949995 | Z38: 0.6512349688 | AA38: 58.61697153 | AB38: 4.255811606 | AC38: N/A | AD38: 18.72651037 | AE38: N/A | AF38: N/A | AH38: 0.5075598956 | AI38: 498.7213508 | AJ38: 851.1623213 | AL38: Fayetteville Area MPO | AM38: 100 | AR38: 06 | AS38: 100 | AX38: Cumberland | AY38: 100 | BF38: 6 | BG38: C | BH38: 06, , | BI38: Fayetteville Area MPO, , | BJ38: Cumberland, , , | BK38: 1.60013766 | BL38: 1.60013766 | BM38: Arterial | BN38: Arterial | BO38: 2 | BP38: 3 | BQ38: TWLTL | BR38: Divided | BS38: 45 | BT38: 45 | BU38: 5.290085295 | BV38: 94.70991471 | BW38: 16089.76555 | BX38: 31700.23024 | BY38: 0.5075598956 | BZ38: 15238.60323 | CA38: 851.1623213 | CB38: 352211.3532 | CC38: 19672.99945 | CD38: 371884.3526 | CE38: 8361857 | CF38: 56.21026328 | CG38: 63.44797488 | CH38: 56.21026328 | CM38: No | CN38: No | CO38: 12 | CP38: 12 | CQ38: Yes | CR38: 0 | CS38: 4 | CT38: 4 Lane with TWLTL (Five Lane) | CU38: 6F - 6 Lane Divided (17'-6"' Raised Median) with Curb & Gutter, Wide Outside Lanes, and Sidewalks | CV38: None | CW38: None | CX38: 1 | CY38: No | CZ38: 19.8 | DA38: 6750000 | DB38: 540000 | DC38: 0 | DD38: 7290000 | DF38: 7290000 | DG38: 7290000
A39: H129200-E | B39: Cumberland | C39: Fayetteville Area MPO | D39: Statewide Mobility | F39: I-95 | G39: NC 53 | H39: I-95 Business/US 301 (Exit 56) | I39: Widen Roadway to 8 Lanes | J39: 1 - Widen Existing Roadway | K39: 61631000 | L39: 25.76144835 | M39: 19.86260119 | N39: 14.23509446 | P39: 63.33 | R39: 5 | S39: 8.33 | T39: 20 | U39: 15 | V39: 10 | W39: 5 | Y39: 48.04285455 | Z39: 0.3711728189 | AA39: 45.52288987 | AB39: 32.48473928 | AC39: 1.88003298 | AD39: 32.06805361 | AE39: N/A | AF39: N/A | AH39: 0.5400337064 | AI39: 282.4780408 | AJ39: 6496.947856 | AL39: Fayetteville Area MPO | AM39: 100 | AR39: 06 | AS39: 100 | AX39: Cumberland | AY39: 100 | BF39: 6 | BG39: C | BH39: 06, , | BI39: Fayetteville Area MPO, , | BJ39: Cumberland, , , | BK39: 5.57974893 | BL39: 5.57974893 | BM39: Freeway | BN39: Freeway | BO39: 2 | BP39: 4 | BQ39: Divided | BR39: Divided | BS39: 70 | BT39: 70 | BU39: 16.61535087 | BV39: 83.38464913 | BW39: 39102.08041 | BX39: 72406.74045 | BY39: 0.5400337064 | BZ39: 32605.13255 | CA39: 6496.947856 | CB39: 810881.1069 | CC39: 161577.3916 | CD39: 972458.4985 | CE39: 22875752 | CF39: 25.60135185 | CG39: 72.98267105 | CH39: 37.99830493 | CK39: 15.99842541 | CL39: 2.160223418e-05 | CM39: No | CN39: No | CO39: 12 | CP39: 12 | CQ39: No | CR39: 10 | CS39: 10 | CT39: 4 Lane with Median - Full Control | CU39: 8A - 8 Lane Divided (46' Depressed Median) with Paved Shoulders | CV39: Full | CW39: Full | CX39: 1 | CY39: No | CZ39: 25 | DA39: 106219000 | DB39: 722000 | DC39: 87000 | DD39: 107028000 | DF39: 107028000 | DG39: 107028000
A40: H090309-A | B40: Columbus | C40: Cape Fear RPO | D40: Regional Impact | E40: R-5020 | F40: US-701 Madison Street/Powell Boulevard | G40: SR 1166 (Pleasant Plains Road) | H40: SR 1437 (Virgil Street) | I40: Widen to Multi-Lanes | J40: 1 - Widen Existing Roadway | K40: 18086000 | L40: N/A | M40: 24.02343376 | N40: 19.16519166 | P40: 62.5 | R40: 15 | S40: 16.67 | T40: 13.33 | U40: 7.5 | V40: 10 | W40: 0 | Y40: 61.24921195 | Z40: 3.865252405 | AA40: 61.42298792 | AB40: 3.425893234 | AC40: N/A | AD40: 16.02518884 | AE40: N/A | AF40: N/A | AH40: 0.9139856068 | AI40: 518.8108268 | AJ40: 685.1786468 | AL40: Cape Fear RPO | AM40: 100 | AR40: 06 | AS40: 100 | AX40: Columbus | AY40: 100 | BF40: 6 | BG40: C | BH40: 06, , | BI40: Cape Fear RPO, , | BJ40: Columbus, , , | BK40: 2.175356 | BL40: 2.175356 | BM40: Arterial | BN40: Arterial | BO40: 1 | BP40: 2 | BQ40: Undivided | BR40: Divided | BS40: 45 | BT40: 45 | BU40: 4.275635399 | BV40: 95.7243646 | BW40: 16025.18884 | BX40: 17533.30547 | BY40: 0.9139856068 | BZ40: 15340.01019 | CA40: 685.1786468 | CB40: 2988467.386 | CC40: 133483.2255 | CD40: 3121950.611 | CE40: 69906955 | CF40: 70.96667559 | CG40: 63.41251888 | CH40: 49.90819802 | CM40: No | CN40: No | CO40: 11 | CP40: 12 | CQ40: No | CR40: 2 | CS40: 4 | CT40: 2 Lane Undivided | CU40: 4C - 4 Lane Divided (23' Raised Median) with Curb & Gutter, Wide Outside Lanes, and Sidewalks | CV40: None | CW40: None | CX40: 1 | CY40: No | CZ40: 23 | DA40: 15162000 | DB40: 1168000 | DC40: 140000 | DD40: 16470000 | DF40: 16470000 | DG40: 16470000
A41: H090818 | B41: Harnett | C41: Capital Area MPO | D41: Regional Impact | F41: - New Route - Angier Eastern Bypass | G41: SR 1544 (Guy Road) | H41: NC 55 | I41: NC 55 Alt 2-Ln interim Impr. Connecting Existing Roadways | J41: 6 - Widen Existing Roadway and Construct Part on New Location | K41: 47904000 | L41: N/A | M41: 21.59491845 | N41: 15.94591121 | P41: 60.83 | R41: 5 | S41: 25 | T41: 13.33 | U41: 7.5 | V41: 10 | W41: 0 | Y41: 46.34835644 | Z41: 0 | AA41: 66.76239924 | AB41: 2.547794802 | AC41: N/A | AD41: 33.31589419 | AE41: N/A | AF41: N/A | AH41: 0.6993136655 | AI41: 778.1308619 | AJ41: 509.5589604 | AL41: Capital Area MPO | AM41: 99.94 | AR41: 06 | AS41: 71.46 | AT41: 05 | AU41: 28.54 | AX41: Harnett | AY41: 71.46 | AZ41: Wake | BA41: 28.54 | BF41: 6 | BG41: C | BH41: 06, 05, | BI41: Capital Area MPO, , | BJ41: Harnett, Wake, , | BK41: 5.3 | BL41: 5.60996903 | BM41: Arterial | BN41: Arterial | BO41: 1 | BP41: 1 | BQ41: Undivided | BR41: Undivided | BS41: 46 | BT41: 45 | BU41: 4.643396486 | BV41: 95.35660351 | BW41: 10973.84128 | BX41: 15692.30207 | BY41: 0.6993136655 | BZ41: 10464.28232 | CA41: 509.5589604 | CB41: 0 | CC41: 0 | CD41: 0 | CE41: 0 | CF41: 80.52501481 | CG41: 61.40746259 | CH41: 58.37475103 | CM41: No | CN41: No | CO41: 12 | CP41: 12 | CQ41: No | CR41: 1 | CS41: 4 | CT41: New Roadway | CU41: 2B - 2 Lane Undivided with Paved Shoulders, 25-45 mph | CV41: None | CW41: None | CX41: 1 | CY41: No | CZ41: 23 | DA41: 13338000 | DB41: 1714000 | DC41: 206000 | DD41: 15258000 | DF41: 15258000 | DG41: 15258000
A42: H090514-B | B42: Cumberland | C42: Fayetteville Area MPO | D42: Regional Impact | E42: U-5015 | F42: NC-210 Murchison Road | G42: Langdon Street | H42: US 401 Bypass | I42: Widen to Multi-Lanes | J42: 1 - Widen Existing Roadway | K42: 15934000 | L42: N/A | M42: 17.29506961 | N42: 14.35614467 | P42: 60.83 | R42: 0 | S42: 25 | T42: 13.33 | U42: 7.5 | V42: 10 | W42: 5 | Y42: 34.42723949 | Z42: 0.3302817874 | AA42: 74.0464041 | AB42: 2.765971061 | AC42: N/A | AD42: 12.01048883 | AE42: N/A | AF42: N/A | AH42: 0.4736824366 | AI42: 591.7856447 | AJ42: 553.1942121 | AL42: Fayetteville Area MPO | AM42: 100 | AR42: 06 | AS42: 100 | AX42: Cumberland | AY42: 100 | BF42: 6 | BG42: C | BH42: 06, , | BI42: Fayetteville Area MPO, , | BJ42: Cumberland, , , | BK42: 1.79313853 | BL42: 1.79313853 | BM42: Arterial | BN42: Arterial | BO42: 2 | BP42: 2 | BQ42: Undivided | BR42: Divided | BS42: 39 | BT42: 40 | BU42: 3.684097229 | BV42: 96.31590277 | BW42: 15015.73324 | BX42: 31700 | BY42: 0.4736824366 | BZ42: 14462.53903 | CA42: 553.1942121 | CB42: 226916.6898 | CC42: 8679.596243 | CD42: 235596.286 | CE42: 5262710 | CF42: 75.87063176 | CG42: 70.42016493 | CH42: 75.87063176 | CM42: No | CN42: No | CO42: 10 | CP42: 12 | CQ42: Yes | CR42: 0 | CS42: 4 | CT42: 4 Lane Undivided | CU42: 4F - 4 Lane Divided (17'-6" Raised Median) with Curb & Gutter, Wide Outside Lanes, and Sidewalks | CV42: Limited | CW42: Partial | CX42: 1 | CY42: No | CZ42: 22 | DA42: 12996000 | DB42: 2392000 | DC42: 287000 | DD42: 15675000 | DF42: 15675000 | DG42: 15675000
A43: H090514-A | B43: Cumberland | C43: Fayetteville Area MPO | D43: Regional Impact | E43: U-5015 | F43: NC-210 Murchison Road | G43: Rowan Street | H43: Langdon Street | I43: Widen to Multi-Lanes | J43: 1 - Widen Existing Roadway | K43: 10276000 | L43: N/A | M43: 16.45722581 | N43: 13.69597283 | P43: 60.83 | R43: 0 | S43: 25 | T43: 13.33 | U43: 7.5 | V43: 10 | W43: 5 | Y43: 34.9184318 | Z43: 0 | AA43: 67.12286469 | AB43: 2.888458551 | AC43: N/A | AD43: 10.15331396 | AE43: N/A | AF43: N/A | AH43: 0.4804407237 | AI43: 709.1357841 | AJ43: 577.6917103 | AL43: Fayetteville Area MPO | AM43: 100 | AR43: 06 | AS43: 100 | AX43: Cumberland | AY43: 100 | BF43: 6 | BG43: C | BH43: 06, , | BI43: Fayetteville Area MPO, , | BJ43: Cumberland, , , | BK43: 0.95147114 | BL43: 0.95147114 | BM43: Arterial | BN43: Arterial | BO43: 2 | BP43: 2 | BQ43: Undivided | BR43: Divided | BS43: 35 | BT43: 35 | BU43: 3.79312418 | BV43: 96.20687582 | BW43: 15229.97094 | BX43: 31700 | BY43: 0.4804407237 | BZ43: 14652.27923 | CA43: 577.6917103 | CB43: 0 | CC43: 0 | CD43: 0 | CE43: 0 | CF43: 58.05021435 | CG43: 59.28536139 | CH43: 84.0531572 | CM43: No | CN43: No | CO43: 10 | CP43: 12 | CQ43: Yes | CR43: 0 | CS43: 4 | CT43: 4 Lane Undivided | CU43: 4F - 4 Lane Divided (17'-6" Raised Median) with Curb & Gutter, Wide Outside Lanes, and Sidewalks | CV43: None | CW43: Partial | CX43: 1 | CY43: No | CZ43: 22 | DA43: 14364000 | DB43: 3293000 | DC43: 395000 | DD43: 18052000 | DF43: 18052000 | DG43: 18052000
A44: H090498 | B44: Cumberland | C44: Fayetteville Area MPO | D44: Regional Impact | E44: U-4900 | F44: NC-210 Murchison Road | G44: US 401 Bypass | H44: Bernadine Street | I44: Add Additional Lanes | J44: 1 - Widen Existing Roadway | K44: 21610000 | L44: N/A | M44: 17.58597342 | N44: 14.15776422 | P44: 57.5 | R44: 5 | S44: 16.67 | T44: 13.33 | U44: 7.5 | V44: 10 | W44: 5 | Y44: 37.99547977 | Z44: 0.4726354003 | AA44: 64.64141189 | AB44: 16.36273756 | AC44: N/A | AD44: 15.04803439 | AE44: N/A | AF44: N/A | AH44: 0.5227776524 | AI44: 683.4914552 | AJ44: 658.6592507 | AL44: Fayetteville Area MPO | AM44: 100 | AR44: 06 | AS44: 100 | AX44: Cumberland | AY44: 100 | BF44: 6 | BG44: C | BH44: 06, , | BI44: Fayetteville Area MPO, , | BJ44: Cumberland, , , | BK44: 1.90785516 | BL44: 1.90785516 | BM44: Arterial | BN44: Arterial | BO44: 2 | BP44: 3 | BQ44: Undivided | BR44: Divided | BS44: 45 | BT44: 45 | BU44: 3.974518469 | BV44: 96.02548153 | BW44: 16572.05158 | BX44: 31700 | BY44: 0.5227776524 | BZ44: 15913.39233 | CA44: 658.6592507 | CB44: 438539.7997 | CC44: 18151.27095 | CD44: 456691.0706 | CE44: 10213651 | CF44: 68.07593254 | CG44: 66.53432829 | CH44: 59.33336919 | CM44: No | CN44: Yes | CO44: 10 | CP44: 12 | CQ44: Yes | CR44: 0 | CS44: 4 | CT44: 4 Lane Undivided | CU44: 6E - 6 Lane Divided (23' Raised Median) with Curb & Gutter, Wide Outside Lanes, and Sidewalks | CV44: None | CW44: Partial | CX44: 1 | CY44: No | CZ44: 26 | DA44: 40926000 | DB44: 1509000 | DC44: 181000 | DD44: 42616000 | DF44: 42616000 | DG44: 42616000
A45: H141489 | B45: Columbus | C45: Cape Fear RPO | D45: Statewide Mobility | E45: R-2561B | F45: NC-87 | G45: NC 11 | I45: Convert at grade intersection to grade separation, square loop | J45: 7 - Upgrade At-grade Intersection to Interchange or Grade Separation | K45: 18600000 | L45: 16.56450648 | M45: 16.16274981 | N45: 12.17366455 | P45: 56.67 | R45: 0 | S45: 25 | T45: 6.67 | U45: 15 | V45: 10 | W45: 0 | Y45: 17.97870375 | Z45: 1.214618978 | AA45: 83.35 | AB45: 11.42428237 | AC45: 1.866531938 | AD45: 30.29419128 | AE45: N/A | AF45: N/A | AH45: 0.2483246374 | AI45: 1208.095995 | AJ45: 1043.233286 | AL45: Cape Fear RPO | AM45: 100 | AR45: 06 | AS45: 100 | AX45: Columbus | AY45: 100 | BF45: 6 | BG45: C | BH45: 06, , | BI45: Cape Fear RPO, , | BJ45: Columbus, , , | BK45: 2 | BL45: 2 | BM45: Two Lane Highway | BN45: Two Lane Highway | BO45: 1 | BP45: 1 | BQ45: Undivided | BR45: Divided | BS45: 55 | BT45: 55 | BU45: 13.55189199 | BV45: 86.44810801 | BW45: 7698.06376 | BX45: 31000 | BY45: 0.2483246374 | BZ45: 6654.830474 | CA45: 1043.233286 | CB45: 840275.6099 | CC45: 131724.3901 | CD45: 972000 | CE45: 22591913 | CI45: 66.7 | CJ45: 100 | CK45: 15.991537 | CL45: 2.133910176e-05 | CM45: Yes | CN45: No | CO45: 12 | CP45: 12 | CQ45: No | CR45: 4 | CS45: 2 | CT45: 2 Lane Undivided | CV45: None | CW45: Partial | CX45: 2 | CY45: No | CZ45: 24 | DA45: 13566000 | DB45: 2991000 | DC45: 359000 | DD45: 16916000 | DF45: 16916000 | DG45: 16916000
A46: H090279 | B46: Robeson | C46: Lumber River RPO | D46: Regional Impact | E46: R-4428 | F46: NC-711 | G46: SR 1340 (Odom Street- Philadelphus Road) in Pembroke | H46: SR 1557 (Redmond Road) | I46: SR 1340 (Odom Street- Philadelphus Road) to SR 1557 (Redmond Road). Widen to Multi-Lanes. | J46: 1 - Widen Existing Roadway | K46: 8049000 | L46: N/A | M46: 22.20446084 | N46: 18.70060752 | P46: 53.33 | R46: 5 | S46: 25 | T46: 13.33 | U46: 0 | V46: 0 | W46: 10 | Y46: 44.78180749 | Z46: 0 | AA46: 97.44246017 | AB46: 1.633669501 | AC46: N/A | AD46: 12.64762951 | AE46: N/A | AF46: N/A | AH46: 0.6753792614 | AI46: 833.7906365 | AJ46: 326.7339002 | AL46: Lumber River RPO | AM46: 100 | AR46: 06 | AS46: 100 | AX46: Robeson | AY46: 100 | BF46: 6 | BG46: C | BH46: 06, , | BI46: Lumber River RPO, , | BJ46: Robeson, , , | BK46: 0.90663396 | BL46: 0.90663396 | BM46: Arterial | BN46: Arterial | BO46: 1 | BP46: 2 | BQ46: Undivided | BR46: Divided | BS46: 51 | BT46: 35 | BU46: 3.06860696 | BV46: 96.93139304 | BW46: 10647.62951 | BX46: 15765.40785 | BY46: 0.6753792614 | BZ46: 10320.89561 | CA46: 326.7339002 | CB46: 0 | CC46: 0 | CD46: 0 | CE46: 0 | CF46: 99.77791272 | CG46: 99.77791272 | CH46: 92.80079073 | CM46: No | CN46: No | CO46: 12 | CP46: 12 | CQ46: No | CR46: 1 | CS46: 4 | CT46: 2 Lane Undivided | CU46: 4D - 4 Lane Divided (23' Raised Median) with Curb & Gutter, Wide Outside Lanes, Bike Lanes, and Sidewalks | CV46: None | CW46: Limited | CX46: 1 | CY46: Yes | CZ46: 23.6 | DA46: 5750000 | DB46: 1380000 | DC46: 0 | DD46: 7130000 | DF46: 7130000 | DG46: 7130000
A47: H090458-A | B47: Cumberland | C47: Fayetteville Area MPO | D47: Regional Impact | E47: U-4403 | F47: US-401 Ramsey Street | G47: NC 24/210 (Grove Street) | H47: Martin Luther King, Jr. Freeway | I47: Widen to Multi-Lanes | J47: 1 - Widen Existing Roadway | K47: 9056000 | L47: N/A | M47: 22.04070651 | N47: 18.20455248 | P47: 53.33 | R47: 5 | S47: 25 | T47: 13.33 | U47: 0 | V47: 10 | W47: 0 | Y47: 45.36149626 | Z47: 4.981129417 | AA47: 81.36027341 | AB47: 0 | AC47: N/A | AD47: 13.19022746 | AE47: N/A | AF47: N/A | AH47: 0.6241226631 | AI47: 510.3706446 | AJ47: 0 | AL47: Fayetteville Area MPO | AM47: 100 | AR47: 06 | AS47: 100 | AX47: Cumberland | AY47: 100 | BF47: 6 | BG47: C | BH47: 06, , | BI47: Fayetteville Area MPO, , | BJ47: Cumberland, , , | BK47: 0.89682392 | BL47: 0.89682392 | BM47: Arterial | BN47: Arterial | BO47: 2 | BP47: 3 | BQ47: Undivided | BR47: Divided | BS47: 35 | BT47: 45 | BU47: 0 | BV47: 100 | BW47: 19785.34119 | BX47: 31701.0459 | BY47: 0.6241226631 | BZ47: 19785.34119 | CA47: 0 | CB47: 2050413.993 | CC47: 0 | CD47: 2050413.993 | CE47: 45109108 | CF47: 81.36841025 | CG47: 81.36841025 | CH47: 81.36841025 | CM47: No | CN47: No | CO47: 11 | CP47: 12 | CQ47: Yes | CR47: 0 | CS47: 4 | CT47: 4 Lane Undivided | CU47: 6F - 6 Lane Divided (17'-6"' Raised Median) with Curb & Gutter, Wide Outside Lanes, and Sidewalks | CV47: None | CW47: Partial | CX47: 2 | CY47: No | CZ47: 26 | DA47: 23712000 | DB47: 2983000 | DC47: 358000 | DD47: 27053000 | DF47: 27053000 | DG47: 27053000
A48: H090936-E | B48: Columbus | C48: Cape Fear RPO | D48: Statewide Mobility | F48: I-74 , US-74 | G48: SR 1506 (Boardman Road) | I48: Upgrade At-grade Intersection to Interchange. | J48: 7 - Upgrade At-grade Intersection to Interchange or Grade Separation | K48: 7130000 | L48: 14.95866094 | M48: 17.26933835 | N48: 8.266034335 | P48: 53.33 | R48: 0 | S48: 8.33 | T48: 20 | U48: 15 | V48: 10 | W48: 0 | Y48: 18.46472048 | Z48: 6.215451192 | AA48: 33.3 | AB48: 19.30195318 | AC48: 3.642188013 | AD48: 77.69295429 | AE48: N/A | AF48: N/A | AH48: 0.1910943318 | AI48: 203.7416287 | AJ48: 2904.918977 | AL48: Cape Fear RPO | AM48: 100 | AR48: 06 | AS48: 100 | AX48: Columbus | AY48: 100 | BF48: 6 | BG48: C | BH48: 06, , | BI48: Cape Fear RPO, , | BJ48: Columbus, , , | BK48: 2 | BL48: 2 | BM48: Multi-Lane Highway | BN48: Freeway | BO48: 2 | BP48: 2 | BQ48: Divided | BR48: Divided | BS48: 55 | BT48: 55 | BU48: 16.60176503 | BV48: 83.39823497 | BW48: 17497.65143 | BX48: 91565.51774 | BY48: 0.1910943318 | BZ48: 14592.73245 | CA48: 2904.918977 | CB48: 1571222.747 | CC48: 312777.2532 | CD48: 1884000 | CE48: 44316167 | CI48: 33.3 | CJ48: 33.3 | CK48: 30.99467894 | CL48: 4.184908132e-05 | CM48: Yes | CN48: No | CO48: 12 | CP48: 12 | CQ48: No | CR48: 4 | CS48: 4 | CT48: 2 Lane Undivided | CV48: Limited | CW48: Partial | CX48: 2 | CY48: No | CZ48: 24 | DA48: 17328000 | DB48: 5522000 | DC48: 663000 | DD48: 23513000 | DF48: 23513000 | DG48: 23513000
A49: H090287-A | B49: Columbus | C49: Cape Fear RPO | D49: Statewide Mobility | E49: R-4462 | F49: US-74 , US-76 | G49: Whiteville | H49: I-140/US 17 Wilmington Bypass | I49: Upgrade Roadway to interstate Standards | J49: 2 - Upgrade Arterial to Freeway/Expressway | K49: 54001000 | L49: 17.56160674 | M49: 15.58377322 | N49: 9.354254871 | P49: 53.33 | R49: 0 | S49: 8.33 | T49: 20 | U49: 15 | V49: 10 | W49: 0 | Y49: 17.65153436 | Z49: 6.757517527 | AA49: 44.72444493 | AB49: 13.95102429 | AC49: 29.76241826 | AD49: 50.09065758 | AE49: N/A | AF49: N/A | AH49: 0.1962130003 | AI49: 86.98231026 | AJ49: 1809.139857 | AL49: Cape Fear RPO | AM49: 81 | AN49: Wilmington Urban Area MPO | AO49: 19 | AR49: 06 | AS49: 71.27 | AT49: 03 | AU49: 28.73 | AX49: Columbus | AY49: 71.27 | AZ49: Brunswick | BA49: 28.73 | BF49: 6 | BG49: C | BH49: 06, 03, | BI49: Cape Fear RPO, Wilmington Urban Area MPO, | BJ49: Columbus, Brunswick, , | BK49: 42.2421041 | BL49: 42.2421041 | BM49: Multi-Lane Highway | BN49: Freeway | BO49: 2 | BP49: 2 | BQ49: Divided | BR49: Divided | BS49: 57 | BT49: 70 | BU49: 12.30968162 | BV49: 87.69031838 | BW49: 14696.88586 | BX49: 74902.71204 | BY49: 0.1962130003 | BZ49: 12887.746 | CA49: 1809.139857 | CB49: 13835267.8 | CC49: 1942149.885 | CD49: 15777417.69 | CE49: 364912704 | CF49: 40.22780372 | CG49: 49.25097281 | CH49: 44.70797694 | CK49: 254 | CL49: 0.0003412483652 | CM49: Yes | CN49: No | CO49: 12 | CP49: 12 | CQ49: No | CR49: 3 | CS49: 4 | CT49: 4 Lane with Median - Limited Control | CU49: 4A - 4 Lane Divided (46' Depressed Median) with Paved Shoulders | CV49: Limited | CW49: Partial | CX49: 2 | CY49: No | CZ49: 25 | DA49: 9804000 | DB49: 3432000 | DC49: 412000 | DD49: 13648000 | DF49: 13648000 | DG49: 13648000
A50: H090936-D | B50: Robeson | C50: Lumber River RPO | D50: Statewide Mobility | F50: I-74 , US-74 | G50: NC 72/130 | I50: Upgrade At-grade Intersection to Interchange. | J50: 7 - Upgrade At-grade Intersection to Interchange or Grade Separation | K50: 5750000 | L50: 13.03246632 | M50: 14.42432347 | N50: 8.28164024 | P50: 53.33 | R50: 0 | S50: 8.33 | T50: 20 | U50: 15 | V50: 10 | W50: 0 | Y50: 13.63126451 | Z50: 2.776936696 | AA50: 50 | AB50: 14.9056201 | AC50: 1.288819353 | AD50: 53.22273165 | AE50: N/A | AF50: N/A | AH50: 0.1312497516 | AI50: 199.7818239 | AJ50: 2324.875263 | AL50: Lumber River RPO | AM50: 100 | AR50: 06 | AS50: 100 | AX50: Robeson | AY50: 100 | BF50: 6 | BG50: C | BH50: 06, , | BI50: Lumber River RPO, , | BJ50: Robeson, , , | BK50: 2 | BL50: 2 | BM50: Multi-Lane Highway | BN50: Freeway | BO50: 2 | BP50: 2 | BQ50: Divided | BR50: Divided | BS50: 55 | BT50: 55 | BU50: 16.15540245 | BV50: 83.84459755 | BW50: 14390.69853 | BX50: 109643.6249 | BY50: 0.1312497516 | BZ50: 12065.82327 | CA50: 2324.875263 | CB50: 570143.2634 | CC50: 109856.7366 | CD50: 680000 | CE50: 15967386 | CI50: 33.3 | CJ50: 66.7 | CK50: 11 | CL50: 1.477638705e-05 | CM50: Yes | CN50: No | CO50: 12 | CP50: 12 | CQ50: No | CR50: 4 | CS50: 4 | CT50: 4 Lane with Median - Limited Control | CV50: Limited | CW50: Partial | CX50: 2 | CY50: No | CZ50: 23 | DA50: 36366000 | DB50: 10031000 | DC50: 1204000 | DD50: 47601000 | DF50: 47601000 | DG50: 47601000
A51: H090936-A | B51: Columbus | C51: Cape Fear RPO | D51: Statewide Mobility | F51: I-74 , US-74 | G51: NC 41 | H51: SR 1585 | I51: Upgrade US 74 to interstate Standards from NC 41 in Lumberton to SR 1585 (Union Valley Road) West of Whiteville | J51: 3 - Upgrade Expressway to Freeway | K51: 33139000 | L51: 12.70404856 | M51: 13.1554856 | N51: 7.689182225 | P51: 53.33 | R51: 0 | S51: 8.33 | T51: 20 | U51: 15 | V51: 10 | W51: 0 | Y51: 12.09075768 | Z51: 4.581003319 | AA51: 43.54830025 | AB51: 10.596048 | AC51: 12.28480636 | AD51: 46.32715327 | AE51: N/A | AF51: N/A | AH51: 0.1341189541 | AI51: 129.3368186 | AJ51: 1448.61483 | AL51: Cape Fear RPO | AM51: 56.88 | AN51: Lumber River RPO | AO51: 43.12 | AR51: 06 | AS51: 100 | AX51: Columbus | AY51: 56.88 | AZ51: Robeson | BA51: 43.12 | BF51: 6 | BG51: C | BH51: 06, , | BI51: Cape Fear RPO, Lumber River RPO, | BJ51: Columbus, Robeson, , | BK51: 25.34584843 | BL51: 25.34584843 | BM51: Multi-Lane Highway | BN51: Freeway | BO51: 2 | BP51: 2 | BQ51: Divided | BR51: Divided | BS51: 57 | BT51: 70 | BU51: 14.32987941 | BV51: 85.67012059 | BW51: 10109.05109 | BX51: 75373.76919 | BY51: 0.1341189541 | BZ51: 8660.43626 | CA51: 1448.61483 | CB51: 5578425.821 | CC51: 933092.7602 | CD51: 6511518.581 | CE51: 151809869 | CF51: 35.536219 | CG51: 47.12338986 | CH51: 47.99835769 | CK51: 105 | CL51: 0.0001406961271 | CM51: Yes | CN51: No | CO51: 12 | CP51: 12 | CQ51: No | CR51: 4 | CS51: 4 | CT51: 4 Lane with Median - Limited Control | CU51: 4A - 4 Lane Divided (46' Depressed Median) with Paved Shoulders | CV51: Limited | CW51: Partial | CX51: 2 | CY51: No | CZ51: 25 | DA51: 19836000 | DB51: 1169000 | DC51: 140000 | DD51: 21145000 | DF51: 21145000 | DG51: 21145000
A52: H090936-C | B52: Robeson | C52: Lumber River RPO | D52: Statewide Mobility | F52: I-74 , US-74 | G52: SR 2225 (Creek Road) | I52: Upgrade At-grade Intersection to Grade Separation. | J52: 7 - Upgrade At-grade Intersection to Interchange or Grade Separation | K52: 5750000 | L52: 10.06882065 | M52: 11.24323583 | N52: 6.236440761 | P52: 53.33 | R52: 0 | S52: 8.33 | T52: 20 | U52: 15 | V52: 10 | W52: 0 | Y52: 10.91233198 | Z52: 3.594871826 | AA52: 33.35 | AB52: 11.05793122 | AC52: 1.700732615 | AD52: 42.81434884 | AE52: N/A | AF52: N/A | AH52: 0.1130589588 | AI52: 278.5316667 | AJ52: 1646.29145 | AL52: Lumber River RPO | AM52: 100 | AR52: 06 | AS52: 100 | AX52: Robeson | AY52: 100 | BF52: 6 | BG52: C | BH52: 06, , | BI52: Lumber River RPO, , | BJ52: Robeson, , , | BK52: 2 | BL52: 2 | BM52: Multi-Lane Highway | BN52: Freeway | BO52: 2 | BP52: 2 | BQ52: Divided | BR52: Divided | BS52: 55 | BT52: 55 | BU52: 15.949367 | BV52: 84.050633 | BW52: 10321.98613 | BX52: 91297.37477 | BY52: 0.1130589588 | BZ52: 8675.69468 | CA52: 1646.29145 | CB52: 740486.0767 | CC52: 140513.9233 | CD52: 881000 | CE52: 20670513 | CI52: 0 | CJ52: 66.7 | CK52: 14.49392261 | CL52: 1.95207297e-05 | CM52: Yes | CN52: No | CO52: 12 | CP52: 12 | CQ52: No | CR52: 4 | CS52: 4 | CT52: 2 Lane Undivided | CV52: Limited | CW52: Partial | CX52: 2 | CY52: No | CZ52: 25 | DA52: 32718000 | DB52: 7144000 | DC52: 857000 | DD52: 40719000 | DF52: 40719000 | DG52: 40719000
A53: H090172-D | B53: Wake | C53: Capital Area MPO | D53: Regional Impact | E53: R-2609 | F53: US-401 New Route - Fuquay Varina Bypass | G53: US 401 south of Fuquay-Varina | H53: NC 55 southeast of Fuquay-Varina | I53: Construct Freeway on New Location | J53: 5 - Construct Roadway on New Location | K53: 97327000 | L53: N/A | M53: 26.42020023 | N53: 17.3663879 | P53: 52.5 | R53: 5 | S53: 16.67 | T53: 13.33 | U53: 7.5 | V53: 10 | W53: 0 | Y53: 50.39302756 | Z53: 3.623812204 | AA53: 65.63019944 | AB53: 4.018424853 | AC53: N/A | AD53: 63.5297035 | AE53: N/A | AF53: N/A | AH53: 0.7269417826 | AI53: 683.1098845 | AJ53: 803.6849706 | AL53: Capital Area MPO | AM53: 100 | AR53: 05 | AS53: 81.57 | AT53: 06 | AU53: 18.43 | AX53: Wake | AY53: 81.57 | AZ53: Harnett | BA53: 18.43 | BF53: 5 | BG53: C | BH53: 05, 06, | BI53: Capital Area MPO, , | BJ53: Wake, Harnett, , | BK53: 7.3 | BL53: 8.41 | BM53: Arterial | BN53: Freeway | BO53: 1 | BP53: 2 | BQ53: Undivided | BR53: Divided | BS53: 39 | BT53: 70 | BU53: 4.743938773 | BV53: 95.25606123 | BW53: 16941.3015 | BX53: 23304.89443 | BY53: 0.7269417826 | BZ53: 16137.61653 | CA53: 803.6849706 | CB53: 31606367.28 | CC53: 1574059.113 | CD53: 33180426.39 | CE53: 744403503 | CF53: 73.94879555 | CG53: 56.12012661 | CH53: 66.8413672 | CM53: No | CN53: No | CO53: 12 | CP53: 12 | CQ53: No | CR53: 2 | CS53: 4 | CT53: New Roadway | CU53: 4A - 4 Lane Divided (46' Depressed Median) with Paved Shoulders | CV53: None | CW53: Partial | CX53: 2 | CY53: No | CZ53: 23 | DA53: 12426000 | DB53: 4593000 | DC53: 551000 | DD53: 17570000 | DF53: 17570000 | DG53: 17570000
A54: H090657 | B54: Harnett | C54: Fayetteville Area MPO | D54: Regional Impact | F54: NC-210 | G54: NC 87 | H54: US 401 | I54: Widen to Multi-Lanes with Wide Shoulders and Enhance Corridor from Highway 87 in Spring Lake (Cumberland County) to US Highway 401 in Lillington. | J54: 1 - Widen Existing Roadway | K54: 192905000 | L54: N/A | M54: 19.42298066 | N54: 13.38945978 | P54: 52.5 | R54: 5 | S54: 16.67 | T54: 13.33 | U54: 7.5 | V54: 10 | W54: 0 | Y54: 38.51726506 | Z54: 0.2781832923 | AA54: 56.30370114 | AB54: 2.686675342 | AC54: N/A | AD54: 40.93748461 | AE54: N/A | AF54: N/A | AH54: 0.5696107062 | AI54: 987.5939879 | AJ54: 537.3350684 | AL54: Fayetteville Area MPO | AM54: 53.13 | AN54: Mid-Carolina RPO | AO54: 46.87 | AR54: 06 | AS54: 100 | AX54: Harnett | AY54: 78.07 | AZ54: Cumberland | BA54: 21.93 | BF54: 6 | BG54: C | BH54: 06, , | BI54: Fayetteville Area MPO, Mid-Carolina RPO, | BJ54: Harnett, Cumberland, , | BK54: 18.00002059 | BL54: 18.00002059 | BM54: Two Lane Highway | BN54: Multi-Lane Highway | BO54: 1 | BP54: 2 | BQ54: Undivided | BR54: Divided | BS54: 51 | BT54: 51 | BU54: 4.951686488 | BV54: 95.04831351 | BW54: 10851.55673 | BX54: 19050.83 | BY54: 0.5696107062 | BZ54: 10314.22166 | CA54: 537.3350684 | CB54: 2271558.24 | CC54: 118340.2822 | CD54: 2389898.522 | CE54: 53662948 | CF54: 69.20308186 | CG54: 52.65545765 | CH54: 47.0694567 | CM54: No | CN54: No | CO54: 12 | CP54: 12 | CQ54: No | CR54: 1 | CS54: 4 | CT54: 2 Lane Undivided | CU54: 4A - 4 Lane Divided (46' Depressed Median) with Paved Shoulders | CV54: None | CW54: Partial | CX54: 2 | CY54: No | CZ54: 17 | DA54: 15846000 | DB54: 3258000 | DC54: 391000 | DD54: 19495000 | DF54: 19495000 | DG54: 19495000
A55: H140395 | B55: Columbus | C55: Cape Fear RPO | D55: Statewide Mobility | F55: US-74 , US-76 | G55: west of SR 1844 (Oscar Blanks Rd) | H55: Columbus/Brunswick County Line | I55: Construct new expressway (Delco Bypass) on new location pursuant to FS-9903A and 2007 Columbus Co. CTP. | J55: 5 - Construct Roadway on New Location | K55: 101482000 | L55: 13.44487847 | M55: 14.27549406 | N55: 8.615264073 | P55: 48.34 | R55: 0 | S55: 16.67 | T55: 6.67 | U55: 15 | V55: 10 | W55: 0 | Y55: 16.74274672 | Z55: 0.4429508287 | AA55: 51.78124564 | AB55: 13.71244178 | AC55: 3.68556286 | AD55: 48.00945108 | AE55: N/A | AF55: N/A | AH55: 0.1856914429 | AI55: 1130.593409 | AJ55: 1814.031142 | AL55: Cape Fear RPO | AM55: 100 | AR55: 06 | AS55: 89.91 | AT55: 03 | AU55: 10.09 | AX55: Columbus | AY55: 89.91 | AZ55: Brunswick | BA55: 10.09 | BF55: 6 | BG55: C | BH55: 06, 03, | BI55: Cape Fear RPO, , | BJ55: Columbus, Brunswick, , | BK55: 6.4 | BL55: 6.40998209 | BM55: Multi-Lane Highway | BN55: Freeway | BO55: 2 | BP55: 2 | BQ55: Divided | BR55: Divided | BS55: 54.99999977 | BT55: 65 | BU55: 12.95445022 | BV55: 87.04554978 | BW55: 14003.15036 | BX55: 75410.85438 | BY55: 0.1856914429 | BZ55: 12189.11922 | CA55: 1814.031142 | CB55: 1687443.585 | CC55: 251131.7806 | CD55: 1938575.365 | CE55: 44951536 | CF55: 45.43491902 | CG55: 68.02542279 | CH55: 41.89893103 | CK55: 31.57288142 | CL55: 4.213837578e-05 | CM55: Yes | CN55: No | CO55: 11 | CP55: 12 | CQ55: No | CR55: 2 | CS55: 4 | CT55: New Roadway | CU55: 4A - 4 Lane Divided (46' Depressed Median) with Paved Shoulders | CV55: None | CW55: Partial | CX55: 2 | CY55: No | CZ55: 23 | DA55: 19152000 | DB55: 2226000 | DC55: 267000 | DD55: 21645000 | DF55: 21645000 | DG55: 21645000
A56: H090287-D | B56: Columbus | C56: Cape Fear RPO | D56: Statewide Mobility | E56: R-4462 | F56: US-74 , US-76 | G56: SR 1740 (Old Lake Road) | I56: Upgrade At-grade Intersection to Grade Separation | J56: 7 - Upgrade At-grade Intersection to Interchange or Grade Separation | K56: 5750000 | L56: 7.964518945 | M56: 11.31535439 | N56: 5.966814393 | P56: 48.33 | R56: 0 | S56: 8.33 | T56: 20 | U56: 0 | V56: 10 | W56: 10 | Y56: 12.78028936 | Z56: 0.3787826087 | AA56: 33.35 | AB56: 3.308128124 | AC56: 0.2017172987 | AD56: 46.90586395 | AE56: N/A | AF56: N/A | AH56: 0.132325125 | AI56: 237.5649292 | AJ56: 0 | AL56: Cape Fear RPO | AM56: 100 | AR56: 06 | AS56: 100 | AX56: Columbus | AY56: 100 | BF56: 6 | BG56: C | BH56: 06, , | BI56: Cape Fear RPO, , | BJ56: Columbus, , , | BK56: 2 | BL56: 2 | BM56: Multi-Lane Highway | BN56: Freeway | BO56: 2 | BP56: 2 | BQ56: Divided | BR56: Divided | BS56: 55 | BT56: 70 | BU56: 0 | BV56: 100 | BW56: 12101.95465 | BX56: 91456.21175 | BY56: 0.132325125 | BZ56: 12101.95465 | CA56: 0 | CB56: 99000 | CC56: 0 | CD56: 99000 | CE56: 2178000 | CI56: 0 | CJ56: 66.7 | CK56: 2 | CL56: 2.034345975e-06 | CM56: Yes | CN56: No | CO56: 12 | CP56: 12 | CQ56: No | CR56: 2 | CS56: 4 | CT56: 4 Lane with Median - Limited Control | CV56: Limited | CW56: None | CX56: 2 | CY56: No | CZ56: 20 | DA56: 3850000 | DB56: 1000000 | DC56: 500000 | DD56: 5350000 | DF56: 5350000 | DG56: 5350000
A57: H090172-C | B57: Harnett | C57: Capital Area MPO | D57: Regional Impact | E57: R-2609 | F57: US-401 | G57: Lillington Bypass | H57: Fuquay-Varina Bypass | I57: Widen to Multi-Lanes | J57: 1 - Widen Existing Roadway | K57: 63202000 | L57: N/A | M57: 21.59692219 | N57: 14.45345508 | P57: 45 | R57: 5 | S57: 16.67 | T57: 13.33 | U57: 0 | V57: 10 | W57: 0 | Y57: 39.80420486 | Z57: 1.170476282 | AA57: 62.5851885 | AB57: 0 | AC57: N/A | AD57: 50.94733058 | AE57: N/A | AF57: N/A | AH57: 0.6010350879 | AI57: 950.7240972 | AJ57: 0 | AL57: Capital Area MPO | AM57: 100 | AR57: 06 | AS57: 100 | AX57: Harnett | AY57: 100 | BF57: 6 | BG57: C | BH57: 06, , | BI57: Capital Area MPO, , | BJ57: Harnett, , , | BK57: 7.10593074 | BL57: 7.10593074 | BM57: Two Lane Highway | BN57: Multi-Lane Highway | BO57: 1 | BP57: 2 | BQ57: Undivided | BR57: Divided | BS57: 45 | BT57: 55 | BU57: 0 | BV57: 100 | BW57: 9355.248966 | BX57: 15565.22931 | BY57: 0.6010350879 | BZ57: 9355.248966 | CA57: 0 | CB57: 3362565.525 | CC57: 0 | CD57: 3362565.525 | CE57: 73976442 | CF57: 78.91726429 | CG57: 56.7513639 | CH57: 52.10571475 | CM57: No | CN57: No | CO57: 12 | CP57: 12 | CQ57: No | CR57: 4 | CS57: 4 | CT57: 2 Lane Undivided | CU57: 4A - 4 Lane Divided (46' Depressed Median) with Paved Shoulders | CV57: None | CW57: None | CX57: 1 | CY57: No | CZ57: 19 | DA57: 13908000 | DB57: 6757000 | DC57: 811000 | DD57: 21476000 | DF57: 21476000 | DG57: 21476000
A58: H090287-E | B58: Columbus | C58: Cape Fear RPO | D58: Statewide Mobility | E58: R-4462 | F58: US-74 , US-76 | G58: NC 214 | I58: Upgrade At-grade Intersection to Interchange. | J58: 7 - Upgrade At-grade Intersection to Interchange or Grade Separation | K58: 7130000 | L58: 9.085128025 | M58: 10.95543654 | N58: 4.660075096 | P58: 45 | R58: 0 | S58: 0 | T58: 20 | U58: 15 | V58: 10 | W58: 0 | Y58: 14.93620101 | Z58: 0.03917447405 | AA58: 16.65 | AB58: 14.63115643 | AC58: 0.01284093999 | AD58: 55.46592666 | AE58: N/A | AF58: N/A | AH58: 0.143012402 | AI58: 224.3741127 | AJ58: 2211.169277 | AL58: Cape Fear RPO | AM58: 100 | AR58: 06 | AS58: 100 | AX58: Columbus | AY58: 100 | BF58: 6 | BG58: C | BH58: 06, , | BI58: Cape Fear RPO, , | BJ58: Columbus, , , | BK58: 2 | BL58: 2 | BM58: Multi-Lane Highway | BN58: Freeway | BO58: 2 | BP58: 2 | BQ58: Divided | BR58: Divided | BS58: 55 | BT58: 55 | BU58: 13.91666604 | BV58: 86.08333396 | BW58: 15888.64222 | BX58: 111099.7508 | BY58: 0.143012402 | BZ58: 13677.47294 | CA58: 2211.169277 | CB58: 10330.00007 | CC58: 1669.999925 | CD58: 12000 | CE58: 279314 | CI58: 0 | CJ58: 33.3 | CK58: 0 | CL58: 2.568187998e-07 | CM58: Yes | CN58: No | CO58: 12 | CP58: 12 | CQ58: No | CR58: 2 | CS58: 4 | CT58: 4 Lane with Median - Limited Control | CV58: Limited | CW58: None | CX58: 1 | CY58: No | CZ58: 17 | DA58: 7296000 | DB58: 7003000 | DC58: 840000 | DD58: 15139000 | DF58: 15139000 | DG58: 15139000
A59: H090287-B | B59: Columbus | C59: Cape Fear RPO | D59: Statewide Mobility | E59: R-4462 | F59: US-74 , US-76 | G59: SR 1001 (Hallsboro Road) | I59: Upgrade At-grade Intersection to Interchange | J59: 7 - Upgrade At-grade Intersection to Interchange or Grade Separation | K59: 5750000 | L59: 10.8037911 | M59: 14.28462904 | N59: 8.299429368 | P59: 43.33 | R59: 0 | S59: 8.33 | T59: 20 | U59: 0 | V59: 10 | W59: 5 | Y59: 15.22688597 | Z59: 1.27026087 | AA59: 50 | AB59: 3.977678973 | AC59: 0.5911125574 | AD59: 51.60342327 | AE59: N/A | AF59: N/A | AH59: 0.1591071589 | AI59: 202.4485203 | AJ59: 0 | AL59: Cape Fear RPO | AM59: 100 | AR59: 06 | AS59: 100 | AX59: Columbus | AY59: 100 | BF59: 6 | BG59: C | BH59: 06, , | BI59: Cape Fear RPO, , | BJ59: Columbus, , , | BK59: 2 | BL59: 2 | BM59: Freeway | BN59: Freeway | BO59: 2 | BP59: 2 | BQ59: Divided | BR59: Divided | BS59: 62.50137703 | BT59: 70 | BU59: 0 | BV59: 100 | BW59: 14201.14109 | BX59: 89255.19874 | BY59: 0.1591071589 | BZ59: 14201.14109 | CA59: 0 | CB59: 332000 | CC59: 0 | CD59: 332000 | CE59: 7304000 | CI59: 0 | CJ59: 100 | CK59: 5 | CL59: 6.822251148e-06 | CM59: Yes | CN59: No | CO59: 12 | CP59: 12 | CQ59: No | CR59: 2 | CS59: 4 | CT59: 4 Lane with Median - Partial Control | CV59: Full | CW59: Partial | CX59: 1 | CY59: No | CZ59: 18 | DA59: 14592000 | DB59: 3029000 | DC59: 363000 | DD59: 17984000 | DF59: 17984000 | DG59: 17984000
A60: H090465 | B60: Cumberland | C60: Fayetteville Area MPO | D60: Regional Impact | E60: U-4415 | F60: NC-53 Cedar Creek Road, NC-210 | G60: I-95 | H60: NC 53-210 Junction | I60: I-95 to NC 53-210 Junction. Widen to Multi-Lanes. | J60: 1 - Widen Existing Roadway | K60: 20240000 | L60: N/A | M60: 18.96528576 | N60: 13.92457022 | P60: 42.5 | R60: 5 | S60: 16.67 | T60: 13.33 | U60: 7.5 | V60: 0 | W60: 0 | Y60: 40.97049113 | Z60: 0.5594041996 | AA60: 56.18591148 | AB60: 2.542497003 | AC60: N/A | AD60: 29.64220777 | AE60: N/A | AF60: N/A | AH60: 0.6187359995 | AI60: 686.1470665 | AJ60: 508.4994006 | AL60: Fayetteville Area MPO | AM60: 100 | AR60: 06 | AS60: 100 | AX60: Cumberland | AY60: 100 | BF60: 6 | BG60: C | BH60: 06, , | BI60: Fayetteville Area MPO, , | BJ60: Cumberland, , , | BK60: 3.0676557 | BL60: 3.0676557 | BM60: Two Lane Highway | BN60: Multi-Lane Highway | BO60: 1 | BP60: 2 | BQ60: Undivided | BR60: Divided | BS60: 54 | BT60: 55 | BU60: 5.288149967 | BV60: 94.71185003 | BW60: 9615.827913 | BX60: 15541.08363 | BY60: 0.6187359995 | BZ60: 9107.328512 | CA60: 508.4994006 | CB60: 476923.9444 | CC60: 26628.61448 | CD60: 503552.5589 | CE60: 11322341 | CF60: 83.53801129 | CG60: 31.67956127 | CH60: 53.35701935 | CM60: No | CN60: No | CO60: 12 | CP60: 12 | CQ60: No | CR60: 3 | CS60: 4 | CT60: 2 Lane Undivided | CU60: 4B - 4 Lane Divided (23' Raised Median) with Paved Shoulders and Sidewalks | CV60: None | CW60: Partial | CX60: 2 | CY60: No | CZ60: 23 | DA60: 4800000 | DB60: 2800000 | DC60: 400000 | DD60: 8000000 | DF60: 8000000 | DG60: 8000000
A61: H090133-C | B61: Columbus | C61: Cape Fear RPO | D61: Statewide Mobility | E61: R-2561C | F61: NC-87 | G61: NC 11 | H61: US 74/76 | I61: Widen to Multi-Lanes. | J61: 1 - Widen Existing Roadway | K61: 98000000 | L61: 19.23503278 | M61: 16.97704053 | N61: 12.56330507 | P61: 41.67 | R61: 0 | S61: 16.67 | T61: 0 | U61: 15 | V61: 10 | W61: 0 | Y61: 31.67990934 | Z61: 0.08979332653 | AA61: 62.09364537 | AB61: 17.11965413 | AC61: 0.7082661314 | AD61: 28.25250325 | AE61: N/A | AF61: N/A | AH61: 0.4785484817 | AI61: 2205.593538 | AJ61: 1031.188418 | AL61: Cape Fear RPO | AM61: 100 | AR61: 06 | AS61: 100 | AX61: Columbus | AY61: 100 | BF61: 6 | BG61: C | BH61: 06, , | BI61: Cape Fear RPO, , | BJ61: Columbus, , , | BK61: 5.99022281 | BL61: 5.99022281 | BM61: Two Lane Highway | BN61: Multi-Lane Highway | BO61: 1 | BP61: 2 | BQ61: Undivided | BR61: Divided | BS61: 55 | BT61: 55 | BU61: 13.90209999 | BV61: 86.09790001 | BW61: 7417.501084 | BX61: 15499.9992 | BY61: 0.4785484817 | BZ61: 6386.312666 | CA61: 1031.188418 | CB61: 325518.981 | CC61: 52561.06623 | CD61: 378080.0473 | CE61: 8799746 | CF61: 76.86598795 | CG61: 57.50170805 | CH61: 51.93187006 | CK61: 6 | CL61: 8.165322628e-06 | CM61: Yes | CN61: No | CO61: 12 | CP61: 12 | CQ61: No | CR61: 4 | CS61: 2 | CT61: 2 Lane Undivided | CU61: 4A - 4 Lane Divided (46' Depressed Median) with Paved Shoulders | CV61: None | CW61: Partial | CX61: 1 | CY61: Yes | CZ61: 23 | DA61: 76000000 | DB61: 21000000 | DC61: 1000000 | DD61: 98000000 | DF61: 98000000 | DG61: 98000000
A62: H090760 | B62: Harnett | C62: Mid-Carolina RPO | D62: Regional Impact | F62: US-421 | G62: US 401 | H62: NC 87 | I62: Widen to Multi-Lanes and Enhance Corridor from Lillington in Harnett County to Sanford in Lee County. | J62: 1 - Widen Existing Roadway | K62: 152614000 | L62: N/A | M62: 15.80089004 | N62: 11.34313944 | P62: 40.84 | R62: 0 | S62: 16.67 | T62: 6.67 | U62: 7.5 | V62: 10 | W62: 0 | Y62: 28.38892351 | Z62: 0.2118592659 | AA62: 56.22982885 | AB62: 3.068249648 | AC62: N/A | AD62: 30.27711464 | AE62: N/A | AF62: N/A | AH62: 0.4274559386 | AI62: 1210.578156 | AJ62: 613.6499296 | AL62: Mid-Carolina RPO | AM62: 74.99 | AN62: Triangle Area RPO | AO62: 25.01 | AR62: 06 | AS62: 75.01 | AT62: 08 | AU62: 24.99 | AX62: Harnett | AY62: 75.01 | AZ62: Lee | BA62: 24.99 | BF62: 6 | BG62: C | BH62: 06, 08, | BI62: Mid-Carolina RPO, Triangle Area RPO, | BJ62: Harnett, Lee, , | BK62: 18.39342638 | BL62: 18.39342638 | BM62: Two Lane Highway | BN62: Multi-Lane Highway | BO62: 1 | BP62: 2 | BQ62: Undivided | BR62: Divided | BS62: 53 | BT62: 55 | BU62: 8.953272134 | BV62: 91.04672787 | BW62: 6853.917991 | BX62: 16034.20931 | BY62: 0.4274559386 | BZ62: 6240.268061 | CA62: 613.6499296 | CB62: 1289945.074 | CC62: 126849.4712 | CD62: 1416794.545 | CE62: 32332690 | CF62: 62.92585548 | CG62: 59.12509687 | CH62: 46.65540485 | CM62: No | CN62: No | CO62: 12 | CP62: 12 | CQ62: No | CR62: 2 | CS62: 2 | CT62: 2 Lane Undivided | CU62: 4A - 4 Lane Divided (46' Depressed Median) with Paved Shoulders | CV62: None | CW62: Full | CX62: 1 | CY62: Yes | CZ62: 23 | DA62: 54001000 | DB62: 0 | DC62: 0 | DD62: 54001000 | DF62: 54001000 | DG62: 54001000
A63: H090133-B | B63: Bladen | C63: Mid-Carolina RPO | D63: Statewide Mobility | E63: R-2561B | F63: NC-87 | G63: SR 1730 (Elwell Ferry Road) in Bladen County | H63: NC 11 in Columbus County | I63: Widen to Multi-Lanes. | J63: 1 - Widen Existing Roadway | K63: 49800000 | L63: 12.70264748 | M63: 12.65483968 | N63: 9.2608864 | P63: 40.84 | R63: 0 | S63: 16.67 | T63: 6.67 | U63: 7.5 | V63: 10 | W63: 0 | Y63: 16.57241265 | Z63: 0.02516682731 | AA63: 59.41370505 | AB63: 8.855938851 | AC63: 0.1081536496 | AD63: 25.64074303 | AE63: N/A | AF63: N/A | AH63: 0.2503385597 | AI63: 1308.909718 | AJ63: 519.4949718 | AL63: Mid-Carolina RPO | AM63: 89.51 | AN63: Cape Fear RPO | AO63: 10.49 | AR63: 06 | AS63: 100 | AX63: Bladen | AY63: 89.51 | AZ63: Columbus | BA63: 10.49 | BF63: 6 | BG63: C | BH63: 06, , | BI63: Mid-Carolina RPO, Cape Fear RPO, | BJ63: Bladen, Columbus, , | BK63: 9.80528459 | BL63: 9.80528459 | BM63: Two Lane Highway | BN63: Multi-Lane Highway | BO63: 1 | BP63: 2 | BQ63: Undivided | BR63: Divided | BS63: 55 | BT63: 55 | BU63: 13.38819105 | BV63: 86.61180895 | BW63: 3880.247675 | BX63: 15500 | BY63: 0.2503385597 | BZ63: 3360.752703 | CA63: 519.4949718 | CB63: 46733.53931 | CC63: 7223.928932 | CD63: 53957.46824 | CE63: 1253308 | CF63: 61.63688405 | CG63: 61.77924439 | CH63: 54.84281259 | CK63: 1 | CL63: 1.163072992e-06 | CM63: Yes | CN63: No | CO63: 12 | CP63: 12 | CQ63: No | CR63: 4 | CS63: 0 | CT63: 2 Lane Undivided | CU63: 4A - 4 Lane Divided (46' Depressed Median) with Paved Shoulders | CV63: None | CW63: Partial | CX63: 1 | CY63: Yes | CZ63: 23.6 | DA63: 15000000 | DB63: 3600000 | DC63: 0 | DD63: 18600000 | DF63: 18600000 | DG63: 18600000
A64: H090237-C | B64: Brunswick | C64: Cape Fear RPO | D64: Statewide Mobility | E64: R-3436 | F64: I-74 New Route | G64: I-74 New Location south of US 17 near NC 130 | H64: US 74/76 East of Whiteville in Columbus County | I64: Construct Freeway on New Location. | J64: 5 - Construct Roadway on New Location | K64: 284995000 | L64: 13.61195616 | M64: 10.7158001 | N64: 11.71569802 | P64: 40 | R64: 0 | S64: 8.33 | T64: 6.67 | U64: 15 | V64: 10 | W64: 0 | Y64: 19.02972438 | Z64: 0.9914513518 | AA64: 37.02749215 | AB64: 5.04254717 | AC64: 28.94344792 | AD64: 24.73252634 | AE64: N/A | AF64: N/A | AH64: 0.2636405691 | AI64: 1072.750361 | AJ64: 1008.509434 | AL64: Cape Fear RPO | AM64: 86.32 | AN64: Grand Strand Transportation Study Area | AO64: 13.68 | AR64: 03 | AS64: 69.87 | AT64: 06 | AU64: 30.13 | AX64: Brunswick | AY64: 69.87 | AZ64: Columbus | BA64: 30.13 | BF64: 3 | BG64: B | BH64: 03, 06, | BI64: Cape Fear RPO, Grand Strand Transportation Study Area, | BJ64: Brunswick, Columbus, , | BK64: 36 | BL64: 33.09169439 | BM64: Two Lane Highway | BN64: Freeway | BO64: 1 | BP64: 2 | BQ64: Undivided | BR64: Divided | BS64: 55 | BT64: 70 | BU64: 12.56204655 | BV64: 87.43795345 | BW64: 8028.225573 | BX64: 30451.40435 | BY64: 0.2636405691 | BZ64: 7019.716139 | CA64: 1008.509434 | CB64: 10671396.37 | CC64: 1533139.475 | CD64: 12204535.85 | CE64: 282558678 | CF64: 36.65618018 | CG64: 38.62017712 | CH64: 35.81722851 | CK64: 251.7251035 | CL64: 0.0003271438549 | CM64: No | CN64: No | CO64: 12 | CP64: 12 | CQ64: No | CR64: 2 | CS64: 4 | CT64: New Roadway | CU64: 4A - 4 Lane Divided (46' Depressed Median) with Paved Shoulders | CV64: None | CW64: Full | CX64: 1 | CY64: Yes | CZ64: 32.6 | DA64: 5750000 | DB64: 1380000 | DC64: 0 | DD64: 7130000 | DF64: 7130000 | DG64: 7130000
A65: H090172-A | B65: Harnett | C65: Mid-Carolina RPO | D65: Regional Impact | E65: R-2609 | F65: US-401 Ramsey Street | G65: Multi-Lanes North of Fayetteville in Cumberland County | H65: Lillington Bypass | I65: Widen to Multi-Lanes | J65: 1 - Widen Existing Roadway | K65: 127544000 | L65: N/A | M65: 16.12964534 | N65: 11.30858099 | P65: 38.34 | R65: 0 | S65: 16.67 | T65: 6.67 | U65: 0 | V65: 10 | W65: 5 | Y65: 26.83603865 | Z65: 0.07385191777 | AA65: 59.26602877 | AB65: 2.113782702 | AC65: N/A | AD65: 34.75569824 | AE65: N/A | AF65: N/A | AH65: 0.4053780653 | AI65: 1302.944326 | AJ65: 422.7565405 | AL65: Mid-Carolina RPO | AM65: 94.73 | AN65: Fayetteville Area MPO | AO65: 5.27 | AR65: 06 | AS65: 100 | AX65: Harnett | AY65: 54.75 | AZ65: Cumberland | BA65: 45.25 | BF65: 6 | BG65: C | BH65: 06, , | BI65: Mid-Carolina RPO, Fayetteville Area MPO, | BJ65: Harnett, Cumberland, , | BK65: 15.57902865 | BL65: 15.57902865 | BM65: Two Lane Highway | BN65: Multi-Lane Highway | BO65: 1 | BP65: 2 | BQ65: Undivided | BR65: Divided | BS65: 55 | BT65: 55 | BU65: 6.728163509 | BV65: 93.27183649 | BW65: 6283.38684 | BX65: 15500.06618 | BY65: 0.4053780653 | BZ65: 5860.6303 | CA65: 422.7565405 | CB65: 388452.4545 | CC65: 28021.01607 | CD65: 416473.4706 | CE65: 9419369 | CF65: 68.52045444 | CG65: 62.4645726 | CH65: 46.83084086 | CM65: No | CN65: No | CO65: 12 | CP65: 12 | CQ65: No | CR65: 2 | CS65: 2 | CT65: 2 Lane Undivided | CU65: 4A - 4 Lane Divided (46' Depressed Median) with Paved Shoulders | CV65: None | CW65: Full | CX65: 3 | CY65: Yes | CZ65: 23 | DA65: 274976000 | DB65: 8946000 | DC65: 1073000 | DD65: 284995000 | DF65: 284995000 | DG65: 284995000
A66: H090123-B | B66: Harnett | C66: Capital Area MPO | D66: Regional Impact | E66: R-2540 | F66: NC-55 | G66: Church Street | H66: Old Stage Road | I66: Widen to Multi-Lanes | J66: 1 - Widen Existing Roadway | K66: 38202000 | L66: N/A | M66: 17.1943984 | N66: 11.40627513 | P66: 33.34 | R66: 0 | S66: 16.67 | T66: 6.67 | U66: 0 | V66: 10 | W66: 0 | Y66: 28.22393931 | Z66: 0.1298525208 | AA66: 57.35516767 | AB66: 1.55836386 | AC66: N/A | AD66: 43.70433674 | AE66: N/A | AF66: N/A | AH66: 0.4261381466 | AI66: 1295.536198 | AJ66: 311.6727721 | AL66: Capital Area MPO | AM66: 69.77 | AN66: Mid-Carolina RPO | AO66: 30.23 | AR66: 06 | AS66: 100 | AX66: Harnett | AY66: 100 | BF66: 6 | BG66: C | BH66: 06, , | BI66: Capital Area MPO, Mid-Carolina RPO, | BJ66: Harnett, , , | BK66: 4.44145861 | BL66: 4.44145861 | BM66: Two Lane Highway | BN66: Multi-Lane Highway | BO66: 1 | BP66: 2 | BQ66: Undivided | BR66: Divided | BS66: 52 | BT66: 52 | BU66: 4.694484771 | BV66: 95.30551523 | BW66: 6639.126279 | BX66: 15579.75115 | BY66: 0.4261381466 | BZ66: 6327.453507 | CA66: 311.6727721 | CB66: 210773.4214 | CC66: 10382.11288 | CD66: 221155.5343 | CE66: 4960626 | CF66: 70.69092629 | CG66: 49.7621963 | CH66: 51.62958868 | CM66: No | CN66: No | CO66: 12 | CP66: 12 | CQ66: No | CR66: 0 | CS66: 2 | CT66: 2 Lane Undivided | CU66: 4B - 4 Lane Divided (23' Raised Median) with Paved Shoulders and Sidewalks | CV66: None | CW66: Partial | CX66: 3 | CY66: Yes | CZ66: 29 | DA66: 117420000 | DB66: 40292000 | DC66: 4835000 | DD66: 162547000 | DF66: 162547000 | DG66: 162547000
A67: H090160-A | B67: Robeson | C67: Lumber River RPO | D67: Regional Impact | E67: R-2593A | F67: NC-211 New Route - Red Springs Bypass | G67: NC 71 Southwest of Red Springs | H67: NC 71 Northeast of Red Springs | I67: Construct Two Lanes, Part on New Location, on Multi-Lane Right of Way | J67: 5 - Construct Roadway on New Location | K67: 22515000 | L67: N/A | M67: 11.30889641 | N67: 8.777440034 | P67: 32.5 | R67: 0 | S67: 8.33 | T67: 6.67 | U67: 7.5 | V67: 10 | W67: 0 | Y67: 22.94189686 | Z67: 0.8439772596 | AA67: 40.20265209 | AB67: 3.133440632 | AC67: N/A | AD67: 13.42162675 | AE67: N/A | AF67: N/A | AH67: 0.3462207694 | AI67: 1024.179299 | AJ67: 626.6881264 | AL67: Lumber River RPO | AM67: 100 | AR67: 06 | AS67: 100 | AX67: Robeson | AY67: 100 | BF67: 6 | BG67: C | BH67: 06, , | BI67: Lumber River RPO, , | BJ67: Robeson, , , | BK67: 3.4 | BL67: 4.0547711 | BM67: Arterial | BN67: Arterial | BO67: 1 | BP67: 1 | BQ67: Undivided | BR67: Undivided | BS67: 41 | BT67: 55 | BU67: 11.55904224 | BV67: 88.44095776 | BW67: 5421.626751 | BX67: 15659.44978 | BY67: 0.3462207694 | BZ67: 4794.938625 | CA67: 626.6881264 | CB67: 728781.7726 | CC67: 95250.2043 | CD67: 824031.9769 | CE67: 19002148 | CF67: 30.43812138 | CG67: 71.12205318 | CH67: 19.05984371 | CM67: No | CN67: No | CO67: 12 | CP67: 12 | CQ67: No | CR67: 0 | CS67: 2 | CT67: New Roadway | CU67: 2A - 2 Lane Undivided with Paved Shoulders, 55 mph | CV67: None | CW67: Full | CX67: 1 | CY67: Yes | CZ67: 23 | DA67: 88969000 | DB67: 11172000 | DC67: 1341000 | DD67: 101482000 | DF67: 101482000 | DG67: 101482000
A68: H090287-C | B68: Columbus | C68: Cape Fear RPO | D68: Statewide Mobility | E68: R-4462 | F68: US-74 , US-76 | G68: SR 1735 (Chauncey Town Road) | I68: Upgrade At-grade Intersection to Interchange | J68: 7 - Upgrade At-grade Intersection to Interchange or Grade Separation | K68: 5750000 | L68: 7.566501465 | M68: 11.63934851 | N68: 5.019104426 | P68: 30 | R68: 0 | S68: 0 | T68: 20 | U68: 0 | V68: 10 | W68: 0 | Y68: 16.63660909 | Z68: 0.1339130435 | AA68: 16.65 | AB68: 4.308743798 | AC68: 0.08596066117 | AD68: 57.81717979 | AE68: N/A | AF68: N/A | AH68: 0.1723497519 | AI68: 182.6665641 | AJ68: 0 | AL68: Cape Fear RPO | AM68: 100 | AR68: 06 | AS68: 100 | AX68: Columbus | AY68: 100 | BF68: 6 | BG68: C | BH68: 06, , | BI68: Cape Fear RPO, , | BJ68: Columbus, , , | BK68: 2 | BL68: 2 | BM68: Multi-Lane Highway | BN68: Freeway | BO68: 2 | BP68: 2 | BQ68: Divided | BR68: Divided | BS68: 55 | BT68: 70 | BU68: 0 | BV68: 100 | BW68: 15739.05993 | BX68: 91320.46756 | BY68: 0.1723497519 | BZ68: 15739.05993 | CA68: 0 | CB68: 35000 | CC68: 0 | CD68: 35000 | CE68: 770000 | CI68: 0 | CJ68: 33.3 | CK68: 1 | CL68: 7.192132234e-07 | CM68: Yes | CN68: No | CO68: 12 | CP68: 12 | CQ68: No | CR68: 2 | CS68: 4 | CT68: 2 Lane Undivided | CV68: Limited | CW68: Full | CX68: 1 | CY68: Yes | CZ68: 25.02531803 | DA68: 5750000 | DB68: 0 | DC68: 0 | DD68: 5750000 | DF68: 5750000 | DG68: 5750000
A69: H111067 | B69: Robeson | C69: Lumber River RPO | D69: Regional Impact | F69: US-301 | G69: NC 20 | H69: I-95 Exit 25 | I69: Widen Roadway to Four Lanes with a Median | J69: 1 - Widen Existing Roadway | K69: 18052000 | L69: N/A | M69: 10.53919045 | N69: 9.115737171 | P69: =SUM(R69:W69) -> 30 | R69: =IF(AH69<0.5,0,IF(AH69<0.75,5,IF(AH69<0.9,10,IF(AH69<1,15,20)))) -> 0 | S69: =IF(AA69<30,0,IF(AA69<51,8.33,IF(AA69<66,16.67,25))) -> 16.67 | T69: =IF(AI69>1500,0,IF(AI69>1000,6.67,IF(AI69>500,13.33,20))) -> 13.33 | U69: =IF(AJ69<500,0,IF(AJ69<1000,7.5,15)) -> 0 | V69: 0 | W69: 0 | Y69: 13.93829074 | Z69: 0 | AA69: 63.28079023 | AB69: 0.6253796462 | AC69: N/A | AD69: 7.265387419 | AE69: N/A | AF69: N/A | AH69: =+BW69/BX69 -> 0.2105355962 | AI69: =K69/BW69/BL69 -> 885.7364537 | AJ69: =+CA69 -> 125.0759292 | AL69: Lumber River RPO | AM69: 100 | AR69: 06 | AS69: 100 | AX69: Robeson | AY69: 100 | BF69: 6 | BG69: C | BH69: 06, , | BI69: Lumber River RPO, , | BJ69: Robeson, , , | BK69: 6.24145855 | BL69: 6.24145855 | BM69: Two Lane Highway | BN69: Arterial | BO69: 1 | BP69: 2 | BQ69: Undivided | BR69: Divided | BS69: 54 | BT69: 45 | BU69: 3.830354968 | BV69: 96.16964503 | BW69: 3265.387419 | BX69: 15509.90653 | BY69: 0.2105355962 | BZ69: 3140.31149 | CA69: 125.0759292 | CB69: 0 | CC69: 0 | CD69: 0 | CE69: 0 | CF69: 62.53815692 | CG69: 59.45602524 | CH69: 67.86717466 | CM69: No | CN69: No | CO69: 11 | CP69: 12 | CQ69: No | CR69: 2 | CS69: 0 | CT69: 2 Lane Undivided | CU69: 4C - 4 Lane Divided (23' Raised Median) with Curb & Gutter, Wide Outside Lanes, and Sidewalks | CV69: None | CW69: Full | CX69: 1 | CY69: Yes | CZ69: 29 | DA69: 5750000 | DB69: 0 | DC69: 0 | DD69: 5750000 | DF69: 5750000 | DG69: 5750000
A70: H090123-A | B70: Harnett | C70: Mid-Carolina RPO | D70: Regional Impact | E70: R-2540 | F70: NC-55 | G70: US 421 | H70: Old Stage Road | I70: Widen to Multi-Lanes | J70: 1 - Widen Existing Roadway | K70: 104294000 | L70: N/A | M70: 14.4513673 | N70: 10.78583447 | P70: 26.67 | R70: 0 | S70: 16.67 | T70: 0 | U70: 0 | V70: 10 | W70: 0 | Y70: 27.17015458 | Z70: 0.07300446814 | AA70: 53.3720266 | AB70: 1.358119492 | AC70: N/A | AD70: 23.03374877 | AE70: N/A | AF70: N/A | AH70: 0.4102515378 | AI70: 1840.156246 | AJ70: 271.6238984 | AL70: Mid-Carolina RPO | AM70: 100 | AR70: 06 | AS70: 100 | AX70: Harnett | AY70: 100 | BF70: 6 | BG70: C | BH70: 06, , | BI70: Mid-Carolina RPO, , | BJ70: Harnett, , , | BK70: 8.87284958 | BL70: 8.87284958 | BM70: Two Lane Highway | BN70: Multi-Lane Highway | BO70: 1 | BP70: 2 | BQ70: Undivided | BR70: Divided | BS70: 52 | BT70: 52 | BU70: 4.252325226 | BV70: 95.74767477 | BW70: 6387.655787 | BX70: 15570.0959 | BY70: 0.4102515378 | BZ70: 6116.031889 | CA70: 271.6238984 | CB70: 325599.7858 | CC70: 14460.46795 | CD70: 340060.2538 | CE70: 7613928 | CF70: 56.63196775 | CG70: 58.12062785 | CH70: 45.37949741 | CM70: No | CN70: No | CO70: 12 | CP70: 12 | CQ70: No | CR70: 0 | CS70: 2 | CT70: 2 Lane Undivided | CU70: 4A - 4 Lane Divided (46' Depressed Median) with Paved Shoulders | CV70: None | CW70: Full | CX70: 1 | CY70: Yes | CZ70: 28 | DA70: 33139000 | DB70: 0 | DC70: 0 | DD70: 33139000 | DF70: 33139000 | DG70: 33139000
A71: H090761 | B71: Sampson | C71: Mid-Carolina RPO | D71: Regional Impact | F71: US-13 | G71: I-95 | H71: I-40 | I71: Widen to Multi-Lanes from I-95 in Cumberland County to I-40 in Sampson County. | J71: 1 - Widen Existing Roadway | K71: 204786000 | L71: N/A | M71: 13.35571341 | N71: 14.65706286 | P71: 25.83 | R71: 0 | S71: 8.33 | T71: 0 | U71: 7.5 | V71: 10 | W71: 0 | Y71: 22.0895411 | Z71: 0.04063835907 | AA71: 49.0012034 | AB71: 4.389139549 | AC71: N/A | AD71: 23.79213351 | AE71: N/A | AF71: N/A | AH71: 0.3336786846 | AI71: 1644.123086 | AJ71: 877.8279097 | AL71: Mid-Carolina RPO | AM71: 89.39 | AN71: Fayetteville Area MPO | AO71: 10.61 | AR71: 03 | AS71: 69.66 | AT71: 06 | AU71: 30.34 | AX71: Sampson | AY71: 69.66 | AZ71: Cumberland | BA71: 30.34 | BF71: 3 | BG71: B | BH71: 03, 06, | BI71: Mid-Carolina RPO, Fayetteville Area MPO, | BJ71: Sampson, Cumberland, , | BK71: 24.0825913 | BL71: 24.0825913 | BM71: Two Lane Highway | BN71: Multi-Lane Highway | BO71: 1 | BP71: 2 | BQ71: Undivided | BR71: Divided | BS71: 55 | BT71: 55 | BU71: 16.97253311 | BV71: 83.02746689 | BW71: 5172.050066 | BX71: 15500.09127 | BY71: 0.3336786846 | BZ71: 4294.222156 | CA71: 877.8279097 | CB71: 293325.3737 | CC71: 59961.77894 | CD71: 353287.1527 | CE71: 8322167 | CF71: 53.0193826 | CG71: 51.52976148 | CH71: 42.46916795 | CM71: No | CN71: No | CO71: 11 | CP71: 12 | CQ71: No | CR71: 2 | CS71: 2 | CT71: 2 Lane Undivided | CU71: 4A - 4 Lane Divided (46' Depressed Median) with Paved Shoulders | CV71: None | CW71: Partial | CX71: 1 | CY71: Yes | CZ71: 27 | DA71: 36800000 | DB71: 12000000 | DC71: 1000000 | DD71: 49800000 | DF71: 49800000 | DG71: 49800000
A72: H090664 | B72: Robeson | C72: Lumber River RPO | D72: Regional Impact | F72: NC-20 | G72: US 401 Business (East Central Avenue) | H72: US 301 | I72: Widen NC 20 to Four Lanes from US 401 Business (East Central Avenue) in Raeford to US 301 in Saint Pauls. | J72: 1 - Widen Existing Roadway | K72: 128340000 | L72: N/A | M72: 9.294496893 | N72: 7.132675573 | P72: 25.83 | R72: 0 | S72: 8.33 | T72: 0 | U72: 7.5 | V72: 10 | W72: 0 | Y72: 16.29144104 | Z72: 0 | AA72: 38.74387365 | AB72: 2.786835698 | AC72: N/A | AD72: 13.47249268 | AE72: N/A | AF72: N/A | AH72: 0.2460295891 | AI72: 1765.558264 | AJ72: 557.3671396 | AL72: Lumber River RPO | AM72: 64.31 | AN72: Fayetteville Area MPO | AO72: 35.69 | AR72: 06 | AS72: 52.33 | AT72: 08 | AU72: 47.67 | AX72: Robeson | AY72: 52.33 | AZ72: Hoke | BA72: 47.67 | BF72: 6 | BG72: C | BH72: 06, 08, | BI72: Lumber River RPO, Fayetteville Area MPO, | BJ72: Robeson, Hoke, , | BK72: 19.00830738 | BL72: 19.00830738 | BM72: Two Lane Highway | BN72: Multi-Lane Highway | BO72: 1 | BP72: 2 | BQ72: Undivided | BR72: Divided | BS72: 52 | BT72: 45 | BU72: 14.57487457 | BV72: 85.42512543 | BW72: 3824.164228 | BX72: 15543.51345 | BY72: 0.2460295891 | BZ72: 3266.797088 | CA72: 557.3671396 | CB72: 0 | CC72: 0 | CD72: 0 | CE72: 0 | CF72: 44.55757005 | CG72: 35.51600143 | CH72: 36.16967378 | CM72: No | CN72: No | CO72: 10 | CP72: 12 | CQ72: No | CR72: 0 | CS72: 0 | CT72: 2 Lane Undivided | CU72: 4C - 4 Lane Divided (23' Raised Median) with Curb & Gutter, Wide Outside Lanes, and Sidewalks | CV72: None | CW72: None | CX72: 2 | CY72: No | CZ72: 19 | DA72: 5000000 | DB72: 0 | DC72: 0 | DD72: 5000000 | DE72: 650000 | DF72: 4350000 | DG72: 4350000 | DH72: City of Fayetteville
A73: H090306 | B73: Columbus | C73: Cape Fear RPO | D73: Regional Impact | E73: R-5013 | F73: US-701 , NC-410 | G73: South Carolina State Line | H73: US 76 in Chadbourn | I73: Widen to Multi-Lanes. | J73: 1 - Widen Existing Roadway | K73: 115099000 | L73: N/A | M73: 13.11330458 | N73: 9.504916478 | P73: 25 | R73: 0 | S73: 8.33 | T73: 6.67 | U73: 0 | V73: 10 | W73: 0 | Y73: 23.28834888 | Z73: 0.07659961425 | AA73: 48.31926779 | AB73: 2.055399768 | AC73: N/A | AD73: 24.4014068 | AE73: N/A | AF73: N/A | AH73: 0.3516915773 | AI73: 1386.258599 | AJ73: 411.0799536 | AL73: Cape Fear RPO | AM73: 100 | AR73: 06 | AS73: 100 | AX73: Columbus | AY73: 100 | BF73: 6 | BG73: C | BH73: 06, , | BI73: Cape Fear RPO, , | BJ73: Columbus, , , | BK73: 15.1868412 | BL73: 15.1868412 | BM73: Two Lane Highway | BN73: Multi-Lane Highway | BO73: 1 | BP73: 2 | BQ73: Undivided | BR73: Divided | BS73: 50 | BT73: 50 | BU73: 7.519110257 | BV73: 92.48088974 | BW73: 5467.135599 | BX73: 15545.25599 | BY73: 0.3516915773 | BZ73: 5056.055645 | CA73: 411.0799536 | CB73: 359356.2064 | CC73: 29217.26797 | CD73: 388573.4744 | CE73: 8816539 | CF73: 51.51684862 | CG73: 48.62307327 | CH73: 44.83237872 | CM73: No | CN73: No | CO73: 12 | CP73: 12 | CQ73: No | CR73: 2 | CS73: 2 | CT73: 2 Lane Undivided | CU73: 4A - 4 Lane Divided (46' Depressed Median) with Paved Shoulders | CV73: None | CW73: Partial | CX73: 1 | CY73: Yes | CZ73: 25 | DA73: 63600000 | DB73: 12000000 | DC73: 2000000 | DD73: 77600000 | DF73: 77600000 | DG73: 77600000
A74: H090160-B | B74: Robeson | C74: Lumber River RPO | D74: Regional Impact | E74: R-2593B | F74: NC-211 New Route - Red Springs Bypass | G74: NC 71 Northeast of Red Springs | H74: NC 72/710 South of Red Springs | I74: Construct Two Lanes, Part on New Location, on Multi-Lane Right of Way | J74: 5 - Construct Roadway on New Location | K74: 29700000 | L74: N/A | M74: 12.43200538 | N74: 9.820344173 | P74: 25 | R74: 0 | S74: 8.33 | T74: 6.67 | U74: 0 | V74: 10 | W74: 0 | Y74: 24.62679358 | Z74: 0 | AA74: 48.94985456 | AB74: 2.291072114 | AC74: N/A | AD74: 13.80321529 | AE74: N/A | AF74: N/A | AH74: 0.3717584578 | AI74: 1267.999286 | AJ74: 458.2144228 | AL74: Lumber River RPO | AM74: 100 | AR74: 06 | AS74: 100 | AX74: Robeson | AY74: 100 | BF74: 6 | BG74: C | BH74: 06, , | BI74: Lumber River RPO, , | BJ74: Robeson, , , | BK74: 3.5 | BL74: 4.03616357 | BM74: Two Lane Highway | BN74: Arterial | BO74: 1 | BP74: 1 | BQ74: Undivided | BR74: Undivided | BS74: 45 | BT74: 55 | BU74: 7.895871515 | BV74: 92.10412848 | BW74: 5803.215287 | BX74: 15610.17689 | BY74: 0.3717584578 | BZ74: 5345.000864 | CA74: 458.2144228 | CB74: 0 | CC74: 0 | CD74: 0 | CE74: 0 | CF74: 52.56846458 | CG74: 51.41514382 | CH74: 42.88064172 | CM74: No | CN74: No | CO74: 12 | CP74: 12 | CQ74: No | CR74: 1 | CS74: 2 | CT74: New Roadway | CU74: 2A - 2 Lane Undivided with Paved Shoulders, 55 mph | CV74: None | CW74: None | CX74: 1 | CY74: Yes | CZ74: 21 | DA74: 1500000 | DB74: 150000 | DC74: 125000 | DD74: 1775000 | DF74: 1775000 | DG74: 1775000
A75: H090133-A | B75: Bladen | C75: Mid-Carolina RPO | D75: Statewide Mobility | E75: R-2561A | F75: NC-87 | G75: Elizabethtown Bypass | H75: SR 1730 (Elwell Ferry Road) | I75: Widen to Multi-Lanes. | J75: 1 - Widen Existing Roadway | K75: 77600000 | L75: 11.21124419 | M75: 10.8815372 | N75: 7.977220909 | P75: 25 | R75: 0 | S75: 8.33 | T75: 6.67 | U75: 0 | V75: 10 | W75: 0 | Y75: 15.51508229 | Z75: 0.02302689433 | AA75: 48.69599073 | AB75: 8.334604114 | AC75: 0.1329153944 | AD75: 21.27410835 | AE75: N/A | AF75: N/A | AH75: 0.2335311307 | AI75: 1429.967489 | AJ75: 499.2651695 | AL75: Mid-Carolina RPO | AM75: 100 | AR75: 06 | AS75: 100 | AX75: Bladen | AY75: 100 | BF75: 6 | BG75: C | BH75: 06, , | BI75: Mid-Carolina RPO, , | BJ75: Bladen, , , | BK75: 14.44024653 | BL75: 14.44024653 | BM75: Two Lane Highway | BN75: Multi-Lane Highway | BO75: 1 | BP75: 2 | BQ75: Undivided | BR75: Divided | BS75: 55 | BT75: 55 | BU75: 13.28526799 | BV75: 86.71473201 | BW75: 3758.036118 | BX75: 16092.22765 | BY75: 0.2335311307 | BZ75: 3258.770948 | CA75: 499.2651695 | CB75: 66736.02834 | CC75: 10224.39902 | CD75: 76960.42736 | CE75: 1786887 | CF75: 54.52567745 | CG75: 49.70647735 | CH75: 41.87042764 | CK75: 1 | CL75: 1.658307889e-06 | CM75: Yes | CN75: No | CO75: 12 | CP75: 12 | CQ75: No | CR75: 4 | CS75: 0 | CT75: 2 Lane Undivided | CU75: 4A - 4 Lane Divided (46' Depressed Median) with Paved Shoulders | CV75: None | CW75: Full | CX75: 1 | CY75: Yes | CZ75: 24.5 | DA75: 5750000 | DB75: 0 | DC75: 0 | DD75: 5750000 | DF75: 5750000 | DG75: 5750000
A76: H141735 | B76: Sampson | C76: Mid-Carolina RPO | D76: Regional Impact | F76: US-421 | G76: NC 55 | H76: NC 210 | I76: Widen existing roadway to multi-lanes from NC 55 intersection in Harnett County to just north of the NC 210 intersection in Pender County. | J76: 1 - Widen Existing Roadway | K76: 512883000 | L76: N/A | M76: 13.88993118 | N76: 13.62569937 | P76: 22.5 | R76: 0 | S76: 8.33 | T76: 6.67 | U76: 7.5 | V76: 0 | W76: 0 | Y76: 17.47989628 | Z76: 0.02374778263 | AA76: 45.75647465 | AB76: 9.784251864 | AC76: N/A | AD76: 23.893729 | AE76: N/A | AF76: N/A | AH76: 0.2565972821 | AI76: 1420.560608 | AJ76: 673.8639622 | AL76: Mid-Carolina RPO | AM76: 75.52 | AN76: Cape Fear RPO | AO76: 24.18 | AR76: 03 | AS76: 97.2 | AT76: 06 | AU76: 2.8 | AX76: Sampson | AY76: 72.72 | AZ76: Pender | BA76: 24.18 | BB76: Harnett | BC76: 2.8 | BF76: 3 | BG76: B | BH76: 03, 06, | BI76: Mid-Carolina RPO, Cape Fear RPO, | BJ76: Sampson, Pender, Harnett, | BK76: 69.29604453 | BL76: 69.29604453 | BM76: Two Lane Highway | BN76: Multi-Lane Highway | BO76: 1 | BP76: 2 | BQ76: Undivided | BR76: Divided | BS76: 54.98587433 | BT76: 55 | BU76: 12.93368084 | BV76: 87.06631916 | BW76: 5210.148373 | BX76: 20304.76835 | BY76: 0.2565972821 | BZ76: 4536.284411 | CA76: 673.8639622 | CB76: 457367.5663 | CC76: 67941.84236 | CD76: 525309.4086 | CE76: 12179834 | CF76: 52.60759404 | CG76: 40.87436351 | CH76: 43.80119471 | CM76: Yes | CN76: No | CO76: 12 | CP76: 12 | CQ76: No | CR76: 3 | CS76: 2 | CT76: 2 Lane Undivided | CU76: 4A - 4 Lane Divided (46' Depressed Median) with Paved Shoulders | CV76: None | CW76: Full | CX76: 1 | CY76: Yes | CZ76: 25.92419522 | DA76: 5750000 | DB76: 0 | DC76: 0 | DD76: 5750000 | DF76: 5750000 | DG76: 5750000
A77: H090668 | B77: Robeson | C77: Lumber River RPO | D77: Regional Impact | F77: NC-20 | G77: Martin Luther King, Jr. Drive | H77: NC 87 | I77: Widen NC 20 to Four Lanes from Martin Luther King, Jr. Drive in Street Pauls to NC 87 in Bladen County. | J77: 1 - Widen Existing Roadway | K77: 62441000 | L77: N/A | M77: 13.2704386 | N77: 10.05779217 | P77: 16.67 | R77: 0 | S77: 16.67 | T77: 0 | U77: 0 | V77: 0 | W77: 0 | Y77: 20.04795801 | Z77: 0.04091039541 | AA77: 60.40018487 | AB77: 2.058670755 | AC77: N/A | AD77: 22.08203012 | AE77: N/A | AF77: N/A | AH77: 0.3028392333 | AI77: 1581.050843 | AJ77: 411.7341511 | AL77: Lumber River RPO | AM77: 54.55 | AN77: Mid-Carolina RPO | AO77: 45.45 | AR77: 06 | AS77: 100 | AX77: Robeson | AY77: 54.55 | AZ77: Bladen | BA77: 45.45 | BF77: 6 | BG77: C | BH77: 06, , | BI77: Lumber River RPO, Mid-Carolina RPO, | BJ77: Robeson, Bladen, , | BK77: 8.41356394 | BL77: 8.41356394 | BM77: Two Lane Highway | BN77: Multi-Lane Highway | BO77: 1 | BP77: 2 | BQ77: Undivided | BR77: Divided | BS77: 55 | BT77: 55 | BU77: 8.771479985 | BV77: 91.22852001 | BW77: 4694.010039 | BX77: 15500.00635 | BY77: 0.3028392333 | BZ77: 4282.275888 | CA77: 411.7341511 | CB77: 102191.9184 | CC77: 9825.593647 | CD77: 112017.512 | CE77: 2554486 | CF77: 63.17260846 | CG77: 67.80790099 | CH77: 50.23816702 | CM77: No | CN77: No | CO77: 12 | CP77: 12 | CQ77: No | CR77: 1 | CS77: 2 | CT77: 2 Lane Undivided | CU77: 4B - 4 Lane Divided (23' Raised Median) with Paved Shoulders and Sidewalks | CV77: None | CW77: Partial | CX77: 2 | CY77: Yes | CZ77: 25 | DA77: 396786000 | DB77: 103658000 | DC77: 12439000 | DD77: 512883000 | DF77: 512883000 | DG77: 512883000
A78: H111066 | B78: Robeson | C78: Lumber River RPO | D78: Regional Impact | F78: US-301 | G78: I-95 Exit 33 | H78: NC 20 in St. Pauls | I78: Widen Roadway to Four Lanes with a Median | J78: 1 - Widen Existing Roadway | K78: 15675000 | L78: N/A | M78: 11.60687999 | N78: 9.881984363 | P78: 16.67 | R78: 0 | S78: 16.67 | T78: 0 | U78: 0 | V78: 0 | W78: 0 | Y78: 18.03021696 | Z78: 0 | AA78: 62.75940971 | AB78: 1.129095075 | AC78: N/A | AD78: 8.233847808 | AE78: N/A | AF78: N/A | AH78: 0.2722779639 | AI78: 2016.831353 | AJ78: 225.819015 | AL78: Lumber River RPO | AM78: 100 | AR78: 06 | AS78: 100 | AX78: Robeson | AY78: 100 | BF78: 6 | BG78: C | BH78: 06, , | BI78: Lumber River RPO, , | BJ78: Robeson, , , | BK78: 1.83570429 | BL78: 1.83570429 | BM78: Two Lane Highway | BN78: Arterial | BO78: 1 | BP78: 2 | BQ78: Undivided | BR78: Divided | BS78: 52 | BT78: 45 | BU78: 5.333659244 | BV78: 94.66634076 | BW78: 4233.847808 | BX78: 15549.72627 | BY78: 0.2722779639 | BZ78: 4008.028793 | CA78: 225.819015 | CB78: 0 | CC78: 0 | CD78: 0 | CE78: 0 | CF78: 66.14720361 | CG78: 65.10289684 | CH78: 57.04695839 | CM78: No | CN78: No | CO78: 12 | CP78: 12 | CQ78: No | CR78: 0 | CS78: 2 | CT78: 2 Lane Undivided | CU78: 4C - 4 Lane Divided (23' Raised Median) with Curb & Gutter, Wide Outside Lanes, and Sidewalks | CV78: None | CW78: Full | CX78: 1 | CY78: Yes | CZ78: 23.9 | DA78: 5750000 | DB78: 1380000 | DC78: 0 | DD78: 7130000 | DF78: 7130000 | DG78: 7130000
A79: H111065 | B79: Robeson | C79: Lumber River RPO | D79: Regional Impact | F79: NC-130-BUS- | G79: I-95 | H79: NC 710 | I79: Add Turn Lanes at Major intersections. Widen to 3 Lanes from Hickory St to Hines St. | J79: 1 - Widen Existing Roadway | K79: 15258000 | L79: N/A | M79: 10.26654986 | N79: 8.265353556 | P79: 15 | R79: 0 | S79: 8.33 | T79: 6.67 | U79: 0 | V79: 0 | W79: 0 | Y79: 19.04461303 | Z79: 0 | AA79: 44.56430951 | AB79: 2.461726269 | AC79: N/A | AD79: 10.48965654 | AE79: N/A | AF79: N/A | AH79: 0.2874791735 | AI79: 1302.595195 | AJ79: 492.3452538 | AL79: Lumber River RPO | AM79: 100 | AR79: 06 | AS79: 100 | AX79: Robeson | AY79: 100 | BF79: 6 | BG79: C | BH79: 06, , | BI79: Lumber River RPO, , | BJ79: Robeson, , , | BK79: 2.60900565 | BL79: 2.60900565 | BM79: Two Lane Highway | BN79: Arterial | BO79: 1 | BP79: 1 | BQ79: Undivided | BR79: TWLTL | BS79: 47 | BT79: 45 | BU79: 10.96621198 | BV79: 89.03378802 | BW79: 4489.656545 | BX79: 15617.328 | BY79: 0.2874791735 | BZ79: 3997.311291 | CA79: 492.3452538 | CB79: 0 | CC79: 0 | CD79: 0 | CE79: 0 | CF79: 45.19092082 | CG79: 55.55123051 | CH79: 32.96414783 | CM79: No | CN79: No | CO79: 12 | CP79: 12 | CQ79: No | CR79: 1 | CS79: 2 | CT79: 2 Lane Undivided | CU79: 3B - 2 Lane with Two Way Left Turn Lane, Curb & Gutter, and Sidewalks | CV79: None | CW79: Full | CX79: 1 | CY79: Yes | CZ79: 25.3 | DA79: 5750000 | DB79: 0 | DC79: 0 | DD79: 5750000 | DF79: 5750000 | DG79: 5750000
A80: H090115 | B80: Moore | C80: Triangle Area RPO | D80: Statewide Mobility | E80: R-2529 | F80: NC-24 , NC-27 | G80: Carthage Bypass | H80: NC 87 | I80: Widen to Multi-Lanes | J80: 1 - Widen Existing Roadway | K80: 162547000 | L80: 13.55072808 | M80: 13.17444226 | N80: 9.194448732 | P80: 8.33 | R80: 0 | S80: 8.33 | T80: 0 | U80: 0 | V80: 0 | W80: 0 | Y80: 20.77291373 | Z80: 0.09720757073 | AA80: 50.20424472 | AB80: 10.27502275 | AC80: 2.142626666 | AD80: 29.36487466 | AE80: N/A | AF80: N/A | AH80: 0.3137441584 | AI80: 1608.518181 | AJ80: 486.2837581 | AL80: Triangle Area RPO | AM80: 58.54 | AN80: Mid-Carolina RPO | AO80: 25.33 | AP80: Fayetteville Area MPO | AQ80: 16.13 | AR80: 08 | AS80: 58.54 | AT80: 06 | AU80: 41.46 | AX80: Moore | AY80: 58.54 | AZ80: Harnett | BA80: 41.46 | BF80: 8 | BG80: E | BH80: 08, 06, | BI80: Triangle Area RPO, Mid-Carolina RPO, Fayetteville Area MPO | BJ80: Moore, Harnett, , | BK80: 20.74746876 | BL80: 20.74746876 | BM80: Two Lane Highway | BN80: Multi-Lane Highway | BO80: 1 | BP80: 2 | BQ80: Undivided | BR80: Divided | BS80: 53 | BT80: 55 | BU80: 9.983938551 | BV80: 90.01606145 | BW80: 4870.660568 | BX80: 15524.30679 | BY80: 0.3137441584 | BZ80: 4384.37681 | CA80: 486.2837581 | CB80: 620682.0921 | CC80: 68841.62413 | CD80: 689523.7163 | CE80: 15800799 | CF80: 58.2165099 | CG80: 47.92257672 | CH80: 44.48871032 | CK80: 12 | CL80: 3.085253332e-05 | CM80: No | CN80: Yes | CO80: 11 | CP80: 12 | CQ80: No | CR80: 0 | CS80: 2 | CT80: 2 Lane Undivided | CU80: 4A - 4 Lane Divided (46' Depressed Median) with Paved Shoulders | CV80: None | CW80: Full | CX80: 1 | CY80: Yes | CZ80: 25.3 | DA80: 5750000 | DB80: 0 | DC80: 0 | DD80: 5750000 | DF80: 5750000 | DG80: 5750000
A82: Aviation
A83: SpotID | B83: STI Network | C83: Specific Improvement Type | D83: Project Local ID | E83: Project Category | F83: TIP | G83: Route Facility Name | H83: Project Title | I83: Project Description | J83: Reg Impact Quantitative Score | K83: First MPO/RPO | L83: Cost To NCDOT | M83: Points Assigned
A84: A130182 | B84: Regional Impact | C84: 2005 - Install security/safety fencing | D84: 3299 | E84: Regional Impact | G84: FAY - Fayetteville Regional Airport | H84: REPLACEMENT PERIMETER FENCING AND ROAD. | I84: Replacement perimeter fencing and road. (includes Project Request Numbers: 3299 ) | J84: 36.37974568 | K84: Fayetteville MPO | L84: 300000 | M84: 100
A86: Rail
A87: SPOT ID | B87: STI Tier | C87: Project Type | D87: Project Description | E87: City(ies)/Town(s) | F87: Rail Line | G87: Beginning Track Milepost | H87: Ending Track Milepost | I87: Right of Way Cost | J87: Construction Cost | K87: Cost to NCDOT | L87: Statewide Mobility Quantitative Score (Out of 100) | M87: Regional Impact Quantitative Score (Out of 70) | N87: Division Needs Quantitative Score (Out of 50) | O87: Points Assigned
A88: R140024 | B88: Statewide Mobility | C88: Construct Track and/or Structure Improvements (Freight Service) | D88: Grade separation at Russell Street crossing (629883U) in Fayetteville | E88: Fayetteville | F88: CSX A line | G88: 209.76 | H88: N/A | I88: 4200000 | J88: 20000000 | K88: 23446000 | L88: 36.35 | M88: 29.37 | N88: 20.34 | O88: 100

Sheet Div. Projects Scored
A2: Highway
A3: Cape Fear | B3: CAMPO | C3: FAMPO | D3: Lumber Rvr | E3: Mid-Carlna
A4: Bladen | B4: Columbus | C4: Cumberland | D4: Harnett | E4: Robeson
A5: SPOT ID | B5: County | C5: First MPO/RPO | D5: Project Category | E5: TIP | F5: Route | G5: From / Cross Street | H5: To | I5: Description | J5: Specific Improvement Type | K5: Cost to NCDOT | L5: Division Cost | M5: Statewide Quantiative Score (Out of 100) | N5: Regional Quantiative Score (Out of 70) | O5: Division Quantiative Score (Out of 50) | P5: Point Assignment | Q5: Total Division Level Score | R5: Notes and Justifications
A6: H111297 | B6: Cumberland | C6: Fayetteville Area MPO | D6: Division Needs | E6: U-5605 | F6: SR-1600 Odell Road | G6: Fort Bragg Boundary | H6: NC 24/87 (Bragg Boulevard) | I6: Widen to Multi-Lanes, Part on New Location | J6: 5 - Construct Roadway on New Location | K6: 5350000 | L6: =+K6 -> 5350000 | M6: N/A | N6: N/A | O6: 42.07753495 | P6: 100 | Q6: 92.5
A7: H090460-A | B7: Cumberland | C7: Fayetteville Area MPO | D7: Statewide Mobility | E7: U-4405A | F7: US-401 Raeford Road | G7: West of Hampton Oaks Drive | H7: US 401 Bypass (Skibo Road) | I7: Construct Raised Median and Access Management Improvements. | J7: 11 - Access Management | K7: 5901000 | L7: =+K7 -> 5901000 | M7: 35.15571859 | N7: 28.03945293 | O7: 22.25511319 | P7: 100 | Q7: 75
A8: H090123-C | B8: Harnett | C8: Capital Area MPO | D8: Regional Impact | E8: R-2540 | F8: NC-55 | G8: Angier Town Limit | H8: Church Street | I8: Install median with turn lanes, curb & gutter, and sidewalks | J8: 1 - Widen Existing Roadway | K8: 12399000 | L8: 12399000 | M8: N/A | N8: 29.0041013 | O8: 22.18496896 | P8: 100 | Q8: 65
A9: H141557 | B9: Harnett | C9: Mid-Carolina RPO | D9: Statewide Mobility | E9: I-5133 | F9: I-95 | G9: SR 1709 (Hodges Chapel Road) | I9: Exit 77 Improve configuration and lengthen spans for future widening. | J9: 8 - Improve Interchange | K9: 7290000 | L9: =+K9 -> 7290000 | M9: 37.60580748 | N9: 28.27855861 | O9: 20.60627118 | P9: 100 | Q9: 65
A10: H141544 | B10: Robeson | C10: Lumber River RPO | D10: Statewide Mobility | E10: I-5133 | F10: I-95 | G10: SR 1528 (Carthage Road) | I10: Exit 19 Improve interchange and lengthen span for future widening. | J10: 8 - Improve Interchange | K10: 7290000 | L10: 7290000 | M10: 34.08824921 | N10: 28.01692604 | O10: 19.07397625 | P10: 100 | Q10: 65
A11: H141687 | B11: Cumberland | C11: Mid-Carolina RPO | D11: Statewide Mobility | E11: I-5133 | F11: I-95 | G11: NC 82 | I11: Exit 65 - Replace Structurally Deficient Structure and extend span length, reconfigure interchange. | J11: 8 - Improve Interchange | K11: 7290000 | L11: 7290000 | M11: 30.52823093 | N11: 23.88418048 | O11: 17.05977667 | P11: 100 | Q11: 65
A12: H090178-A | B12: Cumberland | C12: Fayetteville Area MPO | D12: Division Needs | E12: FS-1106A | F12: - Spring Lake Bypass | G12: NC 210 (Lillington Highway) South of Spring Lake | H12: NC 210 (Murchison Road) North of Spring Lake | I12: Construct Multi-Lane Facility, Part on New Location. | J12: 6 - Widen Existing Roadway and Construct Part on New Location | K12: 24959000 | L12: 24959000 | M12: N/A | N12: N/A | O12: 20.12252406 | P12: 100 | Q12: 59.17
A13: H141626 | B13: Harnett | C13: Mid-Carolina RPO | D13: Statewide Mobility | E13: I-5133 | F13: I-95 | G13: SR 1793 (Pope Rd) | I13: Exit 72 - Improve interchange configuration and increase span length for future widening. | J13: 8 - Improve Interchange | K13: 15660000 | L13: 15660000 | M13: 31.63877024 | N13: 23.85192053 | O13: 17.2585776 | P13: 100 | Q13: 65
A14: H111307 | B14: Robeson | C14: Lumber River RPO | D14: Division Needs | F14: SR-1997 Fayetteville Road | G14: Farrington Street | H14: East 22Nd Street | I14: Widen Roadway to Six Lanes with a Median. | J14: 1 - Widen Existing Roadway | K14: 15139000 | L14: 15139000 | M14: N/A | N14: N/A | O14: 18.74950226 | P14: 100 | Q14: 58.33 | R14: RPO and City prefers H111307 over H111306
A15: H141624 | B15: Harnett | C15: Mid-Carolina RPO | D15: Statewide Mobility | E15: i-5133 | F15: I-95 | G15: US 421 | I15: Exit 73 - Replace Existing Structures and improve interchange configuration. | J15: 8 - Improve Interchange | K15: 15660000 | L15: 15660000 | M15: 36.86678452 | N15: 27.12188963 | O15: 19.56509162 | P15: 100 | Q15: 65
A16: H141634 | B16: Harnett | C16: Mid-Carolina RPO | D16: Statewide Mobility | E16: I-5133 | F16: I-95 | G16: SR 1811 (Bud Hawkins Road) | I16: Exit 70 - Improve configuration and lengthen spans for future widening. | J16: 8 - Improve Interchange | K16: 7290000 | L16: 7290000 | M16: 40.66612692 | N16: 29.09803294 | O16: 19.63679474 | P16: 100 | Q16: 53.33
A17: H090460-B | B17: Cumberland | C17: Fayetteville Area MPO | D17: Regional Impact | E17: U-4405B | F17: US-401 Raeford Road | G17: US 401 Bypass (Skibo Road) | H17: East of Fairview Drive | I17: Construct Raised Median and Access Management Improvements | J17: 11 - Access Management | K17: 27939000 | L17: 27939000 | M17: N/A | N17: 28.87746957 | O17: 22.78249343 | P17: 100 | Q17: 70
A18: H090936-B | B18: Robeson | C18: Lumber River RPO | D18: Statewide Mobility | F18: I-74 , US-74 | G18: SR 2220 (Broadridge Road) | I18: Upgrade At-grade Intersection to Interchange. | J18: 7 - Upgrade At-grade Intersection to Interchange or Grade Separation | K18: 5750000 | L18: =+K18 -> 5750000 | M18: 12.97193271 | N18: 14.66160961 | O18: 9.440126087 | P18: 100 | Q18: 60
A19: H090287-B | B19: Columbus | C19: Cape Fear RPO | D19: Statewide Mobility | E19: R-4462 | F19: US-74 , US-76 | G19: SR 1001 (Hallsboro Road) | I19: Upgrade At-grade Intersection to Interchange | J19: 7 - Upgrade At-grade Intersection to Interchange or Grade Separation | K19: 5750000 | L19: =+K19 -> 5750000 | M19: 10.8037911 | N19: 14.28462904 | O19: 8.299429368 | P19: 100 | Q19: 43.33 | R19: Project Selected to by coordination with RPO. Helps achieve geographic equity and improves safety on freeway cooridor.
A20: H090309-B | B20: Columbus | C20: Cape Fear RPO | D20: Regional Impact | E20: R-5020 | F20: US-701 Madison Street/Powell Boulevard | G20: SR 1437 (Virgil Street) | H20: US 74/76 | I20: Widen to Multi-Lanes | J20: 1 - Widen Existing Roadway | K20: 8640000 | L20: =+K20 -> 8640000 | M20: N/A | N20: 21.64574854 | O20: 17.64461752 | P20: 100 | Q20: 50 | R20: Project Selected to by coordination with RPO. Helps achieve geographic equity and improves safety on freeway cooridor.
A21: H090401 | B21: Cumberland | C21: Fayetteville Area MPO | D21: Division Needs | E21: U-3422 | F21: SR-1003 Camden Road | G21: Fayetteville Outer Loop (U-2519) | H21: NC 59 (Hope Mills Road) | I21: Widen to Multi-Lanes | J21: 1 - Widen Existing Roadway | K21: 26315000 | L21: =+K21 -> 26315000 | M21: N/A | N21: N/A | O21: 17.93925339 | P21: 100 | Q21: 43.33
A22: H090178-B | B22: Cumberland | C22: Fayetteville Area MPO | D22: Division Needs | E22: FS-1106A | F22: - Spring Lake Bypass | G22: NC 210 (Murchison Road) North of Spring Lake | H22: NC 87 (Bragg Boulevard) | I22: Construct Multi-Lane Facility, Part on New Location | J22: 6 - Widen Existing Roadway and Construct Part on New Location | K22: 10936000 | L22: =+K22 -> 10936000 | M22: N/A | N22: N/A | O22: 27.87001553 | P22: 100 | Q22: 51.67 | R22: Project Selected to by coordination with RPO. Addresses need in high growth area.
A23: H090458-C | B23: Cumberland | C23: Fayetteville Area MPO | D23: Regional Impact | E23: U-4403 | F23: US-401 Ramsey Street | G23: US 401 Bypass | H23: I-295 | I23: Widen to Multi-Lanes | J23: 1 - Widen Existing Roadway | K23: 32153000 | L23: 32153000 | M23: N/A | N23: 36.00342429 | O23: 28.2496995 | Q23: 80 | R23: Anticipate Regional
A24: H090458-B | B24: Cumberland | C24: Fayetteville Area MPO | D24: Regional Impact | E24: U-4403 | F24: US-401 Ramsey Street | G24: Martin Luther King, Jr. Freeway | H24: US 401 Bypass | I24: Widen to Multi-Lanes | J24: 1 - Widen Existing Roadway | K24: 14232000 | L24: 14232000 | M24: N/A | N24: 33.05652898 | O24: 26.38149592 | Q24: 80 | R24: Anticipate Regional
A25: H140927 | B25: Cumberland | C25: Fayetteville Area MPO | D25: Regional Impact | F25: Fayetteville Computerized Traffic Signal System | I25: Fayetteville Computerized Traffic Signal System | J25: 13 - Citywide Signal System | K25: 4350000 | L25: =+K25 -> 4350000 | M25: N/A | N25: 47.85966516 | O25: 38.16704892 | Q25: 70 | R25: Anticipate Regional
A26: H129619-BA | B26: Cumberland | C26: Fayetteville Area MPO | D26: Statewide Mobility | E26: U-2519BA | F26: I-295 Fayetteville Outer Loop | G26: South of SR 1003 (Camden Road) | H26: South of SR 1104 (Strickland Bridge Road) | I26: Construct Freeway on New Location. | J26: 5 - Construct Roadway on New Location | K26: 57400000 | L26: 57400000 | M26: 39.38612487 | N26: 32.73279559 | O26: 20.91913389 | Q26: 65 | R26: Anticipate Regional
A27: H129619-BB | B27: Cumberland | C27: Fayetteville Area MPO | D27: Statewide Mobility | E27: U-2519BB | F27: I-295 Fayetteville Outer Loop | G27: South of SR 1104 (Strickland Bridge Road) | H27: South of US 401 | I27: Construct Freeway on New Location. | J27: 5 - Construct Roadway on New Location | K27: 36700000 | L27: 36700000 | M27: 39.38612487 | N27: 32.73279559 | O27: 20.91913389 | Q27: 65 | R27: Anticipate Regional
A28: H129619-AB | B28: Cumberland | C28: Fayetteville Area MPO | D28: Statewide Mobility | E28: U-2519AB | F28: I-295 Fayetteville Outer Loop | G28: South of SR 1118 (Parkton Road) | H28: South of SR 1003 (Camden Road) | I28: Construct Freeway on New Location. | J28: 5 - Construct Roadway on New Location | K28: 94800000 | L28: 94800000 | M28: 39.38612487 | N28: 32.53279559 | O28: 20.91913389 | Q28: 65 | R28: Anticipate Regional
A29: H129618-AA | B29: Robeson | C29: Fayetteville Area MPO | D29: Statewide Mobility | E29: U-2519AA | F29: I-295 Fayetteville Outer Loop | G29: I-95 in Robeson County | H29: South of SR 1118 (Parkton Road) in Cumberland County | I29: Construct Freeway on New Location. | J29: 5 - Construct Roadway on New Location | K29: 38800000 | L29: 38800000 | M29: 39.38612487 | N29: 32.33279559 | O29: 20.91913389 | Q29: 65 | R29: Anticipate Regional
A30: H090123-D | B30: Harnett | C30: Capital Area MPO | D30: Regional Impact | E30: R-2540 | F30: NC-55 | G30: Rawls Church Road | H30: Angier Town Limit | I30: Widen to Multi-Lanes | J30: 1 - Widen Existing Roadway | K30: 9706000 | L30: =+K30 -> 9706000 | M30: N/A | N30: 34.64668804 | O30: 24.2310401 | Q30: 58.33 | R30: Anticipate Regional
A31: H090936-D | B31: Robeson | C31: Lumber River RPO | D31: Statewide Mobility | F31: I-74 , US-74 | G31: NC 72/130 | I31: Upgrade At-grade Intersection to Interchange. | J31: 7 - Upgrade At-grade Intersection to Interchange or Grade Separation | K31: 5750000 | L31: 5750000 | M31: 13.03246632 | N31: 14.42432347 | O31: 8.28164024 | P31: 100 | Q31: 43.33 | R31: Project Selected to by coordination with RPO. Helps achieve geographic equity and improves safety on freeway cooridor.
A32: H141493 | B32: Columbus | C32: Cape Fear RPO | D32: Statewide Mobility | E32: R-4462 | F32: US-74 | G32: NC 87 | I32: Covert Existing at grade intersection to interchange. | J32: 7 - Upgrade At-grade Intersection to Interchange or Grade Separation | K32: 7130000 | L32: 7130000 | M32: 23.86261634 | N32: 26.55945836 | O32: 14.91456669 | Q32: 60
A33: H111306 | B33: Robeson | C33: Lumber River RPO | D33: Division Needs | F33: SR-1997 Fayetteville Road | G33: I-95 | H33: Farrington Street | I33: Widen Roadway to Six Lanes with a Median | J33: 1 - Widen Existing Roadway | K33: 21476000 | L33: 21476000 | M33: N/A | N33: N/A | O33: 19.24109741 | Q33: 58.33 | R33: RPO and City prefers H111307 over H111306
A34: H090279 | B34: Robeson | C34: Lumber River RPO | D34: Regional Impact | E34: R-4428 | F34: NC-711 | G34: SR 1340 (Odom Street- Philadelphus Road) in Pembroke | H34: SR 1557 (Redmond Road) | I34: SR 1340 (Odom Street- Philadelphus Road) to SR 1557 (Redmond Road). Widen to Multi-Lanes. | J34: 1 - Widen Existing Roadway | K34: 8049000 | L34: 8049000 | M34: N/A | N34: 22.20446084 | O34: 18.70060752 | Q34: 58.33
A35: H090759 | B35: Harnett | C35: Mid-Carolina RPO | D35: Regional Impact | F35: US-421 Cumberland Street | G35: I-95 | H35: (Dunn-Erwin Road), | I35: Widen to Multi-Lanes to include Turning Lane from I-95 Eastern on and off Ramps to Dunn-Erwin Road. | J35: 11 - Access Management | K35: 17693000 | L35: 17693000 | M35: N/A | N35: 23.88393025 | O35: 19.62818578 | Q35: 57.5
A36: H090123-E | B36: Wake | C36: Capital Area MPO | D36: Regional Impact | E36: R-2540 | F36: NC-55 | G36: Jicarilla Road | H36: Rawls Church Road | I36: Widen to Multi-Lanes | J36: 1 - Widen Existing Roadway | K36: 27513000 | L36: 27513000 | M36: N/A | N36: 31.20815092 | O36: 21.74322492 | Q36: 53.33 | R36: Div 5 Project
A37: H129200-C | B37: Robeson | C37: Lumber River RPO | D37: Statewide Mobility | F37: I-95 | G37: US 301 (Exit 22) | H37: Robeson/Cumberland County Line | I37: Widen Roadway to 8 Lanes. | J37: 1 - Widen Existing Roadway | K37: 164338000 | L37: 164338000 | M37: 29.9057467 | N37: 24.48671346 | O37: 17.1466321 | Q37: 57.5
A38: H090517-B | B38: Cumberland | C38: Fayetteville Area MPO | D38: Division Needs | E38: U-5101 | F38: - New Route - SR 1437 (Shaw Road)-SR 1614 (Shaw Mill Road)-SR 1615 (Rosehill Road- Stacey Weaver Drive) | G38: US 401 (Ramsey Street) | H38: NC 210 (Murchison Road) | I38: SR 1437 (Shaw Road)-SR 1614 (Shaw Mill Road)-SR 1615 (Rosehill Road- Stacey Weaver Drive). interconnect and Widen to Multi-Lanes. | J38: 6 - Widen Existing Roadway and Construct Part on New Location | K38: 36477000 | L38: 36477000 | M38: N/A | N38: N/A | O38: 18.9738187 | Q38: 55.83
A39: H141478 | B39: Robeson | C39: Lumber River RPO | D39: Division Needs | F39: SR-1340 Prospect/Odum Road | G39: SR 1566 (Corinth Road) | H39: NC 711 (Third Street) | I39: Odum Road from Corinth to NC 711 Complete Street Conversion | J39: 4 - Upgrade Arterial to Superstreet | K39: 1775000 | L39: 1775000 | M39: N/A | N39: N/A | O39: 10.93219574 | Q39: 51.67
A40: H090517-A | B40: Cumberland | C40: Fayetteville Area MPO | D40: Division Needs | E40: U-5101 | F40: - New Route - SR 1437 (Shaw Road)-SR 1614 (Shaw Mill Road)-SR 1615 (Rosehill Road- Stacey Weaver Drive) | G40: NC 87 (Bragg Boulevard) | H40: NC 210 (Murchison Road) | I40: SR 1437 (Shaw Road)-SR 1614 (Shaw Mill Road)-SR 1615 (Rosehill Road- Stacey Weaver Drive). interconnect and Widen to Multi-Lanes. | J40: 1 - Widen Existing Roadway | K40: 15500000 | L40: 15500000 | M40: N/A | N40: N/A | O40: 17.1184275 | Q40: 50.83
A41: H090355 | B41: Cumberland | C41: Fayetteville Area MPO | D41: Division Needs | E41: U-2710 | F41: SR-1403 Reilly Road | G41: SR 3569 (Old Raeford Road) | H41: SR 1400 (Cliffdale Road) | I41: SR 3569 to SR 1400 (Cliffdale Road). Widen to Multi-Lanes. | J41: 1 - Widen Existing Roadway | K41: 13717000 | L41: 13717000 | M41: N/A | N41: N/A | O41: 16.45237514 | Q41: 50.83
A42: H129200-G | B42: Harnett | C42: Mid-Carolina RPO | D42: Statewide Mobility | F42: I-95 | G42: SR 1002 (Long Branch Road) | H42: I-40 | I42: Widen Roadway to 8 Lanes. | J42: 1 - Widen Existing Roadway | K42: 143388000 | L42: 143388000 | M42: 34.11810204 | N42: 24.98269532 | O42: 18.67214524 | Q42: 49.17
A43: H129200-F | B43: Cumberland | C43: Mid-Carolina RPO | D43: Statewide Mobility | F43: I-95 | G43: I-95 Business/US 301 (Exit 56) | H43: SR 1002 (Long Branch Road) | I43: Widen Roadway to 8 Lanes. | J43: 1 - Widen Existing Roadway | K43: 189970000 | L43: 189970000 | M43: 32.87660548 | N43: 24.08379554 | O43: 17.26899036 | Q43: 49.17
A44: H090464 | B44: Cumberland | C44: Fayetteville Area MPO | D44: Statewide Mobility | E44: U-4414 | F44: SR-1007 All American Freeway | G44: SR 1151 (Owen Drive) | H44: North of SR 1437 (Santa Fe Drive) | I44: Add Additional Lanes. | J44: 1 - Widen Existing Roadway | K44: 47903000 | L44: 47903000 | M44: 26.98366009 | N44: 22.74127305 | O44: 16.88019639 | Q44: 49.17
A45: H129200-D | B45: Cumberland | C45: Fayetteville Area MPO | D45: Statewide Mobility | F45: I-95 | G45: Robeson/Cumberland County Line | H45: NC 53 | I45: Widen Roadway to 8 Lanes. | J45: 1 - Widen Existing Roadway | K45: 127570000 | L45: 127570000 | M45: 27.80469615 | N45: 21.96934465 | O45: 16.26471681 | Q45: 49.17
A46: H090458-D | B46: Cumberland | C46: Fayetteville Area MPO | D46: Regional Impact | E46: U-4403 | F46: US-401 Ramsey Street | G46: I-295 | H46: Slocumb Road | I46: Widen to Multi-Lanes | J46: 1 - Widen Existing Roadway | K46: 12840000 | L46: 12840000 | M46: N/A | N46: 17.11953192 | O46: 13.36984414 | Q46: 49.17
A47: H090367 | B47: Cumberland | C47: Fayetteville Area MPO | D47: Division Needs | E47: U-2811 | F47: SR-1219 Ireland Drive | G47: SR 1141 (Cumberland Road) | H47: US 401 (Raeford Road) | I47: SR 1141 (Cumberland Road) to US 401 (Raeford Road). Widen to Multi-Lanes. | J47: 1 - Widen Existing Roadway | K47: 21298000 | L47: 21298000 | M47: N/A | N47: N/A | O47: 18.28713346 | Q47: 48.33
A48: H090633 | B48: Cumberland | C48: Fayetteville Area MPO | D48: Division Needs | F48: SR-1102 Gillis Hill Road | G48: US 401 (Raeford Road) | H48: SR 1418 (Lindsay Road) | I48: from Old Raeford Road to Lindsay Road in Hoke County. Widen to Multi-Lanes with Median. | J48: 1 - Widen Existing Roadway | K48: 20486000 | L48: 20486000 | M48: N/A | N48: N/A | O48: 17.74345714 | Q48: 48.33
A49: H141631 | B49: Harnett | C49: Mid-Carolina RPO | D49: Statewide Mobility | E49: I-5133 | F49: I-95 | G49: SR 1001 (Long Branch Road) | I49: Exit 71 Improve configuration and lengthen spans to for future widening. | J49: 8 - Improve Interchange | K49: 7290000 | L49: 7290000 | M49: 31.11895647 | N49: 23.19310318 | O49: 16.46295027 | Q49: 48.33
A50: H129200-B | B50: Robeson | C50: Lumber River RPO | D50: Statewide Mobility | F50: I-95 | G50: I-74 | H50: US 301 (Exit 22) | I50: Widen Roadway to 8 Lanes. | J50: 1 - Widen Existing Roadway | K50: 153787000 | L50: 153787000 | M50: 29.09395683 | N50: 22.67118669 | O50: 15.55591433 | Q50: 48.33
A51: H141565 | B51: Harnett | C51: Mid-Carolina RPO | D51: Statewide Mobility | E51: I-5133 | F51: I-95 | G51: SR 1808 (jonesboro Road) | I51: Exit 75 Improve interchange configuration and lengthen spans for future widening | J51: 8 - Improve Interchange | K51: 7290000 | L51: 7290000 | M51: 28.62546759 | N51: 20.97102186 | O51: 14.66447432 | Q51: 48.33
A52: H141552 | B52: Robeson | C52: Lumber River RPO | D52: Statewide Mobility | E52: I-5133 | F52: I-95 | G52: US-301 | I52: Exit 25 Improve interchange Configuration and lengthen spans for future widening. | J52: 8 - Improve Interchange | K52: 7290000 | L52: 7290000 | M52: 25.2155308 | N52: 20.05708152 | O52: 13.11671201 | Q52: 48.33
A53: H090459 | B53: Cumberland | C53: Fayetteville Area MPO | D53: Division Needs | E53: U-4404 | F53: SR-1400 Cliffdale Road | G53: Mcpherson Church Road | H53: SR 1404 (Morganton Road) | I53: Mcpherson Church Road to SR 1404 (Morganton Road). Widen to Multi-Lanes. | J53: 1 - Widen Existing Roadway | K53: 14836000 | L53: 14836000 | M53: N/A | N53: N/A | O53: 20.83479688 | Q53: 46.67
A54: H090514-B | B54: Cumberland | C54: Fayetteville Area MPO | D54: Regional Impact | E54: U-5015 | F54: NC-210 Murchison Road | G54: Langdon Street | H54: US 401 Bypass | I54: Widen to Multi-Lanes | J54: 1 - Widen Existing Roadway | K54: 15934000 | L54: 15934000 | M54: N/A | N54: 17.29506961 | O54: 14.35614467 | Q54: 45.83
A55: H090514-A | B55: Cumberland | C55: Fayetteville Area MPO | D55: Regional Impact | E55: U-5015 | F55: NC-210 Murchison Road | G55: Rowan Street | H55: Langdon Street | I55: Widen to Multi-Lanes | J55: 1 - Widen Existing Roadway | K55: 10276000 | L55: 10276000 | M55: N/A | N55: 16.45722581 | O55: 13.69597283 | Q55: 45.83
A56: H090309-A | B56: Columbus | C56: Cape Fear RPO | D56: Regional Impact | E56: R-5020 | F56: US-701 Madison Street/Powell Boulevard | G56: SR 1166 (Pleasant Plains Road) | H56: SR 1437 (Virgil Street) | I56: Widen to Multi-Lanes | J56: 1 - Widen Existing Roadway | K56: 18086000 | L56: 18086000 | M56: N/A | N56: 24.02343376 | O56: 19.16519166 | Q56: 45
A57: H111248 | B57: Cumberland | C57: Fayetteville Area MPO | D57: Division Needs | E57: FS-1206A | F57: SR-1112 Rockfish Road | G57: Strickland Bridge Road | H57: Camden Road | I57: Widen to Multilanes with Sidewalks | J57: 1 - Widen Existing Roadway | K57: 40719000 | L57: 40719000 | M57: N/A | N57: N/A | O57: 14.79364853 | Q57: 44.17
A58: H129200-A | B58: Robeson | C58: Lumber River RPO | D58: Statewide Mobility | F58: I-95 | G58: South Carolina State Line | H58: I-74 | I58: Widen Roadway to 6 Lanes. | J58: 1 - Widen Existing Roadway | K58: 107028000 | L58: 107028000 | M58: 25.11194952 | N58: 19.9056903 | O58: 13.5371134 | Q58: 44.17
A59: H090458-A | B59: Cumberland | C59: Fayetteville Area MPO | D59: Regional Impact | E59: U-4403 | F59: US-401 Ramsey Street | G59: NC 24/210 (Grove Street) | H59: Martin Luther King, Jr. Freeway | I59: Widen to Multi-Lanes | J59: 1 - Widen Existing Roadway | K59: 9056000 | L59: 9056000 | M59: N/A | N59: 22.04070651 | O59: 18.20455248 | Q59: 43.33
A60: H090172-B | B60: Harnett | C60: Mid-Carolina RPO | D60: Regional Impact | E60: R-2609 | F60: US-401 New Route - Lillington Bypass | G60: US 401 south of Lillington | H60: US 401 north of Lillington | I60: Construct Freeway on New Location | J60: 5 - Construct Roadway on New Location | K60: 91066000 | L60: 91066000 | M60: N/A | N60: 24.2203274 | O60: 16.40212958 | Q60: 43.33
A61: H090818 | B61: Harnett | C61: Capital Area MPO | D61: Regional Impact | F61: - New Route - Angier Eastern Bypass | G61: SR 1544 (Guy Road) | H61: NC 55 | I61: NC 55 Alt 2-Ln interim Impr. Connecting Existing Roadways | J61: 6 - Widen Existing Roadway and Construct Part on New Location | K61: 47904000 | L61: 47904000 | M61: N/A | N61: 21.59491845 | O61: 15.94591121 | Q61: 43.33
A62: H090936-E | B62: Columbus | C62: Cape Fear RPO | D62: Statewide Mobility | F62: I-74 , US-74 | G62: SR 1506 (Boardman Road) | I62: Upgrade At-grade Intersection to Interchange. | J62: 7 - Upgrade At-grade Intersection to Interchange or Grade Separation | K62: 7130000 | L62: =+K62 -> 7130000 | M62: 14.95866094 | N62: 17.26933835 | O62: 8.266034335 | Q62: 43.33
A63: H090936-C | B63: Robeson | C63: Lumber River RPO | D63: Statewide Mobility | F63: I-74 , US-74 | G63: SR 2225 (Creek Road) | I63: Upgrade At-grade Intersection to Grade Separation. | J63: 7 - Upgrade At-grade Intersection to Interchange or Grade Separation | K63: 5750000 | L63: 5750000 | M63: 10.06882065 | N63: 11.24323583 | O63: 6.236440761 | Q63: 43.33
A64: H090287-D | B64: Columbus | C64: Cape Fear RPO | D64: Statewide Mobility | E64: R-4462 | F64: US-74 , US-76 | G64: SR 1740 (Old Lake Road) | I64: Upgrade At-grade Intersection to Grade Separation | J64: 7 - Upgrade At-grade Intersection to Interchange or Grade Separation | K64: 5750000 | L64: 5750000 | M64: 7.964518945 | N64: 11.31535439 | O64: 5.966814393 | Q64: 43.33
A65: H090498 | B65: Cumberland | C65: Fayetteville Area MPO | D65: Regional Impact | E65: U-4900 | F65: NC-210 Murchison Road | G65: US 401 Bypass | H65: Bernadine Street | I65: Add Additional Lanes | J65: 1 - Widen Existing Roadway | K65: 21610000 | L65: 21610000 | M65: N/A | N65: 17.58597342 | O65: 14.15776422 | Q65: 42.5
A66: H129200-E | B66: Cumberland | C66: Fayetteville Area MPO | D66: Statewide Mobility | F66: I-95 | G66: NC 53 | H66: I-95 Business/US 301 (Exit 56) | I66: Widen Roadway to 8 Lanes | J66: 1 - Widen Existing Roadway | K66: 61631000 | L66: 61631000 | M66: 25.76144835 | N66: 19.86260119 | O66: 14.23509446 | Q66: 40.83
A67: H090634 | B67: Cumberland | C67: Fayetteville Area MPO | D67: Division Needs | F67: - Rim Road | G67: Old Raeford Road | H67: Cliffdale Road | I67: from Raeford Road to Cliffdale Road Widen to Multi-Lanes with Median. | J67: 1 - Widen Existing Roadway | K67: 25549000 | L67: 25549000 | M67: N/A | N67: N/A | O67: 15.07278526 | Q67: 39.17
A68: H111250 | B68: Cumberland | C68: Fayetteville Area MPO | D68: Division Needs | F68: SR-1112 Rockfish Road | G68: Camden Road | H68: Golfview Road | I68: Widen to Multilanes with Sidewalks | J68: 1 - Widen Existing Roadway | K68: 17570000 | L68: 17570000 | M68: N/A | N68: N/A | O68: 16.30863669 | Q68: 36.67
A69: H090402 | B69: Cumberland | C69: Fayetteville Area MPO | D69: Division Needs | E69: U-3424 | F69: SR-1410 Bunce Road, SR-1411 | G69: US 401 (Raeford Road) | H69: SR 1400 (Cliffdale Road) | I69: Widen to Multi-Lanes | J69: 1 - Widen Existing Roadway | K69: 14575000 | L69: 14575000 | M69: N/A | N69: N/A | O69: 15.55504359 | Q69: 36.67
A70: H090172-D | B70: Wake | C70: Capital Area MPO | D70: Regional Impact | E70: R-2609 | F70: US-401 New Route - Fuquay Varina Bypass | G70: US 401 south of Fuquay-Varina | H70: NC 55 southeast of Fuquay-Varina | I70: Construct Freeway on New Location | J70: 5 - Construct Roadway on New Location | K70: 97327000 | L70: 97327000 | M70: N/A | N70: 26.42020023 | O70: 17.3663879 | Q70: 35
A71: H111261 | B71: Harnett | C71: Mid-Carolina RPO | D71: Division Needs | F71: - New Route | G71: Erwin Road (SR 1718) | H71: Meadowlark Road (SR 1715) | I71: New Four-Lane Facility from Erwin Road (SR 1718) at the Tilghman Drive (SR 1860) intersection to Meadowlark Road (SR 1715), USing Godwin Dirt Path Road and Powell Road, with Raised Median, Wide Outside Lanes and Sidewalks. | J71: 5 - Construct Roadway on New Location | K71: 21645000 | L71: 21645000 | M71: N/A | N71: N/A | O71: 14.51924483 | Q71: 35
A72: H090172-C | B72: Harnett | C72: Capital Area MPO | D72: Regional Impact | E72: R-2609 | F72: US-401 | G72: Lillington Bypass | H72: Fuquay-Varina Bypass | I72: Widen to Multi-Lanes | J72: 1 - Widen Existing Roadway | K72: 63202000 | L72: 63202000 | M72: N/A | N72: 21.59692219 | O72: 14.45345508 | Q72: 35
A73: H090465 | B73: Cumberland | C73: Fayetteville Area MPO | D73: Regional Impact | E73: U-4415 | F73: NC-53 Cedar Creek Road, NC-210 | G73: I-95 | H73: NC 53-210 Junction | I73: I-95 to NC 53-210 Junction. Widen to Multi-Lanes. | J73: 1 - Widen Existing Roadway | K73: 20240000 | L73: 20240000 | M73: N/A | N73: 18.96528576 | O73: 13.92457022 | Q73: 35
A74: H090657 | B74: Harnett | C74: Fayetteville Area MPO | D74: Regional Impact | F74: NC-210 | G74: NC 87 | H74: US 401 | I74: Widen to Multi-Lanes with Wide Shoulders and Enhance Corridor from Highway 87 in Spring Lake (Cumberland County) to US Highway 401 in Lillington. | J74: 1 - Widen Existing Roadway | K74: 192905000 | L74: 192905000 | M74: N/A | N74: 19.42298066 | O74: 13.38945978 | Q74: 35
A75: H090287-C | B75: Columbus | C75: Cape Fear RPO | D75: Statewide Mobility | E75: R-4462 | F75: US-74 , US-76 | G75: SR 1735 (Chauncey Town Road) | I75: Upgrade At-grade Intersection to Interchange | J75: 7 - Upgrade At-grade Intersection to Interchange or Grade Separation | K75: 5750000 | L75: 5750000 | M75: 7.566501465 | N75: 11.63934851 | O75: 5.019104426 | Q75: 35
A76: H090287-E | B76: Columbus | C76: Cape Fear RPO | D76: Statewide Mobility | E76: R-4462 | F76: US-74 , US-76 | G76: NC 214 | I76: Upgrade At-grade Intersection to Interchange. | J76: 7 - Upgrade At-grade Intersection to Interchange or Grade Separation | K76: 7130000 | L76: 7130000 | M76: 9.085128025 | N76: 10.95543654 | O76: 4.660075096 | Q76: 35
A77: H090837 | B77: Harnett | C77: Fayetteville Area MPO | D77: Division Needs | F77: SR-1115 Buffalo Lake Road | G77: NC 27 | H77: NC 87 | I77: Widen to Multi-Lanes and Enhance with Sidewalks from Highway 27 to Highway 87 | J77: 1 - Widen Existing Roadway | K77: 40144000 | L77: 40144000 | M77: N/A | N77: N/A | O77: 13.56048263 | Q77: 31.67
A78: H141489 | B78: Columbus | C78: Cape Fear RPO | D78: Statewide Mobility | E78: R-2561B | F78: NC-87 | G78: NC 11 | I78: Convert at grade intersection to grade separation, square loop | J78: 7 - Upgrade At-grade Intersection to Interchange or Grade Separation | K78: 18600000 | L78: 18600000 | M78: 16.56450648 | N78: 16.16274981 | O78: 12.17366455 | Q78: 31.67
A79: H090172-A | B79: Harnett | C79: Mid-Carolina RPO | D79: Regional Impact | E79: R-2609 | F79: US-401 Ramsey Street | G79: Multi-Lanes North of Fayetteville in Cumberland County | H79: Lillington Bypass | I79: Widen to Multi-Lanes | J79: 1 - Widen Existing Roadway | K79: 127544000 | L79: 127544000 | M79: N/A | N79: 16.12964534 | O79: 11.30858099 | Q79: 30.84
A80: H090480 | B80: Cumberland | C80: Fayetteville Area MPO | D80: Division Needs | E80: U-4709 | F80: SR-1112 Rockfish Road / Golfview Road, SR-1115 | G80: SR 1115 (Golfview Road) / SR 1112 (Rockfish Road) | H80: NC 59 (Main Street) | I80: SR 1112 (Rockfish Road) from SR 1115 (Golfview Road) to NC 59 (Main Street) and SR 1115 (Golfview Road) from SR 1112 (Rockfish Road) to NC 59 (Main Street). Widen to Four Lanes Divided. | J80: 1 - Widen Existing Roadway | K80: 12062000 | L80: 12062000 | M80: N/A | N80: N/A | O80: 18.27750075 | Q80: 30
A81: H111067 | B81: Robeson | C81: Lumber River RPO | D81: Regional Impact | F81: US-301 | G81: NC 20 | H81: I-95 Exit 25 | I81: Widen Roadway to Four Lanes with a Median | J81: 1 - Widen Existing Roadway | K81: 18052000 | L81: 18052000 | M81: N/A | N81: 10.53919045 | O81: 9.115737171 | Q81: 30
A82: H111242 | B82: Cumberland | C82: Fayetteville Area MPO | D82: Division Needs | F82: SR-1115 Golfview Road | G82: SR 1112 (Rockfish Road) | H82: Quarter Horse Run | I82: Widen to Multilanes with Sidewalks | J82: 1 - Widen Existing Roadway | K82: 23513000 | L82: 23513000 | M82: N/A | N82: N/A | O82: 15.25860937 | Q82: 28.34
A83: H111244 | B83: Cumberland | C83: Fayetteville Area MPO | D83: Division Needs | F83: SR-1104 Strickland Bridge Road | G83: US 401 | H83: SR 1112 (Stoney Point Road) | I83: Widen to Multilanes with Sidewalks | J83: 1 - Widen Existing Roadway | K83: 47601000 | L83: 47601000 | M83: N/A | N83: N/A | O83: 13.46845553 | Q83: 28.34
A84: H090287-A | B84: Columbus | C84: Cape Fear RPO | D84: Statewide Mobility | E84: R-4462 | F84: US-74 , US-76 | G84: Whiteville | H84: I-140/US 17 Wilmington Bypass | I84: Upgrade Roadway to interstate Standards | J84: 2 - Upgrade Arterial to Freeway/Expressway | K84: 54001000 | L84: 54001000 | M84: 17.56160674 | N84: 15.58377322 | O84: 9.354254871 | Q84: 28.33
A85: H090936-A | B85: Columbus | C85: Cape Fear RPO | D85: Statewide Mobility | F85: I-74 , US-74 | G85: NC 41 | H85: SR 1585 | I85: Upgrade US 74 to interstate Standards from NC 41 in Lumberton to SR 1585 (Union Valley Road) West of Whiteville | J85: 3 - Upgrade Expressway to Freeway | K85: 33139000 | L85: 33139000 | M85: 12.70404856 | N85: 13.1554856 | O85: 7.689182225 | Q85: 28.33
A86: H111141 | B86: Cumberland | C86: Fayetteville Area MPO | D86: Division Needs | F86: SR-1216 Camden Road | G86: Proposed I-295 | H86: Rockfish Road in Hoke County | I86: Widen to 4 Lane Divided with Sidewalks | J86: 1 - Widen Existing Roadway | K86: 16916000 | L86: 16916000 | M86: N/A | N86: N/A | O86: 11.75590747 | Q86: 25
A87: H111243 | B87: Cumberland | C87: Fayetteville Area MPO | D87: Division Needs | F87: SR-1106 Bailey Lake Road | G87: Strickland Bridge Road | H87: Bingham Drive | I87: Widen to Multilanes with Sidewalks | J87: 1 - Widen Existing Roadway | K87: 13648000 | L87: 13648000 | M87: N/A | N87: N/A | O87: 11.10901347 | Q87: 25
A88: H111241 | B88: Cumberland | C88: Fayetteville Area MPO | D88: Division Needs | F88: SR-1118 Parkton Road | G88: NC 59 | H88: SR 1120 (Natural View Drive) | I88: Widen to Multilanes with Sidewalks. | J88: 1 - Widen Existing Roadway | K88: 27053000 | L88: 27053000 | M88: N/A | N88: N/A | O88: 10.42622978 | Q88: 25
A89: H111247 | B89: Cumberland | C89: Fayetteville Area MPO | D89: Division Needs | F89: SR-1112 Stoney Point Road | G89: Lindsey Road | H89: Strickland Bridge Road | I89: Widen to Multilanes with Sidewalks | J89: 1 - Widen Existing Roadway | K89: 21145000 | L89: 21145000 | M89: N/A | N89: N/A | O89: 9.983689406 | Q89: 25
A90: H090304 | B90: Robeson | C90: Lumber River RPO | D90: Division Needs | E90: R-4907 | F90: - Normal Street | G90: NC 711 | H90: SR 1339 (Deep Branch Road) | I90: Pembroke - Widen to include Curb and Gutter and Sidewalk. | J90: 1 - Widen Existing Roadway | K90: 7340000 | L90: 7340000 | M90: N/A | N90: N/A | O90: 8.421836049 | Q90: 24.17
A91: H090123-B | B91: Harnett | C91: Capital Area MPO | D91: Regional Impact | E91: R-2540 | F91: NC-55 | G91: Church Street | H91: Old Stage Road | I91: Widen to Multi-Lanes | J91: 1 - Widen Existing Roadway | K91: 38202000 | L91: 38202000 | M91: N/A | N91: 17.1943984 | O91: 11.40627513 | Q91: 23.34
A92: H090760 | B92: Harnett | C92: Mid-Carolina RPO | D92: Regional Impact | F92: US-421 | G92: US 401 | H92: NC 87 | I92: Widen to Multi-Lanes and Enhance Corridor from Lillington in Harnett County to Sanford in Lee County. | J92: 1 - Widen Existing Roadway | K92: 152614000 | L92: 152614000 | M92: N/A | N92: 15.80089004 | O92: 11.34313944 | Q92: 23.34
A93: H090587 | B93: Wake | C93: Capital Area MPO | D93: Division Needs | F93: - Piney Grove Wilbon Road | G93: US 401 | H93: SR 1114 (Ralph Stevens Road) | I93: Widening from 2 to 4 Lanes. This Project Ends Where the Piney Grove Wilbon Realignment Project Begins. | J93: 1 - Widen Existing Roadway | K93: 58161000 | L93: 58161000 | M93: N/A | N93: N/A | O93: 11.17423773 | Q93: 23.34
A94: H090133-B | B94: Bladen | C94: Mid-Carolina RPO | D94: Statewide Mobility | E94: R-2561B | F94: NC-87 | G94: SR 1730 (Elwell Ferry Road) in Bladen County | H94: NC 11 in Columbus County | I94: Widen to Multi-Lanes. | J94: 1 - Widen Existing Roadway | K94: 49800000 | L94: =+K94 -> 49800000 | M94: 12.70264748 | N94: 12.65483968 | O94: 9.2608864 | Q94: 23.34
A95: H140395 | B95: Columbus | C95: Cape Fear RPO | D95: Statewide Mobility | F95: US-74 , US-76 | G95: west of SR 1844 (Oscar Blanks Rd) | H95: Columbus/Brunswick County Line | I95: Construct new expressway (Delco Bypass) on new location pursuant to FS-9903A and 2007 Columbus Co. CTP. | J95: 5 - Construct Roadway on New Location | K95: 101482000 | L95: 101482000 | M95: 13.44487847 | N95: 14.27549406 | O95: 8.615264073 | Q95: 23.34
A96: H090133-C | B96: Columbus | C96: Cape Fear RPO | D96: Statewide Mobility | E96: R-2561C | F96: NC-87 | G96: NC 11 | H96: US 74/76 | I96: Widen to Multi-Lanes. | J96: 1 - Widen Existing Roadway | K96: 98000000 | L96: 98000000 | M96: 19.23503278 | N96: 16.97704053 | O96: 12.56330507 | Q96: 16.67
A97: H090667 | B97: Robeson | C97: Lumber River RPO | D97: Division Needs | F97: SR-1536 Carthage Road | G97: SR 1528 | H97: 19Th Street | I97: Replace Bridge at Exit 19 (I-95) and Widen Carthage Road (SR 1536) to Four Lanes from 19Th Street in Lumberton to Mcmillans Beach Road at SR 1528.. | J97: 1 - Widen Existing Roadway | K97: 16148000 | L97: 16148000 | M97: N/A | N97: N/A | O97: 11.13028233 | Q97: 16.67
A98: H090123-A | B98: Harnett | C98: Mid-Carolina RPO | D98: Regional Impact | E98: R-2540 | F98: NC-55 | G98: US 421 | H98: Old Stage Road | I98: Widen to Multi-Lanes | J98: 1 - Widen Existing Roadway | K98: 104294000 | L98: 104294000 | M98: N/A | N98: 14.4513673 | O98: 10.78583447 | Q98: 16.67
A99: H090839 | B99: Harnett | C99: Mid-Carolina RPO | D99: Division Needs | F99: SR-1718 Erwin Road/Denim Drive | G99: 13Th Street | H99: US 421 (Cumberland Street) | I99: Widen to Multi-Lanes, Construct Curb, Gutter, and Raised Median from 13Th Street in Erwin to US 421 in Dunn. | J99: 1 - Widen Existing Roadway | K99: 31768000 | L99: 31768000 | M99: N/A | N99: N/A | O99: 10.60262489 | Q99: 16.67
A100: H090668 | B100: Robeson | C100: Lumber River RPO | D100: Regional Impact | F100: NC-20 | G100: Martin Luther King, Jr. Drive | H100: NC 87 | I100: Widen NC 20 to Four Lanes from Martin Luther King, Jr. Drive in Street Pauls to NC 87 in Bladen County. | J100: 1 - Widen Existing Roadway | K100: 62441000 | L100: 62441000 | M100: N/A | N100: 13.2704386 | O100: 10.05779217 | Q100: 16.67
A101: H111066 | B101: Robeson | C101: Lumber River RPO | D101: Regional Impact | F101: US-301 | G101: I-95 Exit 33 | H101: NC 20 in St. Pauls | I101: Widen Roadway to Four Lanes with a Median | J101: 1 - Widen Existing Roadway | K101: 15675000 | L101: 15675000 | M101: N/A | N101: 11.60687999 | O101: 9.881984363 | Q101: 16.67
A102: H090665 | B102: Robeson | C102: Lumber River RPO | D102: Division Needs | F102: SR-1003 Chicken Road | G102: NC 711 | H102: I-74 | I102: Widen SR 1003 to Four Lanes from NC 711 South of Pembroke to the I-74 and Dew Road(SR 1155) interchange.. | J102: 1 - Widen Existing Roadway | K102: 33186000 | L102: 33186000 | M102: N/A | N102: N/A | O102: 7.398568862 | Q102: 16.67
A103: H111068 | B103: Robeson | C103: Lumber River RPO | D103: Division Needs | F103: SR-1003 | G103: I-95 | H103: NC 41 | I103: Widen Roadway to Four Lanes with a Median | J103: 1 - Widen Existing Roadway | K103: 42616000 | L103: 42616000 | M103: N/A | N103: N/A | O103: 6.874173823 | Q103: 16.67
A104: H141735 | B104: Sampson | C104: Mid-Carolina RPO | D104: Regional Impact | F104: US-421 | G104: NC 55 | H104: NC 210 | I104: Widen existing roadway to multi-lanes from NC 55 intersection in Harnett County to just north of the NC 210 intersection in Pender County. | J104: 1 - Widen Existing Roadway | K104: 512883000 | L104: 512883000 | M104: N/A | N104: 13.88993118 | O104: 13.62569937 | Q104: 15
A105: H090237-C | B105: Brunswick | C105: Cape Fear RPO | D105: Statewide Mobility | E105: R-3436 | F105: I-74 New Route | G105: I-74 New Location south of US 17 near NC 130 | H105: US 74/76 East of Whiteville in Columbus County | I105: Construct Freeway on New Location. | J105: 5 - Construct Roadway on New Location | K105: 284995000 | L105: 284995000 | M105: 13.61195616 | N105: 10.7158001 | O105: 11.71569802 | Q105: 15
A106: H090160-B | B106: Robeson | C106: Lumber River RPO | D106: Regional Impact | E106: R-2593B | F106: NC-211 New Route - Red Springs Bypass | G106: NC 71 Northeast of Red Springs | H106: NC 72/710 South of Red Springs | I106: Construct Two Lanes, Part on New Location, on Multi-Lane Right of Way | J106: 5 - Construct Roadway on New Location | K106: 29700000 | L106: 29700000 | M106: N/A | N106: 12.43200538 | O106: 9.820344173 | Q106: 15
A107: H090306 | B107: Columbus | C107: Cape Fear RPO | D107: Regional Impact | E107: R-5013 | F107: US-701 , NC-410 | G107: South Carolina State Line | H107: US 76 in Chadbourn | I107: Widen to Multi-Lanes. | J107: 1 - Widen Existing Roadway | K107: 115099000 | L107: 115099000 | M107: N/A | N107: 13.11330458 | O107: 9.504916478 | Q107: 15
A108: H090441 | B108: Robeson | C108: Lumber River RPO | D108: Division Needs | E108: U-3814 | F108: - New Route - Southern Loop (Starlite Drive Extension) | G108: NC 41 (M. L. King Drive) | H108: SR 2208 (Hestertown Road) | I108: NC 41 (M. L. King Drive) to SR 2202 (Hestertown Road). Two Lanes on Multi-Lane Right of Way, New Location. | J108: 5 - Construct Roadway on New Location | K108: 12835000 | L108: 12835000 | M108: N/A | N108: N/A | O108: 9.351028957 | Q108: 15
A109: H090160-A | B109: Robeson | C109: Lumber River RPO | D109: Regional Impact | E109: R-2593A | F109: NC-211 New Route - Red Springs Bypass | G109: NC 71 Southwest of Red Springs | H109: NC 71 Northeast of Red Springs | I109: Construct Two Lanes, Part on New Location, on Multi-Lane Right of Way | J109: 5 - Construct Roadway on New Location | K109: 22515000 | L109: 22515000 | M109: N/A | N109: 11.30889641 | O109: 8.777440034 | Q109: 15
A110: H111065 | B110: Robeson | C110: Lumber River RPO | D110: Regional Impact | F110: NC-130-BUS- | G110: I-95 | H110: NC 710 | I110: Add Turn Lanes at Major intersections. Widen to 3 Lanes from Hickory St to Hines St. | J110: 1 - Widen Existing Roadway | K110: 15258000 | L110: 15258000 | M110: N/A | N110: 10.26654986 | O110: 8.265353556 | Q110: 15
A111: H090133-A | B111: Bladen | C111: Mid-Carolina RPO | D111: Statewide Mobility | E111: R-2561A | F111: NC-87 | G111: Elizabethtown Bypass | H111: SR 1730 (Elwell Ferry Road) | I111: Widen to Multi-Lanes. | J111: 1 - Widen Existing Roadway | K111: 77600000 | L111: 77600000 | M111: 11.21124419 | N111: 10.8815372 | O111: 7.977220909 | Q111: 15
A112: H090761 | B112: Sampson | C112: Mid-Carolina RPO | D112: Regional Impact | F112: US-13 | G112: I-95 | H112: I-40 | I112: Widen to Multi-Lanes from I-95 in Cumberland County to I-40 in Sampson County. | J112: 1 - Widen Existing Roadway | K112: 204786000 | L112: 204786000 | M112: N/A | N112: 13.35571341 | O112: 14.65706286 | Q112: 8.33
A113: H129010 | B113: Cumberland | C113: Fayetteville Area MPO | D113: Division Needs | F113: SR-1131 Cameron Road / Legion Road, SR-1132 | G113: SR 1132 (Legion Road) / SR 1131 (Cameron Road) | H113: NC 59 (Main Street) / SR 1363 (Elk Road) | I113: SR 1131 Cameron Road from SR 1132 (Legion Road) to NC 59 (Main Street) and SR 1132 (Legion Road) from SR 1131 (Cameron Road) to SR 1363 (Elk Road). Widen to Multi-Lanes | J113: 1 - Widen Existing Roadway | K113: 8000000 | L113: 8000000 | M113: N/A | N113: N/A | O113: 10.02368659 | Q113: 8.33
A114: H090115 | B114: Moore | C114: Triangle Area RPO | D114: Statewide Mobility | E114: R-2529 | F114: NC-24 , NC-27 | G114: Carthage Bypass | H114: NC 87 | I114: Widen to Multi-Lanes | J114: 1 - Widen Existing Roadway | K114: 162547000 | L114: 162547000 | M114: 13.55072808 | N114: 13.17444226 | O114: 9.194448732 | Q114: 8.33
A115: H111260 | B115: Harnett | C115: Mid-Carolina RPO | D115: Division Needs | F115: - New Route | G115: Highway 301 | H115: Jonesboro Road (SR 1808) | I115: New Multi-Lane Connecting Route from US Highway 301 to Jonesboro Road (SR 1808) and Widening Existing Jonesboro Road to Multi-Lanesto interstate 95 at Exit 75, with Bike Lanes. | J115: 6 - Widen Existing Roadway and Construct Part on New Location | K115: 19495000 | L115: 19495000 | M115: N/A | N115: N/A | O115: 8.470657481 | Q115: 8.33
A116: H090664 | B116: Robeson | C116: Lumber River RPO | D116: Regional Impact | F116: NC-20 | G116: US 401 Business (East Central Avenue) | H116: US 301 | I116: Widen NC 20 to Four Lanes from US 401 Business (East Central Avenue) in Raeford to US 301 in Saint Pauls. | J116: 1 - Widen Existing Roadway | K116: 128340000 | L116: 128340000 | M116: N/A | N116: 9.294496893 | O116: 7.132675573 | Q116: 8.33
A117: H090840 | B117: Harnett | C117: Mid-Carolina RPO | D117: Division Needs | F117: - New Route | G117: NC 55 | H117: US 421 | I117: Construct Multi-Lane Facility from NC 55 to US 421. Part Will Be on New Location, But Where Possibly, USe and Improve SR 1907 (Erwin Access Road) and Street Matthews Road. | J117: 6 - Widen Existing Roadway and Construct Part on New Location | K117: 11411000 | L117: 11411000 | M117: N/A | N117: N/A | O117: 6.170089063 | Q117: 8.33
A118: H111064 | B118: Robeson | C118: Fayetteville Area MPO | D118: Division Needs | F118: SR-1710 Glenn Road | G118: SR 1709 (Chason Road) | H118: Future I-295 interchange in Cumberland County | I118: Widen Facility to Three Lanes.. | J118: 1 - Widen Existing Roadway | K118: 16470000 | L118: 16470000 | M118: N/A | N118: N/A | O118: 4.902786665 | Q118: 8.33
A119: H111308 | B119: Robeson | C119: Lumber River RPO | D119: Division Needs | F119: SR-1984 Linkhaw Road, Hornets Road | G119: SR 1997 (Fayetteville Road) | H119: NC 41 | I119: Widen Roadway to Four Lanes with a Median | J119: 1 - Widen Existing Roadway | K119: 17984000 | L119: 17984000 | M119: N/A | N119: N/A | O119: 7.059817119 | Q119: 6.67
A120: H090635 | B120: Cumberland | C120: Fayetteville Area MPO | D120: Division Needs | F120: - Hoke Loop Road | G120: Raeford Road | H120: Cliffdale Road | I120: from Raeford Road to Cliffdale Road Widen to Multi-Lanes with Median. | J120: 1 - Widen Existing Roadway | K120: 25344000 | L120: 25344000 | M120: N/A | N120: N/A | O120: 7.273551728 | Q120: 0
A123: Aviation
A125: SpotID | B125: County | C125: RPO | D125: Specific Improvement Type | E125: Project Local ID | F125: Project Category | G125: TIP | H125: Route Facility Name | I125: Project Title | J125: Project Description | M125: Cost to DOT | N125: Division Needs Quan Score | O125: Point Assignment
A126: A130359 | B126: Harnett | C126: Mid-Carolina RPO | D126: 105 - Land Acquisition - Runway Approach (easement and/or fee simple). | E126: 2189 | F126: Division Needs | H126: HRJ - Harnett Regional Jetport | I126: RUNWAY 23 LAND ACQ EASEMENT & CLEARING | J126: Runway 23 Land Acquisition Easement and Clearing for LPV (Localizer Performance with Vertical guidance) Approach and LUC; this project will purchase sufficient easement and clearing for a LPV Approach and land acquisition for Land Use Compatibility (LUC). (includes Project Request Numbers: 2189 ) | M126: 357597 | N126: 38.05 | O126: 100
A127: A130322 | B127: Robeson | C127: Lumber River RPO | D127: 1110 - Design | E127: 2418 | F127: Division Needs | H127: LBT - Lumberton Regional Airport | I127: PARTIAL PARALLEL TAXIWAY-RUNWAY 5 | J127: This project will provide a partial parallel taxiway at the Runway 5 end of Runway 5-23. (includes Project Request Numbers: 2418 ) | M127: 408235.5 | N127: 28.095 | O127: 100
A128: A130103 | B128: Columbus | C128: Cape Fear RPO | D128: 1225 - Clearing / Grading / Drainage / Paving / Marking / Edge Lighting / Signage | E128: 2385 | F128: Division Needs | H128: CPC - Columbus County Municipal | I128: APRON EXPANSION | J128: Project includes construction of a 170'x170' Apron Expansion to provide additional aircraft parking on the west side of the existing apron. The expansion will allow for the airport to provide adequate space for aircraft maneuvering in the terminal area and will allow the airport to meet the minimum requirements for aircraft parking (includes Project Request Numbers: 2385 ) | M128: 342000 | N128: 24.775 | O128: 100
A131: Transit
A133: SpotID | B133: Route Facility Name | C133: NCDOT Division | D133: Project Type | E133: Specific Project Improvement Type | F133: Project Category | G133: Project Description | I133: Total Project Cost | J133: State Share | K133: Local Share | L133: Federal Share | M133: Division Needs Total Score | N133: First MPO/RPO | O133: Point Assignment
A134: T130124 | B134: Fayetteville FY16 Expansion Bus | C134: 6 | D134: Expansion Vehicle | E134: Expansion-Fixed Route-New Route | F134: Division Needs | G134: One (1) expansion bus for adding a new route along Country Club/Pamalee Drive and connecting Fayetteville State University to the Cross Creek mall transit center and shopping areas on Ramsey Street. The bus would be powered by a CNG fueled engine at an estimated cost of $460,000. | I134: 460000 | J134: 34500 | K134: 34500 | L134: 391000 | M134: 11.29 | N134: Fayetteville Area MPO | O134: 100
A137: Bike/Ped
A139: SPOT ID | B139: TIP | C139: Route | D139: From / Cross Street | E139: To | F139: Description | G139: Project Length | H139: Specific Improvement Type | I139: Cost to NCDOT | J139: Division Needs Quantitative Score (Out of 50) | K139: First MPO/RPO | L139: Point Assignment
A140: B141070 | B140: EB-5540 | C140: Little Cross Creek Greenway | D140: Filter Plant Drive | E140: Rowan Street | F140: Construct multiuse trail from West of Filter Plant Dr/ Ames St intersection to Rowan St Bridge | G140: 1.1235748 | H140: 2. Construct multi-use trail / greenway / sidepath or on-road bike lane on local roadway | I140: 480000 | J140: 33.32674928 | K140: Fayetteville Area MPO | L140: 100

Sheet Regional Scoring
B2: CAMPO | C2: FAMPO | D2: Lumber Rvr | E2: Mid-Carlna
A3: Bladen | B3: Columbus | C3: Cumberland | D3: Harnett | E3: Robeson | AH3: Scoring Data
A4: SPOT ID | B4: =+AX4 -> First County | C4: First MPO/RPO | D4: Project Category | E4: TIP | F4: Route | G4: From / Cross Street | H4: To | I4: Description | J4: Specific Improvement Type | K4: Cost to NCDOT | L4: Statewide Quantiative Score (Out of 100) | M4: Regional Impact Quantiative Score (Out of 70) | N4: Division Needs Quantiative Score (Out of 50) | O4: Points Assigned | P4: Total Division Regional Score | R4: Existing Congestion | S4: Safety Score | T4: Cost Effectiveness | U4: Freight Volume | V4: Corridor Continuity | W4: Serves Activity Center | Y4: Congestion | Z4: [Travel Time] Benefit/Cost | AA4: Safety | AB4: Multimodal + [Freight & Military] | AC4: Economic Competitiveness | AD4: Accessibility / Connectivity | AE4: Lane Width | AF4: [Paved] Shoulder Width | AH4: Volume to Capacity | AI4: Cost Effectiveness | AJ4: Freight Volume | AL4: First MPO/RPO | AM4: First MPO/RPO % | AN4: Second MPO/RPO | AO4: Second MPO/RPO % | AP4: Third MPO/RPO | AQ4: Third MPO/RPO % | AR4: First Division | AS4: First Division % | AT4: Second Division | AU4: Second Division % | AV4: Third Division | AW4: Third Division % | AX4: First County | AY4: First County % | AZ4: Second County | BA4: Second County % | BB4: Third County | BC4: Third County % | BD4: Fourth County | BE4: Fourth County % | BF4: Highest Division | BG4: Funding Region | BH4: All Divisions | BI4: All MPOs/RPOs | BJ4: All Counties | BK4: Existing Length (Miles) | BL4: Project Length (Miles) | BM4: Existing Facility Type | BN4: Project Facility Type | BO4: Existing Lanes Per Direction | BP4: Project Lanes Per Direction | BQ4: Existing Median Type | BR4: Project Median Type | BS4: Existing Speed Limit | BT4: Project Speed Limit | BU4: Truck % | BV4: Auto % | BW4: Existing Volume | BX4: Existing Capacity | BY4: Existing Volume / Capacity Ratio | BZ4: Auto Volume | CA4: Truck Volume | CB4: Travel Time Savings Over 30 Years Autos (Hrs) | CC4: Travel Time Savings Over 30 Years Trucks (Hrs) | CD4: Travel Time Savings Over 30 Years Total (Hrs) | CE4: Travel Time Savings Over 30 Years Total ($) | CF4: Crash Density Points Segment | CG4: Crash Severity Points Segment | CH4: Critical Crash Rate Points Segment | CI4: Crash Frequency Points Intersection | CJ4: Severity Index Points Intersection | CK4: Long Term Employment | CL4: Percent Change In Value Added | CM4: Non-Interstate STRAHNet Route | CN4: Direct Connection to Transportation Terminal | CO4: Existing Lane Width | CP4: DOT Design Standard Lane Width | CQ4: Existing Roadway Has Curb & Gutter | CR4: Existing Paved Shoulder Width | CS4: DOT Design Paved Shoulder Width | CT4: Existing Cross Section | CU4: Project Cross Section | CV4: Existing Access Control | CW4: Project Access Control | CX4: County Tier | CY4: Upgrade Roadway Eligible | CZ4: Census Average Commute Time | DA4: Construction Cost | DB4: Right-Of-Way Cost | DC4: Utilities Cost | DD4: Actual Project Cost | DE4: Other Funds | DF4: Cost to NCDOT | DG4: Cost Used in Benefit/Cost Analysis | DH4: Other Funds Source
A5: H090458-B | B5: Cumberland | C5: Fayetteville Area MPO | D5: Regional Impact | E5: U-4403 | F5: US-401 Ramsey Street | G5: Martin Luther King, Jr. Freeway | H5: US 401 Bypass | I5: Widen to Multi-Lanes | J5: 1 - Widen Existing Roadway | K5: 14232000 | L5: N/A | M5: 33.05652898 | N5: 26.38149592 | O5: 100 | P5: =SUM(R5:W5) -> 100 | R5: =IF(AH5<0.5,0,IF(AH5<0.75,5,IF(AH5<0.9,10,IF(AH5<1,15,20)))) -> 20 | S5: =IF(AA5<30,0,IF(AA5<51,8.33,IF(AA5<66,16.67,25))) -> 25 | T5: =IF(AI5>1500,0,IF(AI5>1000,6.67,IF(AI5>500,13.33,20))) -> 20 | U5: =IF(AJ5<500,0,IF(AJ5<1000,7.5,15)) -> 15 | V5: 10 | W5: 10 | Y5: 75.20576355 | Z5: 14.55938673 | AA5: 84.28465861 | AB5: 7.429233737 | AC5: N/A | AD5: 21.8677555 | AE5: N/A | AF5: N/A | AH5: =+BW5/BX5 -> 1.034751838 | AI5: =K5/BW5/BL5 -> 173.4596681 | AJ5: =+CA5 -> 1485.846747 | AL5: Fayetteville Area MPO | AM5: 100 | AR5: 06 | AS5: 100 | AX5: Cumberland | AY5: 100 | BF5: 6 | BG5: C | BH5: 06, , | BI5: Fayetteville Area MPO, , | BJ5: Cumberland, , , | BK5: 2.50133555 | BL5: 2.50133555 | BM5: Arterial | BN5: Arterial | BO5: 2 | BP5: 3 | BQ5: Divided | BR5: Divided | BS5: 45 | BT5: 45 | BU5: 4.529795014 | BV5: 95.47020499 | BW5: 32801.63325 | BX5: 31700 | BY5: 1.034751838 | BZ5: 31315.7865 | CA5: 1485.846747 | CB5: 8825325.346 | CC5: 418737.0788 | CD5: 9244062.425 | CE5: 207209192 | CF5: 93.15630096 | CG5: 73.21045487 | CH5: 86.51250794 | CM5: No | CN5: No | CO5: 11 | CP5: 12 | CQ5: Yes | CR5: 0 | CS5: 4 | CT5: 4 Lane with Median - Partial Control | CU5: 6F - 6 Lane Divided (17'-6"' Raised Median) with Curb & Gutter, Wide Outside Lanes, and Sidewalks | CV5: None | CW5: Partial | CX5: 2 | CY5: No | CZ5: 16 | DA5: 17611000 | DB5: 9221000 | DC5: 1107000 | DD5: 27939000 | DF5: 27939000 | DG5: 27939000
A6: H090460-A | B6: Cumberland | C6: Fayetteville Area MPO | D6: Statewide Mobility | E6: U-4405A | F6: US-401 Raeford Road | G6: West of Hampton Oaks Drive | H6: US 401 Bypass (Skibo Road) | I6: Construct Raised Median and Access Management Improvements. | J6: 11 - Access Management | K6: 5901000 | L6: 35.15571859 | M6: 28.03945293 | N6: 22.25511319 | O6: 100 | P6: 95 | R6: 15 | S6: 25 | T6: 20 | U6: 15 | V6: 10 | W6: 10 | Y6: 68.25036968 | Z6: 0 | AA6: 86.05039258 | AB6: 30.37784212 | AC6: 0 | AD6: 23.71821253 | AE6: N/A | AF6: N/A | AH6: 0.920324036 | AI6: 75.72607777 | AJ6: 1473.948244 | AL6: Fayetteville Area MPO | AM6: 100 | AR6: 06 | AS6: 100 | AX6: Cumberland | AY6: 100 | BF6: 6 | BG6: C | BH6: 06, , | BI6: Fayetteville Area MPO, , | BJ6: Cumberland, , , | BK6: 2.39202004 | BL6: 2.39202004 | BM6: Arterial | BN6: Arterial | BO6: 2 | BP6: 3 | BQ6: Divided | BR6: Divided | BS6: 53 | BT6: 45 | BU6: 4.524461494 | BV6: 95.47553851 | BW6: 32577.31879 | BX6: 35397.6616 | BY6: 0.920324036 | BZ6: 31103.37055 | CA6: 1473.948244 | CB6: 0 | CC6: 0 | CD6: 0 | CE6: 0 | CF6: 92.48222495 | CG6: 73.21254554 | CH6: 92.48222495 | CK6: 0 | CL6: 0 | CM6: Yes | CN6: No | CO6: 12 | CP6: 12 | CQ6: No | CR6: 3 | CS6: 4 | CT6: 4 Lane with Median - Partial Control | CU6: 6F - 6 Lane Divided (17'-6"' Raised Median) with Curb & Gutter, Wide Outside Lanes, and Sidewalks | CV6: None | CW6: Full | CX6: 2 | CY6: No | CZ6: 24 | DA6: 187712000 | DB6: 2016000 | DC6: 242000 | DD6: 189970000 | DF6: 189970000 | DG6: 189970000
A7: H090460-B | B7: Cumberland | C7: Fayetteville Area MPO | D7: Regional Impact | E7: U-4405B | F7: US-401 Raeford Road | G7: US 401 Bypass (Skibo Road) | H7: East of Fairview Drive | I7: Construct Raised Median and Access Management Improvements | J7: 11 - Access Management | K7: 27939000 | L7: N/A | M7: 28.87746957 | N7: 22.78249343 | O7: 100 | P7: 90 | R7: 10 | S7: 25 | T7: 20 | U7: 15 | V7: 10 | W7: 10 | Y7: 66.25075046 | Z7: 2.451476144 | AA7: 90.42048107 | AB7: 16.5695097 | AC7: N/A | AD7: 26.59864813 | AE7: N/A | AF7: N/A | AH7: 0.8381926931 | AI7: 214.5838255 | AJ7: 3313.901939 | AL7: Fayetteville Area MPO | AM7: 100 | AR7: 06 | AS7: 100 | AX7: Cumberland | AY7: 100 | BF7: 6 | BG7: C | BH7: 06, , | BI7: Fayetteville Area MPO, , | BJ7: Cumberland, , , | BK7: 3.26334546 | BL7: 3.26334546 | BM7: Arterial | BN7: Arterial | BO7: 3 | BP7: 3 | BQ7: TWLTL | BR7: Divided | BS7: 45 | BT7: 45 | BU7: 8.305940772 | BV7: 91.69405923 | BW7: 39897.97219 | BX7: 47600 | BY7: 0.8381926931 | BZ7: 36584.07025 | CA7: 3313.901939 | CB7: 2759153.732 | CC7: 249932.9583 | CD7: 3009086.69 | CE7: 68491792 | CF7: 99.81068243 | CG7: 71.66720722 | CH7: 99.81068243 | CM7: No | CN7: No | CO7: 11 | CP7: 12 | CQ7: Yes | CR7: 0 | CS7: 4 | CT7: 6 Lane with TWLTL (Seven Lane) | CU7: 6F - 6 Lane Divided (17'-6"' Raised Median) with Curb & Gutter, Wide Outside Lanes, and Sidewalks | CV7: None | CW7: Partial | CX7: 2 | CY7: No | CZ7: 23 | DA7: 9804000 | DB7: 2016000 | DC7: 242000 | DD7: 12062000 | DF7: 12062000 | DG7: 12062000
A8: H090458-C | B8: Cumberland | C8: Fayetteville Area MPO | D8: Regional Impact | E8: U-4403 | F8: US-401 Ramsey Street | G8: US 401 Bypass | H8: I-295 | I8: Widen to Multi-Lanes | J8: 1 - Widen Existing Roadway | K8: 32153000 | L8: N/A | M8: 36.00342429 | N8: 28.2496995 | O8: 100 | P8: 85 | R8: 20 | S8: 25 | T8: 20 | U8: 0 | V8: 10 | W8: 10 | Y8: 84.19367801 | Z8: 13.91836342 | AA8: 86.2729121 | AB8: 0 | AC8: N/A | AD8: 28.48122721 | AE8: N/A | AF8: N/A | AH8: 1.158415695 | AI8: 251.1470243 | AJ8: 0 | AL8: Fayetteville Area MPO | AM8: 100 | AR8: 06 | AS8: 100 | AX8: Cumberland | AY8: 100 | BF8: 6 | BG8: C | BH8: 06, , | BI8: Fayetteville Area MPO, , | BJ8: Cumberland, , , | BK8: 3.48633423 | BL8: 3.48633423 | BM8: Arterial | BN8: Arterial | BO8: 2 | BP8: 3 | BQ8: TWLTL | BR8: Divided | BS8: 45 | BT8: 45 | BU8: 0 | BV8: 100 | BW8: 36721.84082 | BX8: 31700.05464 | BY8: 1.158415695 | BZ8: 36721.84082 | CA8: 0 | CB8: 20341688.13 | CC8: 0 | CD8: 20341688.13 | CE8: 447517139 | CF8: 97.21155105 | CG8: 83.44567168 | CH8: 78.18739803 | CM8: No | CN8: No | CO8: 12 | CP8: 12 | CQ8: Yes | CR8: 0 | CS8: 4 | CT8: 4 Lane with TWLTL (Five Lane) | CU8: 6F - 6 Lane Divided (17'-6"' Raised Median) with Curb & Gutter, Wide Outside Lanes, and Sidewalks | CV8: None | CW8: Partial | CX8: 2 | CY8: No | CZ8: 22 | DA8: 10700000 | DB8: 8960000 | DC8: 1950000 | DD8: 21610000 | DF8: 21610000 | DG8: 21610000
A9: H129619-BB | B9: Cumberland | C9: Fayetteville Area MPO | D9: Statewide Mobility | E9: U-2519BB | F9: I-295 Fayetteville Outer Loop | G9: South of SR 1104 (Strickland Bridge Road) | H9: South of US 401 | I9: Construct Freeway on New Location. | J9: 5 - Construct Roadway on New Location | K9: 36700000 | L9: 39.38612487 | M9: 32.73279559 | N9: 20.91913389 | O9: 100 | P9: 85 | R9: 5 | S9: 25 | T9: 20 | U9: 15 | V9: 10 | W9: 10 | Y9: 54.97747808 | Z9: 10.81340328 | AA9: 77.60957622 | AB9: 9.439514181 | AC9: 100 | AD9: 85.24117629 | AE9: N/A | AF9: N/A | AH9: 0.7281883606 | AI9: 108.0320788 | AJ9: 1887.902836 | AL9: Fayetteville Area MPO | AM9: 100 | AR9: 06 | AS9: 100 | AX9: Cumberland | AY9: 100 | BF9: 6 | BG9: C | BH9: 06, , | BI9: Fayetteville Area MPO, , | BJ9: Cumberland, , , | BK9: 15.8 | BL9: 12.04 | BM9: Arterial | BN9: Freeway | BO9: 2 | BP9: 2 | BQ9: Divided | BR9: Divided | BS9: 47 | BT9: 70 | BU9: 6.691027189 | BV9: 93.30897281 | BW9: 28215.44111 | BX9: 38747.44865 | BY9: 0.7281883606 | BZ9: 26327.53827 | CA9: 1887.902836 | CB9: 101596737.8 | CC9: 7285328.675 | CD9: 108882066.5 | CE9: 2462211927 | CF9: 80.75256629 | CG9: 73.02832119 | CH9: 79.07112637 | CK9: 1987 | CL9: 0.002513554604 | CM9: No | CN9: No | CO9: 12 | CP9: 12 | CQ9: No | CR9: 3 | CS9: 4 | CT9: New Roadway | CU9: 4A - 4 Lane Divided (46' Depressed Median) with Paved Shoulders | CV9: None | CW9: Partial | CX9: 2 | CY9: No | CZ9: 17 | DA9: 5846000 | DB9: 3955000 | DC9: 475000 | DD9: 10276000 | DF9: 10276000 | DG9: 10276000
A10: H129619-BA | B10: Cumberland | C10: Fayetteville Area MPO | D10: Statewide Mobility | E10: U-2519BA | F10: I-295 Fayetteville Outer Loop | G10: South of SR 1003 (Camden Road) | H10: South of SR 1104 (Strickland Bridge Road) | I10: Construct Freeway on New Location. | J10: 5 - Construct Roadway on New Location | K10: 57400000 | L10: 39.38612487 | M10: 32.73279559 | N10: 20.91913389 | O10: 100 | P10: 85 | R10: 5 | S10: 25 | T10: 20 | U10: 15 | V10: 10 | W10: 10 | Y10: 54.97747808 | Z10: 10.81340328 | AA10: 77.60957622 | AB10: 9.439514181 | AC10: 100 | AD10: 85.24117629 | AE10: N/A | AF10: N/A | AH10: 0.7281883606 | AI10: 168.9657036 | AJ10: 1887.902836 | AL10: Fayetteville Area MPO | AM10: 100 | AR10: 06 | AS10: 100 | AX10: Cumberland | AY10: 100 | BF10: 6 | BG10: C | BH10: 06, , | BI10: Fayetteville Area MPO, , | BJ10: Cumberland, , , | BK10: 15.8 | BL10: 12.04 | BM10: Arterial | BN10: Freeway | BO10: 2 | BP10: 2 | BQ10: Divided | BR10: Divided | BS10: 47 | BT10: 70 | BU10: 6.691027189 | BV10: 93.30897281 | BW10: 28215.44111 | BX10: 38747.44865 | BY10: 0.7281883606 | BZ10: 26327.53827 | CA10: 1887.902836 | CB10: 101596737.8 | CC10: 7285328.675 | CD10: 108882066.5 | CE10: 2462211927 | CF10: 80.75256629 | CG10: 73.02832119 | CH10: 79.07112637 | CK10: 1987 | CL10: 0.002513554604 | CM10: No | CN10: No | CO10: 12 | CP10: 12 | CQ10: No | CR10: 3 | CS10: 4 | CT10: New Roadway | CU10: 4A - 4 Lane Divided (46' Depressed Median) with Paved Shoulders | CV10: None | CW10: Partial | CX10: 2 | CY10: No | CZ10: 21 | DA10: 11018000 | DB10: 4389000 | DC10: 527000 | DD10: 15934000 | DF10: 15934000 | DG10: 15934000
A11: H129619-AB | B11: Cumberland | C11: Fayetteville Area MPO | D11: Statewide Mobility | E11: U-2519AB | F11: I-295 Fayetteville Outer Loop | G11: South of SR 1118 (Parkton Road) | H11: South of SR 1003 (Camden Road) | I11: Construct Freeway on New Location. | J11: 5 - Construct Roadway on New Location | K11: 94800000 | L11: 39.38612487 | M11: 32.53279559 | N11: 20.91913389 | O11: 100 | P11: 85 | R11: 5 | S11: 25 | T11: 20 | U11: 15 | V11: 10 | W11: 10 | Y11: 54.97747808 | Z11: 10.81340328 | AA11: 77.60957622 | AB11: 9.439514181 | AC11: 100 | AD11: 83.24117629 | AE11: N/A | AF11: N/A | AH11: 0.7281883606 | AI11: 279.0583398 | AJ11: 1887.902836 | AL11: Fayetteville Area MPO | AM11: 100 | AR11: 06 | AS11: 100 | AX11: Cumberland | AY11: 72.64 | AZ11: Robeson | BA11: 27.36 | BF11: 6 | BG11: C | BH11: 06, , | BI11: Fayetteville Area MPO, , | BJ11: Cumberland, Robeson, , | BK11: 15.8 | BL11: 12.04 | BM11: Arterial | BN11: Freeway | BO11: 2 | BP11: 2 | BQ11: Divided | BR11: Divided | BS11: 47 | BT11: 70 | BU11: 6.691027189 | BV11: 93.30897281 | BW11: 28215.44111 | BX11: 38747.44865 | BY11: 0.7281883606 | BZ11: 26327.53827 | CA11: 1887.902836 | CB11: 101596737.8 | CC11: 7285328.675 | CD11: 108882066.5 | CE11: 2462211927 | CF11: 80.75256629 | CG11: 73.02832119 | CH11: 79.07112637 | CK11: 1987 | CL11: 0.002513554604 | CM11: No | CN11: No | CO11: 12 | CP11: 12 | CQ11: No | CR11: 3 | CS11: 4 | CT11: New Roadway | CU11: 4A - 4 Lane Divided (46' Depressed Median) with Paved Shoulders | CV11: None | CW11: Partial | CX11: 2 | CY11: No | CZ11: 21 | DA11: 11786000 | DB11: 3316000 | DC11: 398000 | DD11: 15500000 | DF11: 15500000 | DG11: 15500000
A12: H129618-AA | B12: Robeson | C12: Fayetteville Area MPO | D12: Statewide Mobility | E12: U-2519AA | F12: I-295 Fayetteville Outer Loop | G12: I-95 in Robeson County | H12: South of SR 1118 (Parkton Road) in Cumberland County | I12: Construct Freeway on New Location. | J12: 5 - Construct Roadway on New Location | K12: 38800000 | L12: 39.38612487 | M12: 32.33279559 | N12: 20.91913389 | O12: 100 | P12: 85 | R12: 5 | S12: 25 | T12: 20 | U12: 15 | V12: 10 | W12: 10 | Y12: 54.97747808 | Z12: 10.81340328 | AA12: 77.60957622 | AB12: 9.439514181 | AC12: 100 | AD12: 81.24117629 | AE12: N/A | AF12: N/A | AH12: 0.7281883606 | AI12: 114.2137509 | AJ12: 1887.902836 | AL12: Fayetteville Area MPO | AM12: 100 | AR12: 06 | AS12: 100 | AX12: Robeson | AY12: 100 | BF12: 6 | BG12: C | BH12: 06, , | BI12: Fayetteville Area MPO, , | BJ12: Robeson, , , | BK12: 15.8 | BL12: 12.04 | BM12: Arterial | BN12: Freeway | BO12: 2 | BP12: 2 | BQ12: Divided | BR12: Divided | BS12: 47 | BT12: 70 | BU12: 6.691027189 | BV12: 93.30897281 | BW12: 28215.44111 | BX12: 38747.44865 | BY12: 0.7281883606 | BZ12: 26327.53827 | CA12: 1887.902836 | CB12: 101596737.8 | CC12: 7285328.675 | CD12: 108882066.5 | CE12: 2462211927 | CF12: 80.75256629 | CG12: 73.02832119 | CH12: 79.07112637 | CK12: 1987 | CL12: 0.002513554604 | CM12: No | CN12: No | CO12: 12 | CP12: 12 | CQ12: No | CR12: 3 | CS12: 4 | CT12: New Roadway | CU12: 4A - 4 Lane Divided (46' Depressed Median) with Paved Shoulders | CV12: None | CW12: Partial | CX12: 2 | CY12: No | CZ12: 24 | DA12: 27949000 | DB12: 7614000 | DC12: 914000 | DD12: 36477000 | DF12: 36477000 | DG12: 36477000
A13: H141557 | B13: Harnett | C13: Mid-Carolina RPO | D13: Statewide Mobility | E13: I-5133 | F13: I-95 | G13: SR 1709 (Hodges Chapel Road) | I13: Exit 77 Improve configuration and lengthen spans for future widening. | J13: 8 - Improve Interchange | K13: 7290000 | L13: 37.60580748 | M13: 28.27855861 | N13: 20.60627118 | O13: 100 | P13: 85 | R13: 5 | S13: 25 | T13: 20 | U13: 15 | V13: 10 | W13: 10 | Y13: 68.40735684 | Z13: 1.27399904 | AA13: 66.7 | AB13: 49.77780279 | AC13: 0.7584015909 | AD13: 41.88219644 | AE13: N/A | AF13: N/A | AH13: 0.7213006495 | AI13: 58.01987972 | AJ13: 9955.560559 | AL13: Mid-Carolina RPO | AM13: 100 | AR13: 06 | AS13: 100 | AX13: Harnett | AY13: 100 | BF13: 6 | BG13: C | BH13: 06, , | BI13: Mid-Carolina RPO, , | BJ13: Harnett, , , | BK13: 2 | BL13: 2 | BM13: Freeway | BN13: Freeway | BO13: 2 | BP13: 2 | BQ13: Divided | BR13: Divided | BS13: 65 | BT13: 65 | BU13: 15.84692527 | BV13: 84.15307473 | BW13: 62823.29467 | BX13: 87097.23845 | BY13: 0.7213006495 | BZ13: 52867.73411 | CA13: 9955.560559 | CB13: 333246.1759 | CC13: 62753.82407 | CD13: 396000 | CE13: 9287453 | CI13: 66.7 | CJ13: 66.7 | CK13: 6.51517635 | CL13: 8.652855468e-06 | CM13: No | CN13: No | CO13: 12 | CP13: 12 | CQ13: No | CR13: 10 | CS13: 10 | CT13: 2 Lane Undivided | CV13: Full | CW13: Full | CX13: 2 | CY13: No | CZ13: 22.3 | DA13: 13500000 | DB13: 2160000 | DC13: 0 | DD13: 15660000 | DF13: 15660000 | DG13: 15660000
A14: H141544 | B14: Robeson | C14: Lumber River RPO | D14: Statewide Mobility | E14: I-5133 | F14: I-95 | G14: SR 1528 (Carthage Road) | I14: Exit 19 Improve interchange and lengthen span for future widening. | J14: 8 - Improve Interchange | K14: 7290000 | L14: 34.08824921 | M14: 28.01692604 | N14: 19.07397625 | O14: 100 | P14: 85 | R14: 5 | S14: 25 | T14: 20 | U14: 15 | V14: 10 | W14: 10 | Y14: 61.9429017 | Z14: 0.07697956104 | AA14: 66.7 | AB14: 44.03838111 | AC14: 0.04608607732 | AD14: 58.41955729 | AE14: N/A | AF14: N/A | AH14: 0.6429179797 | AI14: 62.39348891 | AJ14: 8807.676222 | AL14: Lumber River RPO | AM14: 100 | AR14: 06 | AS14: 100 | AX14: Robeson | AY14: 100 | BF14: 6 | BG14: C | BH14: 06, , | BI14: Lumber River RPO, , | BJ14: Robeson, , , | BK14: 2 | BL14: 2 | BM14: Freeway | BN14: Freeway | BO14: 2 | BP14: 2 | BQ14: Divided | BR14: Divided | BS14: 65 | BT14: 65 | BU14: 15.07658844 | BV14: 84.92341156 | BW14: 58419.55729 | BX14: 90866.26776 | BY14: 0.6429179797 | BZ14: 49611.88107 | CA14: 8807.676222 | CB14: 20381.61877 | CC14: 3618.381226 | CD14: 24000 | CE14: 561181 | CI14: 66.7 | CJ14: 66.7 | CK14: 0.3948528241 | CL14: 5.268687223e-07 | CM14: No | CN14: No | CO14: 12 | CP14: 12 | CQ14: No | CR14: 11 | CS14: 10 | CT14: 2 Lane Undivided | CV14: Full | CW14: Full | CX14: 2 | CY14: No | CZ14: 22.3 | DA14: 6750000 | DB14: 540000 | DC14: 0 | DD14: 7290000 | DF14: 7290000 | DG14: 7290000
A15: H141624 | B15: Harnett | C15: Mid-Carolina RPO | D15: Statewide Mobility | E15: i-5133 | F15: I-95 | G15: US 421 | I15: Exit 73 - Replace Existing Structures and improve interchange configuration. | J15: 8 - Improve Interchange | K15: 15660000 | L15: 36.86678452 | M15: 27.12188963 | N15: 19.56509162 | O15: 100 | P15: 85 | R15: 5 | S15: 25 | T15: 20 | U15: 15 | V15: 10 | W15: 10 | Y15: 64.50045812 | Z15: 0 | AA15: 66.65 | AB15: 54.25823543 | AC15: 0 | AD15: 43.31775103 | AE15: N/A | AF15: N/A | AH15: 0.6418301251 | AI15: 120.504871 | AJ15: 10851.64709 | AL15: Mid-Carolina RPO | AM15: 100 | AR15: 06 | AS15: 100 | AX15: Harnett | AY15: 100 | BF15: 6 | BG15: C | BH15: 06, , | BI15: Mid-Carolina RPO, , | BJ15: Harnett, , , | BK15: 2 | BL15: 2 | BM15: Freeway | BN15: Freeway | BO15: 2 | BP15: 2 | BQ15: Divided | BR15: Divided | BS15: 65 | BT15: 65 | BU15: 16.70084715 | BV15: 83.29915285 | BW15: 64976.62655 | BX15: 101236.4861 | BY15: 0.6418301251 | BZ15: 54124.97946 | CA15: 10851.64709 | CB15: 0 | CC15: 0 | CD15: 0 | CE15: 0 | CI15: 100 | CJ15: 33.3 | CK15: 0 | CL15: 0 | CM15: No | CN15: No | CO15: 12 | CP15: 12 | CQ15: No | CR15: 10 | CS15: 10 | CT15: 4 Lane with Median - Full Control | CV15: Full | CW15: Full | CX15: 2 | CY15: No | CZ15: 25.2 | DA15: 6750000 | DB15: 540000 | DC15: 0 | DD15: 7290000 | DF15: 7290000 | DG15: 7290000
A16: H141687 | B16: Cumberland | C16: Mid-Carolina RPO | D16: Statewide Mobility | E16: I-5133 | F16: I-95 | G16: NC 82 | I16: Exit 65 - Replace Structurally Deficient Structure and extend span length, reconfigure interchange. | J16: 8 - Improve Interchange | K16: 7290000 | L16: 30.52823093 | M16: 23.88418048 | N16: 17.05977667 | O16: 100 | P16: 85 | R16: 5 | S16: 25 | T16: 20 | U16: 15 | V16: 10 | W16: 10 | Y16: 51.92299938 | Z16: 0.02588395062 | AA16: 66.7 | AB16: 41.36008995 | AC16: 0.01547942164 | AD16: 42.26959648 | AE16: N/A | AF16: N/A | AH16: 0.5466873583 | AI16: 76.24821988 | AJ16: 8272.01799 | AL16: Mid-Carolina RPO | AM16: 100 | AR16: 06 | AS16: 100 | AX16: Cumberland | AY16: 100 | BF16: 6 | BG16: C | BH16: 06, , | BI16: Mid-Carolina RPO, , | BJ16: Cumberland, , , | BK16: 2 | BL16: 2 | BM16: Freeway | BN16: Freeway | BO16: 2 | BP16: 2 | BQ16: Divided | BR16: Divided | BS16: 65 | BT16: 65 | BU16: 17.30388605 | BV16: 82.69611395 | BW16: 47804.39472 | BX16: 87443.75372 | BY16: 0.5466873583 | BZ16: 39532.37673 | CA16: 8272.01799 | CB16: 6615.689116 | CC16: 1384.310884 | CD16: 8000 | CE16: 188694 | CI16: 66.7 | CJ16: 66.7 | CK16: 0.1316115162 | CL16: 1.779769166e-07 | CM16: No | CN16: No | CO16: 12 | CP16: 12 | CQ16: No | CR16: 10 | CS16: 10 | CT16: 2 Lane Undivided | CV16: Full | CW16: Partial | CX16: 3 | CY16: No | CZ16: 31 | DA16: 50388000 | DB16: 6940000 | DC16: 833000 | DD16: 58161000 | DF16: 58161000 | DG16: 58161000
A17: H141626 | B17: Harnett | C17: Mid-Carolina RPO | D17: Statewide Mobility | E17: I-5133 | F17: I-95 | G17: SR 1793 (Pope Rd) | I17: Exit 72 - Improve interchange configuration and increase span length for future widening. | J17: 8 - Improve Interchange | K17: 15660000 | L17: 31.63877024 | M17: 23.85192053 | N17: 17.2585776 | O17: 100 | P17: 85 | R17: 5 | S17: 25 | T17: 20 | U17: 15 | V17: 10 | W17: 10 | Y17: 52.942888 | Z17: 0 | AA17: 66.7 | AB17: 45.42951917 | AC17: 0 | AD17: 39.46198526 | AE17: N/A | AF17: N/A | AH17: 0.5337616141 | AI17: 149.7332972 | AJ17: 9085.903834 | AL17: Mid-Carolina RPO | AM17: 100 | AR17: 06 | AS17: 100 | AX17: Harnett | AY17: 100 | BF17: 6 | BG17: C | BH17: 06, , | BI17: Mid-Carolina RPO, , | BJ17: Harnett, , , | BK17: 2 | BL17: 2 | BM17: Freeway | BN17: Freeway | BO17: 2 | BP17: 2 | BQ17: Divided | BR17: Divided | BS17: 65 | BT17: 65 | BU17: 17.37499794 | BV17: 82.62500206 | BW17: 52292.9779 | BX17: 97970.66053 | BY17: 0.5337616141 | BZ17: 43207.07406 | CA17: 9085.903834 | CB17: 0 | CC17: 0 | CD17: 0 | CE17: 0 | CI17: 66.7 | CJ17: 66.7 | CK17: 0 | CL17: 0 | CM17: No | CN17: No | CO17: 12 | CP17: 12 | CQ17: No | CR17: 10 | CS17: 10 | CT17: 4 Lane with Median - Full Control | CV17: Full | CW17: Partial | CX17: 2 | CY17: No | CZ17: 25 | DA17: 18696000 | DB17: 1598000 | DC17: 192000 | DD17: 20486000 | DF17: 20486000 | DG17: 20486000
A18: H090123-C | B18: Harnett | C18: Capital Area MPO | D18: Regional Impact | E18: R-2540 | F18: NC-55 | G18: Angier Town Limit | H18: Church Street | I18: Install median with turn lanes, curb & gutter, and sidewalks | J18: 1 - Widen Existing Roadway | K18: 12399000 | L18: N/A | M18: 29.0041013 | N18: 22.18496896 | O18: 100 | P18: 82.5 | R18: 20 | S18: 25 | T18: 20 | U18: 7.5 | V18: 10 | W18: 0 | Y18: 68.80599357 | Z18: 5.720273409 | AA18: 72.79715567 | AB18: 3.753166459 | AC18: N/A | AD18: 30.92818988 | AE18: N/A | AF18: N/A | AH18: 1.037484661 | AI18: 490.1088359 | AJ18: 750.6332919 | AL18: Capital Area MPO | AM18: 100 | AR18: 06 | AS18: 100 | AX18: Harnett | AY18: 100 | BF18: 6 | BG18: C | BH18: 06, , | BI18: Capital Area MPO, , | BJ18: Harnett, , , | BK18: 1.54331521 | BL18: 1.54331521 | BM18: Arterial | BN18: Two Lane Highway | BO18: 1 | BP18: 1 | BQ18: Undivided | BR18: Divided | BS18: 35 | BT18: 45 | BU18: 4.57918649 | BV18: 95.42081351 | BW18: 16392.28482 | BX18: 15800.0262 | BY18: 1.037484661 | BZ18: 15641.65153 | CA18: 750.6332919 | CB18: 3018649.363 | CC18: 144863.137 | CD18: 3163512.5 | CE18: 70925670 | CF18: 80.32107193 | CG18: 78.25708095 | CH18: 59.83515546 | CM18: No | CN18: No | CO18: 12 | CP18: 12 | CQ18: No | CR18: 1 | CS18: 4 | CT18: 2 Lane Undivided | CU18: 2J - 2 Lane Divided (23' Raised Median) with Curb & Gutter, Bike Lanes, and Sidewalks | CV18: None | CW18: Partial | CX18: 2 | CY18: No | CZ18: 24 | DA18: 18240000 | DB18: 6526000 | DC18: 783000 | DD18: 25549000 | DF18: 25549000 | DG18: 25549000
A19: H140927 | B19: Cumberland | C19: Fayetteville Area MPO | D19: Regional Impact | F19: Fayetteville Computerized Traffic Signal System | I19: Fayetteville Computerized Traffic Signal System | J19: 13 - Citywide Signal System | K19: 4350000 | L19: N/A | M19: 47.85966516 | N19: 38.16704892 | O19: 100 | P19: 80 | R19: 10 | S19: 25 | T19: 20 | U19: 15 | V19: 0 | W19: 10 | Y19: 56.40416264 | Z19: 100 | AA19: 68.86216395 | AB19: 44.4338571 | AC19: N/A | AD19: 18.72408104 | AE19: N/A | AF19: N/A | AH19: 0.752828567 | AI19: 2.517341251 | AJ19: 1358.48575 | AL19: Fayetteville Area MPO | AM19: 100 | AR19: 06 | AS19: 100 | AX19: Cumberland | AY19: 100 | BF19: 6 | BG19: C | BH19: 06, , | BI19: Fayetteville Area MPO, , | BJ19: Cumberland, , , | BK19: 61.52553422 | BL19: 61.52553422 | BM19: Arterial | BN19: Arterial | BO19: 2 | BP19: 2 | BQ19: Divided | BR19: Divided | BS19: 45.56371646 | BT19: 45.56371646 | BU19: 4.836857759 | BV19: 95.16314224 | BW19: 28086.12156 | BX19: 37307.45988 | BY19: 0.752828567 | BZ19: 26727.63581 | CA19: 1358.48575 | CB19: 23459035.6 | CC19: 1192352.582 | CD19: 24651388.19 | CE19: 553264413 | CF19: 70.56233679 | CG19: 67.83170544 | CH19: 68.21311035 | CM19: Yes | CN19: Yes | CO19: 12 | CP19: 12 | CQ19: Yes | CR19: 1 | CS19: 4 | CT19: 4 Lane with Median - Partial Control | CV19: None | CW19: Partial | CX19: 2 | CY19: No | CZ19: 25 | DA19: 18240000 | DB19: 6343000 | DC19: 761000 | DD19: 25344000 | DF19: 25344000 | DG19: 25344000
A20: H141493 | B20: Columbus | C20: Cape Fear RPO | D20: Statewide Mobility | E20: R-4462 | F20: US-74 | G20: NC 87 | I20: Covert Existing at grade intersection to interchange. | J20: 7 - Upgrade At-grade Intersection to Interchange or Grade Separation | K20: 7130000 | L20: 23.86261634 | M20: 26.55945836 | N20: 14.91456669 | O20: 100 | P20: 80 | R20: 0 | S20: 25 | T20: 20 | U20: 15 | V20: 10 | W20: 10 | Y20: 25.07875548 | Z20: 7.81907798 | AA20: 83.35 | AB20: 25.98638143 | AC20: 4.609900194 | AD20: 100 | AE20: N/A | AF20: N/A | AH20: 0.2078809307 | AI20: 113.1216368 | AJ20: 4157.871633 | AL20: Cape Fear RPO | AM20: 100 | AR20: 06 | AS20: 100 | AX20: Columbus | AY20: 100 | BF20: 6 | BG20: C | BH20: 06, , | BI20: Cape Fear RPO, , | BJ20: Columbus, , , | BK20: 2 | BL20: 2 | BM20: Multi-Lane Highway | BN20: Multi-Lane Highway | BO20: 2 | BP20: 2 | BQ20: Divided | BR20: Divided | BS20: 55 | BT20: 55 | BU20: 13.193415 | BV20: 86.806585 | BW20: 31514.74909 | BX20: 151600 | BY20: 0.2078809307 | BZ20: 27356.87746 | CA20: 4157.871633 | CB20: 2085094.172 | CC20: 316905.8282 | CD20: 2402000 | CE20: 55750026 | CI20: 66.7 | CJ20: 100 | CK20: 39.51831903 | CL20: 5.267968484e-05 | CM20: Yes | CN20: No | CO20: 12 | CP20: 12 | CQ20: No | CR20: 2 | CS20: 4 | CT20: 4 Lane with Median - Partial Control | CV20: None | CW20: Partial | CX20: 2 | CY20: Yes | CZ20: 26 | DA20: 117420000 | DB20: 67397000 | DC20: 8088000 | DD20: 192905000 | DF20: 192905000 | DG20: 192905000
A21: H129200-C | B21: Robeson | C21: Lumber River RPO | D21: Statewide Mobility | F21: I-95 | G21: US 301 (Exit 22) | H21: Robeson/Cumberland County Line | I21: Widen Roadway to 8 Lanes. | J21: 1 - Widen Existing Roadway | K21: 164338000 | L21: 29.9057467 | M21: 24.48671346 | N21: 17.1466321 | O21: 100 | P21: 80 | R21: 5 | S21: 25 | T21: 20 | U21: 15 | V21: 10 | W21: 5 | Y21: 51.28686145 | Z21: 0.5812936691 | AA21: 67.73001076 | AB21: 34.0231028 | AC21: 7.67678533 | AD21: 47.46673609 | AE21: N/A | AF21: N/A | AH21: 0.5783361169 | AI21: 291.1341268 | AJ21: 6804.62056 | AL21: Lumber River RPO | AM21: 83.75 | AN21: Fayetteville Area MPO | AO21: 16.25 | AR21: 06 | AS21: 100 | AX21: Robeson | AY21: 100 | BF21: 6 | BG21: C | BH21: 06, , | BI21: Lumber River RPO, Fayetteville Area MPO, | BJ21: Robeson, , , | BK21: 13.61272365 | BL21: 13.61272365 | BM21: Freeway | BN21: Freeway | BO21: 2 | BP21: 4 | BQ21: Divided | BR21: Divided | BS21: 65 | BT21: 65 | BU21: 16.40982918 | BV21: 83.59017082 | BW21: 41466.73609 | BX21: 71700.06313 | BY21: 0.5783361169 | BZ21: 34662.11553 | CA21: 6804.62056 | CB21: 3397289.759 | CC21: 666931.8184 | CD21: 4064221.577 | CE21: 95528639 | CF21: 66.83529094 | CG21: 66.25425199 | CH21: 70.12081038 | CK21: 65 | CL21: 8.85357066e-05 | CM21: No | CN21: No | CO21: 12 | CP21: 12 | CQ21: No | CR21: 10 | CS21: 10 | CT21: 4 Lane with Median - Full Control | CU21: 8B - 8 Lane Divided (27' Median with Jersey Barrier with Paved Shoulders | CV21: Full | CW21: Partial | CX21: 1 | CY21: Yes | CZ21: 21 | DA21: 120840000 | DB21: 6696000 | DC21: 804000 | DD21: 128340000 | DF21: 128340000 | DG21: 128340000
A22: H090123-D | B22: Harnett | C22: Capital Area MPO | D22: Regional Impact | E22: R-2540 | F22: NC-55 | G22: Rawls Church Road | H22: Angier Town Limit | I22: Widen to Multi-Lanes | J22: 1 - Widen Existing Roadway | K22: 9706000 | L22: N/A | M22: 34.64668804 | N22: 24.2310401 | O22: 100 | P22: 75.83 | R22: 20 | S22: 25 | T22: 13.33 | U22: 7.5 | V22: 10 | W22: 0 | Y22: 69.39539743 | Z22: 10.74305471 | AA22: 82.03349674 | AB22: 3.781111303 | AC22: N/A | AD22: 64.08725333 | AE22: N/A | AF22: N/A | AH22: 1.046371824 | AI22: 626.818652 | AJ22: 756.2222605 | AL22: Capital Area MPO | AM22: 100 | AR22: 06 | AS22: 100 | AX22: Harnett | AY22: 100 | BF22: 6 | BG22: C | BH22: 06, , | BI22: Capital Area MPO, , | BJ22: Harnett, , , | BK22: 0.93659981 | BL22: 0.93659981 | BM22: Arterial | BN22: Multi-Lane Highway | BO22: 1 | BP22: 2 | BQ22: Undivided | BR22: Divided | BS22: 35 | BT22: 45 | BU22: 4.574094647 | BV22: 95.42590535 | BW22: 16532.72 | BX22: 15800.04318 | BY22: 1.046371824 | BZ22: 15776.49774 | CA22: 756.2222605 | CB22: 4438227.036 | CC22: 212739.6167 | CD22: 4650966.653 | CE22: 104272089 | CF22: 99.78659927 | CG22: 64.27905765 | CH22: 82.05944581 | CM22: No | CN22: No | CO22: 12 | CP22: 12 | CQ22: No | CR22: 2 | CS22: 4 | CT22: 2 Lane Undivided | CU22: 4C - 4 Lane Divided (23' Raised Median) with Curb & Gutter, Wide Outside Lanes, and Sidewalks | CV22: None | CW22: Partial | CX22: 1 | CY22: No | CZ22: 27 | DA22: 31008000 | DB22: 1945000 | DC22: 233000 | DD22: 33186000 | DF22: 33186000 | DG22: 33186000
A23: H141634 | B23: Harnett | C23: Mid-Carolina RPO | D23: Statewide Mobility | E23: I-5133 | F23: I-95 | G23: SR 1811 (Bud Hawkins Road) | I23: Exit 70 - Improve configuration and lengthen spans for future widening. | J23: 8 - Improve Interchange | K23: 7290000 | L23: 40.66612692 | M23: 29.09803294 | N23: 19.63679474 | O23: 100 | P23: 73.33 | R23: 10 | S23: 8.33 | T23: 20 | U23: 15 | V23: 10 | W23: 10 | Y23: 81.39567989 | Z23: 0.1132938272 | AA23: 33.35 | AB23: 64.35878507 | AC23: 0.06677788674 | AD23: 53.85789513 | AE23: N/A | AF23: N/A | AH23: 0.8640157135 | AI23: 49.33219322 | AJ23: 12871.75701 | AL23: Mid-Carolina RPO | AM23: 100 | AR23: 06 | AS23: 100 | AX23: Harnett | AY23: 100 | BF23: 6 | BG23: C | BH23: 06, , | BI23: Mid-Carolina RPO, , | BJ23: Harnett, , , | BK23: 2 | BL23: 2 | BM23: Freeway | BN23: Freeway | BO23: 2 | BP23: 2 | BQ23: Divided | BR23: Divided | BS23: 65 | BT23: 65 | BU23: 17.42090546 | BV23: 82.57909454 | BW23: 73886.84269 | BX23: 85515.62378 | BY23: 0.8640157135 | BZ23: 61015.08568 | CA23: 12871.75701 | CB23: 28902.68309 | CC23: 6097.316912 | CD23: 35000 | CE23: 825912 | CI23: 66.7 | CJ23: 0 | CK23: 0.575849399 | CL23: 7.597083357e-07 | CM23: No | CN23: No | CO23: 12 | CP23: 12 | CQ23: No | CR23: 10 | CS23: 10 | CT23: 2 Lane Undivided | CV23: Full | CW23: Partial | CX23: 1 | CY23: No | CZ23: 22 | DA23: 14250000 | DB23: 1695000 | DC23: 203000 | DD23: 16148000 | DF23: 16148000 | DG23: 16148000
A24: H129200-G | B24: Harnett | C24: Mid-Carolina RPO | D24: Statewide Mobility | F24: I-95 | G24: SR 1002 (Long Branch Road) | H24: I-40 | I24: Widen Roadway to 8 Lanes. | J24: 1 - Widen Existing Roadway | K24: 143388000 | L24: 34.11810204 | M24: 24.98269532 | N24: 18.67214524 | O24: 100 | P24: 71.67 | R24: 5 | S24: 16.67 | T24: 20 | U24: 15 | V24: 10 | W24: 5 | Y24: 60.00304978 | Z24: 1.288162712 | AA24: 64.13902745 | AB24: 39.15400303 | AC24: 14.86034938 | AD24: 32.45989456 | AE24: N/A | AF24: N/A | AH24: 0.675451884 | AI24: 240.5499988 | AJ24: 7830.800605 | AL24: Mid-Carolina RPO | AM24: 58.31 | AN24: Upper Coastal Plain RPO | AO24: 41.69 | AR24: 06 | AS24: 58.31 | AT24: 04 | AU24: 41.69 | AX24: Harnett | AY24: 58.31 | AZ24: Johnston | BA24: 41.69 | BF24: 6 | BG24: C | BH24: 06, 04, | BI24: Mid-Carolina RPO, Upper Coastal Plain RPO, | BJ24: Harnett, Johnston, , | BK24: 12.24247101 | BL24: 12.24247101 | BM24: Freeway | BN24: Freeway | BO24: 2 | BP24: 4 | BQ24: Divided | BR24: Divided | BS24: 65 | BT24: 65 | BU24: 16.0830274 | BV24: 83.9169726 | BW24: 48689.84184 | BX24: 72084.84126 | BY24: 0.675451884 | BZ24: 40859.04123 | CA24: 7830.800605 | CB24: 6602846.287 | CC24: 1265462.212 | CD24: 7868308.499 | CE24: 184707075 | CF24: 66.35741903 | CG24: 63.62722836 | CH24: 62.45167859 | CK24: 126 | CL24: 0.0001712069876 | CM24: No | CN24: No | CO24: 12 | CP24: 12 | CQ24: No | CR24: 10 | CS24: 10 | CT24: 4 Lane with Median - Full Control | CU24: 8B - 8 Lane Divided (27' Median with Jersey Barrier with Paved Shoulders | CV24: Full | CW24: Partial | CX24: 1 | CY24: Yes | CZ24: 24 | DA24: 54492000 | DB24: 7097000 | DC24: 852000 | DD24: 62441000 | DF24: 62441000 | DG24: 62441000
A25: H129200-F | B25: Cumberland | C25: Mid-Carolina RPO | D25: Statewide Mobility | F25: I-95 | G25: I-95 Business/US 301 (Exit 56) | H25: SR 1002 (Long Branch Road) | I25: Widen Roadway to 8 Lanes. | J25: 1 - Widen Existing Roadway | K25: 189970000 | L25: 32.87660548 | M25: 24.08379554 | N25: 17.26899036 | O25: 100 | P25: 71.67 | R25: 5 | S25: 16.67 | T25: 20 | U25: 15 | V25: 10 | W25: 5 | Y25: 57.33310259 | Z25: 1.155966474 | AA25: 55.71176551 | AB25: 39.9576942 | AC25: 17.67169374 | AD25: 38.9035172 | AE25: N/A | AF25: N/A | AH25: 0.6465165379 | AI25: 244.7913845 | AJ25: 7991.538839 | AL25: Mid-Carolina RPO | AM25: 77.15 | AN25: Fayetteville Area MPO | AO25: 22.85 | AR25: 06 | AS25: 100 | AX25: Cumberland | AY25: 86.47 | AZ25: Harnett | BA25: 13.53 | BF25: 6 | BG25: C | BH25: 06, , | BI25: Mid-Carolina RPO, Fayetteville Area MPO, | BJ25: Cumberland, Harnett, , | BK25: 16.74132104 | BL25: 16.74132104 | BM25: Freeway | BN25: Freeway | BO25: 2 | BP25: 4 | BQ25: Divided | BR25: Divided | BS25: 65 | BT25: 65 | BU25: 17.23976117 | BV25: 82.76023883 | BW25: 46355.2758 | BX25: 71700.06192 | BY25: 0.6465165379 | BZ25: 38363.73696 | CA25: 7991.538839 | CB25: 7707115.641 | CC25: 1605467.008 | CD25: 9312582.649 | CE25: 219598951 | CF25: 53.81950535 | CG25: 61.23483395 | CH25: 52.09767243 | CK25: 150 | CL25: 0.0002034338747 | CM25: No | CN25: No | CO25: 12 | CP25: 12 | CQ25: No | CR25: 10 | CS25: 10 | CT25: 4 Lane with Median - Full Control | CU25: 8B - 8 Lane Divided (27' Median with Jersey Barrier with Paved Shoulders | CV25: Full | CW25: Full | CX25: 1 | CY25: No | CZ25: 23 | DA25: 163319000 | DB25: 910000 | DC25: 109000 | DD25: 164338000 | DF25: 164338000 | DG25: 164338000
A26: H129200-D | B26: Cumberland | C26: Fayetteville Area MPO | D26: Statewide Mobility | F26: I-95 | G26: Robeson/Cumberland County Line | H26: NC 53 | I26: Widen Roadway to 8 Lanes. | J26: 1 - Widen Existing Roadway | K26: 127570000 | L26: 27.80469615 | M26: 21.96934465 | N26: 16.26471681 | P26: 71.67 | R26: 5 | S26: 16.67 | T26: 20 | U26: 15 | V26: 10 | W26: 5 | Y26: 48.68228688 | Z26: 0.4180252646 | AA26: 64.4465438 | AB26: 30.95449334 | AC26: 4.390494606 | AD26: 32.49612229 | AE26: N/A | AF26: N/A | AH26: 0.5464102251 | AI26: 312.2530193 | AJ26: 6190.898668 | AL26: Fayetteville Area MPO | AM26: 100 | AR26: 06 | AS26: 100 | AX26: Cumberland | AY26: 100 | AZ26: Robeson | BF26: 6 | BG26: C | BH26: 06, , | BI26: Fayetteville Area MPO, , | BJ26: Cumberland, Robeson, , | BK26: 10.27941336 | BL26: 10.27941336 | BM26: Freeway | BN26: Freeway | BO26: 2 | BP26: 4 | BQ26: Divided | BR26: Divided | BS26: 70 | BT26: 70 | BU26: 15.57686718 | BV26: 84.42313282 | BW26: 39744.18344 | BX26: 72736.8955 | BY26: 0.5464102251 | BZ26: 33553.28477 | CA26: 6190.898668 | CB26: 1921630.752 | CC26: 354559.0647 | CD26: 2276189.817 | CE26: 53327483 | CF26: 64.92486392 | CG26: 64.20880675 | CH26: 64.22529664 | CK26: 37.44731357 | CL26: 5.036257855e-05 | CM26: No | CN26: No | CO26: 12 | CP26: 12 | CQ26: No | CR26: 10 | CS26: 10 | CT26: 4 Lane with Median - Full Control | CU26: 8A - 8 Lane Divided (46' Depressed Median) with Paved Shoulders | CV26: Full | CW26: Full | CX26: 1 | CY26: No | CZ26: 17 | DA26: 147504000 | DB26: 5610000 | DC26: 673000 | DD26: 153787000 | DF26: 153787000 | DG26: 153787000
A27: H090123-E | B27: Wake | C27: Capital Area MPO | D27: Regional Impact | E27: R-2540 | F27: NC-55 | G27: Jicarilla Road | H27: Rawls Church Road | I27: Widen to Multi-Lanes | J27: 1 - Widen Existing Roadway | K27: 27513000 | L27: N/A | M27: 31.20815092 | N27: 21.74322492 | P27: 70.83 | R27: 15 | S27: 25 | T27: 13.33 | U27: 7.5 | V27: 10 | W27: 0 | Y27: 62.27040164 | Z27: 5.796481627 | AA27: 81.29848263 | AB27: 3.358577113 | AC27: N/A | AD27: 60.61581839 | AE27: N/A | AF27: N/A | AH27: 0.938937689 | AI27: 574.6677649 | AJ27: 671.7154225 | AL27: Capital Area MPO | AM27: 100 | AR27: 05 | AS27: 65.97 | AT27: 06 | AU27: 34.03 | AX27: Wake | AY27: 65.97 | AZ27: Harnett | BA27: 34.03 | BF27: 5 | BG27: C | BH27: 05, 06, | BI27: Capital Area MPO, , | BJ27: Wake, Harnett, , | BK27: 3.22718077 | BL27: 3.22718077 | BM27: Arterial | BN27: Multi-Lane Highway | BO27: 1 | BP27: 2 | BQ27: Undivided | BR27: Divided | BS27: 49 | BT27: 45 | BU27: 4.527802775 | BV27: 95.47219722 | BW27: 14835.35074 | BX27: 15800.14405 | BY27: 0.938937689 | BZ27: 14163.63532 | CA27: 671.7154225 | CB27: 6792610.616 | CC27: 322141.9648 | CD27: 7114752.581 | CE27: 159478599 | CF27: 99.81431634 | CG27: 71.37318884 | CH27: 72.73233469 | CM27: No | CN27: No | CO27: 12 | CP27: 12 | CQ27: No | CR27: 2 | CS27: 4 | CT27: 2 Lane Undivided | CU27: 4C - 4 Lane Divided (23' Raised Median) with Curb & Gutter, Wide Outside Lanes, and Sidewalks | CV27: None | CW27: None | CX27: 2 | CY27: No | CZ27: 21 | DA27: 11172000 | DB27: 5822000 | DC27: 699000 | DD27: 17693000 | DF27: 17693000 | DG27: 17693000
A28: H090759 | B28: Harnett | C28: Mid-Carolina RPO | D28: Regional Impact | F28: US-421 Cumberland Street | G28: I-95 | H28: (Dunn-Erwin Road), | I28: Widen to Multi-Lanes to include Turning Lane from I-95 Eastern on and off Ramps to Dunn-Erwin Road. | J28: 11 - Access Management | K28: 17693000 | L28: N/A | M28: 23.88393025 | N28: 19.62818578 | P28: 70 | R28: 5 | S28: 25 | T28: 20 | U28: 15 | V28: 0 | W28: 5 | Y28: 50.11826897 | Z28: 1.850546713 | AA28: 92.34422648 | AB28: 6.345345349 | AC28: N/A | AD28: 16.57303681 | AE28: N/A | AF28: N/A | AH28: 0.6895741146 | AI28: 453.6241634 | AJ28: 1269.06907 | AL28: Mid-Carolina RPO | AM28: 100 | AR28: 06 | AS28: 100 | AX28: Harnett | AY28: 100 | BF28: 6 | BG28: C | BH28: 06, , | BI28: Mid-Carolina RPO, , | BJ28: Harnett, , , | BK28: 1.78428398 | BL28: 1.78428398 | BM28: Arterial | BN28: Arterial | BO28: 2 | BP28: 2 | BQ28: Undivided | BR28: TWLTL | BS28: 33 | BT28: 35 | BU28: 5.805557602 | BV28: 94.1944424 | BW28: 21859.55522 | BX28: 31700.0809 | BY28: 0.6895741146 | BZ28: 20590.48615 | CA28: 1269.06907 | CB28: 1368736.784 | CC28: 84360.39364 | CD28: 1453097.177 | CE28: 32741723 | CF28: 93.27238885 | CG28: 83.95614516 | CH28: 99.83185146 | CM28: No | CN28: No | CO28: 12 | CP28: 12 | CQ28: Yes | CR28: 0 | CS28: 4 | CT28: 4 Lane Undivided | CU28: 5A - 4 Lane with Two Way Left Turn Lane, Curb & Gutter, and Sidewalks | CV28: None | CW28: Partial | CX28: 2 | CY28: Yes | CZ28: 26 | DA28: 119130000 | DB28: 29896000 | DC28: 3588000 | DD28: 152614000 | DF28: 152614000 | DG28: 152614000
A29: H090936-B | B29: Robeson | C29: Lumber River RPO | D29: Statewide Mobility | F29: I-74 , US-74 | G29: SR 2220 (Broadridge Road) | I29: Upgrade At-grade Intersection to Interchange. | J29: 7 - Upgrade At-grade Intersection to Interchange or Grade Separation | K29: 5750000 | L29: 12.97193271 | M29: 14.66160961 | N29: 9.440126087 | P29: 70 | R29: 0 | S29: 25 | T29: 20 | U29: 15 | V29: 10 | W29: 0 | Y29: 9.61669948 | Z29: 4.258930957 | AA29: 66.65 | AB29: 9.71365924 | AC29: 2.015117289 | AD29: 45.27702 | AE29: N/A | AF29: N/A | AH29: 0.09966272466 | AI29: 316.2002301 | AJ29: 1444.418225 | AL29: Lumber River RPO | AM29: 100 | AR29: 06 | AS29: 100 | AX29: Robeson | AY29: 100 | BF29: 6 | BG29: C | BH29: 06, , | BI29: Lumber River RPO, , | BJ29: Robeson, , , | BK29: 2 | BL29: 2 | BM29: Multi-Lane Highway | BN29: Freeway | BO29: 2 | BP29: 1 | BQ29: Divided | BR29: Divided | BS29: 54.9999998 | BT29: 55 | BU29: 15.8861 | BV29: 84.1139 | BW29: 9092.34 | BX29: 91231.1 | BY29: 0.09966272466 | BZ29: 7647.921775 | CA29: 1444.418225 | CB29: 878149.116 | CC29: 165850.884 | CD29: 1044000 | CE29: 24488853 | CI29: 33.3 | CJ29: 100 | CK29: 17.17555959 | CL29: 2.31267862e-05 | CM29: Yes | CN29: No | CO29: 11.99999995 | CP29: 12 | CQ29: No | CR29: 3.999999982 | CS29: 4 | CT29: 2 Lane Undivided | CV29: Limited | CW29: Partial | CX29: 2 | CY29: Yes | CZ29: 25 | DA29: 169860000 | DB29: 31184000 | DC29: 3742000 | DD29: 204786000 | DF29: 204786000 | DG29: 204786000
A30: H090172-B | B30: Harnett | C30: Mid-Carolina RPO | D30: Regional Impact | E30: R-2609 | F30: US-401 New Route - Lillington Bypass | G30: US 401 south of Lillington | H30: US 401 north of Lillington | I30: Construct Freeway on New Location | J30: 5 - Construct Roadway on New Location | K30: 91066000 | L30: N/A | M30: 24.2203274 | N30: 16.40212958 | P30: 68.33 | R30: 5 | S30: 25 | T30: 13.33 | U30: 15 | V30: 10 | W30: 0 | Y30: 46.82741309 | Z30: 1.299641524 | AA30: 67.76718653 | AB30: 5.165618743 | AC30: N/A | AD30: 54.11845096 | AE30: N/A | AF30: N/A | AH30: 0.6801607575 | AI30: 838.9975055 | AJ30: 1033.123749 | AL30: Mid-Carolina RPO | AM30: 86.98 | AN30: Capital Area MPO | AO30: 13.02 | AR30: 06 | AS30: 100 | AX30: Harnett | AY30: 100 | BF30: 6 | BG30: C | BH30: 06, , | BI30: Mid-Carolina RPO, Capital Area MPO, | BJ30: Harnett, , , | BK30: 5.6 | BL30: 7.21473141 | BM30: Two Lane Highway | BN30: Freeway | BO30: 1 | BP30: 2 | BQ30: Undivided | BR30: Divided | BS30: 44 | BT30: 70 | BU30: 6.867156126 | BV30: 93.13284387 | BW30: 15044.41911 | BX30: 22118.91666 | BY30: 0.6801607575 | BZ30: 14011.29536 | CA30: 1033.123749 | CB30: 4870836.589 | CC30: 359151.4435 | CD30: 5229988.032 | CE30: 118353155 | CF30: 76.45342158 | CG30: 57.59666732 | CH30: 69.27180287 | CM30: No | CN30: No | CO30: 12 | CP30: 12 | CQ30: No | CR30: 1 | CS30: 4 | CT30: New Roadway | CU30: 4A - 4 Lane Divided (46' Depressed Median) with Paved Shoulders | CV30: None | CW30: Full | CX30: 2 | CY30: No | CZ30: 16.2 | DA30: 6750000 | DB30: 540000 | DC30: 0 | DD30: 7290000 | DF30: 7290000 | DG30: 7290000
A31: H141631 | B31: Harnett | C31: Mid-Carolina RPO | D31: Statewide Mobility | E31: I-5133 | F31: I-95 | G31: SR 1001 (Long Branch Road) | I31: Exit 71 Improve configuration and lengthen spans to for future widening. | J31: 8 - Improve Interchange | K31: 7290000 | L31: 31.11895647 | M31: 23.19310318 | N31: 16.46295027 | P31: 68.33 | R31: 5 | S31: 8.33 | T31: 20 | U31: 15 | V31: 10 | W31: 10 | Y31: 55.58072884 | Z31: 1.734022497 | AA31: 50 | AB31: 44.1051725 | AC31: 1.034965662 | AD31: 38.64415342 | AE31: N/A | AF31: N/A | AH31: 0.5859039464 | AI31: 71.37789476 | AJ31: 8821.034499 | AL31: Mid-Carolina RPO | AM31: 100 | AR31: 06 | AS31: 100 | AX31: Harnett | AY31: 100 | BF31: 6 | BG31: C | BH31: 06, , | BI31: Mid-Carolina RPO, , | BJ31: Harnett, , , | BK31: 2 | BL31: 2 | BM31: Freeway | BN31: Freeway | BO31: 2 | BP31: 2 | BQ31: Divided | BR31: Divided | BS31: 65 | BT31: 65 | BU31: 17.27371391 | BV31: 82.72628609 | BW31: 51066.23013 | BX31: 87158.02384 | BY31: 0.5859039464 | BZ31: 42245.19563 | CA31: 8821.034499 | CB31: 443412.8934 | CC31: 92587.10658 | CD31: 536000 | CE31: 12641024 | CI31: 66.7 | CJ31: 33.3 | CK31: 8.818083443 | CL31: 1.188122979e-05 | CM31: No | CN31: No | CO31: 12 | CP31: 12 | CQ31: No | CR31: 10 | CS31: 10 | CT31: 2 Lane Undivided | CV31: Full | CW31: None | CX31: 2 | CY31: No | CZ31: 33 | DA31: 46512000 | DB31: 1243000 | DC31: 149000 | DD31: 47904000 | DF31: 47904000 | DG31: 47904000
A32: H129200-B | B32: Robeson | C32: Lumber River RPO | D32: Statewide Mobility | F32: I-95 | G32: I-74 | H32: US 301 (Exit 22) | I32: Widen Roadway to 8 Lanes. | J32: 1 - Widen Existing Roadway | K32: 153787000 | L32: 29.09395683 | M32: 22.67118669 | N32: 15.55591433 | P32: 68.33 | R32: 5 | S32: 8.33 | T32: 20 | U32: 15 | V32: 10 | W32: 10 | Y32: 53.72138818 | Z32: 0.6795971051 | AA32: 46.75717272 | AB32: 36.29509867 | AC32: 8.389242379 | AD32: 43.95223101 | AE32: N/A | AF32: N/A | AH32: 0.6023415963 | AI32: 290.6453157 | AJ32: 7259.019734 | AL32: Lumber River RPO | AM32: 100 | AR32: 06 | AS32: 100 | AX32: Robeson | AY32: 100 | BF32: 6 | BG32: C | BH32: 06, , | BI32: Lumber River RPO, , | BJ32: Robeson, , , | BK32: 12.03858303 | BL32: 12.03858303 | BM32: Freeway | BN32: Freeway | BO32: 2 | BP32: 4 | BQ32: Divided | BR32: Divided | BS32: 65 | BT32: 65 | BU32: 16.51570254 | BV32: 83.48429746 | BW32: 43952.23101 | BX32: 72968.94533 | BY32: 0.6023415963 | BZ32: 36693.21128 | CA32: 7259.019734 | CB32: 3710567.873 | CC32: 734061.819 | CD32: 4444629.692 | CE32: 104513200 | CF32: 37.60722919 | CG32: 54.02147578 | CH32: 48.65684175 | CK32: 71 | CL32: 9.678484759e-05 | CM32: No | CN32: No | CO32: 12 | CP32: 12 | CQ32: No | CR32: 11 | CS32: 10 | CT32: 4 Lane with Median - Full Control | CU32: 8B - 8 Lane Divided (27' Median with Jersey Barrier with Paved Shoulders | CV32: Full | CW32: Partial | CX32: 2 | CY32: No | CZ32: 30 | DA32: 34314000 | DB32: 5205000 | DC32: 625000 | DD32: 40144000 | DF32: 40144000 | DG32: 40144000
A33: H141565 | B33: Harnett | C33: Mid-Carolina RPO | D33: Statewide Mobility | E33: I-5133 | F33: I-95 | G33: SR 1808 (jonesboro Road) | I33: Exit 75 Improve interchange configuration and lengthen spans for future widening | J33: 8 - Improve Interchange | K33: 7290000 | L33: 28.62546759 | M33: 20.97102186 | N33: 14.66447432 | P33: 68.33 | R33: 5 | S33: 8.33 | T33: 20 | U33: 15 | V33: 10 | W33: 10 | Y33: 56.63449931 | Z33: 0.01287229081 | AA33: 33.35 | AB33: 41.47742794 | AC33: 0.007705261037 | AD33: 34.74178954 | AE33: N/A | AF33: N/A | AH33: 0.5964904265 | AI33: 69.94458351 | AJ33: 8295.485587 | AL33: Mid-Carolina RPO | AM33: 100 | AR33: 06 | AS33: 100 | AX33: Harnett | AY33: 100 | BF33: 6 | BG33: C | BH33: 06, , | BI33: Mid-Carolina RPO, , | BJ33: Harnett, , , | BK33: 2 | BL33: 2 | BM33: Freeway | BN33: Freeway | BO33: 2 | BP33: 2 | BQ33: Divided | BR33: Divided | BS33: 65 | BT33: 65 | BU33: 15.91836171 | BV33: 84.08163829 | BW33: 52112.68431 | BX33: 87365.49993 | BY33: 0.5964904265 | BZ33: 43817.19872 | CA33: 8295.485587 | CB33: 3363.265531 | CC33: 636.7344685 | CD33: 4000 | CE33: 93839 | CI33: 66.7 | CJ33: 0 | CK33: 0.06580754575 | CL33: 8.829767499e-08 | CM33: No | CN33: No | CO33: 12 | CP33: 12 | CQ33: No | CR33: 10 | CS33: 10 | CT33: 4 Lane with Median - Full Control | CV33: Full | CW33: Partial | CX33: 2 | CY33: No | CZ33: 24 | DA33: 25194000 | DB33: 5870000 | DC33: 704000 | DD33: 31768000 | DF33: 31768000 | DG33: 31768000
A34: H141552 | B34: Robeson | C34: Lumber River RPO | D34: Statewide Mobility | E34: I-5133 | F34: I-95 | G34: US-301 | I34: Exit 25 Improve interchange Configuration and lengthen spans for future widening. | J34: 8 - Improve Interchange | K34: 7290000 | L34: 25.2155308 | M34: 20.05708152 | N34: 13.11671201 | P34: 68.33 | R34: 5 | S34: 8.33 | T34: 20 | U34: 15 | V34: 10 | W34: 10 | Y34: 48.90856005 | Z34: 0 | AA34: 33.35 | AB34: 36.03981391 | AC34: 0 | AD34: 44.94941513 | AE34: N/A | AF34: N/A | AH34: 0.5154798999 | AI34: 81.09115523 | AJ34: 7207.962782 | AL34: Lumber River RPO | AM34: 100 | AR34: 06 | AS34: 100 | AX34: Robeson | AY34: 100 | BF34: 6 | BG34: C | BH34: 06, , | BI34: Lumber River RPO, , | BJ34: Robeson, , , | BK34: 2 | BL34: 2 | BM34: Freeway | BN34: Freeway | BO34: 2 | BP34: 2 | BQ34: Divided | BR34: Divided | BS34: 65 | BT34: 65 | BU34: 16.03572096 | BV34: 83.96427904 | BW34: 44949.41513 | BX34: 87199.16168 | BY34: 0.5154798999 | BZ34: 37741.45235 | CA34: 7207.962782 | CB34: 0 | CC34: 0 | CD34: 0 | CE34: 0 | CI34: 66.7 | CJ34: 0 | CK34: 0 | CL34: 0 | CM34: No | CN34: No | CO34: 12 | CP34: 12 | CQ34: No | CR34: 10 | CS34: 10 | CT34: 2 Lane Undivided | CV34: Full | CW34: Partial | CX34: 2 | CY34: No | CZ34: 24 | DA34: 10032000 | DB34: 1231000 | DC34: 148000 | DD34: 11411000 | DF34: 11411000 | DG34: 11411000
A35: H090309-B | B35: Columbus | C35: Cape Fear RPO | D35: Regional Impact | E35: R-5020 | F35: US-701 Madison Street/Powell Boulevard | G35: SR 1437 (Virgil Street) | H35: US 74/76 | I35: Widen to Multi-Lanes | J35: 1 - Widen Existing Roadway | K35: 8640000 | L35: N/A | M35: 21.64574854 | N35: 17.64461752 | P35: 67.5 | R35: 5 | S35: 25 | T35: 20 | U35: 7.5 | V35: 10 | W35: 0 | Y35: 42.73988873 | Z35: 0 | AA35: 90.96639768 | AB35: 3.982908489 | AC35: N/A | AD35: 18.64136589 | AE35: N/A | AF35: N/A | AH35: 0.5880557063 | AI35: 464.515106 | AJ35: 796.5816978 | AL35: Cape Fear RPO | AM35: 100 | AR35: 06 | AS35: 100 | AX35: Columbus | AY35: 100 | BF35: 6 | BG35: C | BH35: 06, , | BI35: Cape Fear RPO, , | BJ35: Columbus, , , | BK35: 0.99778316 | BL35: 0.99778316 | BM35: Arterial | BN35: Arterial | BO35: 2 | BP35: 2 | BQ35: Undivided | BR35: Divided | BS35: 45 | BT35: 45 | BU35: 4.273193834 | BV35: 95.72680617 | BW35: 18641.36589 | BX35: 31700 | BY35: 0.5880557063 | BZ35: 17844.78419 | CA35: 796.5816978 | CB35: 0 | CC35: 0 | CD35: 0 | CE35: 0 | CF35: 83.18329439 | CG35: 89.94319343 | CH35: 99.79999788 | CM35: No | CN35: No | CO35: 11 | CP35: 12 | CQ35: Yes | CR35: 0 | CS35: 4 | CT35: 4 Lane Undivided | CU35: 4C - 4 Lane Divided (23' Raised Median) with Curb & Gutter, Wide Outside Lanes, and Sidewalks | CV35: None | CW35: Full | CX35: 2 | CY35: No | CZ35: 23 | DA35: 126685000 | DB35: 790000 | DC35: 95000 | DD35: 127570000 | DF35: 127570000 | DG35: 127570000
A36: H129200-A | B36: Robeson | C36: Lumber River RPO | D36: Statewide Mobility | F36: I-95 | G36: South Carolina State Line | H36: I-74 | I36: Widen Roadway to 6 Lanes. | J36: 1 - Widen Existing Roadway | K36: 107028000 | L36: 25.11194952 | M36: 19.9056903 | N36: 13.5371134 | P36: 66.67 | R36: 0 | S36: 16.67 | T36: 20 | U36: 15 | V36: 10 | W36: 5 | Y36: 40.62932699 | Z36: 1.04249602 | AA36: 52.027488 | AB36: 32.58214552 | AC36: 8.912247168 | AD36: 42.84985747 | AE36: N/A | AF36: N/A | AH36: 0.4581564001 | AI36: 250.6763015 | AJ36: 6516.429104 | AL36: Lumber River RPO | AM36: 100 | AR36: 06 | AS36: 100 | AX36: Robeson | AY36: 100 | BF36: 6 | BG36: C | BH36: 06, , | BI36: Lumber River RPO, , | BJ36: Robeson, , , | BK36: 12.99722514 | BL36: 12.99722514 | BM36: Freeway | BN36: Freeway | BO36: 2 | BP36: 3 | BQ36: Divided | BR36: Divided | BS36: 65 | BT36: 70 | BU36: 19.83700876 | BV36: 80.16299124 | BW36: 32849.85747 | BX36: 71700.09513 | BY36: 0.4581564001 | BZ36: 26333.42837 | CA36: 6516.429104 | CB36: 3755097.569 | CC36: 929230.5866 | CD36: 4684328.156 | CE36: 111576264 | CF36: 48.61802645 | CG36: 57.58287639 | CH36: 49.89717098 | CK36: 75 | CL36: 0.0001032449434 | CM36: No | CN36: No | CO36: 12 | CP36: 12 | CQ36: No | CR36: 10 | CS36: 10 | CT36: 4 Lane with Median - Full Control | CU36: 6A - 6 Lane Divided (46' Depressed Median) with Paved Shoulders | CV36: Full | CW36: Full | CX36: 2 | CY36: No | CZ36: 17 | DA36: 42800000 | DB36: 4600000 | DC36: 503000 | DD36: 47903000 | DF36: 47903000 | DG36: 47903000
A37: H090464 | B37: Cumberland | C37: Fayetteville Area MPO | D37: Statewide Mobility | E37: U-4414 | F37: SR-1007 All American Freeway | G37: SR 1151 (Owen Drive) | H37: North of SR 1437 (Santa Fe Drive) | I37: Add Additional Lanes. | J37: 1 - Widen Existing Roadway | K37: 47903000 | L37: 26.98366009 | M37: 22.74127305 | N37: 16.88019639 | P37: 64.17 | R37: 5 | S37: 16.67 | T37: 20 | U37: 7.5 | V37: 10 | W37: 5 | Y37: 55.73569667 | Z37: 1.005182327 | AA37: 55.32020596 | AB37: 20.14864942 | AC37: 3.996459162 | AD37: 30.24032703 | AE37: N/A | AF37: N/A | AH37: 0.6265250075 | AI37: 250.3601306 | AJ37: 897.1048457 | AL37: Fayetteville Area MPO | AM37: 100 | AR37: 06 | AS37: 100 | AX37: Cumberland | AY37: 100 | BF37: 6 | BG37: C | BH37: 06, , | BI37: Fayetteville Area MPO, , | BJ37: Cumberland, , , | BK37: 4.21812845 | BL37: 4.21812845 | BM37: Freeway | BN37: Freeway | BO37: 2 | BP37: 3 | BQ37: Divided | BR37: Divided | BS37: 55 | BT37: 55 | BU37: 1.977722981 | BV37: 98.02227702 | BW37: 45360.49054 | BX37: 72400.12768 | BY37: 0.6265250075 | BZ37: 44463.38569 | CA37: 897.1048457 | CB37: 2127865.779 | CC37: 42932.37394 | CD37: 2170798.153 | CE37: 48151249 | CF37: 60.41925123 | CG37: 60.86732382 | CH37: 44.69064055 | CK37: 35 | CL37: 4.492918324e-05 | CM37: Yes | CN37: No | CO37: 12 | CP37: 12 | CQ37: No | CR37: 10 | CS37: 10 | CT37: 4 Lane with Median - Full Control | CU37: 6B - 6 Lane Divided (27' Median with Jersey Barrier with Paved Shoulders | CV37: Full | CW37: Full | CX37: 2 | CY37: No | CZ37: 23 | DA37: 61241000 | DB37: 348000 | DC37: 42000 | DD37: 61631000 | DF37: 61631000 | DG37: 61631000
A38: H090458-D | B38: Cumberland | C38: Fayetteville Area MPO | D38: Regional Impact | E38: U-4403 | F38: US-401 Ramsey Street | G38: I-295 | H38: Slocumb Road | I38: Widen to Multi-Lanes | J38: 1 - Widen Existing Roadway | K38: 12840000 | L38: N/A | M38: 17.11953192 | N38: 13.36984414 | P38: 64.17 | R38: 5 | S38: 16.67 | T38: 20 | U38: 7.5 | V38: 10 | W38: 5 | Y38: 36.88949995 | Z38: 0.6512349688 | AA38: 58.61697153 | AB38: 4.255811606 | AC38: N/A | AD38: 18.72651037 | AE38: N/A | AF38: N/A | AH38: 0.5075598956 | AI38: 498.7213508 | AJ38: 851.1623213 | AL38: Fayetteville Area MPO | AM38: 100 | AR38: 06 | AS38: 100 | AX38: Cumberland | AY38: 100 | BF38: 6 | BG38: C | BH38: 06, , | BI38: Fayetteville Area MPO, , | BJ38: Cumberland, , , | BK38: 1.60013766 | BL38: 1.60013766 | BM38: Arterial | BN38: Arterial | BO38: 2 | BP38: 3 | BQ38: TWLTL | BR38: Divided | BS38: 45 | BT38: 45 | BU38: 5.290085295 | BV38: 94.70991471 | BW38: 16089.76555 | BX38: 31700.23024 | BY38: 0.5075598956 | BZ38: 15238.60323 | CA38: 851.1623213 | CB38: 352211.3532 | CC38: 19672.99945 | CD38: 371884.3526 | CE38: 8361857 | CF38: 56.21026328 | CG38: 63.44797488 | CH38: 56.21026328 | CM38: No | CN38: No | CO38: 12 | CP38: 12 | CQ38: Yes | CR38: 0 | CS38: 4 | CT38: 4 Lane with TWLTL (Five Lane) | CU38: 6F - 6 Lane Divided (17'-6"' Raised Median) with Curb & Gutter, Wide Outside Lanes, and Sidewalks | CV38: None | CW38: None | CX38: 1 | CY38: No | CZ38: 19.8 | DA38: 6750000 | DB38: 540000 | DC38: 0 | DD38: 7290000 | DF38: 7290000 | DG38: 7290000
A39: H129200-E | B39: Cumberland | C39: Fayetteville Area MPO | D39: Statewide Mobility | F39: I-95 | G39: NC 53 | H39: I-95 Business/US 301 (Exit 56) | I39: Widen Roadway to 8 Lanes | J39: 1 - Widen Existing Roadway | K39: 61631000 | L39: 25.76144835 | M39: 19.86260119 | N39: 14.23509446 | P39: 63.33 | R39: 5 | S39: 8.33 | T39: 20 | U39: 15 | V39: 10 | W39: 5 | Y39: 48.04285455 | Z39: 0.3711728189 | AA39: 45.52288987 | AB39: 32.48473928 | AC39: 1.88003298 | AD39: 32.06805361 | AE39: N/A | AF39: N/A | AH39: 0.5400337064 | AI39: 282.4780408 | AJ39: 6496.947856 | AL39: Fayetteville Area MPO | AM39: 100 | AR39: 06 | AS39: 100 | AX39: Cumberland | AY39: 100 | BF39: 6 | BG39: C | BH39: 06, , | BI39: Fayetteville Area MPO, , | BJ39: Cumberland, , , | BK39: 5.57974893 | BL39: 5.57974893 | BM39: Freeway | BN39: Freeway | BO39: 2 | BP39: 4 | BQ39: Divided | BR39: Divided | BS39: 70 | BT39: 70 | BU39: 16.61535087 | BV39: 83.38464913 | BW39: 39102.08041 | BX39: 72406.74045 | BY39: 0.5400337064 | BZ39: 32605.13255 | CA39: 6496.947856 | CB39: 810881.1069 | CC39: 161577.3916 | CD39: 972458.4985 | CE39: 22875752 | CF39: 25.60135185 | CG39: 72.98267105 | CH39: 37.99830493 | CK39: 15.99842541 | CL39: 2.160223418e-05 | CM39: No | CN39: No | CO39: 12 | CP39: 12 | CQ39: No | CR39: 10 | CS39: 10 | CT39: 4 Lane with Median - Full Control | CU39: 8A - 8 Lane Divided (46' Depressed Median) with Paved Shoulders | CV39: Full | CW39: Full | CX39: 1 | CY39: No | CZ39: 25 | DA39: 106219000 | DB39: 722000 | DC39: 87000 | DD39: 107028000 | DF39: 107028000 | DG39: 107028000
A40: H090309-A | B40: Columbus | C40: Cape Fear RPO | D40: Regional Impact | E40: R-5020 | F40: US-701 Madison Street/Powell Boulevard | G40: SR 1166 (Pleasant Plains Road) | H40: SR 1437 (Virgil Street) | I40: Widen to Multi-Lanes | J40: 1 - Widen Existing Roadway | K40: 18086000 | L40: N/A | M40: 24.02343376 | N40: 19.16519166 | P40: 62.5 | R40: 15 | S40: 16.67 | T40: 13.33 | U40: 7.5 | V40: 10 | W40: 0 | Y40: 61.24921195 | Z40: 3.865252405 | AA40: 61.42298792 | AB40: 3.425893234 | AC40: N/A | AD40: 16.02518884 | AE40: N/A | AF40: N/A | AH40: 0.9139856068 | AI40: 518.8108268 | AJ40: 685.1786468 | AL40: Cape Fear RPO | AM40: 100 | AR40: 06 | AS40: 100 | AX40: Columbus | AY40: 100 | BF40: 6 | BG40: C | BH40: 06, , | BI40: Cape Fear RPO, , | BJ40: Columbus, , , | BK40: 2.175356 | BL40: 2.175356 | BM40: Arterial | BN40: Arterial | BO40: 1 | BP40: 2 | BQ40: Undivided | BR40: Divided | BS40: 45 | BT40: 45 | BU40: 4.275635399 | BV40: 95.7243646 | BW40: 16025.18884 | BX40: 17533.30547 | BY40: 0.9139856068 | BZ40: 15340.01019 | CA40: 685.1786468 | CB40: 2988467.386 | CC40: 133483.2255 | CD40: 3121950.611 | CE40: 69906955 | CF40: 70.96667559 | CG40: 63.41251888 | CH40: 49.90819802 | CM40: No | CN40: No | CO40: 11 | CP40: 12 | CQ40: No | CR40: 2 | CS40: 4 | CT40: 2 Lane Undivided | CU40: 4C - 4 Lane Divided (23' Raised Median) with Curb & Gutter, Wide Outside Lanes, and Sidewalks | CV40: None | CW40: None | CX40: 1 | CY40: No | CZ40: 23 | DA40: 15162000 | DB40: 1168000 | DC40: 140000 | DD40: 16470000 | DF40: 16470000 | DG40: 16470000
A41: H090818 | B41: Harnett | C41: Capital Area MPO | D41: Regional Impact | F41: - New Route - Angier Eastern Bypass | G41: SR 1544 (Guy Road) | H41: NC 55 | I41: NC 55 Alt 2-Ln interim Impr. Connecting Existing Roadways | J41: 6 - Widen Existing Roadway and Construct Part on New Location | K41: 47904000 | L41: N/A | M41: 21.59491845 | N41: 15.94591121 | P41: 60.83 | R41: 5 | S41: 25 | T41: 13.33 | U41: 7.5 | V41: 10 | W41: 0 | Y41: 46.34835644 | Z41: 0 | AA41: 66.76239924 | AB41: 2.547794802 | AC41: N/A | AD41: 33.31589419 | AE41: N/A | AF41: N/A | AH41: 0.6993136655 | AI41: 778.1308619 | AJ41: 509.5589604 | AL41: Capital Area MPO | AM41: 99.94 | AR41: 06 | AS41: 71.46 | AT41: 05 | AU41: 28.54 | AX41: Harnett | AY41: 71.46 | AZ41: Wake | BA41: 28.54 | BF41: 6 | BG41: C | BH41: 06, 05, | BI41: Capital Area MPO, , | BJ41: Harnett, Wake, , | BK41: 5.3 | BL41: 5.60996903 | BM41: Arterial | BN41: Arterial | BO41: 1 | BP41: 1 | BQ41: Undivided | BR41: Undivided | BS41: 46 | BT41: 45 | BU41: 4.643396486 | BV41: 95.35660351 | BW41: 10973.84128 | BX41: 15692.30207 | BY41: 0.6993136655 | BZ41: 10464.28232 | CA41: 509.5589604 | CB41: 0 | CC41: 0 | CD41: 0 | CE41: 0 | CF41: 80.52501481 | CG41: 61.40746259 | CH41: 58.37475103 | CM41: No | CN41: No | CO41: 12 | CP41: 12 | CQ41: No | CR41: 1 | CS41: 4 | CT41: New Roadway | CU41: 2B - 2 Lane Undivided with Paved Shoulders, 25-45 mph | CV41: None | CW41: None | CX41: 1 | CY41: No | CZ41: 23 | DA41: 13338000 | DB41: 1714000 | DC41: 206000 | DD41: 15258000 | DF41: 15258000 | DG41: 15258000
A42: H090514-B | B42: Cumberland | C42: Fayetteville Area MPO | D42: Regional Impact | E42: U-5015 | F42: NC-210 Murchison Road | G42: Langdon Street | H42: US 401 Bypass | I42: Widen to Multi-Lanes | J42: 1 - Widen Existing Roadway | K42: 15934000 | L42: N/A | M42: 17.29506961 | N42: 14.35614467 | P42: 60.83 | R42: 0 | S42: 25 | T42: 13.33 | U42: 7.5 | V42: 10 | W42: 5 | Y42: 34.42723949 | Z42: 0.3302817874 | AA42: 74.0464041 | AB42: 2.765971061 | AC42: N/A | AD42: 12.01048883 | AE42: N/A | AF42: N/A | AH42: 0.4736824366 | AI42: 591.7856447 | AJ42: 553.1942121 | AL42: Fayetteville Area MPO | AM42: 100 | AR42: 06 | AS42: 100 | AX42: Cumberland | AY42: 100 | BF42: 6 | BG42: C | BH42: 06, , | BI42: Fayetteville Area MPO, , | BJ42: Cumberland, , , | BK42: 1.79313853 | BL42: 1.79313853 | BM42: Arterial | BN42: Arterial | BO42: 2 | BP42: 2 | BQ42: Undivided | BR42: Divided | BS42: 39 | BT42: 40 | BU42: 3.684097229 | BV42: 96.31590277 | BW42: 15015.73324 | BX42: 31700 | BY42: 0.4736824366 | BZ42: 14462.53903 | CA42: 553.1942121 | CB42: 226916.6898 | CC42: 8679.596243 | CD42: 235596.286 | CE42: 5262710 | CF42: 75.87063176 | CG42: 70.42016493 | CH42: 75.87063176 | CM42: No | CN42: No | CO42: 10 | CP42: 12 | CQ42: Yes | CR42: 0 | CS42: 4 | CT42: 4 Lane Undivided | CU42: 4F - 4 Lane Divided (17'-6" Raised Median) with Curb & Gutter, Wide Outside Lanes, and Sidewalks | CV42: Limited | CW42: Partial | CX42: 1 | CY42: No | CZ42: 22 | DA42: 12996000 | DB42: 2392000 | DC42: 287000 | DD42: 15675000 | DF42: 15675000 | DG42: 15675000
A43: H090514-A | B43: Cumberland | C43: Fayetteville Area MPO | D43: Regional Impact | E43: U-5015 | F43: NC-210 Murchison Road | G43: Rowan Street | H43: Langdon Street | I43: Widen to Multi-Lanes | J43: 1 - Widen Existing Roadway | K43: 10276000 | L43: N/A | M43: 16.45722581 | N43: 13.69597283 | P43: 60.83 | R43: 0 | S43: 25 | T43: 13.33 | U43: 7.5 | V43: 10 | W43: 5 | Y43: 34.9184318 | Z43: 0 | AA43: 67.12286469 | AB43: 2.888458551 | AC43: N/A | AD43: 10.15331396 | AE43: N/A | AF43: N/A | AH43: 0.4804407237 | AI43: 709.1357841 | AJ43: 577.6917103 | AL43: Fayetteville Area MPO | AM43: 100 | AR43: 06 | AS43: 100 | AX43: Cumberland | AY43: 100 | BF43: 6 | BG43: C | BH43: 06, , | BI43: Fayetteville Area MPO, , | BJ43: Cumberland, , , | BK43: 0.95147114 | BL43: 0.95147114 | BM43: Arterial | BN43: Arterial | BO43: 2 | BP43: 2 | BQ43: Undivided | BR43: Divided | BS43: 35 | BT43: 35 | BU43: 3.79312418 | BV43: 96.20687582 | BW43: 15229.97094 | BX43: 31700 | BY43: 0.4804407237 | BZ43: 14652.27923 | CA43: 577.6917103 | CB43: 0 | CC43: 0 | CD43: 0 | CE43: 0 | CF43: 58.05021435 | CG43: 59.28536139 | CH43: 84.0531572 | CM43: No | CN43: No | CO43: 10 | CP43: 12 | CQ43: Yes | CR43: 0 | CS43: 4 | CT43: 4 Lane Undivided | CU43: 4F - 4 Lane Divided (17'-6" Raised Median) with Curb & Gutter, Wide Outside Lanes, and Sidewalks | CV43: None | CW43: Partial | CX43: 1 | CY43: No | CZ43: 22 | DA43: 14364000 | DB43: 3293000 | DC43: 395000 | DD43: 18052000 | DF43: 18052000 | DG43: 18052000
A44: H090498 | B44: Cumberland | C44: Fayetteville Area MPO | D44: Regional Impact | E44: U-4900 | F44: NC-210 Murchison Road | G44: US 401 Bypass | H44: Bernadine Street | I44: Add Additional Lanes | J44: 1 - Widen Existing Roadway | K44: 21610000 | L44: N/A | M44: 17.58597342 | N44: 14.15776422 | P44: 57.5 | R44: 5 | S44: 16.67 | T44: 13.33 | U44: 7.5 | V44: 10 | W44: 5 | Y44: 37.99547977 | Z44: 0.4726354003 | AA44: 64.64141189 | AB44: 16.36273756 | AC44: N/A | AD44: 15.04803439 | AE44: N/A | AF44: N/A | AH44: 0.5227776524 | AI44: 683.4914552 | AJ44: 658.6592507 | AL44: Fayetteville Area MPO | AM44: 100 | AR44: 06 | AS44: 100 | AX44: Cumberland | AY44: 100 | BF44: 6 | BG44: C | BH44: 06, , | BI44: Fayetteville Area MPO, , | BJ44: Cumberland, , , | BK44: 1.90785516 | BL44: 1.90785516 | BM44: Arterial | BN44: Arterial | BO44: 2 | BP44: 3 | BQ44: Undivided | BR44: Divided | BS44: 45 | BT44: 45 | BU44: 3.974518469 | BV44: 96.02548153 | BW44: 16572.05158 | BX44: 31700 | BY44: 0.5227776524 | BZ44: 15913.39233 | CA44: 658.6592507 | CB44: 438539.7997 | CC44: 18151.27095 | CD44: 456691.0706 | CE44: 10213651 | CF44: 68.07593254 | CG44: 66.53432829 | CH44: 59.33336919 | CM44: No | CN44: Yes | CO44: 10 | CP44: 12 | CQ44: Yes | CR44: 0 | CS44: 4 | CT44: 4 Lane Undivided | CU44: 6E - 6 Lane Divided (23' Raised Median) with Curb & Gutter, Wide Outside Lanes, and Sidewalks | CV44: None | CW44: Partial | CX44: 1 | CY44: No | CZ44: 26 | DA44: 40926000 | DB44: 1509000 | DC44: 181000 | DD44: 42616000 | DF44: 42616000 | DG44: 42616000
A45: H141489 | B45: Columbus | C45: Cape Fear RPO | D45: Statewide Mobility | E45: R-2561B | F45: NC-87 | G45: NC 11 | I45: Convert at grade intersection to grade separation, square loop | J45: 7 - Upgrade At-grade Intersection to Interchange or Grade Separation | K45: 18600000 | L45: 16.56450648 | M45: 16.16274981 | N45: 12.17366455 | P45: 56.67 | R45: 0 | S45: 25 | T45: 6.67 | U45: 15 | V45: 10 | W45: 0 | Y45: 17.97870375 | Z45: 1.214618978 | AA45: 83.35 | AB45: 11.42428237 | AC45: 1.866531938 | AD45: 30.29419128 | AE45: N/A | AF45: N/A | AH45: 0.2483246374 | AI45: 1208.095995 | AJ45: 1043.233286 | AL45: Cape Fear RPO | AM45: 100 | AR45: 06 | AS45: 100 | AX45: Columbus | AY45: 100 | BF45: 6 | BG45: C | BH45: 06, , | BI45: Cape Fear RPO, , | BJ45: Columbus, , , | BK45: 2 | BL45: 2 | BM45: Two Lane Highway | BN45: Two Lane Highway | BO45: 1 | BP45: 1 | BQ45: Undivided | BR45: Divided | BS45: 55 | BT45: 55 | BU45: 13.55189199 | BV45: 86.44810801 | BW45: 7698.06376 | BX45: 31000 | BY45: 0.2483246374 | BZ45: 6654.830474 | CA45: 1043.233286 | CB45: 840275.6099 | CC45: 131724.3901 | CD45: 972000 | CE45: 22591913 | CI45: 66.7 | CJ45: 100 | CK45: 15.991537 | CL45: 2.133910176e-05 | CM45: Yes | CN45: No | CO45: 12 | CP45: 12 | CQ45: No | CR45: 4 | CS45: 2 | CT45: 2 Lane Undivided | CV45: None | CW45: Partial | CX45: 2 | CY45: No | CZ45: 24 | DA45: 13566000 | DB45: 2991000 | DC45: 359000 | DD45: 16916000 | DF45: 16916000 | DG45: 16916000
A46: H090279 | B46: Robeson | C46: Lumber River RPO | D46: Regional Impact | E46: R-4428 | F46: NC-711 | G46: SR 1340 (Odom Street- Philadelphus Road) in Pembroke | H46: SR 1557 (Redmond Road) | I46: SR 1340 (Odom Street- Philadelphus Road) to SR 1557 (Redmond Road). Widen to Multi-Lanes. | J46: 1 - Widen Existing Roadway | K46: 8049000 | L46: N/A | M46: 22.20446084 | N46: 18.70060752 | P46: 53.33 | R46: 5 | S46: 25 | T46: 13.33 | U46: 0 | V46: 0 | W46: 10 | Y46: 44.78180749 | Z46: 0 | AA46: 97.44246017 | AB46: 1.633669501 | AC46: N/A | AD46: 12.64762951 | AE46: N/A | AF46: N/A | AH46: 0.6753792614 | AI46: 833.7906365 | AJ46: 326.7339002 | AL46: Lumber River RPO | AM46: 100 | AR46: 06 | AS46: 100 | AX46: Robeson | AY46: 100 | BF46: 6 | BG46: C | BH46: 06, , | BI46: Lumber River RPO, , | BJ46: Robeson, , , | BK46: 0.90663396 | BL46: 0.90663396 | BM46: Arterial | BN46: Arterial | BO46: 1 | BP46: 2 | BQ46: Undivided | BR46: Divided | BS46: 51 | BT46: 35 | BU46: 3.06860696 | BV46: 96.93139304 | BW46: 10647.62951 | BX46: 15765.40785 | BY46: 0.6753792614 | BZ46: 10320.89561 | CA46: 326.7339002 | CB46: 0 | CC46: 0 | CD46: 0 | CE46: 0 | CF46: 99.77791272 | CG46: 99.77791272 | CH46: 92.80079073 | CM46: No | CN46: No | CO46: 12 | CP46: 12 | CQ46: No | CR46: 1 | CS46: 4 | CT46: 2 Lane Undivided | CU46: 4D - 4 Lane Divided (23' Raised Median) with Curb & Gutter, Wide Outside Lanes, Bike Lanes, and Sidewalks | CV46: None | CW46: Limited | CX46: 1 | CY46: Yes | CZ46: 23.6 | DA46: 5750000 | DB46: 1380000 | DC46: 0 | DD46: 7130000 | DF46: 7130000 | DG46: 7130000
A47: H090458-A | B47: Cumberland | C47: Fayetteville Area MPO | D47: Regional Impact | E47: U-4403 | F47: US-401 Ramsey Street | G47: NC 24/210 (Grove Street) | H47: Martin Luther King, Jr. Freeway | I47: Widen to Multi-Lanes | J47: 1 - Widen Existing Roadway | K47: 9056000 | L47: N/A | M47: 22.04070651 | N47: 18.20455248 | P47: 53.33 | R47: 5 | S47: 25 | T47: 13.33 | U47: 0 | V47: 10 | W47: 0 | Y47: 45.36149626 | Z47: 4.981129417 | AA47: 81.36027341 | AB47: 0 | AC47: N/A | AD47: 13.19022746 | AE47: N/A | AF47: N/A | AH47: 0.6241226631 | AI47: 510.3706446 | AJ47: 0 | AL47: Fayetteville Area MPO | AM47: 100 | AR47: 06 | AS47: 100 | AX47: Cumberland | AY47: 100 | BF47: 6 | BG47: C | BH47: 06, , | BI47: Fayetteville Area MPO, , | BJ47: Cumberland, , , | BK47: 0.89682392 | BL47: 0.89682392 | BM47: Arterial | BN47: Arterial | BO47: 2 | BP47: 3 | BQ47: Undivided | BR47: Divided | BS47: 35 | BT47: 45 | BU47: 0 | BV47: 100 | BW47: 19785.34119 | BX47: 31701.0459 | BY47: 0.6241226631 | BZ47: 19785.34119 | CA47: 0 | CB47: 2050413.993 | CC47: 0 | CD47: 2050413.993 | CE47: 45109108 | CF47: 81.36841025 | CG47: 81.36841025 | CH47: 81.36841025 | CM47: No | CN47: No | CO47: 11 | CP47: 12 | CQ47: Yes | CR47: 0 | CS47: 4 | CT47: 4 Lane Undivided | CU47: 6F - 6 Lane Divided (17'-6"' Raised Median) with Curb & Gutter, Wide Outside Lanes, and Sidewalks | CV47: None | CW47: Partial | CX47: 2 | CY47: No | CZ47: 26 | DA47: 23712000 | DB47: 2983000 | DC47: 358000 | DD47: 27053000 | DF47: 27053000 | DG47: 27053000
A48: H090936-E | B48: Columbus | C48: Cape Fear RPO | D48: Statewide Mobility | F48: I-74 , US-74 | G48: SR 1506 (Boardman Road) | I48: Upgrade At-grade Intersection to Interchange. | J48: 7 - Upgrade At-grade Intersection to Interchange or Grade Separation | K48: 7130000 | L48: 14.95866094 | M48: 17.26933835 | N48: 8.266034335 | P48: 53.33 | R48: 0 | S48: 8.33 | T48: 20 | U48: 15 | V48: 10 | W48: 0 | Y48: 18.46472048 | Z48: 6.215451192 | AA48: 33.3 | AB48: 19.30195318 | AC48: 3.642188013 | AD48: 77.69295429 | AE48: N/A | AF48: N/A | AH48: 0.1910943318 | AI48: 203.7416287 | AJ48: 2904.918977 | AL48: Cape Fear RPO | AM48: 100 | AR48: 06 | AS48: 100 | AX48: Columbus | AY48: 100 | BF48: 6 | BG48: C | BH48: 06, , | BI48: Cape Fear RPO, , | BJ48: Columbus, , , | BK48: 2 | BL48: 2 | BM48: Multi-Lane Highway | BN48: Freeway | BO48: 2 | BP48: 2 | BQ48: Divided | BR48: Divided | BS48: 55 | BT48: 55 | BU48: 16.60176503 | BV48: 83.39823497 | BW48: 17497.65143 | BX48: 91565.51774 | BY48: 0.1910943318 | BZ48: 14592.73245 | CA48: 2904.918977 | CB48: 1571222.747 | CC48: 312777.2532 | CD48: 1884000 | CE48: 44316167 | CI48: 33.3 | CJ48: 33.3 | CK48: 30.99467894 | CL48: 4.184908132e-05 | CM48: Yes | CN48: No | CO48: 12 | CP48: 12 | CQ48: No | CR48: 4 | CS48: 4 | CT48: 2 Lane Undivided | CV48: Limited | CW48: Partial | CX48: 2 | CY48: No | CZ48: 24 | DA48: 17328000 | DB48: 5522000 | DC48: 663000 | DD48: 23513000 | DF48: 23513000 | DG48: 23513000
A49: H090287-A | B49: Columbus | C49: Cape Fear RPO | D49: Statewide Mobility | E49: R-4462 | F49: US-74 , US-76 | G49: Whiteville | H49: I-140/US 17 Wilmington Bypass | I49: Upgrade Roadway to interstate Standards | J49: 2 - Upgrade Arterial to Freeway/Expressway | K49: 54001000 | L49: 17.56160674 | M49: 15.58377322 | N49: 9.354254871 | P49: 53.33 | R49: 0 | S49: 8.33 | T49: 20 | U49: 15 | V49: 10 | W49: 0 | Y49: 17.65153436 | Z49: 6.757517527 | AA49: 44.72444493 | AB49: 13.95102429 | AC49: 29.76241826 | AD49: 50.09065758 | AE49: N/A | AF49: N/A | AH49: 0.1962130003 | AI49: 86.98231026 | AJ49: 1809.139857 | AL49: Cape Fear RPO | AM49: 81 | AN49: Wilmington Urban Area MPO | AO49: 19 | AR49: 06 | AS49: 71.27 | AT49: 03 | AU49: 28.73 | AX49: Columbus | AY49: 71.27 | AZ49: Brunswick | BA49: 28.73 | BF49: 6 | BG49: C | BH49: 06, 03, | BI49: Cape Fear RPO, Wilmington Urban Area MPO, | BJ49: Columbus, Brunswick, , | BK49: 42.2421041 | BL49: 42.2421041 | BM49: Multi-Lane Highway | BN49: Freeway | BO49: 2 | BP49: 2 | BQ49: Divided | BR49: Divided | BS49: 57 | BT49: 70 | BU49: 12.30968162 | BV49: 87.69031838 | BW49: 14696.88586 | BX49: 74902.71204 | BY49: 0.1962130003 | BZ49: 12887.746 | CA49: 1809.139857 | CB49: 13835267.8 | CC49: 1942149.885 | CD49: 15777417.69 | CE49: 364912704 | CF49: 40.22780372 | CG49: 49.25097281 | CH49: 44.70797694 | CK49: 254 | CL49: 0.0003412483652 | CM49: Yes | CN49: No | CO49: 12 | CP49: 12 | CQ49: No | CR49: 3 | CS49: 4 | CT49: 4 Lane with Median - Limited Control | CU49: 4A - 4 Lane Divided (46' Depressed Median) with Paved Shoulders | CV49: Limited | CW49: Partial | CX49: 2 | CY49: No | CZ49: 25 | DA49: 9804000 | DB49: 3432000 | DC49: 412000 | DD49: 13648000 | DF49: 13648000 | DG49: 13648000
A50: H090936-D | B50: Robeson | C50: Lumber River RPO | D50: Statewide Mobility | F50: I-74 , US-74 | G50: NC 72/130 | I50: Upgrade At-grade Intersection to Interchange. | J50: 7 - Upgrade At-grade Intersection to Interchange or Grade Separation | K50: 5750000 | L50: 13.03246632 | M50: 14.42432347 | N50: 8.28164024 | P50: 53.33 | R50: 0 | S50: 8.33 | T50: 20 | U50: 15 | V50: 10 | W50: 0 | Y50: 13.63126451 | Z50: 2.776936696 | AA50: 50 | AB50: 14.9056201 | AC50: 1.288819353 | AD50: 53.22273165 | AE50: N/A | AF50: N/A | AH50: 0.1312497516 | AI50: 199.7818239 | AJ50: 2324.875263 | AL50: Lumber River RPO | AM50: 100 | AR50: 06 | AS50: 100 | AX50: Robeson | AY50: 100 | BF50: 6 | BG50: C | BH50: 06, , | BI50: Lumber River RPO, , | BJ50: Robeson, , , | BK50: 2 | BL50: 2 | BM50: Multi-Lane Highway | BN50: Freeway | BO50: 2 | BP50: 2 | BQ50: Divided | BR50: Divided | BS50: 55 | BT50: 55 | BU50: 16.15540245 | BV50: 83.84459755 | BW50: 14390.69853 | BX50: 109643.6249 | BY50: 0.1312497516 | BZ50: 12065.82327 | CA50: 2324.875263 | CB50: 570143.2634 | CC50: 109856.7366 | CD50: 680000 | CE50: 15967386 | CI50: 33.3 | CJ50: 66.7 | CK50: 11 | CL50: 1.477638705e-05 | CM50: Yes | CN50: No | CO50: 12 | CP50: 12 | CQ50: No | CR50: 4 | CS50: 4 | CT50: 4 Lane with Median - Limited Control | CV50: Limited | CW50: Partial | CX50: 2 | CY50: No | CZ50: 23 | DA50: 36366000 | DB50: 10031000 | DC50: 1204000 | DD50: 47601000 | DF50: 47601000 | DG50: 47601000
A51: H090936-A | B51: Columbus | C51: Cape Fear RPO | D51: Statewide Mobility | F51: I-74 , US-74 | G51: NC 41 | H51: SR 1585 | I51: Upgrade US 74 to interstate Standards from NC 41 in Lumberton to SR 1585 (Union Valley Road) West of Whiteville | J51: 3 - Upgrade Expressway to Freeway | K51: 33139000 | L51: 12.70404856 | M51: 13.1554856 | N51: 7.689182225 | P51: 53.33 | R51: 0 | S51: 8.33 | T51: 20 | U51: 15 | V51: 10 | W51: 0 | Y51: 12.09075768 | Z51: 4.581003319 | AA51: 43.54830025 | AB51: 10.596048 | AC51: 12.28480636 | AD51: 46.32715327 | AE51: N/A | AF51: N/A | AH51: 0.1341189541 | AI51: 129.3368186 | AJ51: 1448.61483 | AL51: Cape Fear RPO | AM51: 56.88 | AN51: Lumber River RPO | AO51: 43.12 | AR51: 06 | AS51: 100 | AX51: Columbus | AY51: 56.88 | AZ51: Robeson | BA51: 43.12 | BF51: 6 | BG51: C | BH51: 06, , | BI51: Cape Fear RPO, Lumber River RPO, | BJ51: Columbus, Robeson, , | BK51: 25.34584843 | BL51: 25.34584843 | BM51: Multi-Lane Highway | BN51: Freeway | BO51: 2 | BP51: 2 | BQ51: Divided | BR51: Divided | BS51: 57 | BT51: 70 | BU51: 14.32987941 | BV51: 85.67012059 | BW51: 10109.05109 | BX51: 75373.76919 | BY51: 0.1341189541 | BZ51: 8660.43626 | CA51: 1448.61483 | CB51: 5578425.821 | CC51: 933092.7602 | CD51: 6511518.581 | CE51: 151809869 | CF51: 35.536219 | CG51: 47.12338986 | CH51: 47.99835769 | CK51: 105 | CL51: 0.0001406961271 | CM51: Yes | CN51: No | CO51: 12 | CP51: 12 | CQ51: No | CR51: 4 | CS51: 4 | CT51: 4 Lane with Median - Limited Control | CU51: 4A - 4 Lane Divided (46' Depressed Median) with Paved Shoulders | CV51: Limited | CW51: Partial | CX51: 2 | CY51: No | CZ51: 25 | DA51: 19836000 | DB51: 1169000 | DC51: 140000 | DD51: 21145000 | DF51: 21145000 | DG51: 21145000
A52: H090936-C | B52: Robeson | C52: Lumber River RPO | D52: Statewide Mobility | F52: I-74 , US-74 | G52: SR 2225 (Creek Road) | I52: Upgrade At-grade Intersection to Grade Separation. | J52: 7 - Upgrade At-grade Intersection to Interchange or Grade Separation | K52: 5750000 | L52: 10.06882065 | M52: 11.24323583 | N52: 6.236440761 | P52: 53.33 | R52: 0 | S52: 8.33 | T52: 20 | U52: 15 | V52: 10 | W52: 0 | Y52: 10.91233198 | Z52: 3.594871826 | AA52: 33.35 | AB52: 11.05793122 | AC52: 1.700732615 | AD52: 42.81434884 | AE52: N/A | AF52: N/A | AH52: 0.1130589588 | AI52: 278.5316667 | AJ52: 1646.29145 | AL52: Lumber River RPO | AM52: 100 | AR52: 06 | AS52: 100 | AX52: Robeson | AY52: 100 | BF52: 6 | BG52: C | BH52: 06, , | BI52: Lumber River RPO, , | BJ52: Robeson, , , | BK52: 2 | BL52: 2 | BM52: Multi-Lane Highway | BN52: Freeway | BO52: 2 | BP52: 2 | BQ52: Divided | BR52: Divided | BS52: 55 | BT52: 55 | BU52: 15.949367 | BV52: 84.050633 | BW52: 10321.98613 | BX52: 91297.37477 | BY52: 0.1130589588 | BZ52: 8675.69468 | CA52: 1646.29145 | CB52: 740486.0767 | CC52: 140513.9233 | CD52: 881000 | CE52: 20670513 | CI52: 0 | CJ52: 66.7 | CK52: 14.49392261 | CL52: 1.95207297e-05 | CM52: Yes | CN52: No | CO52: 12 | CP52: 12 | CQ52: No | CR52: 4 | CS52: 4 | CT52: 2 Lane Undivided | CV52: Limited | CW52: Partial | CX52: 2 | CY52: No | CZ52: 25 | DA52: 32718000 | DB52: 7144000 | DC52: 857000 | DD52: 40719000 | DF52: 40719000 | DG52: 40719000
A53: H090172-D | B53: Wake | C53: Capital Area MPO | D53: Regional Impact | E53: R-2609 | F53: US-401 New Route - Fuquay Varina Bypass | G53: US 401 south of Fuquay-Varina | H53: NC 55 southeast of Fuquay-Varina | I53: Construct Freeway on New Location | J53: 5 - Construct Roadway on New Location | K53: 97327000 | L53: N/A | M53: 26.42020023 | N53: 17.3663879 | P53: 52.5 | R53: 5 | S53: 16.67 | T53: 13.33 | U53: 7.5 | V53: 10 | W53: 0 | Y53: 50.39302756 | Z53: 3.623812204 | AA53: 65.63019944 | AB53: 4.018424853 | AC53: N/A | AD53: 63.5297035 | AE53: N/A | AF53: N/A | AH53: 0.7269417826 | AI53: 683.1098845 | AJ53: 803.6849706 | AL53: Capital Area MPO | AM53: 100 | AR53: 05 | AS53: 81.57 | AT53: 06 | AU53: 18.43 | AX53: Wake | AY53: 81.57 | AZ53: Harnett | BA53: 18.43 | BF53: 5 | BG53: C | BH53: 05, 06, | BI53: Capital Area MPO, , | BJ53: Wake, Harnett, , | BK53: 7.3 | BL53: 8.41 | BM53: Arterial | BN53: Freeway | BO53: 1 | BP53: 2 | BQ53: Undivided | BR53: Divided | BS53: 39 | BT53: 70 | BU53: 4.743938773 | BV53: 95.25606123 | BW53: 16941.3015 | BX53: 23304.89443 | BY53: 0.7269417826 | BZ53: 16137.61653 | CA53: 803.6849706 | CB53: 31606367.28 | CC53: 1574059.113 | CD53: 33180426.39 | CE53: 744403503 | CF53: 73.94879555 | CG53: 56.12012661 | CH53: 66.8413672 | CM53: No | CN53: No | CO53: 12 | CP53: 12 | CQ53: No | CR53: 2 | CS53: 4 | CT53: New Roadway | CU53: 4A - 4 Lane Divided (46' Depressed Median) with Paved Shoulders | CV53: None | CW53: Partial | CX53: 2 | CY53: No | CZ53: 23 | DA53: 12426000 | DB53: 4593000 | DC53: 551000 | DD53: 17570000 | DF53: 17570000 | DG53: 17570000
A54: H090657 | B54: Harnett | C54: Fayetteville Area MPO | D54: Regional Impact | F54: NC-210 | G54: NC 87 | H54: US 401 | I54: Widen to Multi-Lanes with Wide Shoulders and Enhance Corridor from Highway 87 in Spring Lake (Cumberland County) to US Highway 401 in Lillington. | J54: 1 - Widen Existing Roadway | K54: 192905000 | L54: N/A | M54: 19.42298066 | N54: 13.38945978 | P54: 52.5 | R54: 5 | S54: 16.67 | T54: 13.33 | U54: 7.5 | V54: 10 | W54: 0 | Y54: 38.51726506 | Z54: 0.2781832923 | AA54: 56.30370114 | AB54: 2.686675342 | AC54: N/A | AD54: 40.93748461 | AE54: N/A | AF54: N/A | AH54: 0.5696107062 | AI54: 987.5939879 | AJ54: 537.3350684 | AL54: Fayetteville Area MPO | AM54: 53.13 | AN54: Mid-Carolina RPO | AO54: 46.87 | AR54: 06 | AS54: 100 | AX54: Harnett | AY54: 78.07 | AZ54: Cumberland | BA54: 21.93 | BF54: 6 | BG54: C | BH54: 06, , | BI54: Fayetteville Area MPO, Mid-Carolina RPO, | BJ54: Harnett, Cumberland, , | BK54: 18.00002059 | BL54: 18.00002059 | BM54: Two Lane Highway | BN54: Multi-Lane Highway | BO54: 1 | BP54: 2 | BQ54: Undivided | BR54: Divided | BS54: 51 | BT54: 51 | BU54: 4.951686488 | BV54: 95.04831351 | BW54: 10851.55673 | BX54: 19050.83 | BY54: 0.5696107062 | BZ54: 10314.22166 | CA54: 537.3350684 | CB54: 2271558.24 | CC54: 118340.2822 | CD54: 2389898.522 | CE54: 53662948 | CF54: 69.20308186 | CG54: 52.65545765 | CH54: 47.0694567 | CM54: No | CN54: No | CO54: 12 | CP54: 12 | CQ54: No | CR54: 1 | CS54: 4 | CT54: 2 Lane Undivided | CU54: 4A - 4 Lane Divided (46' Depressed Median) with Paved Shoulders | CV54: None | CW54: Partial | CX54: 2 | CY54: No | CZ54: 17 | DA54: 15846000 | DB54: 3258000 | DC54: 391000 | DD54: 19495000 | DF54: 19495000 | DG54: 19495000
A55: H140395 | B55: Columbus | C55: Cape Fear RPO | D55: Statewide Mobility | F55: US-74 , US-76 | G55: west of SR 1844 (Oscar Blanks Rd) | H55: Columbus/Brunswick County Line | I55: Construct new expressway (Delco Bypass) on new location pursuant to FS-9903A and 2007 Columbus Co. CTP. | J55: 5 - Construct Roadway on New Location | K55: 101482000 | L55: 13.44487847 | M55: 14.27549406 | N55: 8.615264073 | P55: 48.34 | R55: 0 | S55: 16.67 | T55: 6.67 | U55: 15 | V55: 10 | W55: 0 | Y55: 16.74274672 | Z55: 0.4429508287 | AA55: 51.78124564 | AB55: 13.71244178 | AC55: 3.68556286 | AD55: 48.00945108 | AE55: N/A | AF55: N/A | AH55: 0.1856914429 | AI55: 1130.593409 | AJ55: 1814.031142 | AL55: Cape Fear RPO | AM55: 100 | AR55: 06 | AS55: 89.91 | AT55: 03 | AU55: 10.09 | AX55: Columbus | AY55: 89.91 | AZ55: Brunswick | BA55: 10.09 | BF55: 6 | BG55: C | BH55: 06, 03, | BI55: Cape Fear RPO, , | BJ55: Columbus, Brunswick, , | BK55: 6.4 | BL55: 6.40998209 | BM55: Multi-Lane Highway | BN55: Freeway | BO55: 2 | BP55: 2 | BQ55: Divided | BR55: Divided | BS55: 54.99999977 | BT55: 65 | BU55: 12.95445022 | BV55: 87.04554978 | BW55: 14003.15036 | BX55: 75410.85438 | BY55: 0.1856914429 | BZ55: 12189.11922 | CA55: 1814.031142 | CB55: 1687443.585 | CC55: 251131.7806 | CD55: 1938575.365 | CE55: 44951536 | CF55: 45.43491902 | CG55: 68.02542279 | CH55: 41.89893103 | CK55: 31.57288142 | CL55: 4.213837578e-05 | CM55: Yes | CN55: No | CO55: 11 | CP55: 12 | CQ55: No | CR55: 2 | CS55: 4 | CT55: New Roadway | CU55: 4A - 4 Lane Divided (46' Depressed Median) with Paved Shoulders | CV55: None | CW55: Partial | CX55: 2 | CY55: No | CZ55: 23 | DA55: 19152000 | DB55: 2226000 | DC55: 267000 | DD55: 21645000 | DF55: 21645000 | DG55: 21645000
A56: H090287-D | B56: Columbus | C56: Cape Fear RPO | D56: Statewide Mobility | E56: R-4462 | F56: US-74 , US-76 | G56: SR 1740 (Old Lake Road) | I56: Upgrade At-grade Intersection to Grade Separation | J56: 7 - Upgrade At-grade Intersection to Interchange or Grade Separation | K56: 5750000 | L56: 7.964518945 | M56: 11.31535439 | N56: 5.966814393 | P56: 48.33 | R56: 0 | S56: 8.33 | T56: 20 | U56: 0 | V56: 10 | W56: 10 | Y56: 12.78028936 | Z56: 0.3787826087 | AA56: 33.35 | AB56: 3.308128124 | AC56: 0.2017172987 | AD56: 46.90586395 | AE56: N/A | AF56: N/A | AH56: 0.132325125 | AI56: 237.5649292 | AJ56: 0 | AL56: Cape Fear RPO | AM56: 100 | AR56: 06 | AS56: 100 | AX56: Columbus | AY56: 100 | BF56: 6 | BG56: C | BH56: 06, , | BI56: Cape Fear RPO, , | BJ56: Columbus, , , | BK56: 2 | BL56: 2 | BM56: Multi-Lane Highway | BN56: Freeway | BO56: 2 | BP56: 2 | BQ56: Divided | BR56: Divided | BS56: 55 | BT56: 70 | BU56: 0 | BV56: 100 | BW56: 12101.95465 | BX56: 91456.21175 | BY56: 0.132325125 | BZ56: 12101.95465 | CA56: 0 | CB56: 99000 | CC56: 0 | CD56: 99000 | CE56: 2178000 | CI56: 0 | CJ56: 66.7 | CK56: 2 | CL56: 2.034345975e-06 | CM56: Yes | CN56: No | CO56: 12 | CP56: 12 | CQ56: No | CR56: 2 | CS56: 4 | CT56: 4 Lane with Median - Limited Control | CV56: Limited | CW56: None | CX56: 2 | CY56: No | CZ56: 20 | DA56: 3850000 | DB56: 1000000 | DC56: 500000 | DD56: 5350000 | DF56: 5350000 | DG56: 5350000
A57: H090172-C | B57: Harnett | C57: Capital Area MPO | D57: Regional Impact | E57: R-2609 | F57: US-401 | G57: Lillington Bypass | H57: Fuquay-Varina Bypass | I57: Widen to Multi-Lanes | J57: 1 - Widen Existing Roadway | K57: 63202000 | L57: N/A | M57: 21.59692219 | N57: 14.45345508 | P57: 45 | R57: 5 | S57: 16.67 | T57: 13.33 | U57: 0 | V57: 10 | W57: 0 | Y57: 39.80420486 | Z57: 1.170476282 | AA57: 62.5851885 | AB57: 0 | AC57: N/A | AD57: 50.94733058 | AE57: N/A | AF57: N/A | AH57: 0.6010350879 | AI57: 950.7240972 | AJ57: 0 | AL57: Capital Area MPO | AM57: 100 | AR57: 06 | AS57: 100 | AX57: Harnett | AY57: 100 | BF57: 6 | BG57: C | BH57: 06, , | BI57: Capital Area MPO, , | BJ57: Harnett, , , | BK57: 7.10593074 | BL57: 7.10593074 | BM57: Two Lane Highway | BN57: Multi-Lane Highway | BO57: 1 | BP57: 2 | BQ57: Undivided | BR57: Divided | BS57: 45 | BT57: 55 | BU57: 0 | BV57: 100 | BW57: 9355.248966 | BX57: 15565.22931 | BY57: 0.6010350879 | BZ57: 9355.248966 | CA57: 0 | CB57: 3362565.525 | CC57: 0 | CD57: 3362565.525 | CE57: 73976442 | CF57: 78.91726429 | CG57: 56.7513639 | CH57: 52.10571475 | CM57: No | CN57: No | CO57: 12 | CP57: 12 | CQ57: No | CR57: 4 | CS57: 4 | CT57: 2 Lane Undivided | CU57: 4A - 4 Lane Divided (46' Depressed Median) with Paved Shoulders | CV57: None | CW57: None | CX57: 1 | CY57: No | CZ57: 19 | DA57: 13908000 | DB57: 6757000 | DC57: 811000 | DD57: 21476000 | DF57: 21476000 | DG57: 21476000
A58: H090287-E | B58: Columbus | C58: Cape Fear RPO | D58: Statewide Mobility | E58: R-4462 | F58: US-74 , US-76 | G58: NC 214 | I58: Upgrade At-grade Intersection to Interchange. | J58: 7 - Upgrade At-grade Intersection to Interchange or Grade Separation | K58: 7130000 | L58: 9.085128025 | M58: 10.95543654 | N58: 4.660075096 | P58: 45 | R58: 0 | S58: 0 | T58: 20 | U58: 15 | V58: 10 | W58: 0 | Y58: 14.93620101 | Z58: 0.03917447405 | AA58: 16.65 | AB58: 14.63115643 | AC58: 0.01284093999 | AD58: 55.46592666 | AE58: N/A | AF58: N/A | AH58: 0.143012402 | AI58: 224.3741127 | AJ58: 2211.169277 | AL58: Cape Fear RPO | AM58: 100 | AR58: 06 | AS58: 100 | AX58: Columbus | AY58: 100 | BF58: 6 | BG58: C | BH58: 06, , | BI58: Cape Fear RPO, , | BJ58: Columbus, , , | BK58: 2 | BL58: 2 | BM58: Multi-Lane Highway | BN58: Freeway | BO58: 2 | BP58: 2 | BQ58: Divided | BR58: Divided | BS58: 55 | BT58: 55 | BU58: 13.91666604 | BV58: 86.08333396 | BW58: 15888.64222 | BX58: 111099.7508 | BY58: 0.143012402 | BZ58: 13677.47294 | CA58: 2211.169277 | CB58: 10330.00007 | CC58: 1669.999925 | CD58: 12000 | CE58: 279314 | CI58: 0 | CJ58: 33.3 | CK58: 0 | CL58: 2.568187998e-07 | CM58: Yes | CN58: No | CO58: 12 | CP58: 12 | CQ58: No | CR58: 2 | CS58: 4 | CT58: 4 Lane with Median - Limited Control | CV58: Limited | CW58: None | CX58: 1 | CY58: No | CZ58: 17 | DA58: 7296000 | DB58: 7003000 | DC58: 840000 | DD58: 15139000 | DF58: 15139000 | DG58: 15139000
A59: H090287-B | B59: Columbus | C59: Cape Fear RPO | D59: Statewide Mobility | E59: R-4462 | F59: US-74 , US-76 | G59: SR 1001 (Hallsboro Road) | I59: Upgrade At-grade Intersection to Interchange | J59: 7 - Upgrade At-grade Intersection to Interchange or Grade Separation | K59: 5750000 | L59: 10.8037911 | M59: 14.28462904 | N59: 8.299429368 | P59: 43.33 | R59: 0 | S59: 8.33 | T59: 20 | U59: 0 | V59: 10 | W59: 5 | Y59: 15.22688597 | Z59: 1.27026087 | AA59: 50 | AB59: 3.977678973 | AC59: 0.5911125574 | AD59: 51.60342327 | AE59: N/A | AF59: N/A | AH59: 0.1591071589 | AI59: 202.4485203 | AJ59: 0 | AL59: Cape Fear RPO | AM59: 100 | AR59: 06 | AS59: 100 | AX59: Columbus | AY59: 100 | BF59: 6 | BG59: C | BH59: 06, , | BI59: Cape Fear RPO, , | BJ59: Columbus, , , | BK59: 2 | BL59: 2 | BM59: Freeway | BN59: Freeway | BO59: 2 | BP59: 2 | BQ59: Divided | BR59: Divided | BS59: 62.50137703 | BT59: 70 | BU59: 0 | BV59: 100 | BW59: 14201.14109 | BX59: 89255.19874 | BY59: 0.1591071589 | BZ59: 14201.14109 | CA59: 0 | CB59: 332000 | CC59: 0 | CD59: 332000 | CE59: 7304000 | CI59: 0 | CJ59: 100 | CK59: 5 | CL59: 6.822251148e-06 | CM59: Yes | CN59: No | CO59: 12 | CP59: 12 | CQ59: No | CR59: 2 | CS59: 4 | CT59: 4 Lane with Median - Partial Control | CV59: Full | CW59: Partial | CX59: 1 | CY59: No | CZ59: 18 | DA59: 14592000 | DB59: 3029000 | DC59: 363000 | DD59: 17984000 | DF59: 17984000 | DG59: 17984000
A60: H090465 | B60: Cumberland | C60: Fayetteville Area MPO | D60: Regional Impact | E60: U-4415 | F60: NC-53 Cedar Creek Road, NC-210 | G60: I-95 | H60: NC 53-210 Junction | I60: I-95 to NC 53-210 Junction. Widen to Multi-Lanes. | J60: 1 - Widen Existing Roadway | K60: 20240000 | L60: N/A | M60: 18.96528576 | N60: 13.92457022 | P60: 42.5 | R60: 5 | S60: 16.67 | T60: 13.33 | U60: 7.5 | V60: 0 | W60: 0 | Y60: 40.97049113 | Z60: 0.5594041996 | AA60: 56.18591148 | AB60: 2.542497003 | AC60: N/A | AD60: 29.64220777 | AE60: N/A | AF60: N/A | AH60: 0.6187359995 | AI60: 686.1470665 | AJ60: 508.4994006 | AL60: Fayetteville Area MPO | AM60: 100 | AR60: 06 | AS60: 100 | AX60: Cumberland | AY60: 100 | BF60: 6 | BG60: C | BH60: 06, , | BI60: Fayetteville Area MPO, , | BJ60: Cumberland, , , | BK60: 3.0676557 | BL60: 3.0676557 | BM60: Two Lane Highway | BN60: Multi-Lane Highway | BO60: 1 | BP60: 2 | BQ60: Undivided | BR60: Divided | BS60: 54 | BT60: 55 | BU60: 5.288149967 | BV60: 94.71185003 | BW60: 9615.827913 | BX60: 15541.08363 | BY60: 0.6187359995 | BZ60: 9107.328512 | CA60: 508.4994006 | CB60: 476923.9444 | CC60: 26628.61448 | CD60: 503552.5589 | CE60: 11322341 | CF60: 83.53801129 | CG60: 31.67956127 | CH60: 53.35701935 | CM60: No | CN60: No | CO60: 12 | CP60: 12 | CQ60: No | CR60: 3 | CS60: 4 | CT60: 2 Lane Undivided | CU60: 4B - 4 Lane Divided (23' Raised Median) with Paved Shoulders and Sidewalks | CV60: None | CW60: Partial | CX60: 2 | CY60: No | CZ60: 23 | DA60: 4800000 | DB60: 2800000 | DC60: 400000 | DD60: 8000000 | DF60: 8000000 | DG60: 8000000
A61: H090133-C | B61: Columbus | C61: Cape Fear RPO | D61: Statewide Mobility | E61: R-2561C | F61: NC-87 | G61: NC 11 | H61: US 74/76 | I61: Widen to Multi-Lanes. | J61: 1 - Widen Existing Roadway | K61: 98000000 | L61: 19.23503278 | M61: 16.97704053 | N61: 12.56330507 | P61: 41.67 | R61: 0 | S61: 16.67 | T61: 0 | U61: 15 | V61: 10 | W61: 0 | Y61: 31.67990934 | Z61: 0.08979332653 | AA61: 62.09364537 | AB61: 17.11965413 | AC61: 0.7082661314 | AD61: 28.25250325 | AE61: N/A | AF61: N/A | AH61: 0.4785484817 | AI61: 2205.593538 | AJ61: 1031.188418 | AL61: Cape Fear RPO | AM61: 100 | AR61: 06 | AS61: 100 | AX61: Columbus | AY61: 100 | BF61: 6 | BG61: C | BH61: 06, , | BI61: Cape Fear RPO, , | BJ61: Columbus, , , | BK61: 5.99022281 | BL61: 5.99022281 | BM61: Two Lane Highway | BN61: Multi-Lane Highway | BO61: 1 | BP61: 2 | BQ61: Undivided | BR61: Divided | BS61: 55 | BT61: 55 | BU61: 13.90209999 | BV61: 86.09790001 | BW61: 7417.501084 | BX61: 15499.9992 | BY61: 0.4785484817 | BZ61: 6386.312666 | CA61: 1031.188418 | CB61: 325518.981 | CC61: 52561.06623 | CD61: 378080.0473 | CE61: 8799746 | CF61: 76.86598795 | CG61: 57.50170805 | CH61: 51.93187006 | CK61: 6 | CL61: 8.165322628e-06 | CM61: Yes | CN61: No | CO61: 12 | CP61: 12 | CQ61: No | CR61: 4 | CS61: 2 | CT61: 2 Lane Undivided | CU61: 4A - 4 Lane Divided (46' Depressed Median) with Paved Shoulders | CV61: None | CW61: Partial | CX61: 1 | CY61: Yes | CZ61: 23 | DA61: 76000000 | DB61: 21000000 | DC61: 1000000 | DD61: 98000000 | DF61: 98000000 | DG61: 98000000
A62: H090760 | B62: Harnett | C62: Mid-Carolina RPO | D62: Regional Impact | F62: US-421 | G62: US 401 | H62: NC 87 | I62: Widen to Multi-Lanes and Enhance Corridor from Lillington in Harnett County to Sanford in Lee County. | J62: 1 - Widen Existing Roadway | K62: 152614000 | L62: N/A | M62: 15.80089004 | N62: 11.34313944 | P62: 40.84 | R62: 0 | S62: 16.67 | T62: 6.67 | U62: 7.5 | V62: 10 | W62: 0 | Y62: 28.38892351 | Z62: 0.2118592659 | AA62: 56.22982885 | AB62: 3.068249648 | AC62: N/A | AD62: 30.27711464 | AE62: N/A | AF62: N/A | AH62: 0.4274559386 | AI62: 1210.578156 | AJ62: 613.6499296 | AL62: Mid-Carolina RPO | AM62: 74.99 | AN62: Triangle Area RPO | AO62: 25.01 | AR62: 06 | AS62: 75.01 | AT62: 08 | AU62: 24.99 | AX62: Harnett | AY62: 75.01 | AZ62: Lee | BA62: 24.99 | BF62: 6 | BG62: C | BH62: 06, 08, | BI62: Mid-Carolina RPO, Triangle Area RPO, | BJ62: Harnett, Lee, , | BK62: 18.39342638 | BL62: 18.39342638 | BM62: Two Lane Highway | BN62: Multi-Lane Highway | BO62: 1 | BP62: 2 | BQ62: Undivided | BR62: Divided | BS62: 53 | BT62: 55 | BU62: 8.953272134 | BV62: 91.04672787 | BW62: 6853.917991 | BX62: 16034.20931 | BY62: 0.4274559386 | BZ62: 6240.268061 | CA62: 613.6499296 | CB62: 1289945.074 | CC62: 126849.4712 | CD62: 1416794.545 | CE62: 32332690 | CF62: 62.92585548 | CG62: 59.12509687 | CH62: 46.65540485 | CM62: No | CN62: No | CO62: 12 | CP62: 12 | CQ62: No | CR62: 2 | CS62: 2 | CT62: 2 Lane Undivided | CU62: 4A - 4 Lane Divided (46' Depressed Median) with Paved Shoulders | CV62: None | CW62: Full | CX62: 1 | CY62: Yes | CZ62: 23 | DA62: 54001000 | DB62: 0 | DC62: 0 | DD62: 54001000 | DF62: 54001000 | DG62: 54001000
A63: H090133-B | B63: Bladen | C63: Mid-Carolina RPO | D63: Statewide Mobility | E63: R-2561B | F63: NC-87 | G63: SR 1730 (Elwell Ferry Road) in Bladen County | H63: NC 11 in Columbus County | I63: Widen to Multi-Lanes. | J63: 1 - Widen Existing Roadway | K63: 49800000 | L63: 12.70264748 | M63: 12.65483968 | N63: 9.2608864 | P63: 40.84 | R63: 0 | S63: 16.67 | T63: 6.67 | U63: 7.5 | V63: 10 | W63: 0 | Y63: 16.57241265 | Z63: 0.02516682731 | AA63: 59.41370505 | AB63: 8.855938851 | AC63: 0.1081536496 | AD63: 25.64074303 | AE63: N/A | AF63: N/A | AH63: 0.2503385597 | AI63: 1308.909718 | AJ63: 519.4949718 | AL63: Mid-Carolina RPO | AM63: 89.51 | AN63: Cape Fear RPO | AO63: 10.49 | AR63: 06 | AS63: 100 | AX63: Bladen | AY63: 89.51 | AZ63: Columbus | BA63: 10.49 | BF63: 6 | BG63: C | BH63: 06, , | BI63: Mid-Carolina RPO, Cape Fear RPO, | BJ63: Bladen, Columbus, , | BK63: 9.80528459 | BL63: 9.80528459 | BM63: Two Lane Highway | BN63: Multi-Lane Highway | BO63: 1 | BP63: 2 | BQ63: Undivided | BR63: Divided | BS63: 55 | BT63: 55 | BU63: 13.38819105 | BV63: 86.61180895 | BW63: 3880.247675 | BX63: 15500 | BY63: 0.2503385597 | BZ63: 3360.752703 | CA63: 519.4949718 | CB63: 46733.53931 | CC63: 7223.928932 | CD63: 53957.46824 | CE63: 1253308 | CF63: 61.63688405 | CG63: 61.77924439 | CH63: 54.84281259 | CK63: 1 | CL63: 1.163072992e-06 | CM63: Yes | CN63: No | CO63: 12 | CP63: 12 | CQ63: No | CR63: 4 | CS63: 0 | CT63: 2 Lane Undivided | CU63: 4A - 4 Lane Divided (46' Depressed Median) with Paved Shoulders | CV63: None | CW63: Partial | CX63: 1 | CY63: Yes | CZ63: 23.6 | DA63: 15000000 | DB63: 3600000 | DC63: 0 | DD63: 18600000 | DF63: 18600000 | DG63: 18600000
A64: H090237-C | B64: Brunswick | C64: Cape Fear RPO | D64: Statewide Mobility | E64: R-3436 | F64: I-74 New Route | G64: I-74 New Location south of US 17 near NC 130 | H64: US 74/76 East of Whiteville in Columbus County | I64: Construct Freeway on New Location. | J64: 5 - Construct Roadway on New Location | K64: 284995000 | L64: 13.61195616 | M64: 10.7158001 | N64: 11.71569802 | P64: 40 | R64: 0 | S64: 8.33 | T64: 6.67 | U64: 15 | V64: 10 | W64: 0 | Y64: 19.02972438 | Z64: 0.9914513518 | AA64: 37.02749215 | AB64: 5.04254717 | AC64: 28.94344792 | AD64: 24.73252634 | AE64: N/A | AF64: N/A | AH64: 0.2636405691 | AI64: 1072.750361 | AJ64: 1008.509434 | AL64: Cape Fear RPO | AM64: 86.32 | AN64: Grand Strand Transportation Study Area | AO64: 13.68 | AR64: 03 | AS64: 69.87 | AT64: 06 | AU64: 30.13 | AX64: Brunswick | AY64: 69.87 | AZ64: Columbus | BA64: 30.13 | BF64: 3 | BG64: B | BH64: 03, 06, | BI64: Cape Fear RPO, Grand Strand Transportation Study Area, | BJ64: Brunswick, Columbus, , | BK64: 36 | BL64: 33.09169439 | BM64: Two Lane Highway | BN64: Freeway | BO64: 1 | BP64: 2 | BQ64: Undivided | BR64: Divided | BS64: 55 | BT64: 70 | BU64: 12.56204655 | BV64: 87.43795345 | BW64: 8028.225573 | BX64: 30451.40435 | BY64: 0.2636405691 | BZ64: 7019.716139 | CA64: 1008.509434 | CB64: 10671396.37 | CC64: 1533139.475 | CD64: 12204535.85 | CE64: 282558678 | CF64: 36.65618018 | CG64: 38.62017712 | CH64: 35.81722851 | CK64: 251.7251035 | CL64: 0.0003271438549 | CM64: No | CN64: No | CO64: 12 | CP64: 12 | CQ64: No | CR64: 2 | CS64: 4 | CT64: New Roadway | CU64: 4A - 4 Lane Divided (46' Depressed Median) with Paved Shoulders | CV64: None | CW64: Full | CX64: 1 | CY64: Yes | CZ64: 32.6 | DA64: 5750000 | DB64: 1380000 | DC64: 0 | DD64: 7130000 | DF64: 7130000 | DG64: 7130000
A65: H090172-A | B65: Harnett | C65: Mid-Carolina RPO | D65: Regional Impact | E65: R-2609 | F65: US-401 Ramsey Street | G65: Multi-Lanes North of Fayetteville in Cumberland County | H65: Lillington Bypass | I65: Widen to Multi-Lanes | J65: 1 - Widen Existing Roadway | K65: 127544000 | L65: N/A | M65: 16.12964534 | N65: 11.30858099 | P65: 38.34 | R65: 0 | S65: 16.67 | T65: 6.67 | U65: 0 | V65: 10 | W65: 5 | Y65: 26.83603865 | Z65: 0.07385191777 | AA65: 59.26602877 | AB65: 2.113782702 | AC65: N/A | AD65: 34.75569824 | AE65: N/A | AF65: N/A | AH65: 0.4053780653 | AI65: 1302.944326 | AJ65: 422.7565405 | AL65: Mid-Carolina RPO | AM65: 94.73 | AN65: Fayetteville Area MPO | AO65: 5.27 | AR65: 06 | AS65: 100 | AX65: Harnett | AY65: 54.75 | AZ65: Cumberland | BA65: 45.25 | BF65: 6 | BG65: C | BH65: 06, , | BI65: Mid-Carolina RPO, Fayetteville Area MPO, | BJ65: Harnett, Cumberland, , | BK65: 15.57902865 | BL65: 15.57902865 | BM65: Two Lane Highway | BN65: Multi-Lane Highway | BO65: 1 | BP65: 2 | BQ65: Undivided | BR65: Divided | BS65: 55 | BT65: 55 | BU65: 6.728163509 | BV65: 93.27183649 | BW65: 6283.38684 | BX65: 15500.06618 | BY65: 0.4053780653 | BZ65: 5860.6303 | CA65: 422.7565405 | CB65: 388452.4545 | CC65: 28021.01607 | CD65: 416473.4706 | CE65: 9419369 | CF65: 68.52045444 | CG65: 62.4645726 | CH65: 46.83084086 | CM65: No | CN65: No | CO65: 12 | CP65: 12 | CQ65: No | CR65: 2 | CS65: 2 | CT65: 2 Lane Undivided | CU65: 4A - 4 Lane Divided (46' Depressed Median) with Paved Shoulders | CV65: None | CW65: Full | CX65: 3 | CY65: Yes | CZ65: 23 | DA65: 274976000 | DB65: 8946000 | DC65: 1073000 | DD65: 284995000 | DF65: 284995000 | DG65: 284995000
A66: H090123-B | B66: Harnett | C66: Capital Area MPO | D66: Regional Impact | E66: R-2540 | F66: NC-55 | G66: Church Street | H66: Old Stage Road | I66: Widen to Multi-Lanes | J66: 1 - Widen Existing Roadway | K66: 38202000 | L66: N/A | M66: 17.1943984 | N66: 11.40627513 | P66: 33.34 | R66: 0 | S66: 16.67 | T66: 6.67 | U66: 0 | V66: 10 | W66: 0 | Y66: 28.22393931 | Z66: 0.1298525208 | AA66: 57.35516767 | AB66: 1.55836386 | AC66: N/A | AD66: 43.70433674 | AE66: N/A | AF66: N/A | AH66: 0.4261381466 | AI66: 1295.536198 | AJ66: 311.6727721 | AL66: Capital Area MPO | AM66: 69.77 | AN66: Mid-Carolina RPO | AO66: 30.23 | AR66: 06 | AS66: 100 | AX66: Harnett | AY66: 100 | BF66: 6 | BG66: C | BH66: 06, , | BI66: Capital Area MPO, Mid-Carolina RPO, | BJ66: Harnett, , , | BK66: 4.44145861 | BL66: 4.44145861 | BM66: Two Lane Highway | BN66: Multi-Lane Highway | BO66: 1 | BP66: 2 | BQ66: Undivided | BR66: Divided | BS66: 52 | BT66: 52 | BU66: 4.694484771 | BV66: 95.30551523 | BW66: 6639.126279 | BX66: 15579.75115 | BY66: 0.4261381466 | BZ66: 6327.453507 | CA66: 311.6727721 | CB66: 210773.4214 | CC66: 10382.11288 | CD66: 221155.5343 | CE66: 4960626 | CF66: 70.69092629 | CG66: 49.7621963 | CH66: 51.62958868 | CM66: No | CN66: No | CO66: 12 | CP66: 12 | CQ66: No | CR66: 0 | CS66: 2 | CT66: 2 Lane Undivided | CU66: 4B - 4 Lane Divided (23' Raised Median) with Paved Shoulders and Sidewalks | CV66: None | CW66: Partial | CX66: 3 | CY66: Yes | CZ66: 29 | DA66: 117420000 | DB66: 40292000 | DC66: 4835000 | DD66: 162547000 | DF66: 162547000 | DG66: 162547000
A67: H090160-A | B67: Robeson | C67: Lumber River RPO | D67: Regional Impact | E67: R-2593A | F67: NC-211 New Route - Red Springs Bypass | G67: NC 71 Southwest of Red Springs | H67: NC 71 Northeast of Red Springs | I67: Construct Two Lanes, Part on New Location, on Multi-Lane Right of Way | J67: 5 - Construct Roadway on New Location | K67: 22515000 | L67: N/A | M67: 11.30889641 | N67: 8.777440034 | P67: 32.5 | R67: 0 | S67: 8.33 | T67: 6.67 | U67: 7.5 | V67: 10 | W67: 0 | Y67: 22.94189686 | Z67: 0.8439772596 | AA67: 40.20265209 | AB67: 3.133440632 | AC67: N/A | AD67: 13.42162675 | AE67: N/A | AF67: N/A | AH67: 0.3462207694 | AI67: 1024.179299 | AJ67: 626.6881264 | AL67: Lumber River RPO | AM67: 100 | AR67: 06 | AS67: 100 | AX67: Robeson | AY67: 100 | BF67: 6 | BG67: C | BH67: 06, , | BI67: Lumber River RPO, , | BJ67: Robeson, , , | BK67: 3.4 | BL67: 4.0547711 | BM67: Arterial | BN67: Arterial | BO67: 1 | BP67: 1 | BQ67: Undivided | BR67: Undivided | BS67: 41 | BT67: 55 | BU67: 11.55904224 | BV67: 88.44095776 | BW67: 5421.626751 | BX67: 15659.44978 | BY67: 0.3462207694 | BZ67: 4794.938625 | CA67: 626.6881264 | CB67: 728781.7726 | CC67: 95250.2043 | CD67: 824031.9769 | CE67: 19002148 | CF67: 30.43812138 | CG67: 71.12205318 | CH67: 19.05984371 | CM67: No | CN67: No | CO67: 12 | CP67: 12 | CQ67: No | CR67: 0 | CS67: 2 | CT67: New Roadway | CU67: 2A - 2 Lane Undivided with Paved Shoulders, 55 mph | CV67: None | CW67: Full | CX67: 1 | CY67: Yes | CZ67: 23 | DA67: 88969000 | DB67: 11172000 | DC67: 1341000 | DD67: 101482000 | DF67: 101482000 | DG67: 101482000
A68: H090287-C | B68: Columbus | C68: Cape Fear RPO | D68: Statewide Mobility | E68: R-4462 | F68: US-74 , US-76 | G68: SR 1735 (Chauncey Town Road) | I68: Upgrade At-grade Intersection to Interchange | J68: 7 - Upgrade At-grade Intersection to Interchange or Grade Separation | K68: 5750000 | L68: 7.566501465 | M68: 11.63934851 | N68: 5.019104426 | P68: 30 | R68: 0 | S68: 0 | T68: 20 | U68: 0 | V68: 10 | W68: 0 | Y68: 16.63660909 | Z68: 0.1339130435 | AA68: 16.65 | AB68: 4.308743798 | AC68: 0.08596066117 | AD68: 57.81717979 | AE68: N/A | AF68: N/A | AH68: 0.1723497519 | AI68: 182.6665641 | AJ68: 0 | AL68: Cape Fear RPO | AM68: 100 | AR68: 06 | AS68: 100 | AX68: Columbus | AY68: 100 | BF68: 6 | BG68: C | BH68: 06, , | BI68: Cape Fear RPO, , | BJ68: Columbus, , , | BK68: 2 | BL68: 2 | BM68: Multi-Lane Highway | BN68: Freeway | BO68: 2 | BP68: 2 | BQ68: Divided | BR68: Divided | BS68: 55 | BT68: 70 | BU68: 0 | BV68: 100 | BW68: 15739.05993 | BX68: 91320.46756 | BY68: 0.1723497519 | BZ68: 15739.05993 | CA68: 0 | CB68: 35000 | CC68: 0 | CD68: 35000 | CE68: 770000 | CI68: 0 | CJ68: 33.3 | CK68: 1 | CL68: 7.192132234e-07 | CM68: Yes | CN68: No | CO68: 12 | CP68: 12 | CQ68: No | CR68: 2 | CS68: 4 | CT68: 2 Lane Undivided | CV68: Limited | CW68: Full | CX68: 1 | CY68: Yes | CZ68: 25.02531803 | DA68: 5750000 | DB68: 0 | DC68: 0 | DD68: 5750000 | DF68: 5750000 | DG68: 5750000
A69: H111067 | B69: Robeson | C69: Lumber River RPO | D69: Regional Impact | F69: US-301 | G69: NC 20 | H69: I-95 Exit 25 | I69: Widen Roadway to Four Lanes with a Median | J69: 1 - Widen Existing Roadway | K69: 18052000 | L69: N/A | M69: 10.53919045 | N69: 9.115737171 | P69: =SUM(R69:W69) -> 30 | R69: =IF(AH69<0.5,0,IF(AH69<0.75,5,IF(AH69<0.9,10,IF(AH69<1,15,20)))) -> 0 | S69: =IF(AA69<30,0,IF(AA69<51,8.33,IF(AA69<66,16.67,25))) -> 16.67 | T69: =IF(AI69>1500,0,IF(AI69>1000,6.67,IF(AI69>500,13.33,20))) -> 13.33 | U69: =IF(AJ69<500,0,IF(AJ69<1000,7.5,15)) -> 0 | V69: 0 | W69: 0 | Y69: 13.93829074 | Z69: 0 | AA69: 63.28079023 | AB69: 0.6253796462 | AC69: N/A | AD69: 7.265387419 | AE69: N/A | AF69: N/A | AH69: =+BW69/BX69 -> 0.2105355962 | AI69: =K69/BW69/BL69 -> 885.7364537 | AJ69: =+CA69 -> 125.0759292 | AL69: Lumber River RPO | AM69: 100 | AR69: 06 | AS69: 100 | AX69: Robeson | AY69: 100 | BF69: 6 | BG69: C | BH69: 06, , | BI69: Lumber River RPO, , | BJ69: Robeson, , , | BK69: 6.24145855 | BL69: 6.24145855 | BM69: Two Lane Highway | BN69: Arterial | BO69: 1 | BP69: 2 | BQ69: Undivided | BR69: Divided | BS69: 54 | BT69: 45 | BU69: 3.830354968 | BV69: 96.16964503 | BW69: 3265.387419 | BX69: 15509.90653 | BY69: 0.2105355962 | BZ69: 3140.31149 | CA69: 125.0759292 | CB69: 0 | CC69: 0 | CD69: 0 | CE69: 0 | CF69: 62.53815692 | CG69: 59.45602524 | CH69: 67.86717466 | CM69: No | CN69: No | CO69: 11 | CP69: 12 | CQ69: No | CR69: 2 | CS69: 0 | CT69: 2 Lane Undivided | CU69: 4C - 4 Lane Divided (23' Raised Median) with Curb & Gutter, Wide Outside Lanes, and Sidewalks | CV69: None | CW69: Full | CX69: 1 | CY69: Yes | CZ69: 29 | DA69: 5750000 | DB69: 0 | DC69: 0 | DD69: 5750000 | DF69: 5750000 | DG69: 5750000
A70: H090123-A | B70: Harnett | C70: Mid-Carolina RPO | D70: Regional Impact | E70: R-2540 | F70: NC-55 | G70: US 421 | H70: Old Stage Road | I70: Widen to Multi-Lanes | J70: 1 - Widen Existing Roadway | K70: 104294000 | L70: N/A | M70: 14.4513673 | N70: 10.78583447 | P70: 26.67 | R70: 0 | S70: 16.67 | T70: 0 | U70: 0 | V70: 10 | W70: 0 | Y70: 27.17015458 | Z70: 0.07300446814 | AA70: 53.3720266 | AB70: 1.358119492 | AC70: N/A | AD70: 23.03374877 | AE70: N/A | AF70: N/A | AH70: 0.4102515378 | AI70: 1840.156246 | AJ70: 271.6238984 | AL70: Mid-Carolina RPO | AM70: 100 | AR70: 06 | AS70: 100 | AX70: Harnett | AY70: 100 | BF70: 6 | BG70: C | BH70: 06, , | BI70: Mid-Carolina RPO, , | BJ70: Harnett, , , | BK70: 8.87284958 | BL70: 8.87284958 | BM70: Two Lane Highway | BN70: Multi-Lane Highway | BO70: 1 | BP70: 2 | BQ70: Undivided | BR70: Divided | BS70: 52 | BT70: 52 | BU70: 4.252325226 | BV70: 95.74767477 | BW70: 6387.655787 | BX70: 15570.0959 | BY70: 0.4102515378 | BZ70: 6116.031889 | CA70: 271.6238984 | CB70: 325599.7858 | CC70: 14460.46795 | CD70: 340060.2538 | CE70: 7613928 | CF70: 56.63196775 | CG70: 58.12062785 | CH70: 45.37949741 | CM70: No | CN70: No | CO70: 12 | CP70: 12 | CQ70: No | CR70: 0 | CS70: 2 | CT70: 2 Lane Undivided | CU70: 4A - 4 Lane Divided (46' Depressed Median) with Paved Shoulders | CV70: None | CW70: Full | CX70: 1 | CY70: Yes | CZ70: 28 | DA70: 33139000 | DB70: 0 | DC70: 0 | DD70: 33139000 | DF70: 33139000 | DG70: 33139000
A71: H090761 | B71: Sampson | C71: Mid-Carolina RPO | D71: Regional Impact | F71: US-13 | G71: I-95 | H71: I-40 | I71: Widen to Multi-Lanes from I-95 in Cumberland County to I-40 in Sampson County. | J71: 1 - Widen Existing Roadway | K71: 204786000 | L71: N/A | M71: 13.35571341 | N71: 14.65706286 | P71: 25.83 | R71: 0 | S71: 8.33 | T71: 0 | U71: 7.5 | V71: 10 | W71: 0 | Y71: 22.0895411 | Z71: 0.04063835907 | AA71: 49.0012034 | AB71: 4.389139549 | AC71: N/A | AD71: 23.79213351 | AE71: N/A | AF71: N/A | AH71: 0.3336786846 | AI71: 1644.123086 | AJ71: 877.8279097 | AL71: Mid-Carolina RPO | AM71: 89.39 | AN71: Fayetteville Area MPO | AO71: 10.61 | AR71: 03 | AS71: 69.66 | AT71: 06 | AU71: 30.34 | AX71: Sampson | AY71: 69.66 | AZ71: Cumberland | BA71: 30.34 | BF71: 3 | BG71: B | BH71: 03, 06, | BI71: Mid-Carolina RPO, Fayetteville Area MPO, | BJ71: Sampson, Cumberland, , | BK71: 24.0825913 | BL71: 24.0825913 | BM71: Two Lane Highway | BN71: Multi-Lane Highway | BO71: 1 | BP71: 2 | BQ71: Undivided | BR71: Divided | BS71: 55 | BT71: 55 | BU71: 16.97253311 | BV71: 83.02746689 | BW71: 5172.050066 | BX71: 15500.09127 | BY71: 0.3336786846 | BZ71: 4294.222156 | CA71: 877.8279097 | CB71: 293325.3737 | CC71: 59961.77894 | CD71: 353287.1527 | CE71: 8322167 | CF71: 53.0193826 | CG71: 51.52976148 | CH71: 42.46916795 | CM71: No | CN71: No | CO71: 11 | CP71: 12 | CQ71: No | CR71: 2 | CS71: 2 | CT71: 2 Lane Undivided | CU71: 4A - 4 Lane Divided (46' Depressed Median) with Paved Shoulders | CV71: None | CW71: Partial | CX71: 1 | CY71: Yes | CZ71: 27 | DA71: 36800000 | DB71: 12000000 | DC71: 1000000 | DD71: 49800000 | DF71: 49800000 | DG71: 49800000
A72: H090664 | B72: Robeson | C72: Lumber River RPO | D72: Regional Impact | F72: NC-20 | G72: US 401 Business (East Central Avenue) | H72: US 301 | I72: Widen NC 20 to Four Lanes from US 401 Business (East Central Avenue) in Raeford to US 301 in Saint Pauls. | J72: 1 - Widen Existing Roadway | K72: 128340000 | L72: N/A | M72: 9.294496893 | N72: 7.132675573 | P72: 25.83 | R72: 0 | S72: 8.33 | T72: 0 | U72: 7.5 | V72: 10 | W72: 0 | Y72: 16.29144104 | Z72: 0 | AA72: 38.74387365 | AB72: 2.786835698 | AC72: N/A | AD72: 13.47249268 | AE72: N/A | AF72: N/A | AH72: 0.2460295891 | AI72: 1765.558264 | AJ72: 557.3671396 | AL72: Lumber River RPO | AM72: 64.31 | AN72: Fayetteville Area MPO | AO72: 35.69 | AR72: 06 | AS72: 52.33 | AT72: 08 | AU72: 47.67 | AX72: Robeson | AY72: 52.33 | AZ72: Hoke | BA72: 47.67 | BF72: 6 | BG72: C | BH72: 06, 08, | BI72: Lumber River RPO, Fayetteville Area MPO, | BJ72: Robeson, Hoke, , | BK72: 19.00830738 | BL72: 19.00830738 | BM72: Two Lane Highway | BN72: Multi-Lane Highway | BO72: 1 | BP72: 2 | BQ72: Undivided | BR72: Divided | BS72: 52 | BT72: 45 | BU72: 14.57487457 | BV72: 85.42512543 | BW72: 3824.164228 | BX72: 15543.51345 | BY72: 0.2460295891 | BZ72: 3266.797088 | CA72: 557.3671396 | CB72: 0 | CC72: 0 | CD72: 0 | CE72: 0 | CF72: 44.55757005 | CG72: 35.51600143 | CH72: 36.16967378 | CM72: No | CN72: No | CO72: 10 | CP72: 12 | CQ72: No | CR72: 0 | CS72: 0 | CT72: 2 Lane Undivided | CU72: 4C - 4 Lane Divided (23' Raised Median) with Curb & Gutter, Wide Outside Lanes, and Sidewalks | CV72: None | CW72: None | CX72: 2 | CY72: No | CZ72: 19 | DA72: 5000000 | DB72: 0 | DC72: 0 | DD72: 5000000 | DE72: 650000 | DF72: 4350000 | DG72: 4350000 | DH72: City of Fayetteville
A73: H090306 | B73: Columbus | C73: Cape Fear RPO | D73: Regional Impact | E73: R-5013 | F73: US-701 , NC-410 | G73: South Carolina State Line | H73: US 76 in Chadbourn | I73: Widen to Multi-Lanes. | J73: 1 - Widen Existing Roadway | K73: 115099000 | L73: N/A | M73: 13.11330458 | N73: 9.504916478 | P73: 25 | R73: 0 | S73: 8.33 | T73: 6.67 | U73: 0 | V73: 10 | W73: 0 | Y73: 23.28834888 | Z73: 0.07659961425 | AA73: 48.31926779 | AB73: 2.055399768 | AC73: N/A | AD73: 24.4014068 | AE73: N/A | AF73: N/A | AH73: 0.3516915773 | AI73: 1386.258599 | AJ73: 411.0799536 | AL73: Cape Fear RPO | AM73: 100 | AR73: 06 | AS73: 100 | AX73: Columbus | AY73: 100 | BF73: 6 | BG73: C | BH73: 06, , | BI73: Cape Fear RPO, , | BJ73: Columbus, , , | BK73: 15.1868412 | BL73: 15.1868412 | BM73: Two Lane Highway | BN73: Multi-Lane Highway | BO73: 1 | BP73: 2 | BQ73: Undivided | BR73: Divided | BS73: 50 | BT73: 50 | BU73: 7.519110257 | BV73: 92.48088974 | BW73: 5467.135599 | BX73: 15545.25599 | BY73: 0.3516915773 | BZ73: 5056.055645 | CA73: 411.0799536 | CB73: 359356.2064 | CC73: 29217.26797 | CD73: 388573.4744 | CE73: 8816539 | CF73: 51.51684862 | CG73: 48.62307327 | CH73: 44.83237872 | CM73: No | CN73: No | CO73: 12 | CP73: 12 | CQ73: No | CR73: 2 | CS73: 2 | CT73: 2 Lane Undivided | CU73: 4A - 4 Lane Divided (46' Depressed Median) with Paved Shoulders | CV73: None | CW73: Partial | CX73: 1 | CY73: Yes | CZ73: 25 | DA73: 63600000 | DB73: 12000000 | DC73: 2000000 | DD73: 77600000 | DF73: 77600000 | DG73: 77600000
A74: H090160-B | B74: Robeson | C74: Lumber River RPO | D74: Regional Impact | E74: R-2593B | F74: NC-211 New Route - Red Springs Bypass | G74: NC 71 Northeast of Red Springs | H74: NC 72/710 South of Red Springs | I74: Construct Two Lanes, Part on New Location, on Multi-Lane Right of Way | J74: 5 - Construct Roadway on New Location | K74: 29700000 | L74: N/A | M74: 12.43200538 | N74: 9.820344173 | P74: 25 | R74: 0 | S74: 8.33 | T74: 6.67 | U74: 0 | V74: 10 | W74: 0 | Y74: 24.62679358 | Z74: 0 | AA74: 48.94985456 | AB74: 2.291072114 | AC74: N/A | AD74: 13.80321529 | AE74: N/A | AF74: N/A | AH74: 0.3717584578 | AI74: 1267.999286 | AJ74: 458.2144228 | AL74: Lumber River RPO | AM74: 100 | AR74: 06 | AS74: 100 | AX74: Robeson | AY74: 100 | BF74: 6 | BG74: C | BH74: 06, , | BI74: Lumber River RPO, , | BJ74: Robeson, , , | BK74: 3.5 | BL74: 4.03616357 | BM74: Two Lane Highway | BN74: Arterial | BO74: 1 | BP74: 1 | BQ74: Undivided | BR74: Undivided | BS74: 45 | BT74: 55 | BU74: 7.895871515 | BV74: 92.10412848 | BW74: 5803.215287 | BX74: 15610.17689 | BY74: 0.3717584578 | BZ74: 5345.000864 | CA74: 458.2144228 | CB74: 0 | CC74: 0 | CD74: 0 | CE74: 0 | CF74: 52.56846458 | CG74: 51.41514382 | CH74: 42.88064172 | CM74: No | CN74: No | CO74: 12 | CP74: 12 | CQ74: No | CR74: 1 | CS74: 2 | CT74: New Roadway | CU74: 2A - 2 Lane Undivided with Paved Shoulders, 55 mph | CV74: None | CW74: None | CX74: 1 | CY74: Yes | CZ74: 21 | DA74: 1500000 | DB74: 150000 | DC74: 125000 | DD74: 1775000 | DF74: 1775000 | DG74: 1775000
A75: H090133-A | B75: Bladen | C75: Mid-Carolina RPO | D75: Statewide Mobility | E75: R-2561A | F75: NC-87 | G75: Elizabethtown Bypass | H75: SR 1730 (Elwell Ferry Road) | I75: Widen to Multi-Lanes. | J75: 1 - Widen Existing Roadway | K75: 77600000 | L75: 11.21124419 | M75: 10.8815372 | N75: 7.977220909 | P75: 25 | R75: 0 | S75: 8.33 | T75: 6.67 | U75: 0 | V75: 10 | W75: 0 | Y75: 15.51508229 | Z75: 0.02302689433 | AA75: 48.69599073 | AB75: 8.334604114 | AC75: 0.1329153944 | AD75: 21.27410835 | AE75: N/A | AF75: N/A | AH75: 0.2335311307 | AI75: 1429.967489 | AJ75: 499.2651695 | AL75: Mid-Carolina RPO | AM75: 100 | AR75: 06 | AS75: 100 | AX75: Bladen | AY75: 100 | BF75: 6 | BG75: C | BH75: 06, , | BI75: Mid-Carolina RPO, , | BJ75: Bladen, , , | BK75: 14.44024653 | BL75: 14.44024653 | BM75: Two Lane Highway | BN75: Multi-Lane Highway | BO75: 1 | BP75: 2 | BQ75: Undivided | BR75: Divided | BS75: 55 | BT75: 55 | BU75: 13.28526799 | BV75: 86.71473201 | BW75: 3758.036118 | BX75: 16092.22765 | BY75: 0.2335311307 | BZ75: 3258.770948 | CA75: 499.2651695 | CB75: 66736.02834 | CC75: 10224.39902 | CD75: 76960.42736 | CE75: 1786887 | CF75: 54.52567745 | CG75: 49.70647735 | CH75: 41.87042764 | CK75: 1 | CL75: 1.658307889e-06 | CM75: Yes | CN75: No | CO75: 12 | CP75: 12 | CQ75: No | CR75: 4 | CS75: 0 | CT75: 2 Lane Undivided | CU75: 4A - 4 Lane Divided (46' Depressed Median) with Paved Shoulders | CV75: None | CW75: Full | CX75: 1 | CY75: Yes | CZ75: 24.5 | DA75: 5750000 | DB75: 0 | DC75: 0 | DD75: 5750000 | DF75: 5750000 | DG75: 5750000
A76: H141735 | B76: Sampson | C76: Mid-Carolina RPO | D76: Regional Impact | F76: US-421 | G76: NC 55 | H76: NC 210 | I76: Widen existing roadway to multi-lanes from NC 55 intersection in Harnett County to just north of the NC 210 intersection in Pender County. | J76: 1 - Widen Existing Roadway | K76: 512883000 | L76: N/A | M76: 13.88993118 | N76: 13.62569937 | P76: 22.5 | R76: 0 | S76: 8.33 | T76: 6.67 | U76: 7.5 | V76: 0 | W76: 0 | Y76: 17.47989628 | Z76: 0.02374778263 | AA76: 45.75647465 | AB76: 9.784251864 | AC76: N/A | AD76: 23.893729 | AE76: N/A | AF76: N/A | AH76: 0.2565972821 | AI76: 1420.560608 | AJ76: 673.8639622 | AL76: Mid-Carolina RPO | AM76: 75.52 | AN76: Cape Fear RPO | AO76: 24.18 | AR76: 03 | AS76: 97.2 | AT76: 06 | AU76: 2.8 | AX76: Sampson | AY76: 72.72 | AZ76: Pender | BA76: 24.18 | BB76: Harnett | BC76: 2.8 | BF76: 3 | BG76: B | BH76: 03, 06, | BI76: Mid-Carolina RPO, Cape Fear RPO, | BJ76: Sampson, Pender, Harnett, | BK76: 69.29604453 | BL76: 69.29604453 | BM76: Two Lane Highway | BN76: Multi-Lane Highway | BO76: 1 | BP76: 2 | BQ76: Undivided | BR76: Divided | BS76: 54.98587433 | BT76: 55 | BU76: 12.93368084 | BV76: 87.06631916 | BW76: 5210.148373 | BX76: 20304.76835 | BY76: 0.2565972821 | BZ76: 4536.284411 | CA76: 673.8639622 | CB76: 457367.5663 | CC76: 67941.84236 | CD76: 525309.4086 | CE76: 12179834 | CF76: 52.60759404 | CG76: 40.87436351 | CH76: 43.80119471 | CM76: Yes | CN76: No | CO76: 12 | CP76: 12 | CQ76: No | CR76: 3 | CS76: 2 | CT76: 2 Lane Undivided | CU76: 4A - 4 Lane Divided (46' Depressed Median) with Paved Shoulders | CV76: None | CW76: Full | CX76: 1 | CY76: Yes | CZ76: 25.92419522 | DA76: 5750000 | DB76: 0 | DC76: 0 | DD76: 5750000 | DF76: 5750000 | DG76: 5750000
A77: H090668 | B77: Robeson | C77: Lumber River RPO | D77: Regional Impact | F77: NC-20 | G77: Martin Luther King, Jr. Drive | H77: NC 87 | I77: Widen NC 20 to Four Lanes from Martin Luther King, Jr. Drive in Street Pauls to NC 87 in Bladen County. | J77: 1 - Widen Existing Roadway | K77: 62441000 | L77: N/A | M77: 13.2704386 | N77: 10.05779217 | P77: 16.67 | R77: 0 | S77: 16.67 | T77: 0 | U77: 0 | V77: 0 | W77: 0 | Y77: 20.04795801 | Z77: 0.04091039541 | AA77: 60.40018487 | AB77: 2.058670755 | AC77: N/A | AD77: 22.08203012 | AE77: N/A | AF77: N/A | AH77: 0.3028392333 | AI77: 1581.050843 | AJ77: 411.7341511 | AL77: Lumber River RPO | AM77: 54.55 | AN77: Mid-Carolina RPO | AO77: 45.45 | AR77: 06 | AS77: 100 | AX77: Robeson | AY77: 54.55 | AZ77: Bladen | BA77: 45.45 | BF77: 6 | BG77: C | BH77: 06, , | BI77: Lumber River RPO, Mid-Carolina RPO, | BJ77: Robeson, Bladen, , | BK77: 8.41356394 | BL77: 8.41356394 | BM77: Two Lane Highway | BN77: Multi-Lane Highway | BO77: 1 | BP77: 2 | BQ77: Undivided | BR77: Divided | BS77: 55 | BT77: 55 | BU77: 8.771479985 | BV77: 91.22852001 | BW77: 4694.010039 | BX77: 15500.00635 | BY77: 0.3028392333 | BZ77: 4282.275888 | CA77: 411.7341511 | CB77: 102191.9184 | CC77: 9825.593647 | CD77: 112017.512 | CE77: 2554486 | CF77: 63.17260846 | CG77: 67.80790099 | CH77: 50.23816702 | CM77: No | CN77: No | CO77: 12 | CP77: 12 | CQ77: No | CR77: 1 | CS77: 2 | CT77: 2 Lane Undivided | CU77: 4B - 4 Lane Divided (23' Raised Median) with Paved Shoulders and Sidewalks | CV77: None | CW77: Partial | CX77: 2 | CY77: Yes | CZ77: 25 | DA77: 396786000 | DB77: 103658000 | DC77: 12439000 | DD77: 512883000 | DF77: 512883000 | DG77: 512883000
A78: H111066 | B78: Robeson | C78: Lumber River RPO | D78: Regional Impact | F78: US-301 | G78: I-95 Exit 33 | H78: NC 20 in St. Pauls | I78: Widen Roadway to Four Lanes with a Median | J78: 1 - Widen Existing Roadway | K78: 15675000 | L78: N/A | M78: 11.60687999 | N78: 9.881984363 | P78: 16.67 | R78: 0 | S78: 16.67 | T78: 0 | U78: 0 | V78: 0 | W78: 0 | Y78: 18.03021696 | Z78: 0 | AA78: 62.75940971 | AB78: 1.129095075 | AC78: N/A | AD78: 8.233847808 | AE78: N/A | AF78: N/A | AH78: 0.2722779639 | AI78: 2016.831353 | AJ78: 225.819015 | AL78: Lumber River RPO | AM78: 100 | AR78: 06 | AS78: 100 | AX78: Robeson | AY78: 100 | BF78: 6 | BG78: C | BH78: 06, , | BI78: Lumber River RPO, , | BJ78: Robeson, , , | BK78: 1.83570429 | BL78: 1.83570429 | BM78: Two Lane Highway | BN78: Arterial | BO78: 1 | BP78: 2 | BQ78: Undivided | BR78: Divided | BS78: 52 | BT78: 45 | BU78: 5.333659244 | BV78: 94.66634076 | BW78: 4233.847808 | BX78: 15549.72627 | BY78: 0.2722779639 | BZ78: 4008.028793 | CA78: 225.819015 | CB78: 0 | CC78: 0 | CD78: 0 | CE78: 0 | CF78: 66.14720361 | CG78: 65.10289684 | CH78: 57.04695839 | CM78: No | CN78: No | CO78: 12 | CP78: 12 | CQ78: No | CR78: 0 | CS78: 2 | CT78: 2 Lane Undivided | CU78: 4C - 4 Lane Divided (23' Raised Median) with Curb & Gutter, Wide Outside Lanes, and Sidewalks | CV78: None | CW78: Full | CX78: 1 | CY78: Yes | CZ78: 23.9 | DA78: 5750000 | DB78: 1380000 | DC78: 0 | DD78: 7130000 | DF78: 7130000 | DG78: 7130000
A79: H111065 | B79: Robeson | C79: Lumber River RPO | D79: Regional Impact | F79: NC-130-BUS- | G79: I-95 | H79: NC 710 | I79: Add Turn Lanes at Major intersections. Widen to 3 Lanes from Hickory St to Hines St. | J79: 1 - Widen Existing Roadway | K79: 15258000 | L79: N/A | M79: 10.26654986 | N79: 8.265353556 | P79: 15 | R79: 0 | S79: 8.33 | T79: 6.67 | U79: 0 | V79: 0 | W79: 0 | Y79: 19.04461303 | Z79: 0 | AA79: 44.56430951 | AB79: 2.461726269 | AC79: N/A | AD79: 10.48965654 | AE79: N/A | AF79: N/A | AH79: 0.2874791735 | AI79: 1302.595195 | AJ79: 492.3452538 | AL79: Lumber River RPO | AM79: 100 | AR79: 06 | AS79: 100 | AX79: Robeson | AY79: 100 | BF79: 6 | BG79: C | BH79: 06, , | BI79: Lumber River RPO, , | BJ79: Robeson, , , | BK79: 2.60900565 | BL79: 2.60900565 | BM79: Two Lane Highway | BN79: Arterial | BO79: 1 | BP79: 1 | BQ79: Undivided | BR79: TWLTL | BS79: 47 | BT79: 45 | BU79: 10.96621198 | BV79: 89.03378802 | BW79: 4489.656545 | BX79: 15617.328 | BY79: 0.2874791735 | BZ79: 3997.311291 | CA79: 492.3452538 | CB79: 0 | CC79: 0 | CD79: 0 | CE79: 0 | CF79: 45.19092082 | CG79: 55.55123051 | CH79: 32.96414783 | CM79: No | CN79: No | CO79: 12 | CP79: 12 | CQ79: No | CR79: 1 | CS79: 2 | CT79: 2 Lane Undivided | CU79: 3B - 2 Lane with Two Way Left Turn Lane, Curb & Gutter, and Sidewalks | CV79: None | CW79: Full | CX79: 1 | CY79: Yes | CZ79: 25.3 | DA79: 5750000 | DB79: 0 | DC79: 0 | DD79: 5750000 | DF79: 5750000 | DG79: 5750000
A80: H090115 | B80: Moore | C80: Triangle Area RPO | D80: Statewide Mobility | E80: R-2529 | F80: NC-24 , NC-27 | G80: Carthage Bypass | H80: NC 87 | I80: Widen to Multi-Lanes | J80: 1 - Widen Existing Roadway | K80: 162547000 | L80: 13.55072808 | M80: 13.17444226 | N80: 9.194448732 | P80: 8.33 | R80: 0 | S80: 8.33 | T80: 0 | U80: 0 | V80: 0 | W80: 0 | Y80: 20.77291373 | Z80: 0.09720757073 | AA80: 50.20424472 | AB80: 10.27502275 | AC80: 2.142626666 | AD80: 29.36487466 | AE80: N/A | AF80: N/A | AH80: 0.3137441584 | AI80: 1608.518181 | AJ80: 486.2837581 | AL80: Triangle Area RPO | AM80: 58.54 | AN80: Mid-Carolina RPO | AO80: 25.33 | AP80: Fayetteville Area MPO | AQ80: 16.13 | AR80: 08 | AS80: 58.54 | AT80: 06 | AU80: 41.46 | AX80: Moore | AY80: 58.54 | AZ80: Harnett | BA80: 41.46 | BF80: 8 | BG80: E | BH80: 08, 06, | BI80: Triangle Area RPO, Mid-Carolina RPO, Fayetteville Area MPO | BJ80: Moore, Harnett, , | BK80: 20.74746876 | BL80: 20.74746876 | BM80: Two Lane Highway | BN80: Multi-Lane Highway | BO80: 1 | BP80: 2 | BQ80: Undivided | BR80: Divided | BS80: 53 | BT80: 55 | BU80: 9.983938551 | BV80: 90.01606145 | BW80: 4870.660568 | BX80: 15524.30679 | BY80: 0.3137441584 | BZ80: 4384.37681 | CA80: 486.2837581 | CB80: 620682.0921 | CC80: 68841.62413 | CD80: 689523.7163 | CE80: 15800799 | CF80: 58.2165099 | CG80: 47.92257672 | CH80: 44.48871032 | CK80: 12 | CL80: 3.085253332e-05 | CM80: No | CN80: Yes | CO80: 11 | CP80: 12 | CQ80: No | CR80: 0 | CS80: 2 | CT80: 2 Lane Undivided | CU80: 4A - 4 Lane Divided (46' Depressed Median) with Paved Shoulders | CV80: None | CW80: Full | CX80: 1 | CY80: Yes | CZ80: 25.3 | DA80: 5750000 | DB80: 0 | DC80: 0 | DD80: 5750000 | DF80: 5750000 | DG80: 5750000

Sheet Division Scoring
A2: Cape Fear | B2: CAMPO | C2: FAMPO | D2: Lumber Rvr | E2: Mid-Carlna
A3: Bladen | B3: Columbus | C3: Cumberland | D3: Harnett | E3: Robeson | AF3: Scoring Data
A4: SPOT ID | B4: =+AV4 -> First County | C4: First MPO/RPO | D4: Project Category | E4: TIP | F4: Route | G4: From / Cross Street | H4: To | I4: Description | J4: Specific Improvement Type | K4: Cost to NCDOT | L4: Statewide Quantiative Score (Out of 100) | M4: Regional Quantiative Score (Out of 70) | N4: Division Quantiative Score (Out of 50) | P4: Total Division Level Score | R4: Existing Congestion | S4: Safety Score | T4: Cost Effectiveness | U4: Serves Activity Center | W4: Congestion | X4: [Travel Time] Benefit/Cost | Y4: Safety | Z4: Multimodal + [Freight & Military] | AA4: Economic Competitiveness | AB4: Accessibility / Connectivity | AC4: Lane Width | AD4: [Paved] Shoulder Width | AF4: Volume to Capacity | AG4: Cost Effectiveness | AH4: Freight Volume | AJ4: First MPO/RPO | AK4: First MPO/RPO % | AL4: Second MPO/RPO | AM4: Second MPO/RPO % | AN4: Third MPO/RPO | AO4: Third MPO/RPO % | AP4: First Division | AQ4: First Division % | AR4: Second Division | AS4: Second Division % | AT4: Third Division | AU4: Third Division % | AV4: First County | AW4: First County % | AX4: Second County | AY4: Second County % | AZ4: Third County | BA4: Third County % | BB4: Fourth County | BC4: Fourth County % | BD4: Highest Division | BE4: Funding Region | BF4: All Divisions | BG4: All MPOs/RPOs | BH4: All Counties | BI4: Existing Length (Miles) | BJ4: Project Length (Miles) | BK4: Existing Facility Type | BL4: Project Facility Type | BM4: Existing Lanes Per Direction | BN4: Project Lanes Per Direction | BO4: Existing Median Type | BP4: Project Median Type | BQ4: Existing Speed Limit | BR4: Project Speed Limit | BS4: Truck % | BT4: Auto % | BU4: Existing Volume | BV4: Existing Capacity | BW4: Existing Volume / Capacity Ratio | BX4: Auto Volume | BY4: Truck Volume | BZ4: Travel Time Savings Over 30 Years Autos (Hrs) | CA4: Travel Time Savings Over 30 Years Trucks (Hrs) | CB4: Travel Time Savings Over 30 Years Total (Hrs) | CC4: Travel Time Savings Over 30 Years Total ($) | CD4: Crash Density Points Segment | CE4: Crash Severity Points Segment | CF4: Critical Crash Rate Points Segment | CG4: Crash Frequency Points Intersection | CH4: Severity Index Points Intersection | CI4: Long Term Employment | CJ4: Percent Change In Value Added | CK4: Non-Interstate STRAHNet Route | CL4: Direct Connection to Transportation Terminal | CM4: Existing Lane Width | CN4: DOT Design Standard Lane Width | CO4: Existing Roadway Has Curb & Gutter | CP4: Existing Paved Shoulder Width | CQ4: DOT Design Paved Shoulder Width | CR4: Existing Cross Section | CS4: Project Cross Section | CT4: Existing Access Control | CU4: Project Access Control | CV4: County Tier | CW4: Upgrade Roadway Eligible | CX4: Census Average Commute Time | CY4: Construction Cost | CZ4: Right-Of-Way Cost | DA4: Utilities Cost | DB4: Actual Project Cost | DC4: Other Funds | DD4: Cost to NCDOT | DE4: Cost Used in Benefit/Cost Analysis | DF4: Other Funds Source
A5: H111297 | B5: Cumberland | C5: Fayetteville Area MPO | D5: Division Needs | E5: U-5605 | F5: SR-1600 Odell Road | G5: Fort Bragg Boundary | H5: NC 24/87 (Bragg Boulevard) | I5: Widen to Multi-Lanes, Part on New Location | J5: 5 - Construct Roadway on New Location | K5: 5350000 | L5: N/A | M5: N/A | N5: 42.07753495 | P5: =SUM(R5:U5) -> 92.5 | R5: =IF(AF5<0.5,0,IF(AF5<0.75,15,30)) -> 30 | S5: =IF(Y5<30,0,IF(Y5<51,7.5,IF(Y5<66,15,IF(Y5<80,22.5,30)))) -> 22.5 | T5: =IF(AG5>4000,0,IF(AG5>2000,7.5,IF(AG5>1500,12.5,IF(AG5>999,18.75,25)))) -> 25 | U5: 15 | W5: 73.96340282 | X5: 100 | Y5: 72.84854384 | Z5: 34.46178066 | AA5: N/A | AB5: N/A | AC5: N/A | AD5: N/A | AF5: =+BU5/BV5 -> 0.9820858326 | AG5: =K5/BU5/BJ5 -> 144.5451455 | AH5: =+BY5 -> 1981.92697 | AJ5: Fayetteville Area MPO | AK5: 100 | AP5: 06 | AQ5: 100 | AV5: Cumberland | AW5: 100 | BD5: 6 | BE5: C | BF5: 06, , | BG5: Fayetteville Area MPO, , | BH5: Cumberland, , , | BI5: 4.9 | BJ5: 0.98449356 | BK5: Arterial | BL5: Arterial | BM5: 2 | BN5: 2 | BO5: Divided | BP5: Divided | BQ5: 42 | BR5: 45 | BS5: 5.271694757 | BT5: 94.72830524 | BU5: 37595.63216 | BV5: 38281.41178 | BW5: 0.9820858326 | BX5: 35613.70519 | BY5: 1981.92697 | BZ5: 68461579.14 | CA5: 3809933.545 | CB5: 72271512.68 | CC5: 1624910370 | CD5: 92.64303375 | CE5: 52.02670512 | CF5: 73.8977494 | CK5: No | CL5: Yes | CM5: 12 | CN5: 12 | CO5: Yes | CP5: 0 | CQ5: 4 | CR5: New Roadway | CS5: 4D - 4 Lane Divided (23' Raised Median) with Curb & Gutter, Wide Outside Lanes, Bike Lanes, and Sidewalks | CT5: None | CU5: Partial | CV5: 3 | CW5: Yes | CX5: 33 | CY5: 23081000 | CZ5: 3957000 | DA5: 475000 | DB5: 27513000 | DD5: 27513000 | DE5: 27513000
A6: H090178-A | B6: Cumberland | C6: Fayetteville Area MPO | D6: Division Needs | E6: FS-1106A | F6: - Spring Lake Bypass | G6: NC 210 (Lillington Highway) South of Spring Lake | H6: NC 210 (Murchison Road) North of Spring Lake | I6: Construct Multi-Lane Facility, Part on New Location. | J6: 6 - Widen Existing Roadway and Construct Part on New Location | K6: 24959000 | L6: N/A | M6: N/A | N6: 20.12252406 | P6: 59.17 | R6: =IF(AF6<0.5,0,IF(AF6<0.75,5,IF(AF6<0.9,10,IF(AF6<1,15,20)))) -> 15 | S6: =IF(Y6<30,0,IF(Y6<51,8.33,IF(Y6<66,16.67,25))) -> 16.67 | T6: =IF(AG6>1500,0,IF(AG6>1000,6.67,IF(AG6>500,13.33,20))) -> 20 | U6: 7.5 | W6: 68.876596 | X6: 0 | Y6: 63.4720486 | Z6: 31.0810288 | AA6: N/A | AB6: N/A | AC6: N/A | AD6: N/A | AF6: 0.9271904805 | AG6: 290.4746008 | AH6: 1580.253357 | AJ6: Fayetteville Area MPO | AK6: 100 | AP6: 06 | AQ6: 100 | AV6: Cumberland | AW6: 100 | BD6: 6 | BE6: C | BF6: 06, , | BG6: Fayetteville Area MPO, , | BH6: Cumberland, , , | BI6: 2.5 | BJ6: 2.59490561 | BK6: Arterial | BL6: Arterial | BM6: 2 | BN6: 2 | BO6: Undivided | BP6: Divided | BQ6: 43 | BR6: 45 | BS6: 4.772316836 | BT6: 95.22768316 | BU6: 33112.91792 | BV6: 35713.17719 | BW6: 0.9271904805 | BX6: 31532.66456 | BY6: 1580.253357 | BZ6: 0 | CA6: 0 | CB6: 0 | CC6: 0 | CD6: 76.63849704 | CE6: 52.00287964 | CF6: 61.79381264 | CK6: No | CL6: Yes | CM6: 12 | CN6: 12 | CO6: Yes | CP6: 0 | CQ6: 4 | CR6: New Roadway | CS6: 4D - 4 Lane Divided (23' Raised Median) with Curb & Gutter, Wide Outside Lanes, Bike Lanes, and Sidewalks | CT6: None | CU6: None | CV6: 2 | CW6: No | CX6: 14 | CY6: 8436000 | CZ6: 5714000 | DA6: 686000 | DB6: 14836000 | DD6: 14836000 | DE6: 14836000
A7: H111306 | B7: Robeson | C7: Lumber River RPO | D7: Division Needs | F7: SR-1997 Fayetteville Road | G7: I-95 | H7: Farrington Street | I7: Widen Roadway to Six Lanes with a Median | J7: 1 - Widen Existing Roadway | K7: 21476000 | L7: N/A | M7: N/A | N7: 19.24109741 | P7: 58.33 | R7: 5 | S7: 25 | T7: 13.33 | U7: 15 | W7: 50.69767836 | X7: 1.152866502 | Y7: 88.70988439 | Z7: 0 | AA7: N/A | AB7: N/A | AC7: N/A | AD7: N/A | AF7: 0.6975464878 | AG7: 661.5394326 | AH7: 0 | AJ7: Lumber River RPO | AK7: 100 | AP7: 06 | AQ7: 100 | AV7: Robeson | AW7: 100 | BD7: 6 | BE7: C | BF7: 06, , | BG7: Lumber River RPO, , | BH7: Robeson, , , | BI7: 1.46813252 | BJ7: 1.46813252 | BK7: Arterial | BL7: Arterial | BM7: 2 | BN7: 3 | BO7: TWLTL | BP7: Divided | BQ7: 45 | BR7: 45 | BS7: 0 | BT7: 100 | BU7: 22112.22273 | BV7: 31699.99866 | BW7: 0.6975464878 | BX7: 22112.22273 | BY7: 0 | BZ7: 1125407.34 | CA7: 0 | CB7: 1125407.34 | CC7: 24758961 | CD7: 99.79612628 | CE7: 66.56401623 | CF7: 99.79612628 | CK7: No | CL7: No | CM7: 12 | CN7: 12 | CO7: Yes | CP7: 0 | CQ7: 4 | CR7: 4 Lane with TWLTL (Five Lane) | CS7: 6E - 6 Lane Divided (23' Raised Median) with Curb & Gutter, Wide Outside Lanes, and Sidewalks | CT7: None | CU7: Partial | CV7: 2 | CW7: Yes | CX7: 30 | CY7: 6699000 | CZ7: 2685000 | DA7: 322000 | DB7: 9706000 | DD7: 9706000 | DE7: 9706000
